Workbook

Sheet Version Control (hidden)
A1: Version Number | B1: Author | C1: Notes | D1: Change date
A2: v1.4.1 | B2: Paul Bullard | C2: First circulation version. V1.5 to-do: - Multiple file import - Code speed efficiency - Parameters and Summary information to be created - Review named ranges to ensure structure/naming convention - Ensure auto-update for Summary outputs
A3: v1.4.2 | B3: Paul Bullard | C3: Completed: - Formatting of demand entry table - Creation of initial sketch for Summary output - Error trapping within VBA - VBA reduced - shiny app now pre-selects columns, iterating through columns no longer needed.
A4: v1.5.1 | B4: Paul Bullard | C4: Completed: -Automation of Summary graph selection - Draft Parameters
A5: v1.5.1.1 | B5: Paul Bullard | C5: Completed: - Multiple file import completed
A6: v1.5.1.2 | B6: Paul Bullard | C6: Completed: - Capacity prioritisation completed. Graph compiled. - Changes to Export function - was including an additional row. Todo: - Setup change to hide unneeded rows in Capacity Backing (H) - Change in streams to delete additional data (i.e. stream name, CD/H etc.) - Parameters display to change based on selection. - Parameters to edit summary values per stream
A7: v1.5.2 | B7: Paul Bullard | C7: Completed: - UX changes made inc. legends on prioritised capacity - Capacity Backing values changed to ensure only selected streams are available - no need to call hide/unhide functions, whilst also maintaining the formatting of the graph. - Parameters display now reacts to selection Todo: - Summary values to be updated with Parameters outcomes
A8: v1.5.3 | B8: Paul Bullard | C8: Completed: - UX changes made to allow for easy Demand entry for latest data. Todo: - Summary values to be updated with Parameters outcomes - Parameters selection to be updated or cleared when new data is entered.
A9: v1.5.3.1 | B9: Paul Bullard | C9: Completed: - Draft summary and parameter outputs revised.
A10: v1.5.3.2 | B10: Paul Bullard | C10: Completed: - Update to graphs to ensure proper titling on graph axes - Small formatting changes for consistency
A11: v1.5.3.3 | B11: Paul Bullard | C11: Completed: - Capacity can now be edited via the Parameters tab
A12: v1.6 | B12: Paul Bullard | C12: Completed: - Summary tab updated to include changes made to capacity in Parameters tab Todo: - Queue builder interface - Demand Analysis clearance - when does this need to be done? Once new data has been uploaded?
A13: v1.6.1 | B13: Paul Bullard | C13: Completed: - Initial draft of Queue builder interface. Todo: - Queue builder to be finalised (speed, code clean up etc.) - Demand analysis clearance still to be completed - Switch from 'basic' to advanced forecasting still to be completed - Feedback re. unfilled shifts to be implemented Dev note: - Model is now very large. Reductions in data to be completed. - Issues re. shiny export to be resolved.
A14: v1.6.2 | B14: Paul Bullard | C14: Completed: - Queue builder now runs for each strata - Queue builder display will update based on selection made at top of summary Todo: - Queue builder to be optimised - Demand analysis clearance - Switch from 'basic' to advanced -Feedback re. unfilled shifts to be completed
A15: v1.6.3 | B15: Paul Bullard | C15: Dev Note: - Mismatch between units in the queue builder. Currently a manual fix has been made for two streams, but need to check assumptions (esp. with real data). Completed: - Feedback re. unfilled shifts implemented in worksheet - selecting "Shift Unfilled" in the capacity - role config table means that the shifts are not given a value for capacity. Todo: - Queue builder to be optimised - Demand analysis clearance - Switch from 'basic' to advanced
A16: v1.7.1 | B16: Paul Bullard | C16: Dev Note: - Mismatch between units in the queue builder still to be tested thoroughly. Completed: - Moving Parameters backing in to specific tables for each stream. - Graph autoformatting to default fixed Todo: - Queue builder to be optimised - Demand analysis clearance - Switch from 'basic' to advanced.
A17: v1.7.2 | B17: Paul Bullard | C17: Completed: - Revisions made to queue builder to convert back to patients from CDMH Todo: - Queue builder to be optimised - Demand analysis clearance - Switch from 'basic' to advanced.
A18: v1.7.3 | B18: Paul Bullard | C18: Dev Note: - Need to build MIU forecast in to shiny app Completed: - Small bugfix on summary page with a missing array formula Todo: - Queue builder to be optimised - Demand analysis clearance - Switch from 'basic' to advanced.
A19: v1.7.4 | B19: Paul Bullard | C19: Completed: - Capacity templating function completed - Parameters UI changes drafted - backing sums to be checked - MIU options in Shiny app completed. Not yet live. Todo: - Queue builder to be optimised - Demand analysis clearance - Switch from 'basic' to advanced.
A20: v1.7.5 | B20: Paul Bullard | C20: Dev note: -Additional comments have been scattered through document that need to be addressed Completed: - 'i' icons with help text created (exact wording to be finalised in the help boxes) Todo: - Queue builder to be optimised - Demand analysis clearance - Switch from 'basic' to advanced - there is VBA code (strata_setup, demand_clear) that can be removed if basic is no longer required - Logfile started
A21: v1.8.2 | B21: Paul Bullard | C21: Completed: - Volatile functions removed to improve responsiveness of the model - Layout of key aspects changed following feedback - Forecasting and Capacity syncronisation made in forecasting app - Basic forecasting removed, now working solely on forecasting app - Combined Parameters page created Todo: - Summary page needs to be transferred across to new Parameters page - Demand analysis clearance - Logfile to be completed
A22: v1.8.2.1 | B22: Paul Bullard | C22: Dev note: - Assigning capacity flex based on required capacity to be completed. Completed: - Required capacity in Summary now works on Upper Bound, from the new Parameters information.
A23: v1.8.2.2 | B23: Paul Bullard | C23: Completed: - Capacity prioritisation completed - Updates across workbook to update to new capacity work
A24: v1.9 | B24: Paul Bullard | C24: Completed: - Locked cells - Minor formatting changes for when workbook is 'blank'
A25: v1.9.1 | B25: Paul Bullard | C25: Completed: - Rota switch on Summary tab implemented using existing form
A26: Beta v1 | B26: Paul Bullard | C26: Completed: - Worksheet protection completed - Core/Ad-hoc capacity proportion summary created - Titles/additional information added throughout the model.
A27: Beta v1.1 | B27: Paul Bullard | C27: Completed: - Capacity prioritisation feedback loop created.
A28: Beta v1.3 | B28: Paul Bullard | C28: Completed: - Queue builder had issues if 0 demand when doing norm.inv - corrected. - Queue builder starting size per stream created and implemented. - Fix for long stream names implemented - with thanks to Southport and Ormskirk Hospital NHS Trust. - Fix for invalid reference error implemented.
A29: Beta v1.3.3 | B29: Paul Bullard | C29: Completed: - Capacity prioritisation was not working correctly, now fixed.
A30: Beta v1.3.4 | B30: Paul Bullard | C30: Completed: - Capacity expanded to 100 rows as requested from feedback.
A31: Beta v1.3.5 | B31: Paul Bullard | C31: Completed: - Total information added to summary sheet. - Whole week summary graph created.
A32: Beta v1.4 | B32: Paul Bullard | C32: Completed: - Get Started page and additional model use information added.
A33: Beta v1.5 | B33: Paul Bullard | C33: Completed: - Parameters changed to % rather than raw number. - Rounding error in Capacity was not reflecting hours correctly - fixed. - Graphing error in Demand Analysis in older versions of Excel - fixed. - Data validation in stream name to stop special characters - Critical fix to capacity parameters made.
A34: Beta v1.6 | B34: Paul Bullard | C34: Completed: - Warning messages for stream import created - Key added for summary table - Additional information added to forecasting app - Statutory breaks can now be entered in to shift config
A35: Beta v1.7 | B35: Paul Bullard | C35: Completed: - Paramaters can now be set by stream
A36: Beta v1.8 | B36: Paul Bullard | C36: Completed: - Formatting issue on core/adhoc balance graph fixed
A37: Beta v1.10 | B37: Paul Bullard | C37: Completed: - Additional help text added - Breaks over midnight was not working as intended, now fixed.
A38: Beta v1.12 | B38: Paul Bullard | C38: Completed: - Rounding error in calculating dates in parameters worksheet fixed - Clinical Decision Making Hours increase error fixed - was not applying % change to minutes required correctly. - Change to strata setup macro as unnecessary rows were being hidden in the Summary tab - Changes to queue builder to reflect changes in minutes required per stream
A39: Beta v1.2 | B39: Paul Bullard | C39: Completed: - Language changes made - Single file export/import created
A40: Beta v1.4 (A) | B40: Paul Bullard | C40: Completed: - Additional language changes made
A41: Beta v1.5 (A) | B41: Paul Bullard | C41: Completed: - Further capacity calculation bugs fixed - Broken reference in Parameters Backing fixed - Update to forecasting app link, now generic d&c
A42: v1 | B42: Paul Bullard | C42: Completed: - Final wording edits - Go-Live
A43: v1.1 | B43: Ashish Mohanty | C43: Completed: - Heatmap conditional formatting amended to account for non 24/7 services
A44: v1.2 | B44: Paul Bullard | C44: Completed: - bug fix on rota export/import
A45: v1.3 | B45: Paul Bullard | C45: Completed: - Row height on Capacity - Role Config autofits
A46: v1.4 | B46: Paul Bullard | C46: Completed: - Bug fix on number of shifts available
A47: v1.5 | B47: Sai Khunpha | C47: Completed: - Bug fix for capacity backing sheet - extended reference for role config to full 100 instead of 30
A48: v1.6 | B48: Sai Khunpha | C48: Completed: - Bug fix for import module, ensured that streams starting with a number are correctly re-imported (accommodating for 'x' prefix introduced in R)
A49: v1.8 | B49: Sai Khunpha | C49: Completed: - Bug fix: Capacity shift (core/ad hoc split) chart corrected, as was previously showing incorrect values due to change in table structure. - Bug fix: Demand analysis will now always start on Mondays for forecast week period, likewise for capacity summary
A50: v1.9 | B50: Sai Khunpha | C50: Updates & bug fixes: - Corrected incorrect links for expansion of roles (100, from original 30 slots) - Hidden formulae when sheets are protected to reduce visual clutter - Expansion of shifts to incorporate 3 break periods, and customisable 'period' labelling - Corrected export routine: predicted values will always start from the Monday for the week following the nearest complete week of historic data
A51: V2.0 | B51: Mark Bytheway | C51: Updates & bug fixes: - issue where export exported blank data causing Prophet to not work fixed - legend added to Capacity Role Config table to clarify cell shading - version control sheet, column added for date changes are enacted | D51: 2022-05-05
A52: V2.04 | B52: Mark Bytheway/Sai Khunpa | C52: Updates & bug fixes: -X axes on all charts homogenised -Calculations on the demand changed adjusted to ensure data is truncated appropriately to the nearest Monday -Pop up on demand page to tell user if their data is to be truncated | D52: 2022-06-27
A53: V2.05 | B53: Mark Bytheway/Sai Khunpa | C53: -Solved issue of incorrect column hiding in the demand tab when a selction is made in the setup page -Removed reference to NHS Improvement | D53: 2022-07-11
A54: V2.06 | B54: Mark Bytheway | C54: -fixed issue with capacity not showing in the Summary tab when certain streams are selected -changed the warning message when a dataset is truncated for export to better explain what is happening | D54: 2022-07-21

Sheet Get Started

Sheet Notes
B2: ="Demand and capacity analysis notes for "&Setup!E6 -> Demand and capacity analysis notes for

Sheet Setup
B2: NHS Demand and Capacity Programme: Emergency Department Model
B3: Version 2.06
B6: Provider Name:
B7: Site Name:
B11: Number of streams required: | E11: 3
B13: Stream Configuration | E13: Enter your stream name and priority below
E14: Name | F14: Priority
B15: Stream 1: | E15: Majors | F15: 2
B16: Stream 2: | E16: Minors | F16: 3
B17: Stream 3: | E17: Resus | F17: 1
B18: Stream 4:
B19: Stream 5:
B20: Stream 6:
B21: Stream 7:
B22: Stream 8:
B23: Stream 9:
B24: Stream 10:

Sheet Demand
D2: Start Date: | E2: 2017-02-27
D3: Start Hour: | E3: 00:00:00
A4: =Max_Dem=A5 -> TRUE | B4: FALSE if we've truncated the dataset
A5: =((A6-E2)*24)-F9+24 -> 19320 | B5: convert b6 to rows, accounting for start point | D5: Step 1 - Enter historic demand information in to the model.
A6: =(A7-(WEEKDAY(A7,1)-1)) -> 2019-05-12 | B6: end date, truncated to nearest Sunday | G6: =INDEX('Data Valid Backing (H)'!$E$3:$E$12,COLUMN(A1),1) -> Majors | H6: =INDEX('Data Valid Backing (H)'!$E$3:$E$12,COLUMN(B1),1) -> Minors | I6: =INDEX('Data Valid Backing (H)'!$E$3:$E$12,COLUMN(C1),1) -> Resus | J6: =INDEX('Data Valid Backing (H)'!$E$3:$E$12,COLUMN(D1),1) -> 0 | K6: =INDEX('Data Valid Backing (H)'!$E$3:$E$12,COLUMN(E1),1) -> 0 | L6: =INDEX('Data Valid Backing (H)'!$E$3:$E$12,COLUMN(F1),1) -> 0 | M6: =INDEX('Data Valid Backing (H)'!$E$3:$E$12,COLUMN(G1),1) -> 0 | N6: =INDEX('Data Valid Backing (H)'!$E$3:$E$12,COLUMN(H1),1) -> 0 | O6: =INDEX('Data Valid Backing (H)'!$E$3:$E$12,COLUMN(I1),1) -> 0 | P6: =INDEX('Data Valid Backing (H)'!$E$3:$E$12,COLUMN(J1),1) -> 0
A7: =E2+(QUOTIENT(Max_Dem-(24-F9),24)) -> 2019-05-12 | B7: Last date of data entry (ending midnight) | G7: Minutes: | H7: Minutes: | I7: Minutes: | J7: Minutes: | K7: Minutes: | L7: Minutes: | M7: Minutes: | N7: Minutes: | O7: Minutes: | P7: Minutes:
A8: =MAX(A9:A26288) -> 19320 | B8: Max rows | D8: Date | E8: Hour Range | F8: Hour | G8: 60 | H8: 30 | I8: 50
A9: 1 | D9: =IF(E2="","Enter date",E2) -> 2017-02-27 | E9: =IFERROR(INDEX('Data Valid Backing (H)'!$J$3:$J$26,MATCH(Demand!F9,'Data Valid Backing (H)'!$I$3:$I$26,0),1),"Enter hour") -> 00:00 - 00:59 | F9: =IF(E3="","",HOUR(E3)) -> 0 | G9: 1 | H9: 2 | I9: 0
A10: =IF(COUNT(G10:P10)>=1,A9+1,"") -> 2 | D10: =IFERROR(IF(F10=0,SUM($D$9:D9)+1,""),"") ->  | E10: =IFERROR(INDEX('Data Valid Backing (H)'!$J$3:$J$26,MATCH(Demand!F10,'Data Valid Backing (H)'!$I$3:$I$26,0),1),"") -> 01:00 - 01:59 | F10: =IFERROR(IF(F9+1=24,0,F9+1),"") -> 1 | G10: 1 | H10: 1 | I10: 0
A11: 3 | D11: =IFERROR(IF(F11=0,SUM($D$9:D10)+1,""),"") ->  | E11: =IFERROR(INDEX('Data Valid Backing (H)'!$J$3:$J$26,MATCH(Demand!F11,'Data Valid Backing (H)'!$I$3:$I$26,0),1),"") -> 02:00 - 02:59 | F11: =IFERROR(IF(F10+1=24,0,F10+1),"") -> 2 | G11: 0 | H11: 1 | I11: 0
A12: 4 | D12: =IFERROR(IF(F12=0,SUM($D$9:D11)+1,""),"") ->  | E12: =IFERROR(INDEX('Data Valid Backing (H)'!$J$3:$J$26,MATCH(Demand!F12,'Data Valid Backing (H)'!$I$3:$I$26,0),1),"") -> 03:00 - 03:59 | F12: 3 | G12: 0 | H12: 1 | I12: 1
A13: 5 | D13: =IFERROR(IF(F13=0,SUM($D$9:D12)+1,""),"") ->  | E13: =IFERROR(INDEX('Data Valid Backing (H)'!$J$3:$J$26,MATCH(Demand!F13,'Data Valid Backing (H)'!$I$3:$I$26,0),1),"") -> 04:00 - 04:59 | F13: 4 | G13: 1 | H13: 1 | I13: 0
A14: 6 | D14: =IFERROR(IF(F14=0,SUM($D$9:D13)+1,""),"") ->  | E14: =IFERROR(INDEX('Data Valid Backing (H)'!$J$3:$J$26,MATCH(Demand!F14,'Data Valid Backing (H)'!$I$3:$I$26,0),1),"") -> 05:00 - 05:59 | F14: 5 | G14: 0 | H14: 0 | I14: 0
A15: 7 | D15: =IFERROR(IF(F15=0,SUM($D$9:D14)+1,""),"") ->  | E15: =IFERROR(INDEX('Data Valid Backing (H)'!$J$3:$J$26,MATCH(Demand!F15,'Data Valid Backing (H)'!$I$3:$I$26,0),1),"") -> 06:00 - 06:59 | F15: 6 | G15: 0 | H15: 0 | I15: 0
A16: 8 | D16: =IFERROR(IF(F16=0,SUM($D$9:D15)+1,""),"") ->  | E16: =IFERROR(INDEX('Data Valid Backing (H)'!$J$3:$J$26,MATCH(Demand!F16,'Data Valid Backing (H)'!$I$3:$I$26,0),1),"") -> 07:00 - 07:59 | F16: 7 | G16: 0 | H16: 0 | I16: 0 | U16: ="The latest data point is "&TEXT(Demand!E2+Demand!E3+(Max_Dem/24)-1/24,"ddd dd/mm/yyyy HH:MM") -> The latest data point is Sun 12/05/2019 23:00
A17: 9 | D17: =IFERROR(IF(F17=0,SUM($D$9:D16)+1,""),"") ->  | E17: =IFERROR(INDEX('Data Valid Backing (H)'!$J$3:$J$26,MATCH(Demand!F17,'Data Valid Backing (H)'!$I$3:$I$26,0),1),"") -> 08:00 - 08:59 | F17: 8 | G17: 2 | H17: 3 | I17: 0
A18: 10 | D18: =IFERROR(IF(F18=0,SUM($D$9:D17)+1,""),"") ->  | E18: =IFERROR(INDEX('Data Valid Backing (H)'!$J$3:$J$26,MATCH(Demand!F18,'Data Valid Backing (H)'!$I$3:$I$26,0),1),"") -> 09:00 - 09:59 | F18: 9 | G18: 0 | H18: 4 | I18: 0
A19: 11 | D19: =IFERROR(IF(F19=0,SUM($D$9:D18)+1,""),"") ->  | E19: =IFERROR(INDEX('Data Valid Backing (H)'!$J$3:$J$26,MATCH(Demand!F19,'Data Valid Backing (H)'!$I$3:$I$26,0),1),"") -> 10:00 - 10:59 | F19: 10 | G19: 1 | H19: 2 | I19: 0
A20: 12 | D20: =IFERROR(IF(F20=0,SUM($D$9:D19)+1,""),"") ->  | E20: =IFERROR(INDEX('Data Valid Backing (H)'!$J$3:$J$26,MATCH(Demand!F20,'Data Valid Backing (H)'!$I$3:$I$26,0),1),"") -> 11:00 - 11:59 | F20: 11 | G20: 1 | H20: 4 | I20: 1
A21: 13 | D21: =IFERROR(IF(F21=0,SUM($D$9:D20)+1,""),"") ->  | E21: =IFERROR(INDEX('Data Valid Backing (H)'!$J$3:$J$26,MATCH(Demand!F21,'Data Valid Backing (H)'!$I$3:$I$26,0),1),"") -> 12:00 - 12:59 | F21: 12 | G21: 1 | H21: 3 | I21: 0
A22: 14 | D22: =IFERROR(IF(F22=0,SUM($D$9:D21)+1,""),"") ->  | E22: =IFERROR(INDEX('Data Valid Backing (H)'!$J$3:$J$26,MATCH(Demand!F22,'Data Valid Backing (H)'!$I$3:$I$26,0),1),"") -> 13:00 - 13:59 | F22: 13 | G22: 3 | H22: 3 | I22: 1
A23: 15 | D23: =IFERROR(IF(F23=0,SUM($D$9:D22)+1,""),"") ->  | E23: =IFERROR(INDEX('Data Valid Backing (H)'!$J$3:$J$26,MATCH(Demand!F23,'Data Valid Backing (H)'!$I$3:$I$26,0),1),"") -> 14:00 - 14:59 | F23: 14 | G23: 1 | H23: 3 | I23: 0
A24: 16 | D24: =IFERROR(IF(F24=0,SUM($D$9:D23)+1,""),"") ->  | E24: =IFERROR(INDEX('Data Valid Backing (H)'!$J$3:$J$26,MATCH(Demand!F24,'Data Valid Backing (H)'!$I$3:$I$26,0),1),"") -> 15:00 - 15:59 | F24: 15 | G24: 2 | H24: 1 | I24: 0
A25: 17 | D25: =IFERROR(IF(F25=0,SUM($D$9:D24)+1,""),"") ->  | E25: =IFERROR(INDEX('Data Valid Backing (H)'!$J$3:$J$26,MATCH(Demand!F25,'Data Valid Backing (H)'!$I$3:$I$26,0),1),"") -> 16:00 - 16:59 | F25: 16 | G25: 3 | H25: 1 | I25: 0
A26: 18 | D26: =IFERROR(IF(F26=0,SUM($D$9:D25)+1,""),"") ->  | E26: =IFERROR(INDEX('Data Valid Backing (H)'!$J$3:$J$26,MATCH(Demand!F26,'Data Valid Backing (H)'!$I$3:$I$26,0),1),"") -> 17:00 - 17:59 | F26: 17 | G26: 0 | H26: 5 | I26: 1
A27: 19 | D27: =IFERROR(IF(F27=0,SUM($D$9:D26)+1,""),"") ->  | E27: =IFERROR(INDEX('Data Valid Backing (H)'!$J$3:$J$26,MATCH(Demand!F27,'Data Valid Backing (H)'!$I$3:$I$26,0),1),"") -> 18:00 - 18:59 | F27: 18 | G27: 2 | H27: 2 | I27: 1
A28: 20 | D28: =IFERROR(IF(F28=0,SUM($D$9:D27)+1,""),"") ->  | E28: =IFERROR(INDEX('Data Valid Backing (H)'!$J$3:$J$26,MATCH(Demand!F28,'Data Valid Backing (H)'!$I$3:$I$26,0),1),"") -> 19:00 - 19:59 | F28: 19 | G28: 2 | H28: 0 | I28: 1
A29: 21 | D29: =IFERROR(IF(F29=0,SUM($D$9:D28)+1,""),"") ->  | E29: =IFERROR(INDEX('Data Valid Backing (H)'!$J$3:$J$26,MATCH(Demand!F29,'Data Valid Backing (H)'!$I$3:$I$26,0),1),"") -> 20:00 - 20:59 | F29: 20 | G29: 0 | H29: 1 | I29: 0
A30: 22 | D30: =IFERROR(IF(F30=0,SUM($D$9:D29)+1,""),"") ->  | E30: =IFERROR(INDEX('Data Valid Backing (H)'!$J$3:$J$26,MATCH(Demand!F30,'Data Valid Backing (H)'!$I$3:$I$26,0),1),"") -> 21:00 - 21:59 | F30: 21 | G30: 0 | H30: 1 | I30: 0
A31: 23 | D31: =IFERROR(IF(F31=0,SUM($D$9:D30)+1,""),"") ->  | E31: =IFERROR(INDEX('Data Valid Backing (H)'!$J$3:$J$26,MATCH(Demand!F31,'Data Valid Backing (H)'!$I$3:$I$26,0),1),"") -> 22:00 - 22:59 | F31: 22 | G31: 2 | H31: 1 | I31: 0
A32: 24 | D32: =IFERROR(IF(F32=0,SUM($D$9:D31)+1,""),"") ->  | E32: =IFERROR(INDEX('Data Valid Backing (H)'!$J$3:$J$26,MATCH(Demand!F32,'Data Valid Backing (H)'!$I$3:$I$26,0),1),"") -> 23:00 - 23:59 | F32: 23 | G32: 0 | H32: 1 | I32: 0
A33: 25 | D33: =IF(A33="","",IF(F33=0,SUM(D9:D32)+1,"")) -> 2017-02-28 | E33: =IFERROR(INDEX('Data Valid Backing (H)'!$J$3:$J$26,MATCH(Demand!F33,'Data Valid Backing (H)'!$I$3:$I$26,0),1),"") -> 00:00 - 00:59 | F33: =IF(A33="","",IF(F32+1=24,0,F32+1)) -> 0 | G33: 0 | H33: 1 | I33: 0
A34: 26 | E34: =IFERROR(INDEX('Data Valid Backing (H)'!$J$3:$J$26,MATCH(Demand!F34,'Data Valid Backing (H)'!$I$3:$I$26,0),1),"") -> 01:00 - 01:59 | F34: 1 | G34: 1 | H34: 0 | I34: 0
A35: 27 | E35: =IFERROR(INDEX('Data Valid Backing (H)'!$J$3:$J$26,MATCH(Demand!F35,'Data Valid Backing (H)'!$I$3:$I$26,0),1),"") -> 02:00 - 02:59 | F35: 2 | G35: 0 | H35: 0 | I35: 0
A36: 28 | E36: =IFERROR(INDEX('Data Valid Backing (H)'!$J$3:$J$26,MATCH(Demand!F36,'Data Valid Backing (H)'!$I$3:$I$26,0),1),"") -> 03:00 - 03:59 | F36: 3 | G36: 0 | H36: 0 | I36: 0
A37: 29 | E37: =IFERROR(INDEX('Data Valid Backing (H)'!$J$3:$J$26,MATCH(Demand!F37,'Data Valid Backing (H)'!$I$3:$I$26,0),1),"") -> 04:00 - 04:59 | F37: 4 | G37: 0 | H37: 1 | I37: 0
A38: 30 | E38: =IFERROR(INDEX('Data Valid Backing (H)'!$J$3:$J$26,MATCH(Demand!F38,'Data Valid Backing (H)'!$I$3:$I$26,0),1),"") -> 05:00 - 05:59 | F38: 5 | G38: 0 | H38: 0 | I38: 0
A39: 31 | E39: =IFERROR(INDEX('Data Valid Backing (H)'!$J$3:$J$26,MATCH(Demand!F39,'Data Valid Backing (H)'!$I$3:$I$26,0),1),"") -> 06:00 - 06:59 | F39: 6 | G39: 1 | H39: 0 | I39: 0
A40: 32 | E40: =IFERROR(INDEX('Data Valid Backing (H)'!$J$3:$J$26,MATCH(Demand!F40,'Data Valid Backing (H)'!$I$3:$I$26,0),1),"") -> 07:00 - 07:59 | F40: 7 | G40: 0 | H40: 0 | I40: 0
A41: 33 | E41: =IFERROR(INDEX('Data Valid Backing (H)'!$J$3:$J$26,MATCH(Demand!F41,'Data Valid Backing (H)'!$I$3:$I$26,0),1),"") -> 08:00 - 08:59 | F41: 8 | G41: 3 | H41: 0 | I41: 0
A42: 34 | E42: =IFERROR(INDEX('Data Valid Backing (H)'!$J$3:$J$26,MATCH(Demand!F42,'Data Valid Backing (H)'!$I$3:$I$26,0),1),"") -> 09:00 - 09:59 | F42: 9 | G42: 0 | H42: 3 | I42: 0
A43: 35 | E43: =IFERROR(INDEX('Data Valid Backing (H)'!$J$3:$J$26,MATCH(Demand!F43,'Data Valid Backing (H)'!$I$3:$I$26,0),1),"") -> 10:00 - 10:59 | F43: 10 | G43: 2 | H43: 5 | I43: 1
A44: 36 | E44: =IFERROR(INDEX('Data Valid Backing (H)'!$J$3:$J$26,MATCH(Demand!F44,'Data Valid Backing (H)'!$I$3:$I$26,0),1),"") -> 11:00 - 11:59 | F44: 11 | G44: 1 | H44: 1 | I44: 0
A45: 37 | E45: =IFERROR(INDEX('Data Valid Backing (H)'!$J$3:$J$26,MATCH(Demand!F45,'Data Valid Backing (H)'!$I$3:$I$26,0),1),"") -> 12:00 - 12:59 | F45: 12 | G45: 6 | H45: 5 | I45: 2
A46: 38 | E46: =IFERROR(INDEX('Data Valid Backing (H)'!$J$3:$J$26,MATCH(Demand!F46,'Data Valid Backing (H)'!$I$3:$I$26,0),1),"") -> 13:00 - 13:59 | F46: 13 | G46: 2 | H46: 5 | I46: 0
A47: 39 | E47: =IFERROR(INDEX('Data Valid Backing (H)'!$J$3:$J$26,MATCH(Demand!F47,'Data Valid Backing (H)'!$I$3:$I$26,0),1),"") -> 14:00 - 14:59 | F47: 14 | G47: 0 | H47: 2 | I47: 0
A48: 40 | E48: =IFERROR(INDEX('Data Valid Backing (H)'!$J$3:$J$26,MATCH(Demand!F48,'Data Valid Backing (H)'!$I$3:$I$26,0),1),"") -> 15:00 - 15:59 | F48: 15 | G48: 5 | H48: 5 | I48: 0
A49: 41 | E49: =IFERROR(INDEX('Data Valid Backing (H)'!$J$3:$J$26,MATCH(Demand!F49,'Data Valid Backing (H)'!$I$3:$I$26,0),1),"") -> 16:00 - 16:59 | F49: 16 | G49: 1 | H49: 3 | I49: 1
A50: 42 | E50: =IFERROR(INDEX('Data Valid Backing (H)'!$J$3:$J$26,MATCH(Demand!F50,'Data Valid Backing (H)'!$I$3:$I$26,0),1),"") -> 17:00 - 17:59 | F50: 17 | G50: 3 | H50: 0 | I50: 0
A51: 43 | E51: =IFERROR(INDEX('Data Valid Backing (H)'!$J$3:$J$26,MATCH(Demand!F51,'Data Valid Backing (H)'!$I$3:$I$26,0),1),"") -> 18:00 - 18:59 | F51: 18 | G51: 3 | H51: 7 | I51: 1
A52: 44 | E52: =IFERROR(INDEX('Data Valid Backing (H)'!$J$3:$J$26,MATCH(Demand!F52,'Data Valid Backing (H)'!$I$3:$I$26,0),1),"") -> 19:00 - 19:59 | F52: 19 | G52: 0 | H52: 6 | I52: 0
A53: 45 | E53: =IFERROR(INDEX('Data Valid Backing (H)'!$J$3:$J$26,MATCH(Demand!F53,'Data Valid Backing (H)'!$I$3:$I$26,0),1),"") -> 20:00 - 20:59 | F53: 20 | G53: 2 | H53: 2 | I53: 0
A54: 46 | E54: =IFERROR(INDEX('Data Valid Backing (H)'!$J$3:$J$26,MATCH(Demand!F54,'Data Valid Backing (H)'!$I$3:$I$26,0),1),"") -> 21:00 - 21:59 | F54: 21 | G54: 2 | H54: 0 | I54: 0
A55: 47 | E55: =IFERROR(INDEX('Data Valid Backing (H)'!$J$3:$J$26,MATCH(Demand!F55,'Data Valid Backing (H)'!$I$3:$I$26,0),1),"") -> 22:00 - 22:59 | F55: 22 | G55: 2 | H55: 2 | I55: 0
A56: 48 | E56: =IFERROR(INDEX('Data Valid Backing (H)'!$J$3:$J$26,MATCH(Demand!F56,'Data Valid Backing (H)'!$I$3:$I$26,0),1),"") -> 23:00 - 23:59 | F56: 23 | G56: 1 | H56: 1 | I56: 0
A57: 49 | D57: 2017-03-01 | E57: =IFERROR(INDEX('Data Valid Backing (H)'!$J$3:$J$26,MATCH(Demand!F57,'Data Valid Backing (H)'!$I$3:$I$26,0),1),"") -> 00:00 - 00:59 | F57: 0 | G57: 1 | H57: 0 | I57: 0
A58: 50 | E58: =IFERROR(INDEX('Data Valid Backing (H)'!$J$3:$J$26,MATCH(Demand!F58,'Data Valid Backing (H)'!$I$3:$I$26,0),1),"") -> 01:00 - 01:59 | F58: 1 | G58: 0 | H58: 0 | I58: 0
A59: 51 | E59: =IFERROR(INDEX('Data Valid Backing (H)'!$J$3:$J$26,MATCH(Demand!F59,'Data Valid Backing (H)'!$I$3:$I$26,0),1),"") -> 02:00 - 02:59 | F59: 2 | G59: 1 | H59: 0 | I59: 0
A60: 52 | E60: =IFERROR(INDEX('Data Valid Backing (H)'!$J$3:$J$26,MATCH(Demand!F60,'Data Valid Backing (H)'!$I$3:$I$26,0),1),"") -> 03:00 - 03:59 | F60: 3 | G60: 1 | H60: 0 | I60: 0
A61: 53 | E61: =IFERROR(INDEX('Data Valid Backing (H)'!$J$3:$J$26,MATCH(Demand!F61,'Data Valid Backing (H)'!$I$3:$I$26,0),1),"") -> 04:00 - 04:59 | F61: 4 | G61: 0 | H61: 0 | I61: 0
A62: 54 | E62: =IFERROR(INDEX('Data Valid Backing (H)'!$J$3:$J$26,MATCH(Demand!F62,'Data Valid Backing (H)'!$I$3:$I$26,0),1),"") -> 05:00 - 05:59 | F62: 5 | G62: 1 | H62: 1 | I62: 1
A63: 55 | E63: =IFERROR(INDEX('Data Valid Backing (H)'!$J$3:$J$26,MATCH(Demand!F63,'Data Valid Backing (H)'!$I$3:$I$26,0),1),"") -> 06:00 - 06:59 | F63: 6 | G63: 1 | H63: 0 | I63: 0
A64: 56 | E64: =IFERROR(INDEX('Data Valid Backing (H)'!$J$3:$J$26,MATCH(Demand!F64,'Data Valid Backing (H)'!$I$3:$I$26,0),1),"") -> 07:00 - 07:59 | F64: 7 | G64: 3 | H64: 1 | I64: 1
A65: 57 | E65: =IFERROR(INDEX('Data Valid Backing (H)'!$J$3:$J$26,MATCH(Demand!F65,'Data Valid Backing (H)'!$I$3:$I$26,0),1),"") -> 08:00 - 08:59 | F65: 8 | G65: 1 | H65: 4 | I65: 0
A66: 58 | E66: =IFERROR(INDEX('Data Valid Backing (H)'!$J$3:$J$26,MATCH(Demand!F66,'Data Valid Backing (H)'!$I$3:$I$26,0),1),"") -> 09:00 - 09:59 | F66: 9 | G66: 3 | H66: 3 | I66: 1
A67: 59 | E67: =IFERROR(INDEX('Data Valid Backing (H)'!$J$3:$J$26,MATCH(Demand!F67,'Data Valid Backing (H)'!$I$3:$I$26,0),1),"") -> 10:00 - 10:59 | F67: 10 | G67: 4 | H67: 5 | I67: 1
A68: 60 | E68: =IFERROR(INDEX('Data Valid Backing (H)'!$J$3:$J$26,MATCH(Demand!F68,'Data Valid Backing (H)'!$I$3:$I$26,0),1),"") -> 11:00 - 11:59 | F68: 11 | G68: 0 | H68: 5 | I68: 0
A69: 61 | E69: =IFERROR(INDEX('Data Valid Backing (H)'!$J$3:$J$26,MATCH(Demand!F69,'Data Valid Backing (H)'!$I$3:$I$26,0),1),"") -> 12:00 - 12:59 | F69: 12 | G69: 2 | H69: 1 | I69: 0
A70: 62 | E70: =IFERROR(INDEX('Data Valid Backing (H)'!$J$3:$J$26,MATCH(Demand!F70,'Data Valid Backing (H)'!$I$3:$I$26,0),1),"") -> 13:00 - 13:59 | F70: 13 | G70: 2 | H70: 2 | I70: 2
A71: 63 | E71: =IFERROR(INDEX('Data Valid Backing (H)'!$J$3:$J$26,MATCH(Demand!F71,'Data Valid Backing (H)'!$I$3:$I$26,0),1),"") -> 14:00 - 14:59 | F71: 14 | G71: 1 | H71: 3 | I71: 0
A72: 64 | E72: =IFERROR(INDEX('Data Valid Backing (H)'!$J$3:$J$26,MATCH(Demand!F72,'Data Valid Backing (H)'!$I$3:$I$26,0),1),"") -> 15:00 - 15:59 | F72: 15 | G72: 4 | H72: 1 | I72: 0
A73: 65 | E73: =IFERROR(INDEX('Data Valid Backing (H)'!$J$3:$J$26,MATCH(Demand!F73,'Data Valid Backing (H)'!$I$3:$I$26,0),1),"") -> 16:00 - 16:59 | F73: 16 | G73: 1 | H73: 5 | I73: 0
A74: =IF(COUNT(G74:P74)>=1,A73+1,"") -> 66 | E74: =IFERROR(INDEX('Data Valid Backing (H)'!$J$3:$J$26,MATCH(Demand!F74,'Data Valid Backing (H)'!$I$3:$I$26,0),1),"") -> 17:00 - 17:59 | F74: 17 | G74: 3 | H74: 2 | I74: 0
A75: 67 | E75: =IFERROR(INDEX('Data Valid Backing (H)'!$J$3:$J$26,MATCH(Demand!F75,'Data Valid Backing (H)'!$I$3:$I$26,0),1),"") -> 18:00 - 18:59 | F75: 18 | G75: 1 | H75: 5 | I75: 0
A76: 68 | E76: =IFERROR(INDEX('Data Valid Backing (H)'!$J$3:$J$26,MATCH(Demand!F76,'Data Valid Backing (H)'!$I$3:$I$26,0),1),"") -> 19:00 - 19:59 | F76: 19 | G76: 2 | H76: 3 | I76: 0
A77: 69 | E77: =IFERROR(INDEX('Data Valid Backing (H)'!$J$3:$J$26,MATCH(Demand!F77,'Data Valid Backing (H)'!$I$3:$I$26,0),1),"") -> 20:00 - 20:59 | F77: 20 | G77: 1 | H77: 1 | I77: 0
A78: 70 | E78: =IFERROR(INDEX('Data Valid Backing (H)'!$J$3:$J$26,MATCH(Demand!F78,'Data Valid Backing (H)'!$I$3:$I$26,0),1),"") -> 21:00 - 21:59 | F78: 21 | G78: 0 | H78: 2 | I78: 0
A79: 71 | E79: =IFERROR(INDEX('Data Valid Backing (H)'!$J$3:$J$26,MATCH(Demand!F79,'Data Valid Backing (H)'!$I$3:$I$26,0),1),"") -> 22:00 - 22:59 | F79: 22 | G79: 4 | H79: 1 | I79: 0
A80: 72 | E80: =IFERROR(INDEX('Data Valid Backing (H)'!$J$3:$J$26,MATCH(Demand!F80,'Data Valid Backing (H)'!$I$3:$I$26,0),1),"") -> 23:00 - 23:59 | F80: 23 | G80: 0 | H80: 0 | I80: 0
A81: 73 | D81: 2017-03-02 | E81: =IFERROR(INDEX('Data Valid Backing (H)'!$J$3:$J$26,MATCH(Demand!F81,'Data Valid Backing (H)'!$I$3:$I$26,0),1),"") -> 00:00 - 00:59 | F81: 0 | G81: 0 | H81: 1 | I81: 0
A82: 74 | E82: =IFERROR(INDEX('Data Valid Backing (H)'!$J$3:$J$26,MATCH(Demand!F82,'Data Valid Backing (H)'!$I$3:$I$26,0),1),"") -> 01:00 - 01:59 | F82: 1 | G82: 4 | H82: 1 | I82: 0
A83: 75 | E83: =IFERROR(INDEX('Data Valid Backing (H)'!$J$3:$J$26,MATCH(Demand!F83,'Data Valid Backing (H)'!$I$3:$I$26,0),1),"") -> 02:00 - 02:59 | F83: 2 | G83: 1 | H83: 3 | I83: 0
A84: 76 | E84: =IFERROR(INDEX('Data Valid Backing (H)'!$J$3:$J$26,MATCH(Demand!F84,'Data Valid Backing (H)'!$I$3:$I$26,0),1),"") -> 03:00 - 03:59 | F84: 3 | G84: 0 | H84: 0 | I84: 0
A85: 77 | E85: =IFERROR(INDEX('Data Valid Backing (H)'!$J$3:$J$26,MATCH(Demand!F85,'Data Valid Backing (H)'!$I$3:$I$26,0),1),"") -> 04:00 - 04:59 | F85: 4 | G85: 0 | H85: 0 | I85: 0
A86: 78 | E86: =IFERROR(INDEX('Data Valid Backing (H)'!$J$3:$J$26,MATCH(Demand!F86,'Data Valid Backing (H)'!$I$3:$I$26,0),1),"") -> 05:00 - 05:59 | F86: 5 | G86: 2 | H86: 0 | I86: 0
A87: 79 | E87: =IFERROR(INDEX('Data Valid Backing (H)'!$J$3:$J$26,MATCH(Demand!F87,'Data Valid Backing (H)'!$I$3:$I$26,0),1),"") -> 06:00 - 06:59 | F87: 6 | G87: 0 | H87: 0 | I87: 0
A88: 80 | E88: =IFERROR(INDEX('Data Valid Backing (H)'!$J$3:$J$26,MATCH(Demand!F88,'Data Valid Backing (H)'!$I$3:$I$26,0),1),"") -> 07:00 - 07:59 | F88: 7 | G88: 0 | H88: 2 | I88: 0
A89: 81 | E89: =IFERROR(INDEX('Data Valid Backing (H)'!$J$3:$J$26,MATCH(Demand!F89,'Data Valid Backing (H)'!$I$3:$I$26,0),1),"") -> 08:00 - 08:59 | F89: 8 | G89: 0 | H89: 5 | I89: 0
A90: 82 | E90: =IFERROR(INDEX('Data Valid Backing (H)'!$J$3:$J$26,MATCH(Demand!F90,'Data Valid Backing (H)'!$I$3:$I$26,0),1),"") -> 09:00 - 09:59 | F90: 9 | G90: 0 | H90: 0 | I90: 0
A91: 83 | E91: =IFERROR(INDEX('Data Valid Backing (H)'!$J$3:$J$26,MATCH(Demand!F91,'Data Valid Backing (H)'!$I$3:$I$26,0),1),"") -> 10:00 - 10:59 | F91: 10 | G91: 2 | H91: 1 | I91: 0
A92: 84 | E92: =IFERROR(INDEX('Data Valid Backing (H)'!$J$3:$J$26,MATCH(Demand!F92,'Data Valid Backing (H)'!$I$3:$I$26,0),1),"") -> 11:00 - 11:59 | F92: 11 | G92: 1 | H92: 2 | I92: 0
A93: 85 | E93: =IFERROR(INDEX('Data Valid Backing (H)'!$J$3:$J$26,MATCH(Demand!F93,'Data Valid Backing (H)'!$I$3:$I$26,0),1),"") -> 12:00 - 12:59 | F93: 12 | G93: 2 | H93: 1 | I93: 0
A94: 86 | E94: =IFERROR(INDEX('Data Valid Backing (H)'!$J$3:$J$26,MATCH(Demand!F94,'Data Valid Backing (H)'!$I$3:$I$26,0),1),"") -> 13:00 - 13:59 | F94: 13 | G94: 2 | H94: 3 | I94: 0
A95: 87 | E95: =IFERROR(INDEX('Data Valid Backing (H)'!$J$3:$J$26,MATCH(Demand!F95,'Data Valid Backing (H)'!$I$3:$I$26,0),1),"") -> 14:00 - 14:59 | F95: 14 | G95: 0 | H95: 0 | I95: 0
A96: 88 | E96: =IFERROR(INDEX('Data Valid Backing (H)'!$J$3:$J$26,MATCH(Demand!F96,'Data Valid Backing (H)'!$I$3:$I$26,0),1),"") -> 15:00 - 15:59 | F96: 15 | G96: 1 | H96: 3 | I96: 0
A97: 89 | D97: =IF(A97="","",IF(F97=0,SUM(D73:D96)+1,"")) ->  | E97: =IFERROR(INDEX('Data Valid Backing (H)'!$J$3:$J$26,MATCH(Demand!F97,'Data Valid Backing (H)'!$I$3:$I$26,0),1),"") -> 16:00 - 16:59 | F97: =IF(A97="","",IF(F96+1=24,0,F96+1)) -> 16 | G97: 2 | H97: 3 | I97: 0
A98: 90 | E98: =IFERROR(INDEX('Data Valid Backing (H)'!$J$3:$J$26,MATCH(Demand!F98,'Data Valid Backing (H)'!$I$3:$I$26,0),1),"") -> 17:00 - 17:59 | F98: 17 | G98: 2 | H98: 0 | I98: 0
A99: 91 | E99: =IFERROR(INDEX('Data Valid Backing (H)'!$J$3:$J$26,MATCH(Demand!F99,'Data Valid Backing (H)'!$I$3:$I$26,0),1),"") -> 18:00 - 18:59 | F99: 18 | G99: 1 | H99: 5 | I99: 0
A100: 92 | E100: =IFERROR(INDEX('Data Valid Backing (H)'!$J$3:$J$26,MATCH(Demand!F100,'Data Valid Backing (H)'!$I$3:$I$26,0),1),"") -> 19:00 - 19:59 | F100: 19 | G100: 4 | H100: 5 | I100: 1
A101: 93 | E101: =IFERROR(INDEX('Data Valid Backing (H)'!$J$3:$J$26,MATCH(Demand!F101,'Data Valid Backing (H)'!$I$3:$I$26,0),1),"") -> 20:00 - 20:59 | F101: 20 | G101: 1 | H101: 5 | I101: 0
A102: 94 | E102: =IFERROR(INDEX('Data Valid Backing (H)'!$J$3:$J$26,MATCH(Demand!F102,'Data Valid Backing (H)'!$I$3:$I$26,0),1),"") -> 21:00 - 21:59 | F102: 21 | G102: 0 | H102: 1 | I102: 0
A103: 95 | E103: =IFERROR(INDEX('Data Valid Backing (H)'!$J$3:$J$26,MATCH(Demand!F103,'Data Valid Backing (H)'!$I$3:$I$26,0),1),"") -> 22:00 - 22:59 | F103: 22 | G103: 1 | H103: 0 | I103: 0
A104: 96 | E104: =IFERROR(INDEX('Data Valid Backing (H)'!$J$3:$J$26,MATCH(Demand!F104,'Data Valid Backing (H)'!$I$3:$I$26,0),1),"") -> 23:00 - 23:59 | F104: 23 | G104: 1 | H104: 1 | I104: 0
A105: 97 | D105: 2017-03-03 | E105: =IFERROR(INDEX('Data Valid Backing (H)'!$J$3:$J$26,MATCH(Demand!F105,'Data Valid Backing (H)'!$I$3:$I$26,0),1),"") -> 00:00 - 00:59 | F105: 0 | G105: 1 | H105: 0 | I105: 0
A106: 98 | E106: =IFERROR(INDEX('Data Valid Backing (H)'!$J$3:$J$26,MATCH(Demand!F106,'Data Valid Backing (H)'!$I$3:$I$26,0),1),"") -> 01:00 - 01:59 | F106: 1 | G106: 0 | H106: 0 | I106: 0
A107: 99 | E107: =IFERROR(INDEX('Data Valid Backing (H)'!$J$3:$J$26,MATCH(Demand!F107,'Data Valid Backing (H)'!$I$3:$I$26,0),1),"") -> 02:00 - 02:59 | F107: 2 | G107: 1 | H107: 0 | I107: 0
A108: 100 | E108: =IFERROR(INDEX('Data Valid Backing (H)'!$J$3:$J$26,MATCH(Demand!F108,'Data Valid Backing (H)'!$I$3:$I$26,0),1),"") -> 03:00 - 03:59 | F108: 3 | G108: 1 | H108: 0 | I108: 0
A109: 101 | E109: =IFERROR(INDEX('Data Valid Backing (H)'!$J$3:$J$26,MATCH(Demand!F109,'Data Valid Backing (H)'!$I$3:$I$26,0),1),"") -> 04:00 - 04:59 | F109: 4 | G109: 1 | H109: 0 | I109: 0
A110: 102 | E110: =IFERROR(INDEX('Data Valid Backing (H)'!$J$3:$J$26,MATCH(Demand!F110,'Data Valid Backing (H)'!$I$3:$I$26,0),1),"") -> 05:00 - 05:59 | F110: 5 | G110: 2 | H110: 0 | I110: 0
A111: 103 | E111: =IFERROR(INDEX('Data Valid Backing (H)'!$J$3:$J$26,MATCH(Demand!F111,'Data Valid Backing (H)'!$I$3:$I$26,0),1),"") -> 06:00 - 06:59 | F111: 6 | G111: 1 | H111: 0 | I111: 0
A112: 104 | E112: =IFERROR(INDEX('Data Valid Backing (H)'!$J$3:$J$26,MATCH(Demand!F112,'Data Valid Backing (H)'!$I$3:$I$26,0),1),"") -> 07:00 - 07:59 | F112: 7 | G112: 1 | H112: 0 | I112: 0
A113: 105 | E113: =IFERROR(INDEX('Data Valid Backing (H)'!$J$3:$J$26,MATCH(Demand!F113,'Data Valid Backing (H)'!$I$3:$I$26,0),1),"") -> 08:00 - 08:59 | F113: 8 | G113: 1 | H113: 1 | I113: 0
A114: 106 | E114: =IFERROR(INDEX('Data Valid Backing (H)'!$J$3:$J$26,MATCH(Demand!F114,'Data Valid Backing (H)'!$I$3:$I$26,0),1),"") -> 09:00 - 09:59 | F114: 9 | G114: 2 | H114: 4 | I114: 0
A115: 107 | E115: =IFERROR(INDEX('Data Valid Backing (H)'!$J$3:$J$26,MATCH(Demand!F115,'Data Valid Backing (H)'!$I$3:$I$26,0),1),"") -> 10:00 - 10:59 | F115: 10 | G115: 2 | H115: 2 | I115: 1
A116: 108 | E116: =IFERROR(INDEX('Data Valid Backing (H)'!$J$3:$J$26,MATCH(Demand!F116,'Data Valid Backing (H)'!$I$3:$I$26,0),1),"") -> 11:00 - 11:59 | F116: 11 | G116: 0 | H116: 1 | I116: 1
A117: 109 | E117: =IFERROR(INDEX('Data Valid Backing (H)'!$J$3:$J$26,MATCH(Demand!F117,'Data Valid Backing (H)'!$I$3:$I$26,0),1),"") -> 12:00 - 12:59 | F117: 12 | G117: 2 | H117: 4 | I117: 0
A118: 110 | E118: =IFERROR(INDEX('Data Valid Backing (H)'!$J$3:$J$26,MATCH(Demand!F118,'Data Valid Backing (H)'!$I$3:$I$26,0),1),"") -> 13:00 - 13:59 | F118: 13 | G118: 0 | H118: 5 | I118: 0
A119: 111 | E119: =IFERROR(INDEX('Data Valid Backing (H)'!$J$3:$J$26,MATCH(Demand!F119,'Data Valid Backing (H)'!$I$3:$I$26,0),1),"") -> 14:00 - 14:59 | F119: 14 | G119: 2 | H119: 2 | I119: 0
A120: 112 | E120: =IFERROR(INDEX('Data Valid Backing (H)'!$J$3:$J$26,MATCH(Demand!F120,'Data Valid Backing (H)'!$I$3:$I$26,0),1),"") -> 15:00 - 15:59 | F120: 15 | G120: 2 | H120: 1 | I120: 0
A121: 113 | E121: =IFERROR(INDEX('Data Valid Backing (H)'!$J$3:$J$26,MATCH(Demand!F121,'Data Valid Backing (H)'!$I$3:$I$26,0),1),"") -> 16:00 - 16:59 | F121: 16 | G121: 3 | H121: 3 | I121: 0
A122: 114 | E122: =IFERROR(INDEX('Data Valid Backing (H)'!$J$3:$J$26,MATCH(Demand!F122,'Data Valid Backing (H)'!$I$3:$I$26,0),1),"") -> 17:00 - 17:59 | F122: 17 | G122: 0 | H122: 4 | I122: 0
A123: 115 | E123: =IFERROR(INDEX('Data Valid Backing (H)'!$J$3:$J$26,MATCH(Demand!F123,'Data Valid Backing (H)'!$I$3:$I$26,0),1),"") -> 18:00 - 18:59 | F123: 18 | G123: 1 | H123: 0 | I123: 0
A124: 116 | E124: =IFERROR(INDEX('Data Valid Backing (H)'!$J$3:$J$26,MATCH(Demand!F124,'Data Valid Backing (H)'!$I$3:$I$26,0),1),"") -> 19:00 - 19:59 | F124: 19 | G124: 1 | H124: 2 | I124: 0
A125: 117 | E125: =IFERROR(INDEX('Data Valid Backing (H)'!$J$3:$J$26,MATCH(Demand!F125,'Data Valid Backing (H)'!$I$3:$I$26,0),1),"") -> 20:00 - 20:59 | F125: 20 | G125: 3 | H125: 1 | I125: 2
... 155 more rows

Sheet Demand Data Update (hidden)
B5: Start Date/Time: | C5: =IF(Demand!E2="","",Demand!E2+Demand!E3+(Max_Dem/24)) -> 2019-05-13
E7: =INDEX('Data Valid Backing (H)'!$E$3:$E$12,COLUMN(A1),1) -> Majors | F7: =INDEX('Data Valid Backing (H)'!$E$3:$E$12,COLUMN(B1),1) -> Minors | G7: =INDEX('Data Valid Backing (H)'!$E$3:$E$12,COLUMN(C1),1) -> Resus | H7: =INDEX('Data Valid Backing (H)'!$E$3:$E$12,COLUMN(D1),1) -> 0 | I7: =INDEX('Data Valid Backing (H)'!$E$3:$E$12,COLUMN(E1),1) -> 0 | J7: =INDEX('Data Valid Backing (H)'!$E$3:$E$12,COLUMN(F1),1) -> 0 | K7: =INDEX('Data Valid Backing (H)'!$E$3:$E$12,COLUMN(G1),1) -> 0 | L7: =INDEX('Data Valid Backing (H)'!$E$3:$E$12,COLUMN(H1),1) -> 0 | M7: =INDEX('Data Valid Backing (H)'!$E$3:$E$12,COLUMN(I1),1) -> 0 | N7: =INDEX('Data Valid Backing (H)'!$E$3:$E$12,COLUMN(J1),1) -> 0
A8: =26280-Max_Dem -> 6960 | E8: Minutes: | F8: Minutes: | G8: Minutes: | H8: Minutes: | I8: Minutes: | J8: Minutes: | K8: Minutes: | L8: Minutes: | M8: Minutes: | N8: Minutes:
A9: =MAX(A10:A681) -> 0 | B9: Date | C9: Hour Range | D9: Hour | E9: =INDEX('Data Valid Backing (H)'!$F$3:$F$12,COLUMN(A1),1) -> 60 | F9: =INDEX('Data Valid Backing (H)'!$F$3:$F$12,COLUMN(B1),1) -> 30 | G9: =INDEX('Data Valid Backing (H)'!$F$3:$F$12,COLUMN(C1),1) -> 50 | H9: =INDEX('Data Valid Backing (H)'!$F$3:$F$12,COLUMN(D1),1) -> 0 | I9: =INDEX('Data Valid Backing (H)'!$F$3:$F$12,COLUMN(E1),1) -> 0 | J9: =INDEX('Data Valid Backing (H)'!$F$3:$F$12,COLUMN(F1),1) -> 0 | K9: =INDEX('Data Valid Backing (H)'!$F$3:$F$12,COLUMN(G1),1) -> 0 | L9: =INDEX('Data Valid Backing (H)'!$F$3:$F$12,COLUMN(H1),1) -> 0 | M9: =INDEX('Data Valid Backing (H)'!$F$3:$F$12,COLUMN(I1),1) -> 0 | N9: =INDEX('Data Valid Backing (H)'!$F$3:$F$12,COLUMN(J1),1) -> 0
A10: =IF(COUNT(E10:N10)>=1,1,"") ->  | B10: =C5 -> 2019-05-13 | C10: =IFERROR(INDEX('Data Valid Backing (H)'!$J$3:$J$26,MATCH('Demand Data Update'!D10,'Data Valid Backing (H)'!$I$3:$I$26,0),1),"") -> 00:00 - 00:59 | D10: =IFERROR(HOUR(C5),"") -> 0
A11: =IF(COUNT(E11:N11)>=1,A10+1,"") ->  | B11: =IFERROR(IF(D11=0,SUM(B$8:$F10)+1,""),"") ->  | C11: =IFERROR(INDEX('Data Valid Backing (H)'!$J$3:$J$26,MATCH('Demand Data Update'!D11,'Data Valid Backing (H)'!$I$3:$I$26,0),1),"") -> 01:00 - 01:59 | D11: =IFERROR(IF(D10+1=24,0,D10+1),"") -> 1
A12: =IF(COUNT(E12:N12)>=1,A11+1,"") ->  | B12: =IFERROR(IF(D12=0,SUM(B$8:$F11)+1,""),"") ->  | C12: =IFERROR(INDEX('Data Valid Backing (H)'!$J$3:$J$26,MATCH('Demand Data Update'!D12,'Data Valid Backing (H)'!$I$3:$I$26,0),1),"") -> 02:00 - 02:59 | D12: =IFERROR(IF(D11+1=24,0,D11+1),"") -> 2
B13: =IFERROR(IF(D13=0,SUM(B$8:$F12)+1,""),"") ->  | C13: =IFERROR(INDEX('Data Valid Backing (H)'!$J$3:$J$26,MATCH('Demand Data Update'!D13,'Data Valid Backing (H)'!$I$3:$I$26,0),1),"") -> 03:00 - 03:59 | D13: 3
B14: =IFERROR(IF(D14=0,SUM(B$8:$F13)+1,""),"") ->  | C14: =IFERROR(INDEX('Data Valid Backing (H)'!$J$3:$J$26,MATCH('Demand Data Update'!D14,'Data Valid Backing (H)'!$I$3:$I$26,0),1),"") -> 04:00 - 04:59 | D14: 4
B15: =IFERROR(IF(D15=0,SUM(B$8:$F14)+1,""),"") ->  | C15: =IFERROR(INDEX('Data Valid Backing (H)'!$J$3:$J$26,MATCH('Demand Data Update'!D15,'Data Valid Backing (H)'!$I$3:$I$26,0),1),"") -> 05:00 - 05:59 | D15: 5
B16: =IFERROR(IF(D16=0,SUM(B$8:$F15)+1,""),"") ->  | C16: =IFERROR(INDEX('Data Valid Backing (H)'!$J$3:$J$26,MATCH('Demand Data Update'!D16,'Data Valid Backing (H)'!$I$3:$I$26,0),1),"") -> 06:00 - 06:59 | D16: 6
B17: =IFERROR(IF(D17=0,SUM(B$8:$F16)+1,""),"") ->  | C17: =IFERROR(INDEX('Data Valid Backing (H)'!$J$3:$J$26,MATCH('Demand Data Update'!D17,'Data Valid Backing (H)'!$I$3:$I$26,0),1),"") -> 07:00 - 07:59 | D17: 7
B18: =IFERROR(IF(D18=0,SUM(B$8:$F17)+1,""),"") ->  | C18: =IFERROR(INDEX('Data Valid Backing (H)'!$J$3:$J$26,MATCH('Demand Data Update'!D18,'Data Valid Backing (H)'!$I$3:$I$26,0),1),"") -> 08:00 - 08:59 | D18: 8
B19: =IFERROR(IF(D19=0,SUM(B$8:$F18)+1,""),"") ->  | C19: =IFERROR(INDEX('Data Valid Backing (H)'!$J$3:$J$26,MATCH('Demand Data Update'!D19,'Data Valid Backing (H)'!$I$3:$I$26,0),1),"") -> 09:00 - 09:59 | D19: 9
B20: =IFERROR(IF(D20=0,SUM(B$8:$F19)+1,""),"") ->  | C20: =IFERROR(INDEX('Data Valid Backing (H)'!$J$3:$J$26,MATCH('Demand Data Update'!D20,'Data Valid Backing (H)'!$I$3:$I$26,0),1),"") -> 10:00 - 10:59 | D20: 10
B21: =IFERROR(IF(D21=0,SUM(B$8:$F20)+1,""),"") ->  | C21: =IFERROR(INDEX('Data Valid Backing (H)'!$J$3:$J$26,MATCH('Demand Data Update'!D21,'Data Valid Backing (H)'!$I$3:$I$26,0),1),"") -> 11:00 - 11:59 | D21: 11
B22: =IFERROR(IF(D22=0,SUM(B$8:$F21)+1,""),"") ->  | C22: =IFERROR(INDEX('Data Valid Backing (H)'!$J$3:$J$26,MATCH('Demand Data Update'!D22,'Data Valid Backing (H)'!$I$3:$I$26,0),1),"") -> 12:00 - 12:59 | D22: 12
B23: =IFERROR(IF(D23=0,SUM(B$8:$F22)+1,""),"") ->  | C23: =IFERROR(INDEX('Data Valid Backing (H)'!$J$3:$J$26,MATCH('Demand Data Update'!D23,'Data Valid Backing (H)'!$I$3:$I$26,0),1),"") -> 13:00 - 13:59 | D23: 13
B24: =IFERROR(IF(D24=0,SUM(B$8:$F23)+1,""),"") ->  | C24: =IFERROR(INDEX('Data Valid Backing (H)'!$J$3:$J$26,MATCH('Demand Data Update'!D24,'Data Valid Backing (H)'!$I$3:$I$26,0),1),"") -> 14:00 - 14:59 | D24: 14
B25: =IFERROR(IF(D25=0,SUM(B$8:$F24)+1,""),"") ->  | C25: =IFERROR(INDEX('Data Valid Backing (H)'!$J$3:$J$26,MATCH('Demand Data Update'!D25,'Data Valid Backing (H)'!$I$3:$I$26,0),1),"") -> 15:00 - 15:59 | D25: 15
B26: =IFERROR(IF(D26=0,SUM(B$8:$F25)+1,""),"") ->  | C26: =IFERROR(INDEX('Data Valid Backing (H)'!$J$3:$J$26,MATCH('Demand Data Update'!D26,'Data Valid Backing (H)'!$I$3:$I$26,0),1),"") -> 16:00 - 16:59 | D26: 16
B27: =IFERROR(IF(D27=0,SUM(B$8:$F26)+1,""),"") ->  | C27: =IFERROR(INDEX('Data Valid Backing (H)'!$J$3:$J$26,MATCH('Demand Data Update'!D27,'Data Valid Backing (H)'!$I$3:$I$26,0),1),"") -> 17:00 - 17:59 | D27: 17
B28: =IFERROR(IF(D28=0,SUM(B$8:$F27)+1,""),"") ->  | C28: =IFERROR(INDEX('Data Valid Backing (H)'!$J$3:$J$26,MATCH('Demand Data Update'!D28,'Data Valid Backing (H)'!$I$3:$I$26,0),1),"") -> 18:00 - 18:59 | D28: 18
B29: =IFERROR(IF(D29=0,SUM(B$8:$F28)+1,""),"") ->  | C29: =IFERROR(INDEX('Data Valid Backing (H)'!$J$3:$J$26,MATCH('Demand Data Update'!D29,'Data Valid Backing (H)'!$I$3:$I$26,0),1),"") -> 19:00 - 19:59 | D29: 19
B30: =IFERROR(IF(D30=0,SUM(B$8:$F29)+1,""),"") ->  | C30: =IFERROR(INDEX('Data Valid Backing (H)'!$J$3:$J$26,MATCH('Demand Data Update'!D30,'Data Valid Backing (H)'!$I$3:$I$26,0),1),"") -> 20:00 - 20:59 | D30: 20
B31: =IFERROR(IF(D31=0,SUM(B$8:$F30)+1,""),"") ->  | C31: =IFERROR(INDEX('Data Valid Backing (H)'!$J$3:$J$26,MATCH('Demand Data Update'!D31,'Data Valid Backing (H)'!$I$3:$I$26,0),1),"") -> 21:00 - 21:59 | D31: 21
B32: =IFERROR(IF(D32=0,SUM(B$8:$F31)+1,""),"") ->  | C32: =IFERROR(INDEX('Data Valid Backing (H)'!$J$3:$J$26,MATCH('Demand Data Update'!D32,'Data Valid Backing (H)'!$I$3:$I$26,0),1),"") -> 22:00 - 22:59 | D32: 22
B33: =IFERROR(IF(D33=0,SUM(B$8:$F32)+1,""),"") ->  | C33: =IFERROR(INDEX('Data Valid Backing (H)'!$J$3:$J$26,MATCH('Demand Data Update'!D33,'Data Valid Backing (H)'!$I$3:$I$26,0),1),"") -> 23:00 - 23:59 | D33: 23
B34: =IF(A34="","",IF(D34=0,SUM(B10:B33)+1,"")) ->  | C34: =IFERROR(INDEX('Data Valid Backing (H)'!$J$3:$J$26,MATCH('Demand Data Update'!D34,'Data Valid Backing (H)'!$I$3:$I$26,0),1),"") ->  | D34: =IF(A34="","",IF(D33+1=24,0,D33+1)) -> 
B35: =IF(A35="","",IF(D35=0,SUM(B11:B34)+1,"")) ->  | C35: =IFERROR(INDEX('Data Valid Backing (H)'!$J$3:$J$26,MATCH('Demand Data Update'!D35,'Data Valid Backing (H)'!$I$3:$I$26,0),1),"") ->  | D35: =IF(A35="","",IF(D34+1=24,0,D34+1)) -> 
C36: =IFERROR(INDEX('Data Valid Backing (H)'!$J$3:$J$26,MATCH('Demand Data Update'!D36,'Data Valid Backing (H)'!$I$3:$I$26,0),1),"") -> 
C37: =IFERROR(INDEX('Data Valid Backing (H)'!$J$3:$J$26,MATCH('Demand Data Update'!D37,'Data Valid Backing (H)'!$I$3:$I$26,0),1),"") -> 
C38: =IFERROR(INDEX('Data Valid Backing (H)'!$J$3:$J$26,MATCH('Demand Data Update'!D38,'Data Valid Backing (H)'!$I$3:$I$26,0),1),"") -> 
C39: =IFERROR(INDEX('Data Valid Backing (H)'!$J$3:$J$26,MATCH('Demand Data Update'!D39,'Data Valid Backing (H)'!$I$3:$I$26,0),1),"") -> 
C40: =IFERROR(INDEX('Data Valid Backing (H)'!$J$3:$J$26,MATCH('Demand Data Update'!D40,'Data Valid Backing (H)'!$I$3:$I$26,0),1),"") -> 
C41: =IFERROR(INDEX('Data Valid Backing (H)'!$J$3:$J$26,MATCH('Demand Data Update'!D41,'Data Valid Backing (H)'!$I$3:$I$26,0),1),"") -> 
C42: =IFERROR(INDEX('Data Valid Backing (H)'!$J$3:$J$26,MATCH('Demand Data Update'!D42,'Data Valid Backing (H)'!$I$3:$I$26,0),1),"") -> 
C43: =IFERROR(INDEX('Data Valid Backing (H)'!$J$3:$J$26,MATCH('Demand Data Update'!D43,'Data Valid Backing (H)'!$I$3:$I$26,0),1),"") -> 
C44: =IFERROR(INDEX('Data Valid Backing (H)'!$J$3:$J$26,MATCH('Demand Data Update'!D44,'Data Valid Backing (H)'!$I$3:$I$26,0),1),"") -> 
C45: =IFERROR(INDEX('Data Valid Backing (H)'!$J$3:$J$26,MATCH('Demand Data Update'!D45,'Data Valid Backing (H)'!$I$3:$I$26,0),1),"") -> 
C46: =IFERROR(INDEX('Data Valid Backing (H)'!$J$3:$J$26,MATCH('Demand Data Update'!D46,'Data Valid Backing (H)'!$I$3:$I$26,0),1),"") -> 
C47: =IFERROR(INDEX('Data Valid Backing (H)'!$J$3:$J$26,MATCH('Demand Data Update'!D47,'Data Valid Backing (H)'!$I$3:$I$26,0),1),"") -> 
C48: =IFERROR(INDEX('Data Valid Backing (H)'!$J$3:$J$26,MATCH('Demand Data Update'!D48,'Data Valid Backing (H)'!$I$3:$I$26,0),1),"") -> 
C49: =IFERROR(INDEX('Data Valid Backing (H)'!$J$3:$J$26,MATCH('Demand Data Update'!D49,'Data Valid Backing (H)'!$I$3:$I$26,0),1),"") -> 
C50: =IFERROR(INDEX('Data Valid Backing (H)'!$J$3:$J$26,MATCH('Demand Data Update'!D50,'Data Valid Backing (H)'!$I$3:$I$26,0),1),"") -> 
C51: =IFERROR(INDEX('Data Valid Backing (H)'!$J$3:$J$26,MATCH('Demand Data Update'!D51,'Data Valid Backing (H)'!$I$3:$I$26,0),1),"") -> 
C52: =IFERROR(INDEX('Data Valid Backing (H)'!$J$3:$J$26,MATCH('Demand Data Update'!D52,'Data Valid Backing (H)'!$I$3:$I$26,0),1),"") -> 
C53: =IFERROR(INDEX('Data Valid Backing (H)'!$J$3:$J$26,MATCH('Demand Data Update'!D53,'Data Valid Backing (H)'!$I$3:$I$26,0),1),"") -> 
C54: =IFERROR(INDEX('Data Valid Backing (H)'!$J$3:$J$26,MATCH('Demand Data Update'!D54,'Data Valid Backing (H)'!$I$3:$I$26,0),1),"") -> 
C55: =IFERROR(INDEX('Data Valid Backing (H)'!$J$3:$J$26,MATCH('Demand Data Update'!D55,'Data Valid Backing (H)'!$I$3:$I$26,0),1),"") -> 
C56: =IFERROR(INDEX('Data Valid Backing (H)'!$J$3:$J$26,MATCH('Demand Data Update'!D56,'Data Valid Backing (H)'!$I$3:$I$26,0),1),"") -> 
C57: =IFERROR(INDEX('Data Valid Backing (H)'!$J$3:$J$26,MATCH('Demand Data Update'!D57,'Data Valid Backing (H)'!$I$3:$I$26,0),1),"") -> 
C58: =IFERROR(INDEX('Data Valid Backing (H)'!$J$3:$J$26,MATCH('Demand Data Update'!D58,'Data Valid Backing (H)'!$I$3:$I$26,0),1),"") -> 
C59: =IFERROR(INDEX('Data Valid Backing (H)'!$J$3:$J$26,MATCH('Demand Data Update'!D59,'Data Valid Backing (H)'!$I$3:$I$26,0),1),"") -> 
C60: =IFERROR(INDEX('Data Valid Backing (H)'!$J$3:$J$26,MATCH('Demand Data Update'!D60,'Data Valid Backing (H)'!$I$3:$I$26,0),1),"") -> 
C61: =IFERROR(INDEX('Data Valid Backing (H)'!$J$3:$J$26,MATCH('Demand Data Update'!D61,'Data Valid Backing (H)'!$I$3:$I$26,0),1),"") -> 
C62: =IFERROR(INDEX('Data Valid Backing (H)'!$J$3:$J$26,MATCH('Demand Data Update'!D62,'Data Valid Backing (H)'!$I$3:$I$26,0),1),"") -> 
C63: =IFERROR(INDEX('Data Valid Backing (H)'!$J$3:$J$26,MATCH('Demand Data Update'!D63,'Data Valid Backing (H)'!$I$3:$I$26,0),1),"") -> 
C64: =IFERROR(INDEX('Data Valid Backing (H)'!$J$3:$J$26,MATCH('Demand Data Update'!D64,'Data Valid Backing (H)'!$I$3:$I$26,0),1),"") -> 
C65: =IFERROR(INDEX('Data Valid Backing (H)'!$J$3:$J$26,MATCH('Demand Data Update'!D65,'Data Valid Backing (H)'!$I$3:$I$26,0),1),"") -> 
C66: =IFERROR(INDEX('Data Valid Backing (H)'!$J$3:$J$26,MATCH('Demand Data Update'!D66,'Data Valid Backing (H)'!$I$3:$I$26,0),1),"") -> 
C67: =IFERROR(INDEX('Data Valid Backing (H)'!$J$3:$J$26,MATCH('Demand Data Update'!D67,'Data Valid Backing (H)'!$I$3:$I$26,0),1),"") -> 
C68: =IFERROR(INDEX('Data Valid Backing (H)'!$J$3:$J$26,MATCH('Demand Data Update'!D68,'Data Valid Backing (H)'!$I$3:$I$26,0),1),"") -> 
C69: =IFERROR(INDEX('Data Valid Backing (H)'!$J$3:$J$26,MATCH('Demand Data Update'!D69,'Data Valid Backing (H)'!$I$3:$I$26,0),1),"") -> 
C70: =IFERROR(INDEX('Data Valid Backing (H)'!$J$3:$J$26,MATCH('Demand Data Update'!D70,'Data Valid Backing (H)'!$I$3:$I$26,0),1),"") -> 
C71: =IFERROR(INDEX('Data Valid Backing (H)'!$J$3:$J$26,MATCH('Demand Data Update'!D71,'Data Valid Backing (H)'!$I$3:$I$26,0),1),"") -> 
C72: =IFERROR(INDEX('Data Valid Backing (H)'!$J$3:$J$26,MATCH('Demand Data Update'!D72,'Data Valid Backing (H)'!$I$3:$I$26,0),1),"") -> 
C73: =IFERROR(INDEX('Data Valid Backing (H)'!$J$3:$J$26,MATCH('Demand Data Update'!D73,'Data Valid Backing (H)'!$I$3:$I$26,0),1),"") -> 
C74: =IFERROR(INDEX('Data Valid Backing (H)'!$J$3:$J$26,MATCH('Demand Data Update'!D74,'Data Valid Backing (H)'!$I$3:$I$26,0),1),"") -> 
C75: =IFERROR(INDEX('Data Valid Backing (H)'!$J$3:$J$26,MATCH('Demand Data Update'!D75,'Data Valid Backing (H)'!$I$3:$I$26,0),1),"") -> 
A76: =IF(COUNT(E76:N76)>=1,A75+1,"") ->  | C76: =IFERROR(INDEX('Data Valid Backing (H)'!$J$3:$J$26,MATCH('Demand Data Update'!D76,'Data Valid Backing (H)'!$I$3:$I$26,0),1),"") -> 
C77: =IFERROR(INDEX('Data Valid Backing (H)'!$J$3:$J$26,MATCH('Demand Data Update'!D77,'Data Valid Backing (H)'!$I$3:$I$26,0),1),"") -> 
C78: =IFERROR(INDEX('Data Valid Backing (H)'!$J$3:$J$26,MATCH('Demand Data Update'!D78,'Data Valid Backing (H)'!$I$3:$I$26,0),1),"") -> 
C79: =IFERROR(INDEX('Data Valid Backing (H)'!$J$3:$J$26,MATCH('Demand Data Update'!D79,'Data Valid Backing (H)'!$I$3:$I$26,0),1),"") -> 
C80: =IFERROR(INDEX('Data Valid Backing (H)'!$J$3:$J$26,MATCH('Demand Data Update'!D80,'Data Valid Backing (H)'!$I$3:$I$26,0),1),"") -> 
C81: =IFERROR(INDEX('Data Valid Backing (H)'!$J$3:$J$26,MATCH('Demand Data Update'!D81,'Data Valid Backing (H)'!$I$3:$I$26,0),1),"") -> 
C82: =IFERROR(INDEX('Data Valid Backing (H)'!$J$3:$J$26,MATCH('Demand Data Update'!D82,'Data Valid Backing (H)'!$I$3:$I$26,0),1),"") -> 
C83: =IFERROR(INDEX('Data Valid Backing (H)'!$J$3:$J$26,MATCH('Demand Data Update'!D83,'Data Valid Backing (H)'!$I$3:$I$26,0),1),"") -> 
C84: =IFERROR(INDEX('Data Valid Backing (H)'!$J$3:$J$26,MATCH('Demand Data Update'!D84,'Data Valid Backing (H)'!$I$3:$I$26,0),1),"") -> 
C85: =IFERROR(INDEX('Data Valid Backing (H)'!$J$3:$J$26,MATCH('Demand Data Update'!D85,'Data Valid Backing (H)'!$I$3:$I$26,0),1),"") -> 
C86: =IFERROR(INDEX('Data Valid Backing (H)'!$J$3:$J$26,MATCH('Demand Data Update'!D86,'Data Valid Backing (H)'!$I$3:$I$26,0),1),"") -> 
C87: =IFERROR(INDEX('Data Valid Backing (H)'!$J$3:$J$26,MATCH('Demand Data Update'!D87,'Data Valid Backing (H)'!$I$3:$I$26,0),1),"") -> 
C88: =IFERROR(INDEX('Data Valid Backing (H)'!$J$3:$J$26,MATCH('Demand Data Update'!D88,'Data Valid Backing (H)'!$I$3:$I$26,0),1),"") -> 
C89: =IFERROR(INDEX('Data Valid Backing (H)'!$J$3:$J$26,MATCH('Demand Data Update'!D89,'Data Valid Backing (H)'!$I$3:$I$26,0),1),"") -> 
C90: =IFERROR(INDEX('Data Valid Backing (H)'!$J$3:$J$26,MATCH('Demand Data Update'!D90,'Data Valid Backing (H)'!$I$3:$I$26,0),1),"") -> 
C91: =IFERROR(INDEX('Data Valid Backing (H)'!$J$3:$J$26,MATCH('Demand Data Update'!D91,'Data Valid Backing (H)'!$I$3:$I$26,0),1),"") -> 
C92: =IFERROR(INDEX('Data Valid Backing (H)'!$J$3:$J$26,MATCH('Demand Data Update'!D92,'Data Valid Backing (H)'!$I$3:$I$26,0),1),"") -> 
C93: =IFERROR(INDEX('Data Valid Backing (H)'!$J$3:$J$26,MATCH('Demand Data Update'!D93,'Data Valid Backing (H)'!$I$3:$I$26,0),1),"") -> 
C94: =IFERROR(INDEX('Data Valid Backing (H)'!$J$3:$J$26,MATCH('Demand Data Update'!D94,'Data Valid Backing (H)'!$I$3:$I$26,0),1),"") -> 
C95: =IFERROR(INDEX('Data Valid Backing (H)'!$J$3:$J$26,MATCH('Demand Data Update'!D95,'Data Valid Backing (H)'!$I$3:$I$26,0),1),"") -> 
C96: =IFERROR(INDEX('Data Valid Backing (H)'!$J$3:$J$26,MATCH('Demand Data Update'!D96,'Data Valid Backing (H)'!$I$3:$I$26,0),1),"") -> 
C97: =IFERROR(INDEX('Data Valid Backing (H)'!$J$3:$J$26,MATCH('Demand Data Update'!D97,'Data Valid Backing (H)'!$I$3:$I$26,0),1),"") -> 
C98: =IFERROR(INDEX('Data Valid Backing (H)'!$J$3:$J$26,MATCH('Demand Data Update'!D98,'Data Valid Backing (H)'!$I$3:$I$26,0),1),"") -> 
B99: =IF(A99="","",IF(D99=0,SUM(B75:B98)+1,"")) ->  | C99: =IFERROR(INDEX('Data Valid Backing (H)'!$J$3:$J$26,MATCH('Demand Data Update'!D99,'Data Valid Backing (H)'!$I$3:$I$26,0),1),"") ->  | D99: =IF(A99="","",IF(D98+1=24,0,D98+1)) -> 
C100: =IFERROR(INDEX('Data Valid Backing (H)'!$J$3:$J$26,MATCH('Demand Data Update'!D100,'Data Valid Backing (H)'!$I$3:$I$26,0),1),"") -> 
C101: =IFERROR(INDEX('Data Valid Backing (H)'!$J$3:$J$26,MATCH('Demand Data Update'!D101,'Data Valid Backing (H)'!$I$3:$I$26,0),1),"") -> 
C102: =IFERROR(INDEX('Data Valid Backing (H)'!$J$3:$J$26,MATCH('Demand Data Update'!D102,'Data Valid Backing (H)'!$I$3:$I$26,0),1),"") -> 
C103: =IFERROR(INDEX('Data Valid Backing (H)'!$J$3:$J$26,MATCH('Demand Data Update'!D103,'Data Valid Backing (H)'!$I$3:$I$26,0),1),"") -> 
C104: =IFERROR(INDEX('Data Valid Backing (H)'!$J$3:$J$26,MATCH('Demand Data Update'!D104,'Data Valid Backing (H)'!$I$3:$I$26,0),1),"") -> 
C105: =IFERROR(INDEX('Data Valid Backing (H)'!$J$3:$J$26,MATCH('Demand Data Update'!D105,'Data Valid Backing (H)'!$I$3:$I$26,0),1),"") -> 
C106: =IFERROR(INDEX('Data Valid Backing (H)'!$J$3:$J$26,MATCH('Demand Data Update'!D106,'Data Valid Backing (H)'!$I$3:$I$26,0),1),"") -> 
C107: =IFERROR(INDEX('Data Valid Backing (H)'!$J$3:$J$26,MATCH('Demand Data Update'!D107,'Data Valid Backing (H)'!$I$3:$I$26,0),1),"") -> 
C108: =IFERROR(INDEX('Data Valid Backing (H)'!$J$3:$J$26,MATCH('Demand Data Update'!D108,'Data Valid Backing (H)'!$I$3:$I$26,0),1),"") -> 
C109: =IFERROR(INDEX('Data Valid Backing (H)'!$J$3:$J$26,MATCH('Demand Data Update'!D109,'Data Valid Backing (H)'!$I$3:$I$26,0),1),"") -> 
C110: =IFERROR(INDEX('Data Valid Backing (H)'!$J$3:$J$26,MATCH('Demand Data Update'!D110,'Data Valid Backing (H)'!$I$3:$I$26,0),1),"") -> 
C111: =IFERROR(INDEX('Data Valid Backing (H)'!$J$3:$J$26,MATCH('Demand Data Update'!D111,'Data Valid Backing (H)'!$I$3:$I$26,0),1),"") -> 
C112: =IFERROR(INDEX('Data Valid Backing (H)'!$J$3:$J$26,MATCH('Demand Data Update'!D112,'Data Valid Backing (H)'!$I$3:$I$26,0),1),"") -> 
C113: =IFERROR(INDEX('Data Valid Backing (H)'!$J$3:$J$26,MATCH('Demand Data Update'!D113,'Data Valid Backing (H)'!$I$3:$I$26,0),1),"") -> 
C114: =IFERROR(INDEX('Data Valid Backing (H)'!$J$3:$J$26,MATCH('Demand Data Update'!D114,'Data Valid Backing (H)'!$I$3:$I$26,0),1),"") -> 
C115: =IFERROR(INDEX('Data Valid Backing (H)'!$J$3:$J$26,MATCH('Demand Data Update'!D115,'Data Valid Backing (H)'!$I$3:$I$26,0),1),"") -> 
C116: =IFERROR(INDEX('Data Valid Backing (H)'!$J$3:$J$26,MATCH('Demand Data Update'!D116,'Data Valid Backing (H)'!$I$3:$I$26,0),1),"") -> 
C117: =IFERROR(INDEX('Data Valid Backing (H)'!$J$3:$J$26,MATCH('Demand Data Update'!D117,'Data Valid Backing (H)'!$I$3:$I$26,0),1),"") -> 
C118: =IFERROR(INDEX('Data Valid Backing (H)'!$J$3:$J$26,MATCH('Demand Data Update'!D118,'Data Valid Backing (H)'!$I$3:$I$26,0),1),"") -> 
C119: =IFERROR(INDEX('Data Valid Backing (H)'!$J$3:$J$26,MATCH('Demand Data Update'!D119,'Data Valid Backing (H)'!$I$3:$I$26,0),1),"") -> 
C120: =IFERROR(INDEX('Data Valid Backing (H)'!$J$3:$J$26,MATCH('Demand Data Update'!D120,'Data Valid Backing (H)'!$I$3:$I$26,0),1),"") -> 
C121: =IFERROR(INDEX('Data Valid Backing (H)'!$J$3:$J$26,MATCH('Demand Data Update'!D121,'Data Valid Backing (H)'!$I$3:$I$26,0),1),"") -> 
C122: =IFERROR(INDEX('Data Valid Backing (H)'!$J$3:$J$26,MATCH('Demand Data Update'!D122,'Data Valid Backing (H)'!$I$3:$I$26,0),1),"") -> 
C123: =IFERROR(INDEX('Data Valid Backing (H)'!$J$3:$J$26,MATCH('Demand Data Update'!D123,'Data Valid Backing (H)'!$I$3:$I$26,0),1),"") -> 
C124: =IFERROR(INDEX('Data Valid Backing (H)'!$J$3:$J$26,MATCH('Demand Data Update'!D124,'Data Valid Backing (H)'!$I$3:$I$26,0),1),"") -> 
C125: =IFERROR(INDEX('Data Valid Backing (H)'!$J$3:$J$26,MATCH('Demand Data Update'!D125,'Data Valid Backing (H)'!$I$3:$I$26,0),1),"") -> 
... 156 more rows

Sheet Imported Demand (H) (hidden)
A1: Locked Header Row | B1: =INDEX('Data Valid Backing (H)'!$E$3:$E$12,(COLUMN(F1))/6,1) -> Majors | E1: =INDEX('Data Valid Backing (H)'!$F$3:$F$12,(COLUMN(F1))/6,1) -> 60 | H1: =INDEX('Data Valid Backing (H)'!$E$3:$E$12,(COLUMN(L1))/6,1) -> Minors | K1: =INDEX('Data Valid Backing (H)'!$F$3:$F$12,(COLUMN(L1))/6,1) -> 30 | N1: =INDEX('Data Valid Backing (H)'!$E$3:$E$12,(COLUMN(R1))/6,1) -> Resus | Q1: =INDEX('Data Valid Backing (H)'!$F$3:$F$12,(COLUMN(R1))/6,1) -> 50 | T1: =INDEX('Data Valid Backing (H)'!$E$3:$E$12,(COLUMN(X1))/6,1) -> 0 | W1: =INDEX('Data Valid Backing (H)'!$F$3:$F$12,(COLUMN(X1))/6,1) -> 0 | Z1: =INDEX('Data Valid Backing (H)'!$E$3:$E$12,(COLUMN(AD1))/6,1) -> 0 | AC1: =INDEX('Data Valid Backing (H)'!$F$3:$F$12,(COLUMN(AD1))/6,1) -> 0 | AF1: =INDEX('Data Valid Backing (H)'!$E$3:$E$12,(COLUMN(AJ1))/6,1) -> 0 | AI1: =INDEX('Data Valid Backing (H)'!$F$3:$F$12,(COLUMN(AJ1))/6,1) -> 0 | AL1: =INDEX('Data Valid Backing (H)'!$E$3:$E$12,(COLUMN(AP1))/6,1) -> 0 | AO1: =INDEX('Data Valid Backing (H)'!$F$3:$F$12,(COLUMN(AP1))/6,1) -> 0 | AR1: =INDEX('Data Valid Backing (H)'!$E$3:$E$12,(COLUMN(AV1))/6,1) -> 0 | AU1: =INDEX('Data Valid Backing (H)'!$F$3:$F$12,(COLUMN(AV1))/6,1) -> 0 | AX1: =INDEX('Data Valid Backing (H)'!$E$3:$E$12,(COLUMN(BB1))/6,1) -> 0 | BA1: =INDEX('Data Valid Backing (H)'!$F$3:$F$12,(COLUMN(BB1))/6,1) -> 0 | BD1: =INDEX('Data Valid Backing (H)'!$E$3:$E$12,(COLUMN(BH1))/6,1) -> 0 | BG1: =INDEX('Data Valid Backing (H)'!$F$3:$F$12,(COLUMN(BH1))/6,1) -> 0
A2: Date | B2: Predicted Attendances | C2: Lower bound | D2: Upper Bound | E2: Attendances converted to hours | F2: Lbound converted to hours | G2: Ubound converted to hours | H2: Predicted Attendances | I2: Lower bound | J2: Upper Bound | K2: Attendances converted to hours | L2: Lbound converted to hours | M2: Ubound converted to hours | N2: Predicted Attendances | O2: Lower bound | P2: Upper Bound | Q2: Attendances converted to hours | R2: Lbound converted to hours | S2: Ubound converted to hours | T2: Predicted Attendances | U2: Lower bound | V2: Upper Bound | W2: Attendances converted to hours | X2: Lbound converted to hours | Y2: Ubound converted to hours | Z2: Predicted Attendances | AA2: Lower bound | AB2: Upper Bound | AC2: Attendances converted to hours | AD2: Lbound converted to hours | AE2: Ubound converted to hours | AF2: Predicted Attendances | AG2: Lower bound | AH2: Upper Bound | AI2: Attendances converted to hours | AJ2: Lbound converted to hours | AK2: Ubound converted to hours | AL2: Predicted Attendances | AM2: Lower bound | AN2: Upper Bound | AO2: Attendances converted to hours | AP2: Lbound converted to hours | AQ2: Ubound converted to hours | AR2: Predicted Attendances | AS2: Lower bound | AT2: Upper Bound | AU2: Attendances converted to hours | AV2: Lbound converted to hours | AW2: Ubound converted to hours | AX2: Predicted Attendances | AY2: Lower bound | AZ2: Upper Bound | BA2: Attendances converted to hours | BB2: Lbound converted to hours | BC2: Ubound converted to hours | BD2: Predicted Attendances | BE2: Lower bound | BF2: Upper Bound | BG2: Attendances converted to hours | BH2: Lbound converted to hours | BI2: Ubound converted to hours
A3: ='Data Valid Backing (H)'!AO3 -> 2019-05-13 | B3: 1.479078223 | C3: -0.3100567807 | D3: 3.195131384 | E3: =(B3*$E$1)/60 -> 1.479078223 | F3: =(C3*$E$1)/60 -> -0.3100567807 | G3: =(D3*$E$1)/60 -> 3.195131384 | H3: 1.128199903 | I3: -1.384166111 | J3: 3.725418802 | K3: =(H3*$K$1)/60 -> 0.5640999517 | L3: =(I3*$K$1)/60 -> -0.6920830553 | M3: =(J3*$K$1)/60 -> 1.862709401 | N3: 0.1956572536 | O3: -0.3158260843 | P3: 0.6835278197 | Q3: =(N3*$Q$1)/60 -> 0.1630477113 | R3: =(O3*$Q$1)/60 -> -0.2631884036 | S3: =(P3*$Q$1)/60 -> 0.5696065164 | W3: =(T3*$W$1)/60 -> 0 | X3: =(U3*$W$1)/60 -> 0 | Y3: =(V3*$W$1)/60 -> 0 | AC3: =(Z3*$AC$1)/60 -> 0 | AD3: =(AA3*$AC$1)/60 -> 0 | AE3: =(AB3*$AC$1)/60 -> 0 | AI3: =(AF3*$AI$1)/60 -> 0 | AJ3: =(AG3*$AI$1)/60 -> 0 | AK3: =(AH3*$AI$1)/60 -> 0 | AO3: =(AL3*$AO$1)/60 -> 0 | AP3: =(AM3*$AO$1)/60 -> 0 | AQ3: =(AN3*$AO$1)/60 -> 0 | AU3: =(AR3*$AU$1)/60 -> 0 | AV3: =(AS3*$AU$1)/60 -> 0 | AW3: =(AT3*$AU$1)/60 -> 0 | BA3: =(AX3*$BA$1)/60 -> 0 | BB3: =(AY3*$BA$1)/60 -> 0 | BC3: =(AZ3*$BA$1)/60 -> 0 | BG3: =(BD3*$BG$1)/60 -> 0 | BH3: =(BE3*$BG$1)/60 -> 0 | BI3: =(BF3*$BG$1)/60 -> 0
A4: ='Data Valid Backing (H)'!AO4 -> 2019-05-13T01:00:00 | B4: 1.254692355 | C4: -0.5349812645 | D4: 3.015719065 | E4: =(B4*$E$1)/60 -> 1.254692355 | F4: -0.5349812645 | G4: 3.015719065 | H4: 0.8981416413 | I4: -1.501118961 | J4: 3.273945365 | K4: =(H4*$K$1)/60 -> 0.4490708207 | L4: =(I4*$K$1)/60 -> -0.7505594805 | M4: =(J4*$K$1)/60 -> 1.636972683 | N4: 0.1852887214 | O4: -0.312979171 | P4: 0.658635449 | Q4: =(N4*$Q$1)/60 -> 0.1544072678 | R4: =(O4*$Q$1)/60 -> -0.2608159758 | S4: =(P4*$Q$1)/60 -> 0.5488628741 | W4: =(T4*$W$1)/60 -> 0 | X4: =(U4*$W$1)/60 -> 0 | Y4: =(V4*$W$1)/60 -> 0 | AC4: =(Z4*$AC$1)/60 -> 0 | AD4: =(AA4*$AC$1)/60 -> 0 | AE4: =(AB4*$AC$1)/60 -> 0 | AI4: =(AF4*$AI$1)/60 -> 0 | AJ4: =(AG4*$AI$1)/60 -> 0 | AK4: =(AH4*$AI$1)/60 -> 0 | AO4: =(AL4*$AO$1)/60 -> 0 | AP4: =(AM4*$AO$1)/60 -> 0 | AQ4: =(AN4*$AO$1)/60 -> 0 | AU4: =(AR4*$AU$1)/60 -> 0 | AV4: =(AS4*$AU$1)/60 -> 0 | AW4: =(AT4*$AU$1)/60 -> 0 | BA4: =(AX4*$BA$1)/60 -> 0 | BB4: =(AY4*$BA$1)/60 -> 0 | BC4: =(AZ4*$BA$1)/60 -> 0 | BG4: =(BD4*$BG$1)/60 -> 0 | BH4: =(BE4*$BG$1)/60 -> 0 | BI4: =(BF4*$BG$1)/60 -> 0
A5: ='Data Valid Backing (H)'!AO5 -> 2019-05-13T02:00:00 | B5: 1.1103396 | C5: -0.6721177695 | D5: 2.836867571 | E5: 1.1103396 | F5: -0.6721177695 | G5: 2.836867571 | H5: 0.7715842287 | I5: -1.792325421 | J5: 3.327205258 | K5: 0.3857921143 | L5: -0.8961627104 | M5: 1.663602629 | N5: 0.1814393678 | O5: -0.3305766923 | P5: 0.6399893004 | Q5: 0.1511994731 | R5: -0.2754805769 | S5: 0.533324417 | W5: 0 | X5: 0 | Y5: 0 | AC5: 0 | AD5: 0 | AE5: 0 | AI5: 0 | AJ5: 0 | AK5: 0 | AO5: 0 | AP5: 0 | AQ5: 0 | AU5: 0 | AV5: 0 | AW5: 0 | BA5: 0 | BB5: 0 | BC5: 0 | BG5: 0 | BH5: 0 | BI5: 0
A6: ='Data Valid Backing (H)'!AO6 -> 2019-05-13T03:00:00 | B6: 1.050503282 | C6: -0.7193899355 | D6: 2.843953344 | E6: 1.050503282 | F6: -0.7193899355 | G6: 2.843953344 | H6: 0.6052868781 | I6: -1.933123904 | J6: 2.890434465 | K6: 0.302643439 | L6: -0.9665619519 | M6: 1.445217232 | N6: 0.1799124659 | O6: -0.2856380237 | P6: 0.6582862057 | Q6: 0.1499270549 | R6: -0.2380316864 | S6: 0.5485718381 | W6: 0 | X6: 0 | Y6: 0 | AC6: 0 | AD6: 0 | AE6: 0 | AI6: 0 | AJ6: 0 | AK6: 0 | AO6: 0 | AP6: 0 | AQ6: 0 | AU6: 0 | AV6: 0 | AW6: 0 | BA6: 0 | BB6: 0 | BC6: 0 | BG6: 0 | BH6: 0 | BI6: 0
A7: ='Data Valid Backing (H)'!AO7 -> 2019-05-13T04:00:00 | B7: 1.017489891 | C7: -0.6665369376 | D7: 2.707124898 | E7: 1.017489891 | F7: -0.6665369376 | G7: 2.707124898 | H7: 0.390631482 | I7: -1.953940439 | J7: 3.073035578 | K7: 0.195315741 | L7: -0.9769702194 | M7: 1.536517789 | N7: 0.1750905298 | O7: -0.2933084629 | P7: 0.6301866714 | Q7: 0.1459087749 | R7: -0.2444237191 | S7: 0.5251555595 | W7: 0 | X7: 0 | Y7: 0 | AC7: 0 | AD7: 0 | AE7: 0 | AI7: 0 | AJ7: 0 | AK7: 0 | AO7: 0 | AP7: 0 | AQ7: 0 | AU7: 0 | AV7: 0 | AW7: 0 | BA7: 0 | BB7: 0 | BC7: 0 | BG7: 0 | BH7: 0 | BI7: 0
A8: ='Data Valid Backing (H)'!AO8 -> 2019-05-13T05:00:00 | B8: 0.9764769084 | C8: -0.6520586421 | D8: 2.939819953 | E8: 0.9764769084 | F8: -0.6520586421 | G8: 2.939819953 | H8: 0.3330670599 | I8: -2.253562804 | J8: 2.765989968 | K8: 0.1665335299 | L8: -1.126781402 | M8: 1.382994984 | N8: 0.1675411823 | O8: -0.2878699696 | P8: 0.6461213301 | Q8: 0.1396176519 | R8: -0.2398916413 | S8: 0.5384344418 | W8: 0 | X8: 0 | Y8: 0 | AC8: 0 | AD8: 0 | AE8: 0 | AI8: 0 | AJ8: 0 | AK8: 0 | AO8: 0 | AP8: 0 | AQ8: 0 | AU8: 0 | AV8: 0 | AW8: 0 | BA8: 0 | BB8: 0 | BC8: 0 | BG8: 0 | BH8: 0 | BI8: 0
A9: ='Data Valid Backing (H)'!AO9 -> 2019-05-13T06:00:00 | B9: 0.9830159774 | C9: -0.8449661839 | D9: 2.714698611 | E9: 0.9830159774 | F9: -0.8449661839 | G9: 2.714698611 | H9: 0.7053652085 | I9: -1.663157797 | J9: 3.21119575 | K9: 0.3526826042 | L9: -0.8315788986 | M9: 1.605597875 | N9: 0.1663476825 | O9: -0.3165761983 | P9: 0.6746928491 | Q9: 0.1386230687 | R9: -0.2638134986 | S9: 0.5622440409 | W9: 0 | X9: 0 | Y9: 0 | AC9: 0 | AD9: 0 | AE9: 0 | AI9: 0 | AJ9: 0 | AK9: 0 | AO9: 0 | AP9: 0 | AQ9: 0 | AU9: 0 | AV9: 0 | AW9: 0 | BA9: 0 | BB9: 0 | BC9: 0 | BG9: 0 | BH9: 0 | BI9: 0
A10: ='Data Valid Backing (H)'!AO10 -> 2019-05-13T07:00:00 | B10: 1.149730605 | C10: -0.5746350674 | D10: 2.755322273 | E10: 1.149730605 | F10: -0.5746350674 | G10: 2.755322273 | H10: 1.585912784 | I10: -1.022552305 | J10: 3.960668713 | K10: 0.7929563922 | L10: -0.5112761526 | M10: 1.980334357 | N10: 0.1823009862 | O10: -0.296035167 | P10: 0.6710649479 | Q10: 0.1519174885 | R10: -0.2466959725 | S10: 0.55922079 | W10: 0 | X10: 0 | Y10: 0 | AC10: 0 | AD10: 0 | AE10: 0 | AI10: 0 | AJ10: 0 | AK10: 0 | AO10: 0 | AP10: 0 | AQ10: 0 | AU10: 0 | AV10: 0 | AW10: 0 | BA10: 0 | BB10: 0 | BC10: 0 | BG10: 0 | BH10: 0 | BI10: 0
A11: ='Data Valid Backing (H)'!AO11 -> 2019-05-13T08:00:00 | B11: 1.531022703 | C11: -0.09888838186 | D11: 3.14335383 | E11: 1.531022703 | F11: -0.09888838186 | G11: 3.14335383 | H11: 2.723401549 | I11: 0.2166090884 | J11: 5.128143727 | K11: 1.361700775 | L11: 0.1083045442 | M11: 2.564071864 | N11: 0.2171953643 | O11: -0.2469157293 | P11: 0.7097075815 | Q11: 0.1809961369 | R11: -0.2057631077 | S11: 0.5914229846 | W11: 0 | X11: 0 | Y11: 0 | AC11: 0 | AD11: 0 | AE11: 0 | AI11: 0 | AJ11: 0 | AK11: 0 | AO11: 0 | AP11: 0 | AQ11: 0 | AU11: 0 | AV11: 0 | AW11: 0 | BA11: 0 | BB11: 0 | BC11: 0 | BG11: 0 | BH11: 0 | BI11: 0
A12: ='Data Valid Backing (H)'!AO12 -> 2019-05-13T09:00:00 | B12: 2.036321593 | C12: 0.2222371231 | D12: 3.80964103 | E12: 2.036321593 | F12: 0.2222371231 | G12: 3.80964103 | H12: 3.672147065 | I12: 1.121626001 | J12: 6.142754635 | K12: 1.836073532 | L12: 0.5608130006 | M12: 3.071377318 | N12: 0.2592643693 | O12: -0.2003315951 | P12: 0.7226180047 | Q12: 0.2160536411 | R12: -0.1669429959 | S12: 0.6021816706 | W12: 0 | X12: 0 | Y12: 0 | AC12: 0 | AD12: 0 | AE12: 0 | AI12: 0 | AJ12: 0 | AK12: 0 | AO12: 0 | AP12: 0 | AQ12: 0 | AU12: 0 | AV12: 0 | AW12: 0 | BA12: 0 | BB12: 0 | BC12: 0 | BG12: 0 | BH12: 0 | BI12: 0
A13: ='Data Valid Backing (H)'!AO13 -> 2019-05-13T10:00:00 | B13: 2.467331215 | C13: 0.7183836452 | D13: 4.177086242 | E13: 2.467331215 | F13: 0.7183836452 | G13: 4.177086242 | H13: 4.100133142 | I13: 1.507994507 | J13: 6.606014586 | K13: 2.050066571 | L13: 0.7539972536 | M13: 3.303007293 | N13: 0.2900400077 | O13: -0.1906131378 | P13: 0.7697516236 | Q13: 0.2417000064 | R13: -0.1588442815 | S13: 0.6414596864 | W13: 0 | X13: 0 | Y13: 0 | AC13: 0 | AD13: 0 | AE13: 0 | AI13: 0 | AJ13: 0 | AK13: 0 | AO13: 0 | AP13: 0 | AQ13: 0 | AU13: 0 | AV13: 0 | AW13: 0 | BA13: 0 | BB13: 0 | BC13: 0 | BG13: 0 | BH13: 0 | BI13: 0
A14: ='Data Valid Backing (H)'!AO14 -> 2019-05-13T11:00:00 | B14: 2.660819361 | C14: 0.7808775055 | D14: 4.415053196 | E14: 2.660819361 | F14: 0.7808775055 | G14: 4.415053196 | H14: 4.011398839 | I14: 1.512838643 | J14: 6.526914187 | K14: 2.005699419 | L14: 0.7564193214 | M14: 3.263457094 | N14: 0.2976185024 | O14: -0.1929741345 | P14: 0.792667459 | Q14: 0.2480154187 | R14: -0.1608117788 | S14: 0.6605562158 | W14: 0 | X14: 0 | Y14: 0 | AC14: 0 | AD14: 0 | AE14: 0 | AI14: 0 | AJ14: 0 | AK14: 0 | AO14: 0 | AP14: 0 | AQ14: 0 | AU14: 0 | AV14: 0 | AW14: 0 | BA14: 0 | BB14: 0 | BC14: 0 | BG14: 0 | BH14: 0 | BI14: 0
A15: ='Data Valid Backing (H)'!AO15 -> 2019-05-13T12:00:00 | B15: 2.614131201 | C15: 0.970752598 | D15: 4.417376275 | E15: 2.614131201 | F15: 0.970752598 | G15: 4.417376275 | H15: 3.698739096 | I15: 1.306842066 | J15: 6.194766491 | K15: 1.849369548 | L15: 0.6534210331 | M15: 3.097383245 | N15: 0.2851368694 | O15: -0.2326215857 | P15: 0.7953713021 | Q15: 0.2376140579 | R15: -0.1938513214 | S15: 0.6628094184 | W15: 0 | X15: 0 | Y15: 0 | AC15: 0 | AD15: 0 | AE15: 0 | AI15: 0 | AJ15: 0 | AK15: 0 | AO15: 0 | AP15: 0 | AQ15: 0 | AU15: 0 | AV15: 0 | AW15: 0 | BA15: 0 | BB15: 0 | BC15: 0 | BG15: 0 | BH15: 0 | BI15: 0
A16: ='Data Valid Backing (H)'!AO16 -> 2019-05-13T13:00:00 | B16: 2.479369338 | C16: 0.7792521704 | D16: 4.172395892 | E16: 2.479369338 | F16: 0.7792521704 | G16: 4.172395892 | H16: 3.4827183 | I16: 0.9124639471 | J16: 5.925935459 | K16: 1.74135915 | L16: 0.4562319736 | M16: 2.96296773 | N16: 0.2672336454 | O16: -0.2246972821 | P16: 0.7587901587 | Q16: 0.2226947045 | R16: -0.1872477351 | S16: 0.6323251322 | W16: 0 | X16: 0 | Y16: 0 | AC16: 0 | AD16: 0 | AE16: 0 | AI16: 0 | AJ16: 0 | AK16: 0 | AO16: 0 | AP16: 0 | AQ16: 0 | AU16: 0 | AV16: 0 | AW16: 0 | BA16: 0 | BB16: 0 | BC16: 0 | BG16: 0 | BH16: 0 | BI16: 0
A17: ='Data Valid Backing (H)'!AO17 -> 2019-05-13T14:00:00 | B17: 2.429748912 | C17: 0.6215275475 | D17: 4.291611245 | E17: 2.429748912 | F17: 0.6215275475 | G17: 4.291611245 | H17: 3.473705503 | I17: 1.035837781 | J17: 5.906067199 | K17: 1.736852751 | L17: 0.5179188906 | M17: 2.9530336 | N17: 0.2578401683 | O17: -0.2400551689 | P17: 0.7322780452 | Q17: 0.2148668069 | R17: -0.2000459741 | S17: 0.6102317043 | W17: 0 | X17: 0 | Y17: 0 | AC17: 0 | AD17: 0 | AE17: 0 | AI17: 0 | AJ17: 0 | AK17: 0 | AO17: 0 | AP17: 0 | AQ17: 0 | AU17: 0 | AV17: 0 | AW17: 0 | BA17: 0 | BB17: 0 | BC17: 0 | BG17: 0 | BH17: 0 | BI17: 0
A18: ='Data Valid Backing (H)'!AO18 -> 2019-05-13T15:00:00 | B18: 2.517666984 | C18: 0.7924652708 | D18: 4.235108546 | E18: 2.517666984 | F18: 0.7924652708 | G18: 4.235108546 | H18: 3.55100713 | I18: 0.9912505926 | J18: 5.930360396 | K18: 1.775503565 | L18: 0.4956252963 | M18: 2.965180198 | N18: 0.2600194251 | O18: -0.2470927954 | P18: 0.7529614605 | Q18: 0.2166828542 | R18: -0.2059106628 | S18: 0.6274678837 | W18: 0 | X18: 0 | Y18: 0 | AC18: 0 | AD18: 0 | AE18: 0 | AI18: 0 | AJ18: 0 | AK18: 0 | AO18: 0 | AP18: 0 | AQ18: 0 | AU18: 0 | AV18: 0 | AW18: 0 | BA18: 0 | BB18: 0 | BC18: 0 | BG18: 0 | BH18: 0 | BI18: 0
A19: ='Data Valid Backing (H)'!AO19 -> 2019-05-13T16:00:00 | B19: 2.648482538 | C19: 0.8729022952 | D19: 4.290958865 | E19: 2.648482538 | F19: 0.8729022952 | G19: 4.290958865 | H19: 3.539076741 | I19: 1.147786411 | J19: 5.973787538 | K19: 1.76953837 | L19: 0.5738932057 | M19: 2.986893769 | N19: 0.2660468074 | O19: -0.2291389239 | P19: 0.7246655356 | Q19: 0.2217056729 | R19: -0.1909491033 | S19: 0.6038879463 | W19: 0 | X19: 0 | Y19: 0 | AC19: 0 | AD19: 0 | AE19: 0 | AI19: 0 | AJ19: 0 | AK19: 0 | AO19: 0 | AP19: 0 | AQ19: 0 | AU19: 0 | AV19: 0 | AW19: 0 | BA19: 0 | BB19: 0 | BC19: 0 | BG19: 0 | BH19: 0 | BI19: 0
A20: ='Data Valid Backing (H)'!AO20 -> 2019-05-13T17:00:00 | B20: 2.683916031 | C20: 0.8841836638 | D20: 4.390661097 | E20: 2.683916031 | F20: 0.8841836638 | G20: 4.390661097 | H20: 3.386276174 | I20: 0.9609965074 | J20: 5.904881501 | K20: 1.693138087 | L20: 0.4804982537 | M20: 2.95244075 | N20: 0.2662492005 | O20: -0.1955698772 | P20: 0.7435433227 | Q20: 0.2218743337 | R20: -0.1629748977 | S20: 0.6196194356 | W20: 0 | X20: 0 | Y20: 0 | AC20: 0 | AD20: 0 | AE20: 0 | AI20: 0 | AJ20: 0 | AK20: 0 | AO20: 0 | AP20: 0 | AQ20: 0 | AU20: 0 | AV20: 0 | AW20: 0 | BA20: 0 | BB20: 0 | BC20: 0 | BG20: 0 | BH20: 0 | BI20: 0
A21: ='Data Valid Backing (H)'!AO21 -> 2019-05-13T18:00:00 | B21: 2.570728671 | C21: 0.7980480533 | D21: 4.301654765 | E21: 2.570728671 | F21: 0.7980480533 | G21: 4.301654765 | H21: 3.178008818 | I21: 0.8446410516 | J21: 5.638818396 | K21: 1.589004409 | L21: 0.4223205258 | M21: 2.819409198 | N21: 0.2576038822 | O21: -0.1921485792 | P21: 0.754406402 | Q21: 0.2146699018 | R21: -0.160123816 | S21: 0.6286720016 | W21: 0 | X21: 0 | Y21: 0 | AC21: 0 | AD21: 0 | AE21: 0 | AI21: 0 | AJ21: 0 | AK21: 0 | AO21: 0 | AP21: 0 | AQ21: 0 | AU21: 0 | AV21: 0 | AW21: 0 | BA21: 0 | BB21: 0 | BC21: 0 | BG21: 0 | BH21: 0 | BI21: 0
A22: ='Data Valid Backing (H)'!AO22 -> 2019-05-13T19:00:00 | B22: 2.375545604 | C22: 0.6635701502 | D22: 4.199892021 | E22: 2.375545604 | F22: 0.6635701502 | G22: 4.199892021 | H22: 3.001167184 | I22: 0.4931755093 | J22: 5.418327468 | K22: 1.500583592 | L22: 0.2465877546 | M22: 2.709163734 | N22: 0.2445438682 | O22: -0.2299113767 | P22: 0.7254858027 | Q22: 0.2037865568 | R22: -0.1915928139 | S22: 0.6045715023 | W22: 0 | X22: 0 | Y22: 0 | AC22: 0 | AD22: 0 | AE22: 0 | AI22: 0 | AJ22: 0 | AK22: 0 | AO22: 0 | AP22: 0 | AQ22: 0 | AU22: 0 | AV22: 0 | AW22: 0 | BA22: 0 | BB22: 0 | BC22: 0 | BG22: 0 | BH22: 0 | BI22: 0
A23: ='Data Valid Backing (H)'!AO23 -> 2019-05-13T20:00:00 | B23: 2.204431064 | C23: 0.4756451202 | D23: 3.921477646 | E23: 2.204431064 | F23: 0.4756451202 | G23: 3.921477646 | H23: 2.826240154 | I23: 0.3008657584 | J23: 5.48859558 | K23: 1.413120077 | L23: 0.1504328792 | M23: 2.74429779 | N23: 0.2327164543 | O23: -0.2254982114 | P23: 0.733877906 | Q23: 0.1939303786 | R23: -0.1879151762 | S23: 0.6115649217 | W23: 0 | X23: 0 | Y23: 0 | AC23: 0 | AD23: 0 | AE23: 0 | AI23: 0 | AJ23: 0 | AK23: 0 | AO23: 0 | AP23: 0 | AQ23: 0 | AU23: 0 | AV23: 0 | AW23: 0 | BA23: 0 | BB23: 0 | BC23: 0 | BG23: 0 | BH23: 0 | BI23: 0
A24: ='Data Valid Backing (H)'!AO24 -> 2019-05-13T21:00:00 | B24: 2.096784306 | C24: 0.3017243241 | D24: 3.858247695 | E24: 2.096784306 | F24: 0.3017243241 | G24: 3.858247695 | H24: 2.539585894 | I24: 0.1505638579 | J24: 4.981633008 | K24: 1.269792947 | L24: 0.07528192894 | M24: 2.490816504 | N24: 0.2230671378 | O24: -0.263490754 | P24: 0.7255077372 | Q24: 0.1858892815 | R24: -0.2195756283 | S24: 0.604589781 | W24: 0 | X24: 0 | Y24: 0 | AC24: 0 | AD24: 0 | AE24: 0 | AI24: 0 | AJ24: 0 | AK24: 0 | AO24: 0 | AP24: 0 | AQ24: 0 | AU24: 0 | AV24: 0 | AW24: 0 | BA24: 0 | BB24: 0 | BC24: 0 | BG24: 0 | BH24: 0 | BI24: 0
A25: ='Data Valid Backing (H)'!AO25 -> 2019-05-13T22:00:00 | B25: 1.999606355 | C25: 0.2722159515 | D25: 3.839706916 | E25: 1.999606355 | F25: 0.2722159515 | G25: 3.839706916 | H25: 2.086501334 | I25: -0.2531789026 | J25: 4.708378412 | K25: 1.043250667 | L25: -0.1265894513 | M25: 2.354189206 | N25: 0.2122621403 | O25: -0.2877404681 | P25: 0.7038276884 | Q25: 0.1768851169 | R25: -0.2397837234 | S25: 0.5865230737 | W25: 0 | X25: 0 | Y25: 0 | AC25: 0 | AD25: 0 | AE25: 0 | AI25: 0 | AJ25: 0 | AK25: 0 | AO25: 0 | AP25: 0 | AQ25: 0 | AU25: 0 | AV25: 0 | AW25: 0 | BA25: 0 | BB25: 0 | BC25: 0 | BG25: 0 | BH25: 0 | BI25: 0
A26: ='Data Valid Backing (H)'!AO26 -> 2019-05-13T23:00:00 | B26: 1.839679319 | C26: 0.1012526526 | D26: 3.486446632 | E26: 1.839679319 | F26: 0.1012526526 | G26: 3.486446632 | H26: 1.561336473 | I26: -0.9689990134 | J26: 3.994207154 | K26: 0.7806682366 | L26: -0.4844995067 | M26: 1.997103577 | N26: 0.1981346208 | O26: -0.3088346594 | P26: 0.6758422223 | Q26: 0.165112184 | R26: -0.2573622161 | S26: 0.5632018519 | W26: 0 | X26: 0 | Y26: 0 | AC26: 0 | AD26: 0 | AE26: 0 | AI26: 0 | AJ26: 0 | AK26: 0 | AO26: 0 | AP26: 0 | AQ26: 0 | AU26: 0 | AV26: 0 | AW26: 0 | BA26: 0 | BB26: 0 | BC26: 0 | BG26: 0 | BH26: 0 | BI26: 0
A27: ='Data Valid Backing (H)'!AO27 -> 2019-05-14 | B27: 1.611216071 | C27: -0.1148497568 | D27: 3.312412714 | E27: 1.611216071 | F27: -0.1148497568 | G27: 3.312412714 | H27: 1.136055697 | I27: -1.394399248 | J27: 3.62758998 | K27: 0.5680278487 | L27: -0.6971996238 | M27: 1.81379499 | N27: 0.1834681291 | O27: -0.3240615659 | P27: 0.6803043048 | Q27: 0.1528901076 | R27: -0.2700513049 | S27: 0.566920254 | W27: 0 | X27: 0 | Y27: 0 | AC27: 0 | AD27: 0 | AE27: 0 | AI27: 0 | AJ27: 0 | AK27: 0 | AO27: 0 | AP27: 0 | AQ27: 0 | AU27: 0 | AV27: 0 | AW27: 0 | BA27: 0 | BB27: 0 | BC27: 0 | BG27: 0 | BH27: 0 | BI27: 0
A28: ='Data Valid Backing (H)'!AO28 -> 2019-05-14T01:00:00 | B28: 1.386091332 | C28: -0.371876301 | D28: 3.1118821 | E28: 1.386091332 | F28: -0.371876301 | G28: 3.1118821 | H28: 0.8954296072 | I28: -1.562369529 | J28: 3.4026623 | K28: 0.4477148036 | L28: -0.7811847645 | M28: 1.70133115 | N28: 0.1735709298 | O28: -0.297983179 | P28: 0.6621527545 | Q28: 0.1446424415 | R28: -0.2483193158 | S28: 0.5517939621 | W28: 0 | X28: 0 | Y28: 0 | AC28: 0 | AD28: 0 | AE28: 0 | AI28: 0 | AJ28: 0 | AK28: 0 | AO28: 0 | AP28: 0 | AQ28: 0 | AU28: 0 | AV28: 0 | AW28: 0 | BA28: 0 | BB28: 0 | BC28: 0 | BG28: 0 | BH28: 0 | BI28: 0
A29: ='Data Valid Backing (H)'!AO29 -> 2019-05-14T02:00:00 | B29: 1.239793406 | C29: -0.5657967206 | D29: 3.065009221 | E29: 1.239793406 | F29: -0.5657967206 | G29: 3.065009221 | H29: 0.757499323 | I29: -1.828784444 | J29: 3.170845547 | K29: 0.3787496615 | L29: -0.9143922222 | M29: 1.585422773 | N29: 0.1702734807 | O29: -0.3131388944 | P29: 0.683172814 | Q29: 0.1418945672 | R29: -0.2609490786 | S29: 0.5693106783 | W29: 0 | X29: 0 | Y29: 0 | AC29: 0 | AD29: 0 | AE29: 0 | AI29: 0 | AJ29: 0 | AK29: 0 | AO29: 0 | AP29: 0 | AQ29: 0 | AU29: 0 | AV29: 0 | AW29: 0 | BA29: 0 | BB29: 0 | BC29: 0 | BG29: 0 | BH29: 0 | BI29: 0
A30: ='Data Valid Backing (H)'!AO30 -> 2019-05-14T03:00:00 | B30: 1.176868326 | C30: -0.5595550718 | D30: 2.94542597 | E30: 1.176868326 | F30: -0.5595550718 | G30: 2.94542597 | H30: 0.5792037513 | I30: -1.838319323 | J30: 3.082284899 | K30: 0.2896018756 | L30: -0.9191596614 | M30: 1.541142449 | N30: 0.1693800769 | O30: -0.3069973465 | P30: 0.6302067571 | Q30: 0.1411500641 | R30: -0.2558311221 | S30: 0.5251722976 | W30: 0 | X30: 0 | Y30: 0 | AC30: 0 | AD30: 0 | AE30: 0 | AI30: 0 | AJ30: 0 | AK30: 0 | AO30: 0 | AP30: 0 | AQ30: 0 | AU30: 0 | AV30: 0 | AW30: 0 | BA30: 0 | BB30: 0 | BC30: 0 | BG30: 0 | BH30: 0 | BI30: 0
A31: ='Data Valid Backing (H)'!AO31 -> 2019-05-14T04:00:00 | B31: 1.139697649 | C31: -0.6403352115 | D31: 2.90568699 | E31: 1.139697649 | F31: -0.6403352115 | G31: 2.90568699 | H31: 0.3521118506 | I31: -2.12985972 | J31: 2.815577664 | K31: 0.1760559253 | L31: -1.06492986 | M31: 1.407788832 | N31: 0.1652737646 | O31: -0.2943529197 | P31: 0.6323113658 | Q31: 0.1377281372 | R31: -0.2452940998 | S31: 0.5269261382 | W31: 0 | X31: 0 | Y31: 0 | AC31: 0 | AD31: 0 | AE31: 0 | AI31: 0 | AJ31: 0 | AK31: 0 | AO31: 0 | AP31: 0 | AQ31: 0 | AU31: 0 | AV31: 0 | AW31: 0 | BA31: 0 | BB31: 0 | BC31: 0 | BG31: 0 | BH31: 0 | BI31: 0
A32: ='Data Valid Backing (H)'!AO32 -> 2019-05-14T05:00:00 | B32: 1.093545181 | C32: -0.657948607 | D32: 2.805297647 | E32: 1.093545181 | F32: -0.657948607 | G32: 2.805297647 | H32: 0.2818644818 | I32: -2.202502371 | J32: 2.643386092 | K32: 0.1409322409 | L32: -1.101251185 | M32: 1.321693046 | N32: 0.158522167 | O32: -0.3331642312 | P32: 0.6581543728 | Q32: 0.1321018058 | R32: -0.2776368593 | S32: 0.5484619773 | W32: 0 | X32: 0 | Y32: 0 | AC32: 0 | AD32: 0 | AE32: 0 | AI32: 0 | AJ32: 0 | AK32: 0 | AO32: 0 | AP32: 0 | AQ32: 0 | AU32: 0 | AV32: 0 | AW32: 0 | BA32: 0 | BB32: 0 | BC32: 0 | BG32: 0 | BH32: 0 | BI32: 0
A33: ='Data Valid Backing (H)'!AO33 -> 2019-05-14T06:00:00 | B33: 1.094058913 | C33: -0.696341882 | D33: 2.852373755 | E33: 1.094058913 | F33: -0.696341882 | G33: 2.852373755 | H33: 0.6414272147 | I33: -1.909258385 | J33: 3.122658722 | K33: 0.3207136073 | L33: -0.9546291924 | M33: 1.561329361 | N33: 0.1582079721 | O33: -0.3422745782 | P33: 0.6514129664 | Q33: 0.1318399767 | R33: -0.2852288152 | S33: 0.5428441386 | W33: 0 | X33: 0 | Y33: 0 | AC33: 0 | AD33: 0 | AE33: 0 | AI33: 0 | AJ33: 0 | AK33: 0 | AO33: 0 | AP33: 0 | AQ33: 0 | AU33: 0 | AV33: 0 | AW33: 0 | BA33: 0 | BB33: 0 | BC33: 0 | BG33: 0 | BH33: 0 | BI33: 0
A34: ='Data Valid Backing (H)'!AO34 -> 2019-05-14T07:00:00 | B34: 1.253967382 | C34: -0.5867624343 | D34: 2.950072314 | E34: 1.253967382 | F34: -0.5867624343 | G34: 2.950072314 | H34: 1.509380351 | I34: -0.9786344937 | J34: 3.864975703 | K34: 0.7546901757 | L34: -0.4893172468 | M34: 1.932487851 | N34: 0.1751209596 | O34: -0.2961974005 | P34: 0.6691720907 | Q34: 0.145934133 | R34: -0.2468311671 | S34: 0.5576434089 | W34: 0 | X34: 0 | Y34: 0 | AC34: 0 | AD34: 0 | AE34: 0 | AI34: 0 | AJ34: 0 | AK34: 0 | AO34: 0 | AP34: 0 | AQ34: 0 | AU34: 0 | AV34: 0 | AW34: 0 | BA34: 0 | BB34: 0 | BC34: 0 | BG34: 0 | BH34: 0 | BI34: 0
A35: ='Data Valid Backing (H)'!AO35 -> 2019-05-14T08:00:00 | B35: 1.627784775 | C35: -0.09320058243 | D35: 3.484807584 | E35: =(B35*$E$1)/60 -> 1.627784775 | F35: =(C35*$E$1)/60 -> -0.09320058243 | G35: =(D35*$E$1)/60 -> 3.484807584 | H35: 2.634605934 | I35: 0.1181405749 | J35: 5.114384546 | K35: 1.317302967 | L35: 0.05907028747 | M35: 2.557192273 | N35: 0.2110535901 | O35: -0.2975256332 | P35: 0.702241468 | Q35: 0.1758779917 | R35: -0.2479380277 | S35: 0.5852012233 | W35: 0 | X35: 0 | Y35: 0 | AC35: 0 | AD35: 0 | AE35: 0 | AI35: 0 | AJ35: 0 | AK35: 0 | AO35: 0 | AP35: 0 | AQ35: 0 | AU35: 0 | AV35: 0 | AW35: 0 | BA35: 0 | BB35: 0 | BC35: 0 | BG35: 0 | BH35: 0 | BI35: 0
A36: ='Data Valid Backing (H)'!AO36 -> 2019-05-14T09:00:00 | B36: 2.125058416 | C36: 0.3951488898 | D36: 3.90708206 | E36: 2.125058416 | F36: 0.3951488898 | G36: 3.90708206 | H36: 3.571604058 | I36: 1.089448336 | J36: 6.00257715 | K36: 1.785802029 | L36: 0.544724168 | M36: 3.001288575 | N36: 0.254236947 | O36: -0.2276547663 | P36: 0.7417061692 | Q36: 0.2118641225 | R36: -0.1897123053 | S36: 0.6180884743 | W36: 0 | X36: 0 | Y36: 0 | AC36: 0 | AD36: 0 | AE36: 0 | AI36: 0 | AJ36: 0 | AK36: 0 | AO36: 0 | AP36: 0 | AQ36: 0 | AU36: 0 | AV36: 0 | AW36: 0 | BA36: 0 | BB36: 0 | BC36: 0 | BG36: 0 | BH36: 0 | BI36: 0
A37: ='Data Valid Backing (H)'!AO37 -> 2019-05-14T10:00:00 | B37: 2.547614409 | C37: 0.8553017702 | D37: 4.380828298 | E37: 2.547614409 | F37: 0.8553017702 | G37: 4.380828298 | H37: 3.988534826 | I37: 1.757637316 | J37: 6.421410536 | K37: 1.994267413 | L37: 0.8788186581 | M37: 3.210705268 | N37: 0.2861998934 | O37: -0.2030306639 | P37: 0.7456528696 | Q37: 0.2384999112 | R37: -0.1691922199 | S37: 0.6213773913 | W37: 0 | X37: 0 | Y37: 0 | AC37: 0 | AD37: 0 | AE37: 0 | AI37: 0 | AJ37: 0 | AK37: 0 | AO37: 0 | AP37: 0 | AQ37: 0 | AU37: 0 | AV37: 0 | AW37: 0 | BA37: 0 | BB37: 0 | BC37: 0 | BG37: 0 | BH37: 0 | BI37: 0
A38: ='Data Valid Backing (H)'!AO38 -> 2019-05-14T11:00:00 | B38: 2.732345255 | C38: 0.9216745322 | D38: 4.539704815 | E38: 2.732345255 | F38: 0.9216745322 | G38: 4.539704815 | H38: 3.889602976 | I38: 1.361447552 | J38: 6.298102876 | K38: 1.944801488 | L38: 0.680723776 | M38: 3.149051438 | N38: 0.2950348227 | O38: -0.2015460585 | P38: 0.8085693642 | Q38: 0.2458623523 | R38: -0.1679550488 | S38: 0.6738078035 | W38: 0 | X38: 0 | Y38: 0 | AC38: 0 | AD38: 0 | AE38: 0 | AI38: 0 | AJ38: 0 | AK38: 0 | AO38: 0 | AP38: 0 | AQ38: 0 | AU38: 0 | AV38: 0 | AW38: 0 | BA38: 0 | BB38: 0 | BC38: 0 | BG38: 0 | BH38: 0 | BI38: 0
A39: ='Data Valid Backing (H)'!AO39 -> 2019-05-14T12:00:00 | B39: 2.676721765 | C39: 0.9270018212 | D39: 4.451803905 | E39: 2.676721765 | F39: 0.9270018212 | G39: 4.451803905 | H39: 3.567756291 | I39: 1.191410964 | J39: 6.050203383 | K39: 1.783878145 | L39: 0.5957054819 | M39: 3.025101691 | N39: 0.2838742324 | O39: -0.2250879057 | P39: 0.7708747402 | Q39: 0.2365618604 | R39: -0.1875732548 | S39: 0.6423956168 | W39: 0 | X39: 0 | Y39: 0 | AC39: 0 | AD39: 0 | AE39: 0 | AI39: 0 | AJ39: 0 | AK39: 0 | AO39: 0 | AP39: 0 | AQ39: 0 | AU39: 0 | AV39: 0 | AW39: 0 | BA39: 0 | BB39: 0 | BC39: 0 | BG39: 0 | BH39: 0 | BI39: 0
A40: ='Data Valid Backing (H)'!AO40 -> 2019-05-14T13:00:00 | B40: 2.532971485 | C40: 0.9091612295 | D40: 4.240520642 | E40: 2.532971485 | F40: 0.9091612295 | G40: 4.240520642 | H40: 3.343697126 | I40: 0.8628024038 | J40: 5.853253906 | K40: 1.671848563 | L40: 0.4314012019 | M40: 2.926626953 | N40: 0.2673514559 | O40: -0.2171246552 | P40: 0.7379991339 | Q40: 0.2227928799 | R40: -0.1809372127 | S40: 0.6149992783 | W40: 0 | X40: 0 | Y40: 0 | AC40: 0 | AD40: 0 | AE40: 0 | AI40: 0 | AJ40: 0 | AK40: 0 | AO40: 0 | AP40: 0 | AQ40: 0 | AU40: 0 | AV40: 0 | AW40: 0 | BA40: 0 | BB40: 0 | BC40: 0 | BG40: 0 | BH40: 0 | BI40: 0
A41: ='Data Valid Backing (H)'!AO41 -> 2019-05-14T14:00:00 | B41: 2.474432212 | C41: 0.5737602926 | D41: 4.23528876 | E41: 2.474432212 | F41: 0.5737602926 | G41: 4.23528876 | H41: 3.32791579 | I41: 0.8012431686 | J41: 5.736244602 | K41: 1.663957895 | L41: 0.4006215843 | M41: 2.868122301 | N41: 0.2593919541 | O41: -0.2063924495 | P41: 0.7540538385 | Q41: 0.2161599617 | R41: -0.1719937079 | S41: 0.6283781987 | W41: 0 | X41: 0 | Y41: 0 | AC41: 0 | AD41: 0 | AE41: 0 | AI41: 0 | AJ41: 0 | AK41: 0 | AO41: 0 | AP41: 0 | AQ41: 0 | AU41: 0 | AV41: 0 | AW41: 0 | BA41: 0 | BB41: 0 | BC41: 0 | BG41: 0 | BH41: 0 | BI41: 0
A42: ='Data Valid Backing (H)'!AO42 -> 2019-05-14T15:00:00 | B42: 2.553619828 | C42: 0.796526177 | D42: 4.322169542 | E42: 2.553619828 | F42: 0.796526177 | G42: 4.322169542 | H42: 3.399821656 | I42: 1.106353392 | J42: 5.872250426 | K42: 1.699910828 | L42: 0.553176696 | M42: 2.936125213 | N42: 0.2630521836 | O42: -0.1960926266 | P42: 0.7735388379 | Q42: 0.219210153 | R42: -0.1634105222 | S42: 0.6446156983 | W42: 0 | X42: 0 | Y42: 0 | AC42: 0 | AD42: 0 | AE42: 0 | AI42: 0 | AJ42: 0 | AK42: 0 | AO42: 0 | AP42: 0 | AQ42: 0 | AU42: 0 | AV42: 0 | AW42: 0 | BA42: 0 | BB42: 0 | BC42: 0 | BG42: 0 | BH42: 0 | BI42: 0
A43: ='Data Valid Backing (H)'!AO43 -> 2019-05-14T16:00:00 | B43: 2.676006818 | C43: 0.9214134012 | D43: 4.521847966 | E43: 2.676006818 | F43: 0.9214134012 | G43: 4.521847966 | H43: 3.383951565 | I43: 0.8760116031 | J43: 5.943786111 | K43: 1.691975783 | L43: 0.4380058016 | M43: 2.971893056 | N43: 0.2706003793 | O43: -0.2120078815 | P43: 0.7571047337 | Q43: 0.2255003161 | R43: -0.1766732346 | S43: 0.6309206114 | W43: 0 | X43: 0 | Y43: 0 | AC43: 0 | AD43: 0 | AE43: 0 | AI43: 0 | AJ43: 0 | AK43: 0 | AO43: 0 | AP43: 0 | AQ43: 0 | AU43: 0 | AV43: 0 | AW43: 0 | BA43: 0 | BB43: 0 | BC43: 0 | BG43: 0 | BH43: 0 | BI43: 0
A44: ='Data Valid Backing (H)'!AO44 -> 2019-05-14T17:00:00 | B44: 2.703420414 | C44: 0.8949424059 | D44: 4.496874578 | E44: 2.703420414 | F44: 0.8949424059 | G44: 4.496874578 | H44: 3.228729885 | I44: 0.7070887295 | J44: 5.694631081 | K44: 1.614364942 | L44: 0.3535443648 | M44: 2.84731554 | N44: 0.272355678 | O44: -0.2031332639 | P44: 0.7738160536 | Q44: 0.226963065 | R44: -0.1692777199 | S44: 0.6448467113 | W44: 0 | X44: 0 | Y44: 0 | AC44: 0 | AD44: 0 | AE44: 0 | AI44: 0 | AJ44: 0 | AK44: 0 | AO44: 0 | AP44: 0 | AQ44: 0 | AU44: 0 | AV44: 0 | AW44: 0 | BA44: 0 | BB44: 0 | BC44: 0 | BG44: 0 | BH44: 0 | BI44: 0
A45: ='Data Valid Backing (H)'!AO45 -> 2019-05-14T18:00:00 | B45: 2.582720581 | C45: 0.9329138312 | D45: 4.258273445 | E45: 2.582720581 | F45: 0.9329138312 | G45: 4.258273445 | H45: 3.019600984 | I45: 0.4762455586 | J45: 5.400339818 | K45: 1.509800492 | L45: 0.2381227793 | M45: 2.700169909 | N45: 0.2652870611 | O45: -0.215456478 | P45: 0.7425515776 | Q45: 0.2210725509 | R45: -0.179547065 | S45: 0.6187929814 | W45: 0 | X45: 0 | Y45: 0 | AC45: 0 | AD45: 0 | AE45: 0 | AI45: 0 | AJ45: 0 | AK45: 0 | AO45: 0 | AP45: 0 | AQ45: 0 | AU45: 0 | AV45: 0 | AW45: 0 | BA45: 0 | BB45: 0 | BC45: 0 | BG45: 0 | BH45: 0 | BI45: 0
A46: ='Data Valid Backing (H)'!AO46 -> 2019-05-14T19:00:00 | B46: 2.380622012 | C46: 0.6631009328 | D46: 4.076566605 | E46: 2.380622012 | F46: 0.6631009328 | G46: 4.076566605 | H46: 2.843476288 | I46: 0.4288747 | J46: 5.442956825 | K46: 1.421738144 | L46: 0.21443735 | M46: 2.721478412 | N46: 0.2538187491 | O46: -0.2191452071 | P46: 0.7624674857 | Q46: 0.2115156243 | R46: -0.1826210059 | S46: 0.6353895714 | W46: 0 | X46: 0 | Y46: 0 | AC46: 0 | AD46: 0 | AE46: 0 | AI46: 0 | AJ46: 0 | AK46: 0 | AO46: 0 | AP46: 0 | AQ46: 0 | AU46: 0 | AV46: 0 | AW46: 0 | BA46: 0 | BB46: 0 | BC46: 0 | BG46: 0 | BH46: 0 | BI46: 0
A47: ='Data Valid Backing (H)'!AO47 -> 2019-05-14T20:00:00 | B47: 2.203268232 | C47: 0.4007375677 | D47: 3.936327908 | E47: 2.203268232 | F47: 0.4007375677 | G47: 3.936327908 | H47: 2.670841321 | I47: 0.2895272938 | J47: 5.260913948 | K47: 1.335420661 | L47: 0.1447636469 | M47: 2.630456974 | N47: 0.2435888021 | O47: -0.2457989743 | P47: 0.7311513813 | Q47: 0.2029906684 | R47: -0.2048324786 | S47: 0.6092928177 | W47: 0 | X47: 0 | Y47: 0 | AC47: 0 | AD47: 0 | AE47: 0 | AI47: 0 | AJ47: 0 | AK47: 0 | AO47: 0 | AP47: 0 | AQ47: 0 | AU47: 0 | AV47: 0 | AW47: 0 | BA47: 0 | BB47: 0 | BC47: 0 | BG47: 0 | BH47: 0 | BI47: 0
A48: ='Data Valid Backing (H)'!AO48 -> 2019-05-14T21:00:00 | B48: 2.090126617 | C48: 0.275663521 | D48: 3.750131724 | E48: 2.090126617 | F48: 0.275663521 | G48: 3.750131724 | H48: 2.388028705 | I48: -0.2182549041 | J48: 4.830911752 | K48: 1.194014353 | L48: -0.109127452 | M48: 2.415455876 | N48: 0.235533104 | O48: -0.2357856802 | P48: 0.6991226444 | Q48: 0.1962775866 | R48: -0.1964880668 | S48: 0.5826022036 | W48: 0 | X48: 0 | Y48: 0 | AC48: 0 | AD48: 0 | AE48: 0 | AI48: 0 | AJ48: 0 | AK48: 0 | AO48: 0 | AP48: 0 | AQ48: 0 | AU48: 0 | AV48: 0 | AW48: 0 | BA48: 0 | BB48: 0 | BC48: 0 | BG48: 0 | BH48: 0 | BI48: 0
A49: ='Data Valid Backing (H)'!AO49 -> 2019-05-14T22:00:00 | B49: 1.988254392 | C49: 0.2616845759 | D49: 3.768598254 | E49: 1.988254392 | F49: 0.2616845759 | G49: 3.768598254 | H49: 1.940288028 | I49: -0.6941687714 | J49: 4.585384701 | K49: 0.9701440139 | L49: -0.3470843857 | M49: 2.29269235 | N49: 0.2263079558 | O49: -0.2372797682 | P49: 0.7321542337 | Q49: 0.1885899632 | R49: -0.1977331402 | S49: 0.6101285281 | W49: 0 | X49: 0 | Y49: 0 | AC49: 0 | AD49: 0 | AE49: 0 | AI49: 0 | AJ49: 0 | AK49: 0 | AO49: 0 | AP49: 0 | AQ49: 0 | AU49: 0 | AV49: 0 | AW49: 0 | BA49: 0 | BB49: 0 | BC49: 0 | BG49: 0 | BH49: 0 | BI49: 0
A50: ='Data Valid Backing (H)'!AO50 -> 2019-05-14T23:00:00 | B50: 1.824477355 | C50: 0.1792802349 | D50: 3.628308967 | E50: 1.824477355 | F50: 0.1792802349 | G50: 3.628308967 | H50: 1.42190083 | I50: -1.009928028 | J50: 3.910481731 | K50: 0.7109504151 | L50: -0.5049640138 | M50: 1.955240866 | N50: 0.2137363646 | O50: -0.2748694741 | P50: 0.6912458711 | Q50: 0.1781136372 | R50: -0.2290578951 | S50: 0.5760382259 | W50: 0 | X50: 0 | Y50: 0 | AC50: 0 | AD50: 0 | AE50: 0 | AI50: 0 | AJ50: 0 | AK50: 0 | AO50: 0 | AP50: 0 | AQ50: 0 | AU50: 0 | AV50: 0 | AW50: 0 | BA50: 0 | BB50: 0 | BC50: 0 | BG50: 0 | BH50: 0 | BI50: 0
A51: ='Data Valid Backing (H)'!AO51 -> 2019-05-15 | B51: 1.593039135 | C51: -0.07288792492 | D51: 3.277385167 | E51: 1.593039135 | F51: -0.07288792492 | G51: 3.277385167 | H51: 1.004742891 | I51: -1.452332185 | J51: 3.409292156 | K51: 0.5023714457 | L51: -0.7261660924 | M51: 1.704646078 | N51: 0.2005915763 | O51: -0.2876727818 | P51: 0.67314229 | Q51: 0.1671596469 | R51: -0.2397273181 | S51: 0.5609519083 | W51: 0 | X51: 0 | Y51: 0 | AC51: 0 | AD51: 0 | AE51: 0 | AI51: 0 | AJ51: 0 | AK51: 0 | AO51: 0 | AP51: 0 | AQ51: 0 | AU51: 0 | AV51: 0 | AW51: 0 | BA51: 0 | BB51: 0 | BC51: 0 | BG51: 0 | BH51: 0 | BI51: 0
A52: ='Data Valid Backing (H)'!AO52 -> 2019-05-15T01:00:00 | B52: 1.365832036 | C52: -0.4261887895 | D52: 3.075494363 | E52: 1.365832036 | F52: -0.4261887895 | G52: 3.075494363 | H52: 0.7734772949 | I52: -1.772732997 | J52: 3.326222178 | K52: 0.3867386474 | L52: -0.8863664984 | M52: 1.663111089 | N52: 0.1921714843 | O52: -0.2757957363 | P52: 0.6897408503 | Q52: 0.1601429036 | R52: -0.2298297802 | S52: 0.5747840419 | W52: 0 | X52: 0 | Y52: 0 | AC52: 0 | AD52: 0 | AE52: 0 | AI52: 0 | AJ52: 0 | AK52: 0 | AO52: 0 | AP52: 0 | AQ52: 0 | AU52: 0 | AV52: 0 | AW52: 0 | BA52: 0 | BB52: 0 | BC52: 0 | BG52: 0 | BH52: 0 | BI52: 0
A53: ='Data Valid Backing (H)'!AO53 -> 2019-05-15T02:00:00 | B53: 1.218348698 | C53: -0.5178444833 | D53: 2.847792081 | E53: 1.218348698 | F53: -0.5178444833 | G53: 2.847792081 | H53: 0.646020229 | I53: -1.98812201 | J53: 3.047914305 | K53: 0.3230101145 | L53: -0.994061005 | M53: 1.523957153 | N53: 0.1902961959 | O53: -0.3005593865 | P53: 0.6552075636 | Q53: 0.1585801632 | R53: -0.2504661555 | S53: 0.546006303 | W53: 0 | X53: 0 | Y53: 0 | AC53: 0 | AD53: 0 | AE53: 0 | AI53: 0 | AJ53: 0 | AK53: 0 | AO53: 0 | AP53: 0 | AQ53: 0 | AU53: 0 | AV53: 0 | AW53: 0 | BA53: 0 | BB53: 0 | BC53: 0 | BG53: 0 | BH53: 0 | BI53: 0
A54: ='Data Valid Backing (H)'!AO54 -> 2019-05-15T03:00:00 | B54: 1.155126357 | C54: -0.5077254839 | D54: 2.826891206 | E54: 1.155126357 | F54: -0.5077254839 | G54: 2.826891206 | H54: 0.4791699819 | I54: -1.868908332 | J54: 2.762001498 | K54: 0.239584991 | L54: -0.9344541661 | M54: 1.381000749 | N54: 0.1907597654 | O54: -0.2958582251 | P54: 0.7126845898 | Q54: 0.1589664711 | R54: -0.2465485209 | S54: 0.5939038248 | W54: 0 | X54: 0 | Y54: 0 | AC54: 0 | AD54: 0 | AE54: 0 | AI54: 0 | AJ54: 0 | AK54: 0 | AO54: 0 | AP54: 0 | AQ54: 0 | AU54: 0 | AV54: 0 | AW54: 0 | BA54: 0 | BB54: 0 | BC54: 0 | BG54: 0 | BH54: 0 | BI54: 0
A55: ='Data Valid Backing (H)'!AO55 -> 2019-05-15T04:00:00 | B55: 1.118524922 | C55: -0.6716342799 | D55: 2.863975715 | E55: 1.118524922 | F55: -0.6716342799 | G55: 2.863975715 | H55: 0.2643411508 | I55: -2.270172761 | J55: 2.714077661 | K55: 0.1321705754 | L55: -1.13508638 | M55: 1.357038831 | N55: 0.1879352002 | O55: -0.2889150323 | P55: 0.6804762816 | Q55: 0.1566126668 | R55: -0.2407625269 | S55: 0.567063568 | W55: 0 | X55: 0 | Y55: 0 | AC55: 0 | AD55: 0 | AE55: 0 | AI55: 0 | AJ55: 0 | AK55: 0 | AO55: 0 | AP55: 0 | AQ55: 0 | AU55: 0 | AV55: 0 | AW55: 0 | BA55: 0 | BB55: 0 | BC55: 0 | BG55: 0 | BH55: 0 | BI55: 0
A56: ='Data Valid Backing (H)'!AO56 -> 2019-05-15T05:00:00 | B56: 1.073774154 | C56: -0.7583663018 | D56: 2.75541274 | E56: 1.073774154 | F56: -0.7583663018 | G56: 2.75541274 | H56: 0.2070086226 | I56: -2.254426263 | J56: 2.453536214 | K56: 0.1035043113 | L56: -1.127213131 | M56: 1.226768107 | N56: 0.1823803776 | O56: -0.2946441418 | P56: 0.6653140178 | Q56: 0.151983648 | R56: -0.2455367848 | S56: 0.5544283481 | W56: 0 | X56: 0 | Y56: 0 | AC56: 0 | AD56: 0 | AE56: 0 | AI56: 0 | AJ56: 0 | AK56: 0 | AO56: 0 | AP56: 0 | AQ56: 0 | AU56: 0 | AV56: 0 | AW56: 0 | BA56: 0 | BB56: 0 | BC56: 0 | BG56: 0 | BH56: 0 | BI56: 0
A57: ='Data Valid Backing (H)'!AO57 -> 2019-05-15T06:00:00 | B57: 1.076476218 | C57: -0.6551339822 | D57: 2.756470495 | E57: 1.076476218 | F57: -0.6551339822 | G57: 2.756470495 | H57: 0.5799626701 | I57: -1.840454991 | J57: 2.913035476 | K57: 0.2899813351 | L57: -0.9202274954 | M57: 1.456517738 | N57: 0.183168625 | O57: -0.2971019605 | P57: 0.6701374115 | Q57: 0.1526405208 | R57: -0.2475849671 | S57: 0.5584478429 | W57: 0 | X57: 0 | Y57: 0 | AC57: 0 | AD57: 0 | AE57: 0 | AI57: 0 | AJ57: 0 | AK57: 0 | AO57: 0 | AP57: 0 | AQ57: 0 | AU57: 0 | AV57: 0 | AW57: 0 | BA57: 0 | BB57: 0 | BC57: 0 | BG57: 0 | BH57: 0 | BI57: 0
A58: ='Data Valid Backing (H)'!AO58 -> 2019-05-15T07:00:00 | B58: 1.239302819 | C58: -0.3982938608 | D58: 3.034547679 | E58: 1.239302819 | F58: -0.3982938608 | G58: 3.034547679 | H58: 1.461601394 | I58: -1.015659114 | J58: 4.000082237 | K58: 0.7308006972 | L58: -0.5078295572 | M58: 2.000041118 | N58: 0.2010808359 | O58: -0.3079538771 | P58: 0.6805375063 | Q58: 0.1675673632 | R58: -0.2566282309 | S58: 0.5671145886 | W58: 0 | X58: 0 | Y58: 0 | AC58: 0 | AD58: 0 | AE58: 0 | AI58: 0 | AJ58: 0 | AK58: 0 | AO58: 0 | AP58: 0 | AQ58: 0 | AU58: 0 | AV58: 0 | AW58: 0 | BA58: 0 | BB58: 0 | BC58: 0 | BG58: 0 | BH58: 0 | BI58: 0
A59: ='Data Valid Backing (H)'!AO59 -> 2019-05-15T08:00:00 | B59: 1.616701218 | C59: -0.2080810815 | D59: 3.316157438 | E59: 1.616701218 | F59: -0.2080810815 | G59: 3.316157438 | H59: 2.600620249 | I59: 0.01970764496 | J59: 5.071555454 | K59: 1.300310124 | L59: 0.00985382248 | M59: 2.535777727 | N59: 0.2379011466 | O59: -0.2525373312 | P59: 0.7225004692 | Q59: 0.1982509555 | R59: -0.210447776 | S59: 0.6020837244 | W59: 0 | X59: 0 | Y59: 0 | AC59: 0 | AD59: 0 | AE59: 0 | AI59: 0 | AJ59: 0 | AK59: 0 | AO59: 0 | AP59: 0 | AQ59: 0 | AU59: 0 | AV59: 0 | AW59: 0 | BA59: 0 | BB59: 0 | BC59: 0 | BG59: 0 | BH59: 0 | BI59: 0
A60: ='Data Valid Backing (H)'!AO60 -> 2019-05-15T09:00:00 | B60: 2.11814277 | C60: 0.4139272041 | D60: 3.93958302 | E60: 2.11814277 | F60: 0.4139272041 | G60: 3.93958302 | H60: 3.551330932 | I60: 1.095839942 | J60: 5.910794501 | K60: 1.775665466 | L60: 0.5479199708 | M60: 2.955397251 | N60: 0.2818529632 | O60: -0.1912722933 | P60: 0.824555971 | Q60: 0.2348774693 | R60: -0.1593935778 | S60: 0.6871299758 | W60: 0 | X60: 0 | Y60: 0 | AC60: 0 | AD60: 0 | AE60: 0 | AI60: 0 | AJ60: 0 | AK60: 0 | AO60: 0 | AP60: 0 | AQ60: 0 | AU60: 0 | AV60: 0 | AW60: 0 | BA60: 0 | BB60: 0 | BC60: 0 | BG60: 0 | BH60: 0 | BI60: 0
A61: ='Data Valid Backing (H)'!AO61 -> 2019-05-15T10:00:00 | B61: 2.545369722 | C61: 0.720727804 | D61: 4.416406916 | E61: 2.545369722 | F61: 0.720727804 | G61: 4.416406916 | H61: 3.981705954 | I61: 1.427365852 | J61: 6.529733213 | K61: 1.990852977 | L61: 0.7136829259 | M61: 3.264866606 | N61: 0.3144581968 | O61: -0.1679088317 | P61: 0.7846273876 | Q61: 0.2620484974 | R61: -0.1399240264 | S61: 0.6538561563 | W61: 0 | X61: 0 | Y61: 0 | AC61: 0 | AD61: 0 | AE61: 0 | AI61: 0 | AJ61: 0 | AK61: 0 | AO61: 0 | AP61: 0 | AQ61: 0 | AU61: 0 | AV61: 0 | AW61: 0 | BA61: 0 | BB61: 0 | BC61: 0 | BG61: 0 | BH61: 0 | BI61: 0
A62: ='Data Valid Backing (H)'!AO62 -> 2019-05-15T11:00:00 | B62: 2.735184102 | C62: 0.9933600059 | D62: 4.48625961 | E62: 2.735184102 | F62: 0.9933600059 | G62: 4.48625961 | H62: 3.895765872 | I62: 1.30486873 | J62: 6.26945149 | K62: 1.947882936 | L62: 0.6524343652 | M62: 3.134725745 | N62: 0.3238030897 | O62: -0.1888550739 | P62: 0.8063312127 | Q62: 0.2698359081 | R62: -0.1573792283 | S62: 0.6719426772 | W62: 0 | X62: 0 | Y62: 0 | AC62: 0 | AD62: 0 | AE62: 0 | AI62: 0 | AJ62: 0 | AK62: 0 | AO62: 0 | AP62: 0 | AQ62: 0 | AU62: 0 | AV62: 0 | AW62: 0 | BA62: 0 | BB62: 0 | BC62: 0 | BG62: 0 | BH62: 0 | BI62: 0
A63: ='Data Valid Backing (H)'!AO63 -> 2019-05-15T12:00:00 | B63: 2.684960973 | C63: 0.8977713658 | D63: 4.559215426 | E63: 2.684960973 | F63: 0.8977713658 | G63: 4.559215426 | H63: 3.586280264 | I63: 1.162919956 | J63: 6.008796239 | K63: 1.793140132 | L63: 0.5814599779 | M63: 3.00439812 | N63: 0.313014857 | O63: -0.151022134 | P63: 0.7756957663 | Q63: 0.2608457141 | R63: -0.1258517783 | S63: 0.6464131386 | W63: 0 | X63: 0 | Y63: 0 | AC63: 0 | AD63: 0 | AE63: 0 | AI63: 0 | AJ63: 0 | AK63: 0 | AO63: 0 | AP63: 0 | AQ63: 0 | AU63: 0 | AV63: 0 | AW63: 0 | BA63: 0 | BB63: 0 | BC63: 0 | BG63: 0 | BH63: 0 | BI63: 0
A64: ='Data Valid Backing (H)'!AO64 -> 2019-05-15T13:00:00 | B64: 2.546828274 | C64: 0.7826069576 | D64: 4.256446046 | E64: 2.546828274 | F64: 0.7826069576 | G64: 4.256446046 | H64: 3.373781758 | I64: 1.045438978 | J64: 5.813292396 | K64: 1.686890879 | L64: 0.5227194888 | M64: 2.906646198 | N64: 0.2967224796 | O64: -0.1798442861 | P64: 0.7596907479 | Q64: 0.247268733 | R64: -0.1498702385 | S64: 0.6330756233 | W64: 0 | X64: 0 | Y64: 0 | AC64: 0 | AD64: 0 | AE64: 0 | AI64: 0 | AJ64: 0 | AK64: 0 | AO64: 0 | AP64: 0 | AQ64: 0 | AU64: 0 | AV64: 0 | AW64: 0 | BA64: 0 | BB64: 0 | BC64: 0 | BG64: 0 | BH64: 0 | BI64: 0
A65: ='Data Valid Backing (H)'!AO65 -> 2019-05-15T14:00:00 | B65: 2.494021792 | C65: 0.6768733644 | D65: 4.176641739 | E65: 2.494021792 | F65: 0.6768733644 | G65: 4.176641739 | H65: 3.368601802 | I65: 0.8993402937 | J65: 5.782361127 | K65: 1.684300901 | L65: 0.4496701469 | M65: 2.891180563 | N65: 0.2888480504 | O65: -0.1815970044 | P65: 0.7435320414 | Q65: 0.2407067086 | R65: -0.151330837 | S65: 0.6196100345 | W65: 0 | X65: 0 | Y65: 0 | AC65: 0 | AD65: 0 | AE65: 0 | AI65: 0 | AJ65: 0 | AK65: 0 | AO65: 0 | AP65: 0 | AQ65: 0 | AU65: 0 | AV65: 0 | AW65: 0 | BA65: 0 | BB65: 0 | BC65: 0 | BG65: 0 | BH65: 0 | BI65: 0
A66: ='Data Valid Backing (H)'!AO66 -> 2019-05-15T15:00:00 | B66: 2.578954486 | C66: 0.8377236654 | D66: 4.3061534 | E66: 2.578954486 | F66: 0.8377236654 | G66: 4.3061534 | H66: 3.450004026 | I66: 1.078929879 | J66: 5.919240599 | K66: 1.725002013 | L66: 0.5394649396 | M66: 2.9596203 | N66: 0.2924456866 | O66: -0.1788635545 | P66: 0.7484497455 | Q66: 0.2437047389 | R66: -0.1490529621 | S66: 0.6237081212 | W66: 0 | X66: 0 | Y66: 0 | AC66: 0 | AD66: 0 | AE66: 0 | AI66: 0 | AJ66: 0 | AK66: 0 | AO66: 0 | AP66: 0 | AQ66: 0 | AU66: 0 | AV66: 0 | AW66: 0 | BA66: 0 | BB66: 0 | BC66: 0 | BG66: 0 | BH66: 0 | BI66: 0
A67: ='Data Valid Backing (H)'!AO67 -> 2019-05-15T16:00:00 | B67: 2.706996496 | C67: 1.087661781 | D67: 4.508314996 | E67: =(B67*$E$1)/60 -> 2.706996496 | F67: =(C67*$E$1)/60 -> 1.087661781 | G67: =(D67*$E$1)/60 -> 4.508314996 | H67: 3.442394733 | I67: 0.8810732559 | J67: 5.827563116 | K67: 1.721197367 | L67: 0.4405366279 | M67: 2.913781558 | N67: 0.2997823498 | O67: -0.1709319766 | P67: 0.8088020626 | Q67: 0.2498186248 | R67: -0.1424433138 | S67: 0.6740017188 | W67: 0 | X67: 0 | Y67: 0 | AC67: 0 | AD67: 0 | AE67: 0 | AI67: 0 | AJ67: 0 | AK67: 0 | AO67: 0 | AP67: 0 | AQ67: 0 | AU67: 0 | AV67: 0 | AW67: 0 | BA67: 0 | BB67: 0 | BC67: 0 | BG67: 0 | BH67: 0 | BI67: 0
A68: ='Data Valid Backing (H)'!AO68 -> 2019-05-15T17:00:00 | B68: 2.739874765 | C68: 0.916759219 | D68: 4.426158573 | E68: 2.739874765 | F68: 0.916759219 | G68: 4.426158573 | H68: 3.294084852 | I68: 0.7726582862 | J68: 5.933039758 | K68: =(H68*$K$1)/60 -> 1.647042426 | L68: =(I68*$K$1)/60 -> 0.3863291431 | M68: =(J68*$K$1)/60 -> 2.966519879 | N68: 0.3011769956 | O68: -0.1481972232 | P68: 0.7702523266 | Q68: =(N68*$Q$1)/60 -> 0.2509808296 | R68: =(O68*$Q$1)/60 -> -0.123497686 | S68: =(P68*$Q$1)/60 -> 0.6418769388 | W68: =(T68*$W$1)/60 -> 0 | X68: =(U68*$W$1)/60 -> 0 | Y68: =(V68*$W$1)/60 -> 0 | AC68: =(Z68*$AC$1)/60 -> 0 | AD68: =(AA68*$AC$1)/60 -> 0 | AE68: =(AB68*$AC$1)/60 -> 0 | AI68: =(AF68*$AI$1)/60 -> 0 | AJ68: =(AG68*$AI$1)/60 -> 0 | AK68: =(AH68*$AI$1)/60 -> 0 | AO68: =(AL68*$AO$1)/60 -> 0 | AP68: =(AM68*$AO$1)/60 -> 0 | AQ68: =(AN68*$AO$1)/60 -> 0 | AU68: =(AR68*$AU$1)/60 -> 0 | AV68: =(AS68*$AU$1)/60 -> 0 | AW68: =(AT68*$AU$1)/60 -> 0 | BA68: =(AX68*$BA$1)/60 -> 0 | BB68: =(AY68*$BA$1)/60 -> 0 | BC68: =(AZ68*$BA$1)/60 -> 0 | BG68: =(BD68*$BG$1)/60 -> 0 | BH68: =(BE68*$BG$1)/60 -> 0 | BI68: =(BF68*$BG$1)/60 -> 0
A69: ='Data Valid Backing (H)'!AO69 -> 2019-05-15T18:00:00 | B69: 2.624352477 | C69: 0.8348491608 | D69: 4.484053383 | E69: 2.624352477 | F69: 0.8348491608 | G69: 4.484053383 | H69: 3.090424077 | I69: 0.6679474114 | J69: 5.624463637 | K69: 1.545212039 | L69: 0.3339737057 | M69: 2.812231819 | N69: 0.293599534 | O69: -0.1809010363 | P69: 0.7736632123 | Q69: 0.2446662783 | R69: -0.1507508636 | S69: 0.6447193436 | W69: 0 | X69: 0 | Y69: 0 | AC69: 0 | AD69: 0 | AE69: 0 | AI69: 0 | AJ69: 0 | AK69: 0 | AO69: 0 | AP69: 0 | AQ69: 0 | AU69: 0 | AV69: 0 | AW69: 0 | BA69: 0 | BB69: 0 | BC69: 0 | BG69: 0 | BH69: 0 | BI69: 0
A70: ='Data Valid Backing (H)'!AO70 -> 2019-05-15T19:00:00 | B70: 2.427052446 | C70: 0.7280597076 | D70: 4.072076001 | E70: 2.427052446 | F70: 0.7280597076 | G70: 4.072076001 | H70: 2.91824936 | I70: 0.5424344545 | J70: 5.60474447 | K70: 1.45912468 | L70: 0.2712172273 | M70: 2.802372235 | N70: 0.2814762306 | O70: -0.2013514692 | P70: 0.7497582131 | Q70: 0.2345635255 | R70: -0.167792891 | S70: 0.6247985109 | W70: 0 | X70: 0 | Y70: 0 | AC70: 0 | AD70: 0 | AE70: 0 | AI70: 0 | AJ70: 0 | AK70: 0 | AO70: 0 | AP70: 0 | AQ70: 0 | AU70: 0 | AV70: 0 | AW70: 0 | BA70: 0 | BB70: 0 | BC70: 0 | BG70: 0 | BH70: 0 | BI70: 0
A71: ='Data Valid Backing (H)'!AO71 -> 2019-05-15T20:00:00 | B71: 2.254032541 | C71: 0.4907004632 | D71: 4.020297802 | E71: 2.254032541 | F71: 0.4907004632 | G71: 4.020297802 | H71: 2.747993105 | I71: 0.3640810457 | J71: 4.975970765 | K71: 1.373996552 | L71: 0.1820405228 | M71: 2.487985383 | N71: 0.2704483036 | O71: -0.227284301 | P71: 0.734687278 | Q71: 0.2253735863 | R71: -0.1894035842 | S71: 0.6122393983 | W71: 0 | X71: 0 | Y71: 0 | AC71: 0 | AD71: 0 | AE71: 0 | AI71: 0 | AJ71: 0 | AK71: 0 | AO71: 0 | AP71: 0 | AQ71: 0 | AU71: 0 | AV71: 0 | AW71: 0 | BA71: 0 | BB71: 0 | BC71: 0 | BG71: 0 | BH71: 0 | BI71: 0
A72: ='Data Valid Backing (H)'!AO72 -> 2019-05-15T21:00:00 | B72: 2.144681954 | C72: 0.411545143 | D72: 3.989945353 | E72: 2.144681954 | F72: 0.411545143 | G72: 3.989945353 | H72: 2.465957064 | I72: 0.04054858946 | J72: 4.87547584 | K72: 1.232978532 | L72: 0.02027429473 | M72: 2.43773792 | N72: 0.2614558944 | O72: -0.2105110547 | P72: 0.7211529327 | Q72: 0.217879912 | R72: -0.1754258789 | S72: 0.6009607772 | W72: 0 | X72: 0 | Y72: 0 | AC72: 0 | AD72: 0 | AE72: 0 | AI72: 0 | AJ72: 0 | AK72: 0 | AO72: 0 | AP72: 0 | AQ72: 0 | AU72: 0 | AV72: 0 | AW72: 0 | BA72: 0 | BB72: 0 | BC72: 0 | BG72: 0 | BH72: 0 | BI72: 0
A73: ='Data Valid Backing (H)'!AO73 -> 2019-05-15T22:00:00 | B73: 2.045988317 | C73: 0.4334509764 | D73: 3.8115767 | E73: 2.045988317 | F73: 0.4334509764 | G73: 3.8115767 | H73: 2.017382795 | I73: -0.4405023294 | J73: 4.360938774 | K73: 1.008691397 | L73: -0.2202511647 | M73: 2.180469387 | N73: 0.2511606366 | O73: -0.2442640451 | P73: 0.7135336748 | Q73: 0.2093005305 | R73: -0.2035533709 | S73: 0.5946113957 | W73: 0 | X73: 0 | Y73: 0 | AC73: 0 | AD73: 0 | AE73: 0 | AI73: 0 | AJ73: 0 | AK73: 0 | AO73: 0 | AP73: 0 | AQ73: 0 | AU73: 0 | AV73: 0 | AW73: 0 | BA73: 0 | BB73: 0 | BC73: 0 | BG73: 0 | BH73: 0 | BI73: 0
A74: ='Data Valid Backing (H)'!AO74 -> 2019-05-15T23:00:00 | B74: 1.884717447 | C74: 0.2482254968 | D74: 3.564923888 | E74: 1.884717447 | F74: 0.2482254968 | G74: 3.564923888 | H74: 1.496566944 | I74: -0.9404851921 | J74: 3.946572711 | K74: 0.7482834718 | L74: -0.4702425961 | M74: 1.973286356 | N74: 0.2373919101 | O74: -0.2698730919 | P74: 0.7308961175 | Q74: 0.1978265917 | R74: -0.2248942432 | S74: 0.6090800979 | W74: 0 | X74: 0 | Y74: 0 | AC74: 0 | AD74: 0 | AE74: 0 | AI74: 0 | AJ74: 0 | AK74: 0 | AO74: 0 | AP74: 0 | AQ74: 0 | AU74: 0 | AV74: 0 | AW74: 0 | BA74: 0 | BB74: 0 | BC74: 0 | BG74: 0 | BH74: 0 | BI74: 0
A75: ='Data Valid Backing (H)'!AO75 -> 2019-05-16 | B75: 1.655063483 | C75: -0.09600083682 | D75: 3.413711121 | E75: 1.655063483 | F75: -0.09600083682 | G75: 3.413711121 | H75: 1.075423516 | I75: -1.319617517 | J75: 3.635695272 | K75: 0.5377117582 | L75: -0.6598087586 | M75: 1.817847636 | N75: 0.2229303301 | O75: -0.2694101898 | P75: 0.7085088364 | Q75: 0.1857752751 | R75: -0.2245084915 | S75: 0.5904240304 | W75: 0 | X75: 0 | Y75: 0 | AC75: 0 | AD75: 0 | AE75: 0 | AI75: 0 | AJ75: 0 | AK75: 0 | AO75: 0 | AP75: 0 | AQ75: 0 | AU75: 0 | AV75: 0 | AW75: 0 | BA75: 0 | BB75: 0 | BC75: 0 | BG75: 0 | BH75: 0 | BI75: 0
A76: ='Data Valid Backing (H)'!AO76 -> 2019-05-16T01:00:00 | B76: 1.428880462 | C76: -0.386118871 | D76: 3.157669028 | E76: 1.428880462 | F76: -0.386118871 | G76: 3.157669028 | H76: 0.838676631 | I76: -1.601845441 | J76: 3.269443205 | K76: 0.4193383155 | L76: -0.8009227206 | M76: 1.634721603 | N76: 0.2130821014 | O76: -0.2992216 | P76: 0.6959507872 | Q76: 0.1775684178 | R76: -0.2493513333 | S76: 0.5799589893 | W76: 0 | X76: 0 | Y76: 0 | AC76: 0 | AD76: 0 | AE76: 0 | AI76: 0 | AJ76: 0 | AK76: 0 | AO76: 0 | AP76: 0 | AQ76: 0 | AU76: 0 | AV76: 0 | AW76: 0 | BA76: 0 | BB76: 0 | BC76: 0 | BG76: 0 | BH76: 0 | BI76: 0
A77: ='Data Valid Backing (H)'!AO77 -> 2019-05-16T02:00:00 | B77: 1.281634565 | C77: -0.4185044728 | D77: 2.949118428 | E77: 1.281634565 | F77: -0.4185044728 | G77: 2.949118428 | H77: 0.7043256921 | I77: -1.841516915 | J77: 3.126911268 | K77: 0.352162846 | L77: -0.9207584577 | M77: 1.563455634 | N77: 0.209676521 | O77: -0.2414876442 | P77: 0.6864383871 | Q77: 0.1747304342 | R77: -0.2012397035 | S77: 0.5720319893 | W77: 0 | X77: 0 | Y77: 0 | AC77: 0 | AD77: 0 | AE77: 0 | AI77: 0 | AJ77: 0 | AK77: 0 | AO77: 0 | AP77: 0 | AQ77: 0 | AU77: 0 | AV77: 0 | AW77: 0 | BA77: 0 | BB77: 0 | BC77: 0 | BG77: 0 | BH77: 0 | BI77: 0
A78: ='Data Valid Backing (H)'!AO78 -> 2019-05-16T03:00:00 | B78: 1.217848789 | C78: -0.5188492242 | D78: 3.049914657 | E78: 1.217848789 | F78: -0.5188492242 | G78: 3.049914657 | H78: 0.5292734693 | I78: -2.034006825 | J78: 3.058880776 | K78: 0.2646367346 | L78: -1.017003413 | M78: 1.529440388 | N78: 0.2085176408 | O78: -0.2809184116 | P78: 0.7238012812 | Q78: 0.1737647007 | R78: -0.2340986763 | S78: 0.6031677343 | W78: 0 | X78: 0 | Y78: 0 | AC78: 0 | AD78: 0 | AE78: 0 | AI78: 0 | AJ78: 0 | AK78: 0 | AO78: 0 | AP78: 0 | AQ78: 0 | AU78: 0 | AV78: 0 | AW78: 0 | BA78: 0 | BB78: 0 | BC78: 0 | BG78: 0 | BH78: 0 | BI78: 0
A79: ='Data Valid Backing (H)'!AO79 -> 2019-05-16T04:00:00 | B79: 1.179881276 | C79: -0.4494375902 | D79: 2.904143129 | E79: 1.179881276 | F79: -0.4494375902 | G79: 2.904143129 | H79: 0.3050591004 | I79: -2.246160904 | J79: 2.773962754 | K79: 0.1525295502 | L79: -1.123080452 | M79: 1.386981377 | N79: 0.2039891923 | O79: -0.293492015 | P79: 0.6918997883 | Q79: 0.1699909936 | R79: -0.2445766792 | S79: 0.5765831569 | W79: 0 | X79: 0 | Y79: 0 | AC79: 0 | AD79: 0 | AE79: 0 | AI79: 0 | AJ79: 0 | AK79: 0 | AO79: 0 | AP79: 0 | AQ79: 0 | AU79: 0 | AV79: 0 | AW79: 0 | BA79: 0 | BB79: 0 | BC79: 0 | BG79: 0 | BH79: 0 | BI79: 0
A80: ='Data Valid Backing (H)'!AO80 -> 2019-05-16T05:00:00 | B80: 1.132972567 | C80: -0.5480046684 | D80: 2.965003307 | E80: 1.132972567 | F80: -0.5480046684 | G80: 2.965003307 | H80: 0.2373005949 | I80: -2.113532312 | J80: 2.785729907 | K80: 0.1186502974 | L80: -1.056766156 | M80: 1.392864953 | N80: 0.1966604177 | O80: -0.2685568798 | P80: 0.6957237094 | Q80: 0.1638836814 | R80: -0.2237973998 | S80: 0.5797697578 | W80: 0 | X80: 0 | Y80: 0 | AC80: 0 | AD80: 0 | AE80: 0 | AI80: 0 | AJ80: 0 | AK80: 0 | AO80: 0 | AP80: 0 | AQ80: 0 | AU80: 0 | AV80: 0 | AW80: 0 | BA80: 0 | BB80: 0 | BC80: 0 | BG80: 0 | BH80: 0 | BI80: 0
A81: ='Data Valid Backing (H)'!AO81 -> 2019-05-16T06:00:00 | B81: 1.13274806 | C81: -0.6101442305 | D81: 2.927841907 | E81: 1.13274806 | F81: -0.6101442305 | G81: 2.927841907 | H81: 0.5989481972 | I81: -1.902715858 | J81: 2.993877584 | K81: 0.2994740986 | L81: -0.951357929 | M81: 1.496938792 | N81: 0.1956165562 | O81: -0.2693538646 | P81: 0.6939662429 | Q81: 0.1630137968 | R81: -0.2244615538 | S81: 0.5783052024 | W81: 0 | X81: 0 | Y81: 0 | AC81: 0 | AD81: 0 | AE81: 0 | AI81: 0 | AJ81: 0 | AK81: 0 | AO81: 0 | AP81: 0 | AQ81: 0 | AU81: 0 | AV81: 0 | AW81: 0 | BA81: 0 | BB81: 0 | BC81: 0 | BG81: 0 | BH81: 0 | BI81: 0
A82: ='Data Valid Backing (H)'!AO82 -> 2019-05-16T07:00:00 | B82: 1.291914876 | C82: -0.5151233849 | D82: 2.971988238 | E82: 1.291914876 | F82: -0.5151233849 | G82: 2.971988238 | H82: 1.468574864 | I82: -0.9266739421 | J82: 3.870171724 | K82: 0.7342874321 | L82: -0.463336971 | M82: 1.935085862 | N82: 0.2116508618 | O82: -0.2756295798 | P82: 0.6756070161 | Q82: 0.1763757181 | R82: -0.2296913165 | S82: 0.5630058468 | W82: 0 | X82: 0 | Y82: 0 | AC82: 0 | AD82: 0 | AE82: 0 | AI82: 0 | AJ82: 0 | AK82: 0 | AO82: 0 | AP82: 0 | AQ82: 0 | AU82: 0 | AV82: 0 | AW82: 0 | BA82: 0 | BB82: 0 | BC82: 0 | BG82: 0 | BH82: 0 | BI82: 0
A83: ='Data Valid Backing (H)'!AO83 -> 2019-05-16T08:00:00 | B83: 1.664967433 | C83: 0.05512749445 | D83: 3.334944671 | E83: 1.664967433 | F83: 0.05512749445 | G83: 3.334944671 | H83: 2.595063615 | I83: 0.02084502914 | J83: 5.067315306 | K83: 1.297531807 | L83: 0.01042251457 | M83: 2.533657653 | N83: 0.2465601764 | O83: -0.2302856233 | P83: 0.727935901 | Q83: 0.2054668137 | R83: -0.1919046861 | S83: 0.6066132509 | W83: 0 | X83: 0 | Y83: 0 | AC83: 0 | AD83: 0 | AE83: 0 | AI83: 0 | AJ83: 0 | AK83: 0 | AO83: 0 | AP83: 0 | AQ83: 0 | AU83: 0 | AV83: 0 | AW83: 0 | BA83: 0 | BB83: 0 | BC83: 0 | BG83: 0 | BH83: 0 | BI83: 0
A84: ='Data Valid Backing (H)'!AO84 -> 2019-05-16T09:00:00 | B84: 2.161435392 | C84: 0.5599848083 | D84: 3.964590918 | E84: 2.161435392 | F84: 0.5599848083 | G84: 3.964590918 | H84: 3.532924065 | I84: 1.140530341 | J84: 5.971245172 | K84: 1.766462032 | L84: 0.5702651703 | M84: 2.985622586 | N84: 0.2885808505 | O84: -0.2078563411 | P84: 0.737313894 | Q84: 0.2404840421 | R84: -0.1732136176 | S84: 0.614428245 | W84: 0 | X84: 0 | Y84: 0 | AC84: 0 | AD84: 0 | AE84: 0 | AI84: 0 | AJ84: 0 | AK84: 0 | AO84: 0 | AP84: 0 | AQ84: 0 | AU84: 0 | AV84: 0 | AW84: 0 | BA84: 0 | BB84: 0 | BC84: 0 | BG84: 0 | BH84: 0 | BI84: 0
A85: ='Data Valid Backing (H)'!AO85 -> 2019-05-16T10:00:00 | B85: 2.583129688 | C85: 0.8199663078 | D85: 4.322234604 | E85: 2.583129688 | F85: 0.8199663078 | G85: 4.322234604 | H85: 3.950334487 | I85: 1.555941145 | J85: 6.372851386 | K85: 1.975167244 | L85: 0.7779705723 | M85: 3.186425693 | N85: 0.3192478696 | O85: -0.1531560942 | P85: 0.8089941961 | Q85: 0.2660398913 | R85: -0.1276300785 | S85: 0.6741618301 | W85: 0 | X85: 0 | Y85: 0 | AC85: 0 | AD85: 0 | AE85: 0 | AI85: 0 | AJ85: 0 | AK85: 0 | AO85: 0 | AP85: 0 | AQ85: 0 | AU85: 0 | AV85: 0 | AW85: 0 | BA85: 0 | BB85: 0 | BC85: 0 | BG85: 0 | BH85: 0 | BI85: 0
A86: ='Data Valid Backing (H)'!AO86 -> 2019-05-16T11:00:00 | B86: 2.766930522 | C86: 1.161189159 | D86: 4.542479105 | E86: 2.766930522 | F86: 1.161189159 | G86: 4.542479105 | H86: 3.85152641 | I86: 1.328988473 | J86: 6.27961262 | K86: 1.925763205 | L86: 0.6644942365 | M86: 3.13980631 | N86: 0.3266605692 | O86: -0.1498101605 | P86: 0.8062568919 | Q86: 0.272217141 | R86: -0.1248418004 | S86: 0.6718807433 | W86: 0 | X86: 0 | Y86: 0 | AC86: 0 | AD86: 0 | AE86: 0 | AI86: 0 | AJ86: 0 | AK86: 0 | AO86: 0 | AP86: 0 | AQ86: 0 | AU86: 0 | AV86: 0 | AW86: 0 | BA86: 0 | BB86: 0 | BC86: 0 | BG86: 0 | BH86: 0 | BI86: 0
A87: ='Data Valid Backing (H)'!AO87 -> 2019-05-16T12:00:00 | B87: 2.710299574 | C87: 1.046106125 | D87: 4.50393776 | E87: 2.710299574 | F87: 1.046106125 | G87: 4.50393776 | H87: 3.529482877 | I87: 1.058500434 | J87: 6.105447258 | K87: 1.764741439 | L87: 0.5292502169 | M87: 3.052723629 | N87: 0.3139591669 | O87: -0.1378736198 | P87: 0.8122229411 | Q87: 0.2616326391 | R87: -0.1148946831 | S87: 0.6768524509 | W87: 0 | X87: 0 | Y87: 0 | AC87: 0 | AD87: 0 | AE87: 0 | AI87: 0 | AJ87: 0 | AK87: 0 | AO87: 0 | AP87: 0 | AQ87: 0 | AU87: 0 | AV87: 0 | AW87: 0 | BA87: 0 | BB87: 0 | BC87: 0 | BG87: 0 | BH87: 0 | BI87: 0
A88: ='Data Valid Backing (H)'!AO88 -> 2019-05-16T13:00:00 | B88: 2.565458681 | C88: 0.7129905536 | D88: 4.393268362 | E88: 2.565458681 | F88: 0.7129905536 | G88: 4.393268362 | H88: 3.304949702 | I88: 0.8823275886 | J88: 5.858212594 | K88: 1.652474851 | L88: 0.4411637943 | M88: 2.929106297 | N88: 0.2957854454 | O88: -0.1956462005 | P88: 0.7620572084 | Q88: 0.2464878712 | R88: -0.1630385005 | S88: 0.6350476737 | W88: 0 | X88: 0 | Y88: 0 | AC88: 0 | AD88: 0 | AE88: 0 | AI88: 0 | AJ88: 0 | AK88: 0 | AO88: 0 | AP88: 0 | AQ88: 0 | AU88: 0 | AV88: 0 | AW88: 0 | BA88: 0 | BB88: 0 | BC88: 0 | BG88: 0 | BH88: 0 | BI88: 0
A89: ='Data Valid Backing (H)'!AO89 -> 2019-05-16T14:00:00 | B89: 2.505743554 | C89: 0.6577693732 | D89: 4.301038134 | E89: 2.505743554 | F89: 0.6577693732 | G89: 4.301038134 | H89: 3.288468439 | I89: 0.7537090136 | J89: 5.837601016 | K89: 1.64423422 | L89: 0.3768545068 | M89: 2.918800508 | N89: 0.2860739903 | O89: -0.2119609352 | P89: 0.7784476286 | Q89: 0.2383949919 | R89: -0.1766341127 | S89: 0.6487063571 | W89: 0 | X89: 0 | Y89: 0 | AC89: 0 | AD89: 0 | AE89: 0 | AI89: 0 | AJ89: 0 | AK89: 0 | AO89: 0 | AP89: 0 | AQ89: 0 | AU89: 0 | AV89: 0 | AW89: 0 | BA89: 0 | BB89: 0 | BC89: 0 | BG89: 0 | BH89: 0 | BI89: 0
A90: ='Data Valid Backing (H)'!AO90 -> 2019-05-16T15:00:00 | B90: 2.583671731 | C90: 0.7471087024 | D90: 4.282359605 | E90: 2.583671731 | F90: 0.7471087024 | G90: 4.282359605 | H90: 3.35950698 | I90: 0.8005519484 | J90: 5.830005738 | K90: 1.67975349 | L90: 0.4002759742 | M90: 2.915002869 | N90: 0.2878909989 | O90: -0.2075624898 | P90: 0.7729316322 | Q90: 0.2399091657 | R90: -0.1729687415 | S90: 0.6441096935 | W90: 0 | X90: 0 | Y90: 0 | AC90: 0 | AD90: 0 | AE90: 0 | AI90: 0 | AJ90: 0 | AK90: 0 | AO90: 0 | AP90: 0 | AQ90: 0 | AU90: 0 | AV90: 0 | AW90: 0 | BA90: 0 | BB90: 0 | BC90: 0 | BG90: 0 | BH90: 0 | BI90: 0
A91: ='Data Valid Backing (H)'!AO91 -> 2019-05-16T16:00:00 | B91: 2.70472117 | C91: 0.9281950492 | D91: 4.452118222 | E91: 2.70472117 | F91: 0.9281950492 | G91: 4.452118222 | H91: 3.342667312 | I91: 0.9381724567 | J91: 5.908228584 | K91: 1.671333656 | L91: 0.4690862283 | M91: 2.954114292 | N91: 0.2935149983 | O91: -0.2197914724 | P91: 0.7610274426 | Q91: 0.2445958319 | R91: -0.1831595603 | S91: 0.6341895355 | W91: 0 | X91: 0 | Y91: 0 | AC91: 0 | AD91: 0 | AE91: 0 | AI91: 0 | AJ91: 0 | AK91: 0 | AO91: 0 | AP91: 0 | AQ91: 0 | AU91: 0 | AV91: 0 | AW91: 0 | BA91: 0 | BB91: 0 | BC91: 0 | BG91: 0 | BH91: 0 | BI91: 0
A92: ='Data Valid Backing (H)'!AO92 -> 2019-05-16T17:00:00 | B92: 2.730728383 | C92: 1.027682655 | D92: 4.463157033 | E92: 2.730728383 | F92: 1.027682655 | G92: 4.463157033 | H92: 3.186444833 | I92: 0.7441702096 | J92: 5.727795508 | K92: 1.593222417 | L92: 0.3720851048 | M92: 2.863897754 | N92: 0.2932759009 | O92: -0.1670994425 | P92: 0.7912863161 | Q92: 0.244396584 | R92: -0.1392495354 | S92: 0.6594052634 | W92: 0 | X92: 0 | Y92: 0 | AC92: 0 | AD92: 0 | AE92: 0 | AI92: 0 | AJ92: 0 | AK92: 0 | AO92: 0 | AP92: 0 | AQ92: 0 | AU92: 0 | AV92: 0 | AW92: 0 | BA92: 0 | BB92: 0 | BC92: 0 | BG92: 0 | BH92: 0 | BI92: 0
A93: ='Data Valid Backing (H)'!AO93 -> 2019-05-16T18:00:00 | B93: 2.608566357 | C93: 0.84593089 | D93: 4.35197632 | E93: 2.608566357 | F93: 0.84593089 | G93: 4.35197632 | H93: 2.976359984 | I93: 0.5061611506 | J93: 5.504555986 | K93: 1.488179992 | L93: 0.2530805753 | M93: 2.752277993 | N93: 0.2841538741 | O93: -0.1857657064 | P93: 0.744521416 | Q93: 0.2367948951 | R93: -0.1548047553 | S93: 0.6204345133 | W93: 0 | X93: 0 | Y93: 0 | AC93: 0 | AD93: 0 | AE93: 0 | AI93: 0 | AJ93: 0 | AK93: 0 | AO93: 0 | AP93: 0 | AQ93: 0 | AU93: 0 | AV93: 0 | AW93: 0 | BA93: 0 | BB93: 0 | BC93: 0 | BG93: 0 | BH93: 0 | BI93: 0
A94: ='Data Valid Backing (H)'!AO94 -> 2019-05-16T19:00:00 | B94: 2.404966421 | C94: 0.6966597128 | D94: 4.085894844 | E94: 2.404966421 | F94: 0.6966597128 | G94: 4.085894844 | H94: 2.799404363 | I94: 0.2766854701 | J94: 5.170051166 | K94: 1.399702181 | L94: 0.1383427351 | M94: 2.585025583 | N94: 0.2705846594 | O94: -0.2095139068 | P94: 0.7528867477 | Q94: 0.2254872161 | R94: -0.1745949223 | S94: 0.6274056231 | W94: 0 | X94: 0 | Y94: 0 | AC94: 0 | AD94: 0 | AE94: 0 | AI94: 0 | AJ94: 0 | AK94: 0 | AO94: 0 | AP94: 0 | AQ94: 0 | AU94: 0 | AV94: 0 | AW94: 0 | BA94: 0 | BB94: 0 | BC94: 0 | BG94: 0 | BH94: 0 | BI94: 0
A95: ='Data Valid Backing (H)'!AO95 -> 2019-05-16T20:00:00 | B95: 2.226092133 | C95: 0.456041597 | D95: 3.722686154 | E95: 2.226092133 | F95: 0.456041597 | G95: 3.722686154 | H95: 2.62614675 | I95: 0.1173859383 | J95: 4.965544333 | K95: 1.313073375 | L95: 0.05869296915 | M95: 2.482772167 | N95: 0.258218094 | O95: -0.2134584565 | P95: 0.7586978528 | Q95: 0.215181745 | R95: -0.1778820471 | S95: 0.6322482107 | W95: 0 | X95: 0 | Y95: 0 | AC95: 0 | AD95: 0 | AE95: 0 | AI95: 0 | AJ95: 0 | AK95: 0 | AO95: 0 | AP95: 0 | AQ95: 0 | AU95: 0 | AV95: 0 | AW95: 0 | BA95: 0 | BB95: 0 | BC95: 0 | BG95: 0 | BH95: 0 | BI95: 0
A96: ='Data Valid Backing (H)'!AO96 -> 2019-05-16T21:00:00 | B96: 2.111434057 | C96: 0.4817540399 | D96: 3.922256278 | E96: 2.111434057 | F96: 0.4817540399 | G96: 3.922256278 | H96: 2.343005031 | I96: -0.09944947941 | J96: 4.933138995 | K96: 1.171502516 | L96: -0.04972473971 | M96: 2.466569497 | N96: 0.2480020152 | O96: -0.2597669348 | P96: 0.7358773327 | Q96: 0.206668346 | R96: -0.2164724456 | S96: 0.6132311106 | W96: 0 | X96: 0 | Y96: 0 | AC96: 0 | AD96: 0 | AE96: 0 | AI96: 0 | AJ96: 0 | AK96: 0 | AO96: 0 | AP96: 0 | AQ96: 0 | AU96: 0 | AV96: 0 | AW96: 0 | BA96: 0 | BB96: 0 | BC96: 0 | BG96: 0 | BH96: 0 | BI96: 0
A97: ='Data Valid Backing (H)'!AO97 -> 2019-05-16T22:00:00 | B97: 2.008075423 | C97: 0.2779524534 | D97: 3.748012454 | E97: 2.008075423 | F97: 0.2779524534 | G97: 3.748012454 | H97: 1.895314928 | I97: -0.6114988746 | J97: 4.314006733 | K97: 0.9476574639 | L97: -0.3057494373 | M97: 2.157003367 | N97: 0.2366047712 | O97: -0.2304757826 | P97: 0.6941309798 | Q97: 0.1971706427 | R97: -0.1920631522 | S97: 0.5784424831 | W97: 0 | X97: 0 | Y97: 0 | AC97: 0 | AD97: 0 | AE97: 0 | AI97: 0 | AJ97: 0 | AK97: 0 | AO97: 0 | AP97: 0 | AQ97: 0 | AU97: 0 | AV97: 0 | AW97: 0 | BA97: 0 | BB97: 0 | BC97: 0 | BG97: 0 | BH97: 0 | BI97: 0
A98: ='Data Valid Backing (H)'!AO98 -> 2019-05-16T23:00:00 | B98: 1.84287049 | C98: 0.1877931521 | D98: 3.700159987 | E98: 1.84287049 | F98: 0.1877931521 | G98: 3.700159987 | H98: 1.37744381 | I98: -1.100223328 | J98: 3.888793393 | K98: 0.6887219048 | L98: -0.5501116638 | M98: 1.944396697 | N98: 0.2218614275 | O98: -0.2818686928 | P98: 0.7190152951 | Q98: 0.1848845229 | R98: -0.2348905774 | S98: 0.5991794126 | W98: 0 | X98: 0 | Y98: 0 | AC98: 0 | AD98: 0 | AE98: 0 | AI98: 0 | AJ98: 0 | AK98: 0 | AO98: 0 | AP98: 0 | AQ98: 0 | AU98: 0 | AV98: 0 | AW98: 0 | BA98: 0 | BB98: 0 | BC98: 0 | BG98: 0 | BH98: 0 | BI98: 0
A99: ='Data Valid Backing (H)'!AO99 -> 2019-05-17 | B99: 1.610093367 | C99: -0.2625588589 | D99: 3.355250255 | E99: =(B99*$E$1)/60 -> 1.610093367 | F99: =(C99*$E$1)/60 -> -0.2625588589 | G99: =(D99*$E$1)/60 -> 3.355250255 | H99: 0.9613517813 | I99: -1.686526662 | J99: 3.234172811 | K99: 0.4806758907 | L99: -0.8432633312 | M99: 1.617086406 | N99: 0.2065572173 | O99: -0.2749039389 | P99: 0.6325886356 | Q99: 0.1721310144 | R99: -0.2290866157 | S99: 0.5271571963 | W99: 0 | X99: 0 | Y99: 0 | AC99: 0 | AD99: 0 | AE99: 0 | AI99: 0 | AJ99: 0 | AK99: 0 | AO99: 0 | AP99: 0 | AQ99: 0 | AU99: 0 | AV99: 0 | AW99: 0 | BA99: 0 | BB99: 0 | BC99: 0 | BG99: 0 | BH99: 0 | BI99: 0
A100: ='Data Valid Backing (H)'!AO100 -> 2019-05-17T01:00:00 | B100: 1.38166839 | C100: -0.3399079099 | D100: 3.177727902 | E100: 1.38166839 | F100: -0.3399079099 | G100: 3.177727902 | H100: 0.7317835423 | I100: -1.834754184 | J100: 2.979044192 | K100: 0.3658917711 | L100: -0.9173770918 | M100: 1.489522096 | N100: 0.1960018683 | O100: -0.271221244 | P100: 0.6567169819 | Q100: 0.1633348902 | R100: -0.2260177033 | S100: 0.5472641516 | W100: 0 | X100: 0 | Y100: 0 | AC100: 0 | AD100: 0 | AE100: 0 | AI100: 0 | AJ100: 0 | AK100: 0 | AO100: 0 | AP100: 0 | AQ100: 0 | AU100: 0 | AV100: 0 | AW100: 0 | BA100: 0 | BB100: 0 | BC100: 0 | BG100: 0 | BH100: 0 | BI100: 0
A101: ='Data Valid Backing (H)'!AO101 -> 2019-05-17T02:00:00 | B101: 1.233121283 | C101: -0.4040294991 | D101: 2.964296705 | E101: 1.233121283 | F101: -0.4040294991 | G101: 2.964296705 | H101: 0.606732984 | I101: -1.815938461 | J101: 3.157855588 | K101: 0.303366492 | L101: -0.9079692307 | M101: 1.578927794 | N101: 0.1920270873 | O101: -0.2779158432 | P101: 0.6569082489 | Q101: 0.1600225727 | R101: -0.231596536 | S101: 0.5474235408 | W101: 0 | X101: 0 | Y101: 0 | AC101: 0 | AD101: 0 | AE101: 0 | AI101: 0 | AJ101: 0 | AK101: 0 | AO101: 0 | AP101: 0 | AQ101: 0 | AU101: 0 | AV101: 0 | AW101: 0 | BA101: 0 | BB101: 0 | BC101: 0 | BG101: 0 | BH101: 0 | BI101: 0
A102: ='Data Valid Backing (H)'!AO102 -> 2019-05-17T03:00:00 | B102: 1.169022872 | C102: -0.5024876776 | D102: 2.975232542 | E102: 1.169022872 | F102: -0.5024876776 | G102: 2.975232542 | H102: 0.4430710072 | I102: -2.092481779 | J102: 2.83909533 | K102: 0.2215355036 | L102: -1.046240889 | M102: 1.419547665 | N102: 0.190438216 | O102: -0.3154309506 | P102: 0.6835800282 | Q102: 0.1586985133 | R102: -0.2628591255 | S102: 0.5696500235 | W102: 0 | X102: 0 | Y102: 0 | AC102: 0 | AD102: 0 | AE102: 0 | AI102: 0 | AJ102: 0 | AK102: 0 | AO102: 0 | AP102: 0 | AQ102: 0 | AU102: 0 | AV102: 0 | AW102: 0 | BA102: 0 | BB102: 0 | BC102: 0 | BG102: 0 | BH102: 0 | BI102: 0
A103: ='Data Valid Backing (H)'!AO103 -> 2019-05-17T04:00:00 | B103: 1.131766604 | C103: -0.5892971021 | D103: 2.808665204 | E103: 1.131766604 | F103: -0.5892971021 | G103: 2.808665204 | H103: 0.2322785882 | I103: -2.447553381 | J103: 2.680885178 | K103: 0.1161392941 | L103: -1.22377669 | M103: 1.340442589 | N103: 0.1856191596 | O103: -0.3404167664 | P103: 0.6391495808 | Q103: 0.154682633 | R103: -0.2836806387 | S103: 0.5326246507 | W103: 0 | X103: 0 | Y103: 0 | AC103: 0 | AD103: 0 | AE103: 0 | AI103: 0 | AJ103: 0 | AK103: 0 | AO103: 0 | AP103: 0 | AQ103: 0 | AU103: 0 | AV103: 0 | AW103: 0 | BA103: 0 | BB103: 0 | BC103: 0 | BG103: 0 | BH103: 0 | BI103: 0
A104: ='Data Valid Backing (H)'!AO104 -> 2019-05-17T05:00:00 | B104: 1.08661515 | C104: -0.4723171081 | D104: 2.796056368 | E104: 1.08661515 | F104: -0.4723171081 | G104: 2.796056368 | H104: 0.1798896713 | I104: -2.292276872 | J104: 2.490485619 | K104: 0.08994483566 | L104: -1.146138436 | M104: 1.24524281 | N104: 0.1781382312 | O104: -0.3011725468 | P104: 0.6381088254 | Q104: 0.148448526 | R104: -0.2509771224 | S104: 0.5317573545 | W104: 0 | X104: 0 | Y104: 0 | AC104: 0 | AD104: 0 | AE104: 0 | AI104: 0 | AJ104: 0 | AK104: 0 | AO104: 0 | AP104: 0 | AQ104: 0 | AU104: 0 | AV104: 0 | AW104: 0 | BA104: 0 | BB104: 0 | BC104: 0 | BG104: 0 | BH104: 0 | BI104: 0
A105: ='Data Valid Backing (H)'!AO105 -> 2019-05-17T06:00:00 | B105: 1.089202375 | C105: -0.6271407133 | D105: 2.821641971 | E105: 1.089202375 | F105: -0.6271407133 | G105: 2.821641971 | H105: 0.5587452424 | I105: -2.075537811 | J105: 2.966904697 | K105: 0.2793726212 | L105: -1.037768905 | M105: 1.483452348 | N105: 0.1770786628 | O105: -0.2962798626 | P105: 0.6812515329 | Q105: 0.1475655524 | R105: -0.2468998855 | S105: 0.5677096108 | W105: 0 | X105: 0 | Y105: 0 | AC105: 0 | AD105: 0 | AE105: 0 | AI105: 0 | AJ105: 0 | AK105: 0 | AO105: 0 | AP105: 0 | AQ105: 0 | AU105: 0 | AV105: 0 | AW105: 0 | BA105: 0 | BB105: 0 | BC105: 0 | BG105: 0 | BH105: 0 | BI105: 0
A106: ='Data Valid Backing (H)'!AO106 -> 2019-05-17T07:00:00 | B106: 1.252229892 | C106: -0.5578998719 | D106: 2.979871747 | E106: 1.252229892 | F106: -0.5578998719 | G106: 2.979871747 | H106: 1.447284831 | I106: -0.8864144908 | J106: 3.906952478 | K106: 0.7236424155 | L106: -0.4432072454 | M106: 1.953476239 | N106: 0.1932306561 | O106: -0.2867117969 | P106: 0.7091834508 | Q106: 0.1610255468 | R106: -0.2389264974 | S106: 0.590986209 | W106: 0 | X106: 0 | Y106: 0 | AC106: 0 | AD106: 0 | AE106: 0 | AI106: 0 | AJ106: 0 | AK106: 0 | AO106: 0 | AP106: 0 | AQ106: 0 | AU106: 0 | AV106: 0 | AW106: 0 | BA106: 0 | BB106: 0 | BC106: 0 | BG106: 0 | BH106: 0 | BI106: 0
A107: ='Data Valid Backing (H)'!AO107 -> 2019-05-17T08:00:00 | B107: 1.630172499 | C107: -0.1344265267 | D107: 3.465941219 | E107: 1.630172499 | F107: -0.1344265267 | G107: 3.465941219 | H107: 2.594235188 | I107: 0.07708846338 | J107: 5.085431032 | K107: 1.297117594 | L107: 0.03854423169 | M107: 2.542715516 | N107: 0.2283869995 | O107: -0.26256204 | P107: 0.7303716857 | Q107: 0.1903224995 | R107: -0.2188017 | S107: 0.6086430714 | W107: 0 | X107: 0 | Y107: 0 | AC107: 0 | AD107: 0 | AE107: 0 | AI107: 0 | AJ107: 0 | AK107: 0 | AO107: 0 | AP107: 0 | AQ107: 0 | AU107: 0 | AV107: 0 | AW107: 0 | BA107: 0 | BB107: 0 | BC107: 0 | BG107: 0 | BH107: 0 | BI107: 0
A108: ='Data Valid Backing (H)'!AO108 -> 2019-05-17T09:00:00 | B108: 2.132526174 | C108: 0.3488129684 | D108: 3.690809891 | E108: 2.132526174 | F108: 0.3488129684 | G108: 3.690809891 | H108: 3.553928438 | I108: 1.023065552 | J108: 6.130381512 | K108: 1.776964219 | L108: 0.5115327759 | M108: 3.065190756 | N108: 0.2707790397 | O108: -0.1900386497 | P108: 0.7865202156 | Q108: 0.2256491997 | R108: -0.1583655414 | S108: 0.655433513 | W108: 0 | X108: 0 | Y108: 0 | AC108: 0 | AD108: 0 | AE108: 0 | AI108: 0 | AJ108: 0 | AK108: 0 | AO108: 0 | AP108: 0 | AQ108: 0 | AU108: 0 | AV108: 0 | AW108: 0 | BA108: 0 | BB108: 0 | BC108: 0 | BG108: 0 | BH108: 0 | BI108: 0
A109: ='Data Valid Backing (H)'!AO109 -> 2019-05-17T10:00:00 | B109: 2.561054334 | C109: 0.8177353036 | D109: 4.320630635 | E109: 2.561054334 | F109: 0.8177353036 | G109: 4.320630635 | H109: 3.994346026 | I109: 1.606742235 | J109: 6.439196389 | K109: 1.997173013 | L109: 0.8033711174 | M109: 3.219598194 | N109: 0.3019358688 | O109: -0.1811861051 | P109: 0.7639843816 | Q109: 0.251613224 | R109: -0.1509884209 | S109: 0.6366536514 | W109: 0 | X109: 0 | Y109: 0 | AC109: 0 | AD109: 0 | AE109: 0 | AI109: 0 | AJ109: 0 | AK109: 0 | AO109: 0 | AP109: 0 | AQ109: 0 | AU109: 0 | AV109: 0 | AW109: 0 | BA109: 0 | BB109: 0 | BC109: 0 | BG109: 0 | BH109: 0 | BI109: 0
A110: ='Data Valid Backing (H)'!AO110 -> 2019-05-17T11:00:00 | B110: 2.752576236 | C110: 0.9795708538 | D110: 4.487703563 | E110: 2.752576236 | F110: 0.9795708538 | G110: 4.487703563 | H110: 3.919505449 | I110: 1.392320287 | J110: 6.494411613 | K110: 1.959752725 | L110: 0.6961601436 | M110: 3.247205807 | N110: 0.3099501069 | O110: -0.1718830315 | P110: 0.8017701839 | Q110: 0.2582917558 | R110: -0.1432358596 | S110: 0.6681418199 | W110: 0 | X110: 0 | Y110: 0 | AC110: 0 | AD110: 0 | AE110: 0 | AI110: 0 | AJ110: 0 | AK110: 0 | AO110: 0 | AP110: 0 | AQ110: 0 | AU110: 0 | AV110: 0 | AW110: 0 | BA110: 0 | BB110: 0 | BC110: 0 | BG110: 0 | BH110: 0 | BI110: 0
A111: ='Data Valid Backing (H)'!AO111 -> 2019-05-17T12:00:00 | B111: 2.704479778 | C111: 0.9043219027 | D111: 4.53593871 | E111: 2.704479778 | F111: 0.9043219027 | G111: 4.53593871 | H111: 3.62216088 | I111: 1.24601233 | J111: 6.022026881 | K111: 1.81108044 | L111: 0.6230061648 | M111: 3.011013441 | N111: 0.2979545074 | O111: -0.1930476972 | P111: 0.7604834796 | Q111: 0.2482954229 | R111: -0.160873081 | S111: 0.633736233 | W111: 0 | X111: 0 | Y111: 0 | AC111: 0 | AD111: 0 | AE111: 0 | AI111: 0 | AJ111: 0 | AK111: 0 | AO111: 0 | AP111: 0 | AQ111: 0 | AU111: 0 | AV111: 0 | AW111: 0 | BA111: 0 | BB111: 0 | BC111: 0 | BG111: 0 | BH111: 0 | BI111: 0
A112: ='Data Valid Backing (H)'!AO112 -> 2019-05-17T13:00:00 | B112: 2.568900929 | C112: 0.7437536028 | D112: 4.474781146 | E112: 2.568900929 | F112: 0.7437536028 | G112: 4.474781146 | H112: 3.422816967 | I112: 0.9163241476 | J112: 5.827939913 | K112: 1.711408484 | L112: 0.4581620738 | M112: 2.913969957 | N112: 0.28058272 | O112: -0.1722950666 | P112: 0.7594500816 | Q112: 0.2338189334 | R112: -0.1435792221 | S112: 0.632875068 | W112: 0 | X112: 0 | Y112: 0 | AC112: 0 | AD112: 0 | AE112: 0 | AI112: 0 | AJ112: 0 | AK112: 0 | AO112: 0 | AP112: 0 | AQ112: 0 | AU112: 0 | AV112: 0 | AW112: 0 | BA112: 0 | BB112: 0 | BC112: 0 | BG112: 0 | BH112: 0 | BI112: 0
A113: ='Data Valid Backing (H)'!AO113 -> 2019-05-17T14:00:00 | B113: 2.519078363 | C113: 0.7313524573 | D113: 4.21410934 | E113: 2.519078363 | F113: 0.7313524573 | G113: 4.21410934 | H113: 3.431764532 | I113: 1.031806406 | J113: 5.977775551 | K113: 1.715882266 | L113: 0.5159032032 | M113: 2.988887775 | N113: 0.2717606137 | O113: -0.1830899686 | P113: 0.7781341755 | Q113: 0.2264671781 | R113: -0.1525749738 | S113: 0.6484451463 | W113: 0 | X113: 0 | Y113: 0 | AC113: 0 | AD113: 0 | AE113: 0 | AI113: 0 | AJ113: 0 | AK113: 0 | AO113: 0 | AP113: 0 | AQ113: 0 | AU113: 0 | AV113: 0 | AW113: 0 | BA113: 0 | BB113: 0 | BC113: 0 | BG113: 0 | BH113: 0 | BI113: 0
A114: ='Data Valid Backing (H)'!AO114 -> 2019-05-17T15:00:00 | B114: 2.607422488 | C114: 0.7232721962 | D114: 4.350057567 | E114: 2.607422488 | F114: 0.7232721962 | G114: 4.350057567 | H114: 3.528214006 | I114: 0.9312976244 | J114: 6.136773007 | K114: 1.764107003 | L114: 0.4656488122 | M114: 3.068386504 | N114: 0.2745451732 | O114: -0.2311475627 | P114: 0.7852864169 | Q114: 0.2287876443 | R114: -0.1926229689 | S114: 0.6544053474 | W114: 0 | X114: 0 | Y114: 0 | AC114: 0 | AD114: 0 | AE114: 0 | AI114: 0 | AJ114: 0 | AK114: 0 | AO114: 0 | AP114: 0 | AQ114: 0 | AU114: 0 | AV114: 0 | AW114: 0 | BA114: 0 | BB114: 0 | BC114: 0 | BG114: 0 | BH114: 0 | BI114: 0
A115: ='Data Valid Backing (H)'!AO115 -> 2019-05-17T16:00:00 | B115: 2.739295232 | C115: 0.9836528101 | D115: 4.478029047 | E115: 2.739295232 | F115: 0.9836528101 | G115: 4.478029047 | H115: 3.536506146 | I115: 1.207859178 | J115: 5.973769539 | K115: 1.768253073 | L115: 0.6039295889 | M115: 2.986884769 | N115: 0.2812053092 | O115: -0.1764760852 | P115: 0.7845548825 | Q115: 0.2343377577 | R115: -0.1470634043 | S115: 0.6537957354 | W115: 0 | X115: 0 | Y115: 0 | AC115: 0 | AD115: 0 | AE115: 0 | AI115: 0 | AJ115: 0 | AK115: 0 | AO115: 0 | AP115: 0 | AQ115: 0 | AU115: 0 | AV115: 0 | AW115: 0 | BA115: 0 | BB115: 0 | BC115: 0 | BG115: 0 | BH115: 0 | BI115: 0
A116: ='Data Valid Backing (H)'!AO116 -> 2019-05-17T17:00:00 | B116: 2.776409522 | C116: 1.083976234 | D116: 4.524344037 | E116: 2.776409522 | F116: 1.083976234 | G116: 4.524344037 | H116: 3.404874359 | I116: 0.9103679729 | J116: 5.797773498 | K116: 1.702437179 | L116: 0.4551839865 | M116: 2.898886749 | N116: 0.2820610069 | O116: -0.1950202999 | P116: 0.7318997378 | Q116: 0.2350508391 | R116: -0.1625169166 | S116: 0.6099164481 | W116: 0 | X116: 0 | Y116: 0 | AC116: 0 | AD116: 0 | AE116: 0 | AI116: 0 | AJ116: 0 | AK116: 0 | AO116: 0 | AP116: 0 | AQ116: 0 | AU116: 0 | AV116: 0 | AW116: 0 | BA116: 0 | BB116: 0 | BC116: 0 | BG116: 0 | BH116: 0 | BI116: 0
A117: ='Data Valid Backing (H)'!AO117 -> 2019-05-17T18:00:00 | B117: 2.665508634 | C117: 1.022971272 | D117: 4.51573968 | E117: 2.665508634 | F117: 1.022971272 | G117: 4.51573968 | H117: 3.218579362 | I117: 0.7309421701 | J117: 5.614545618 | K117: 1.609289681 | L117: 0.3654710851 | M117: 2.807272809 | N117: 0.2740822901 | O117: -0.2280480641 | P117: 0.7268203324 | Q117: 0.2284019084 | R117: -0.1900400534 | S117: 0.6056836103 | W117: 0 | X117: 0 | Y117: 0 | AC117: 0 | AD117: 0 | AE117: 0 | AI117: 0 | AJ117: 0 | AK117: 0 | AO117: 0 | AP117: 0 | AQ117: 0 | AU117: 0 | AV117: 0 | AW117: 0 | BA117: 0 | BB117: 0 | BC117: 0 | BG117: 0 | BH117: 0 | BI117: 0
A118: ='Data Valid Backing (H)'!AO118 -> 2019-05-17T19:00:00 | B118: 2.473189591 | C118: 0.7101225319 | D118: 4.217501137 | E118: 2.473189591 | F118: 0.7101225319 | G118: 4.217501137 | H118: 3.064358334 | I118: 0.7030483317 | J118: 5.435879208 | K118: 1.532179167 | L118: 0.3515241658 | M118: 2.717939604 | N118: 0.2616946343 | O118: -0.2424654901 | P118: 0.7767367138 | Q118: 0.2180788619 | R118: -0.2020545751 | S118: 0.6472805948 | W118: 0 | X118: 0 | Y118: 0 | AC118: 0 | AD118: 0 | AE118: 0 | AI118: 0 | AJ118: 0 | AK118: 0 | AO118: 0 | AP118: 0 | AQ118: 0 | AU118: 0 | AV118: 0 | AW118: 0 | BA118: 0 | BB118: 0 | BC118: 0 | BG118: 0 | BH118: 0 | BI118: 0
A119: ='Data Valid Backing (H)'!AO119 -> 2019-05-17T20:00:00 | B119: 2.305478659 | C119: 0.451938945 | D119: 4.039553526 | E119: 2.305478659 | F119: 0.451938945 | G119: 4.039553526 | H119: 2.912533915 | I119: 0.5387351719 | J119: 5.138501866 | K119: 1.456266958 | L119: 0.2693675859 | M119: 2.569250933 | N119: 0.250537582 | O119: -0.247154297 | P119: 0.725559547 | Q119: 0.2087813183 | R119: -0.2059619141 | S119: 0.6046329558 | W119: 0 | X119: 0 | Y119: 0 | AC119: 0 | AD119: 0 | AE119: 0 | AI119: 0 | AJ119: 0 | AK119: 0 | AO119: 0 | AP119: 0 | AQ119: 0 | AU119: 0 | AV119: 0 | AW119: 0 | BA119: 0 | BB119: 0 | BC119: 0 | BG119: 0 | BH119: 0 | BI119: 0
A120: ='Data Valid Backing (H)'!AO120 -> 2019-05-17T21:00:00 | B120: 2.201727768 | C120: 0.5112419775 | D120: 3.975726267 | E120: 2.201727768 | F120: 0.5112419775 | G120: 3.975726267 | H120: 2.649289023 | I120: 0.04834839793 | J120: 5.024160648 | K120: 1.324644512 | L120: 0.02417419896 | M120: 2.512080324 | N120: 0.2415487374 | O120: -0.2534171758 | P120: 0.7561494994 | Q120: 0.2012906145 | R120: -0.2111809798 | S120: 0.6301245828 | W120: 0 | X120: 0 | Y120: 0 | AC120: 0 | AD120: 0 | AE120: 0 | AI120: 0 | AJ120: 0 | AK120: 0 | AO120: 0 | AP120: 0 | AQ120: 0 | AU120: 0 | AV120: 0 | AW120: 0 | BA120: 0 | BB120: 0 | BC120: 0 | BG120: 0 | BH120: 0 | BI120: 0
A121: ='Data Valid Backing (H)'!AO121 -> 2019-05-17T22:00:00 | B121: 2.108881869 | C121: 0.3515361643 | D121: 3.78620426 | E121: 2.108881869 | F121: 0.3515361643 | G121: 3.78620426 | H121: 2.21973836 | I121: -0.197598652 | J121: 4.594903414 | K121: 1.10986918 | L121: -0.09879932602 | M121: 2.297451707 | N121: 0.2313863667 | O121: -0.2694012465 | P121: 0.7320675891 | Q121: 0.1928219722 | R121: -0.2245010387 | S121: 0.6100563243 | W121: 0 | X121: 0 | Y121: 0 | AC121: 0 | AD121: 0 | AE121: 0 | AI121: 0 | AJ121: 0 | AK121: 0 | AO121: 0 | AP121: 0 | AQ121: 0 | AU121: 0 | AV121: 0 | AW121: 0 | BA121: 0 | BB121: 0 | BC121: 0 | BG121: 0 | BH121: 0 | BI121: 0
A122: ='Data Valid Backing (H)'!AO122 -> 2019-05-17T23:00:00 | B122: 1.953658985 | C122: 0.3070844022 | D122: 3.78906135 | E122: 1.953658985 | F122: 0.3070844022 | G122: 3.78906135 | H122: 1.718044849 | I122: -0.8527341351 | J122: 4.183444638 | K122: 0.8590224246 | L122: -0.4263670675 | M122: 2.091722319 | N122: 0.2178756877 | O122: -0.2568355736 | P122: 0.7282125129 | Q122: 0.1815630731 | R122: -0.2140296447 | S122: 0.6068437608 | W122: 0 | X122: 0 | Y122: 0 | AC122: 0 | AD122: 0 | AE122: 0 | AI122: 0 | AJ122: 0 | AK122: 0 | AO122: 0 | AP122: 0 | AQ122: 0 | AU122: 0 | AV122: 0 | AW122: 0 | BA122: 0 | BB122: 0 | BC122: 0 | BG122: 0 | BH122: 0 | BI122: 0
A123: ='Data Valid Backing (H)'!AO123 -> 2019-05-18 | B123: 1.730200727 | C123: -0.01819198843 | D123: 3.377062226 | E123: 1.730200727 | F123: -0.01819198843 | G123: 3.377062226 | H123: 1.315983159 | I123: -1.254439874 | J123: 3.846197677 | K123: 0.6579915794 | L123: -0.6272199369 | M123: 1.923098838 | N123: 0.203792401 | O123: -0.2955134526 | P123: 0.6976795784 | Q123: 0.1698270008 | R123: -0.2462612105 | S123: 0.5813996486 | W123: 0 | X123: 0 | Y123: 0 | AC123: 0 | AD123: 0 | AE123: 0 | AI123: 0 | AJ123: 0 | AK123: 0 | AO123: 0 | AP123: 0 | AQ123: 0 | AU123: 0 | AV123: 0 | AW123: 0 | BA123: 0 | BB123: 0 | BC123: 0 | BG123: 0 | BH123: 0 | BI123: 0
A124: ='Data Valid Backing (H)'!AO124 -> 2019-05-18T01:00:00 | B124: 1.510304329 | C124: -0.3385395789 | D124: 3.239735827 | E124: 1.510304329 | F124: -0.3385395789 | G124: 3.239735827 | H124: 1.098133784 | I124: -1.400743004 | J124: 3.515711823 | K124: 0.5490668921 | L124: -0.700371502 | M124: 1.757855912 | N124: 0.1944370907 | O124: -0.2815497733 | P124: 0.6731095781 | Q124: 0.1620309089 | R124: -0.2346248111 | S124: 0.5609246484 | W124: 0 | X124: 0 | Y124: 0 | AC124: 0 | AD124: 0 | AE124: 0 | AI124: 0 | AJ124: 0 | AK124: 0 | AO124: 0 | AP124: 0 | AQ124: 0 | AU124: 0 | AV124: 0 | AW124: 0 | BA124: 0 | BB124: 0 | BC124: 0 | BG124: 0 | BH124: 0 | BI124: 0
A125: ='Data Valid Backing (H)'!AO125 -> 2019-05-18T02:00:00 | B125: 1.369375412 | C125: -0.4386710803 | D125: 3.085846018 | E125: 1.369375412 | F125: -0.4386710803 | G125: 3.085846018 | H125: 0.9823496262 | I125: -1.53616041 | J125: 3.443911179 | K125: 0.4911748131 | L125: -0.7680802048 | M125: 1.72195559 | N125: 0.191632778 | O125: -0.2881472832 | P125: 0.6849309981 | Q125: 0.1596939817 | R125: -0.240122736 | S125: 0.5707758317 | W125: 0 | X125: 0 | Y125: 0 | AC125: 0 | AD125: 0 | AE125: 0 | AI125: 0 | AJ125: 0 | AK125: 0 | AO125: 0 | AP125: 0 | AQ125: 0 | AU125: 0 | AV125: 0 | AW125: 0 | BA125: 0 | BB125: 0 | BC125: 0 | BG125: 0 | BH125: 0 | BI125: 0
A126: ='Data Valid Backing (H)'!AO126 -> 2019-05-18T03:00:00 | B126: 1.311873234 | C126: -0.4663215104 | D126: 2.870330607 | E126: 1.311873234 | F126: -0.4663215104 | G126: 2.870330607 | H126: 0.825385522 | I126: -1.714014124 | J126: 3.266057917 | K126: 0.412692761 | L126: -0.8570070619 | M126: 1.633028959 | N126: 0.1911766386 | O126: -0.2751227608 | P126: 0.6598647901 | Q126: 0.1593138655 | R126: -0.2292689674 | S126: 0.5498873251 | W126: 0 | X126: 0 | Y126: 0 | AC126: 0 | AD126: 0 | AE126: 0 | AI126: 0 | AJ126: 0 | AK126: 0 | AO126: 0 | AP126: 0 | AQ126: 0 | AU126: 0 | AV126: 0 | AW126: 0 | BA126: 0 | BB126: 0 | BC126: 0 | BG126: 0 | BH126: 0 | BI126: 0
A127: ='Data Valid Backing (H)'!AO127 -> 2019-05-18T04:00:00 | B127: 1.280089654 | C127: -0.49461664 | D127: 2.917223669 | E127: 1.280089654 | F127: -0.49461664 | G127: 2.917223669 | H127: 0.6186327373 | I127: -1.758463422 | J127: 3.067039769 | K127: 0.3093163686 | L127: -0.8792317109 | M127: 1.533519884 | N127: 0.1874449864 | O127: -0.3007887878 | P127: 0.7150936988 | Q127: 0.1562041553 | R127: -0.2506573232 | S127: 0.5959114157 | W127: 0 | X127: 0 | Y127: 0 | AC127: 0 | AD127: 0 | AE127: 0 | AI127: 0 | AJ127: 0 | AK127: 0 | AO127: 0 | AP127: 0 | AQ127: 0 | AU127: 0 | AV127: 0 | AW127: 0 | BA127: 0 | BB127: 0 | BC127: 0 | BG127: 0 | BH127: 0 | BI127: 0
A128: ='Data Valid Backing (H)'!AO128 -> 2019-05-18T05:00:00 | B128: 1.239197069 | C128: -0.4754179164 | D128: 2.98284252 | E128: 1.239197069 | F128: -0.4754179164 | G128: 2.98284252 | H128: 0.567562979 | I128: -1.924192109 | J128: 2.839450834 | K128: 0.2837814895 | L128: -0.9620960543 | M128: 1.419725417 | N128: 0.1809991649 | O128: -0.3319448938 | P128: 0.6821365722 | Q128: 0.1508326375 | R128: -0.2766207448 | S128: 0.5684471435 | W128: 0 | X128: 0 | Y128: 0 | AC128: 0 | AD128: 0 | AE128: 0 | AI128: 0 | AJ128: 0 | AK128: 0 | AO128: 0 | AP128: 0 | AQ128: 0 | AU128: 0 | AV128: 0 | AW128: 0 | BA128: 0 | BB128: 0 | BC128: 0 | BG128: 0 | BH128: 0 | BI128: 0
A129: ='Data Valid Backing (H)'!AO129 -> 2019-05-18T06:00:00 | B129: 1.244751589 | C129: -0.4311487688 | D129: 2.941000341 | E129: 1.244751589 | F129: -0.4311487688 | G129: 2.941000341 | H129: 0.9449832698 | I129: -1.482569926 | J129: 3.516891171 | K129: 0.4724916349 | L129: -0.7412849628 | M129: 1.758445586 | N129: 0.1809160981 | O129: -0.2868413726 | P129: 0.676574829 | Q129: 0.1507634151 | R129: -0.2390344771 | S129: 0.5638123575 | W129: 0 | X129: 0 | Y129: 0 | AC129: 0 | AD129: 0 | AE129: 0 | AI129: 0 | AJ129: 0 | AK129: 0 | AO129: 0 | AP129: 0 | AQ129: 0 | AU129: 0 | AV129: 0 | AW129: 0 | BA129: 0 | BB129: 0 | BC129: 0 | BG129: 0 | BH129: 0 | BI129: 0
A130: ='Data Valid Backing (H)'!AO130 -> 2019-05-18T07:00:00 | B130: 1.409390663 | C130: -0.4664605759 | D130: 3.149552125 | E130: 1.409390663 | F130: -0.4664605759 | G130: 3.149552125 | H130: 1.829327921 | I130: -0.5911575427 | J130: 4.348913615 | K130: 0.9146639606 | L130: -0.2955787714 | M130: 2.174456807 | N130: 0.1979803723 | O130: -0.3105618848 | P130: 0.6913996934 | Q130: 0.1649836436 | R130: -0.2588015707 | S130: 0.5761664111 | W130: 0 | X130: 0 | Y130: 0 | AC130: 0 | AD130: 0 | AE130: 0 | AI130: 0 | AJ130: 0 | AK130: 0 | AO130: 0 | AP130: 0 | AQ130: 0 | AU130: 0 | AV130: 0 | AW130: 0 | BA130: 0 | BB130: 0 | BC130: 0 | BG130: 0 | BH130: 0 | BI130: 0
A131: ='Data Valid Backing (H)'!AO131 -> 2019-05-18T08:00:00 | B131: 1.787539424 | C131: 0.1563206973 | D131: 3.564735445 | E131: =(B131*$E$1)/60 -> 1.787539424 | F131: =(C131*$E$1)/60 -> 0.1563206973 | G131: =(D131*$E$1)/60 -> 3.564735445 | H131: 2.969347347 | I131: 0.4630391604 | J131: 5.412846901 | K131: 1.484673673 | L131: 0.2315195802 | M131: 2.706423451 | N131: 0.2339798772 | O131: -0.2465685167 | P131: 0.707019299 | Q131: 0.194983231 | R131: -0.205473764 | S131: 0.5891827492 | W131: 0 | X131: 0 | Y131: 0 | AC131: 0 | AD131: 0 | AE131: 0 | AI131: 0 | AJ131: 0 | AK131: 0 | AO131: 0 | AP131: 0 | AQ131: 0 | AU131: 0 | AV131: 0 | AW131: 0 | BA131: 0 | BB131: 0 | BC131: 0 | BG131: 0 | BH131: 0 | BI131: 0
A132: ='Data Valid Backing (H)'!AO132 -> 2019-05-18T09:00:00 | B132: 2.288659424 | C132: 0.6178066132 | D132: 4.013972169 | E132: 2.288659424 | F132: 0.6178066132 | G132: 4.013972169 | H132: 3.919426012 | I132: 1.604062255 | J132: 6.336525846 | K132: =(H132*$K$1)/60 -> 1.959713006 | L132: =(I132*$K$1)/60 -> 0.8020311274 | M132: =(J132*$K$1)/60 -> 3.168262923 | N132: 0.277141792 | O132: -0.1932351922 | P132: 0.767962641 | Q132: =(N132*$Q$1)/60 -> 0.2309514934 | R132: =(O132*$Q$1)/60 -> -0.1610293269 | S132: =(P132*$Q$1)/60 -> 0.6399688675 | W132: =(T132*$W$1)/60 -> 0 | X132: =(U132*$W$1)/60 -> 0 | Y132: =(V132*$W$1)/60 -> 0 | AC132: =(Z132*$AC$1)/60 -> 0 | AD132: =(AA132*$AC$1)/60 -> 0 | AE132: =(AB132*$AC$1)/60 -> 0 | AI132: =(AF132*$AI$1)/60 -> 0 | AJ132: =(AG132*$AI$1)/60 -> 0 | AK132: =(AH132*$AI$1)/60 -> 0 | AO132: =(AL132*$AO$1)/60 -> 0 | AP132: =(AM132*$AO$1)/60 -> 0 | AQ132: =(AN132*$AO$1)/60 -> 0 | AU132: =(AR132*$AU$1)/60 -> 0 | AV132: =(AS132*$AU$1)/60 -> 0 | AW132: =(AT132*$AU$1)/60 -> 0 | BA132: =(AX132*$BA$1)/60 -> 0 | BB132: =(AY132*$BA$1)/60 -> 0 | BC132: =(AZ132*$BA$1)/60 -> 0 | BG132: =(BD132*$BG$1)/60 -> 0 | BH132: =(BE132*$BG$1)/60 -> 0 | BI132: =(BF132*$BG$1)/60 -> 0
A133: ='Data Valid Backing (H)'!AO133 -> 2019-05-18T10:00:00 | B133: 2.714495464 | C133: 0.9518013478 | D133: 4.429169639 | E133: 2.714495464 | F133: 0.9518013478 | G133: 4.429169639 | H133: 4.347625843 | I133: 1.78247659 | J133: 6.753141188 | K133: 2.173812921 | L133: 0.8912382949 | M133: 3.376570594 | N133: 0.3089917801 | O133: -0.1889634094 | P133: 0.7670480512 | Q133: 0.2574931501 | R133: -0.1574695078 | S133: 0.6392067093 | W133: 0 | X133: 0 | Y133: 0 | AC133: 0 | AD133: 0 | AE133: 0 | AI133: 0 | AJ133: 0 | AK133: 0 | AO133: 0 | AP133: 0 | AQ133: 0 | AU133: 0 | AV133: 0 | AW133: 0 | BA133: 0 | BB133: 0 | BC133: 0 | BG133: 0 | BH133: 0 | BI133: 0
A134: ='Data Valid Backing (H)'!AO134 -> 2019-05-18T11:00:00 | B134: 2.90186437 | C134: 1.254459773 | D134: 4.694136419 | E134: 2.90186437 | F134: 1.254459773 | G134: 4.694136419 | H134: 4.258072091 | I134: 1.873461331 | J134: 6.754440291 | K134: 2.129036046 | L134: 0.9367306656 | M134: 3.377220145 | N134: 0.3176197702 | O134: -0.1447123542 | P134: 0.7927734879 | Q134: 0.2646831419 | R134: -0.1205936285 | S134: 0.6606445733 | W134: 0 | X134: 0 | Y134: 0 | AC134: 0 | AD134: 0 | AE134: 0 | AI134: 0 | AJ134: 0 | AK134: 0 | AO134: 0 | AP134: 0 | AQ134: 0 | AU134: 0 | AV134: 0 | AW134: 0 | BA134: 0 | BB134: 0 | BC134: 0 | BG134: 0 | BH134: 0 | BI134: 0
A135: ='Data Valid Backing (H)'!AO135 -> 2019-05-18T12:00:00 | B135: 2.848167985 | C135: 1.036135166 | D135: 4.566310149 | E135: 2.848167985 | F135: 1.036135166 | G135: 4.566310149 | H135: 3.943652769 | I135: 1.601001091 | J135: 6.404743447 | K135: 1.971826385 | L135: 0.8005005454 | M135: 3.202371723 | N135: 0.3061565542 | O135: -0.1610478799 | P135: 0.7939190094 | Q135: 0.2551304618 | R135: -0.1342065666 | S135: 0.6615991745 | W135: 0 | X135: 0 | Y135: 0 | AC135: 0 | AD135: 0 | AE135: 0 | AI135: 0 | AJ135: 0 | AK135: 0 | AO135: 0 | AP135: 0 | AQ135: 0 | AU135: 0 | AV135: 0 | AW135: 0 | BA135: 0 | BB135: 0 | BC135: 0 | BG135: 0 | BH135: 0 | BI135: 0
A136: ='Data Valid Backing (H)'!AO136 -> 2019-05-18T13:00:00 | B136: 2.705572596 | C136: 0.8974511132 | D136: 4.506086325 | E136: 2.705572596 | F136: 0.8974511132 | G136: 4.506086325 | H136: 3.72503096 | I136: 1.199541795 | J136: 6.064551581 | K136: 1.86251548 | L136: 0.5997708976 | M136: 3.032275791 | N136: 0.2892345337 | O136: -0.1732310069 | P136: 0.791015761 | Q136: 0.2410287781 | R136: -0.1443591724 | S136: 0.6591798008 | W136: 0 | X136: 0 | Y136: 0 | AC136: 0 | AD136: 0 | AE136: 0 | AI136: 0 | AJ136: 0 | AK136: 0 | AO136: 0 | AP136: 0 | AQ136: 0 | AU136: 0 | AV136: 0 | AW136: 0 | BA136: 0 | BB136: 0 | BC136: 0 | BG136: 0 | BH136: 0 | BI136: 0
A137: ='Data Valid Backing (H)'!AO137 -> 2019-05-18T14:00:00 | B137: 2.647363364 | C137: 0.7583580563 | D137: 4.311112798 | E137: 2.647363364 | F137: 0.7583580563 | G137: 4.311112798 | H137: 3.712678735 | I137: 1.091279605 | J137: 6.233920383 | K137: 1.856339367 | L137: 0.5456398024 | M137: 3.116960192 | N137: 0.2807790207 | O137: -0.1882522814 | P137: 0.7515219391 | Q137: 0.2339825173 | R137: -0.1568769012 | S137: 0.6262682826 | W137: 0 | X137: 0 | Y137: 0 | AC137: 0 | AD137: 0 | AE137: 0 | AI137: 0 | AJ137: 0 | AK137: 0 | AO137: 0 | AP137: 0 | AQ137: 0 | AU137: 0 | AV137: 0 | AW137: 0 | BA137: 0 | BB137: 0 | BC137: 0 | BG137: 0 | BH137: 0 | BI137: 0
A138: ='Data Valid Backing (H)'!AO138 -> 2019-05-18T15:00:00 | B138: 2.726012962 | C138: 0.8812496948 | D138: 4.504267948 | E138: 2.726012962 | F138: 0.8812496948 | G138: 4.504267948 | H138: 3.786008546 | I138: 1.186010829 | J138: 6.26643858 | K138: 1.893004273 | L138: 0.5930054143 | M138: 3.13321929 | N138: 0.2838471053 | O138: -0.2019566179 | P138: 0.7520591255 | Q138: 0.2365392544 | R138: -0.1682971816 | S138: 0.6267159379 | W138: 0 | X138: 0 | Y138: 0 | AC138: 0 | AD138: 0 | AE138: 0 | AI138: 0 | AJ138: 0 | AK138: 0 | AO138: 0 | AP138: 0 | AQ138: 0 | AU138: 0 | AV138: 0 | AW138: 0 | BA138: 0 | BB138: 0 | BC138: 0 | BG138: 0 | BH138: 0 | BI138: 0
A139: ='Data Valid Backing (H)'!AO139 -> 2019-05-18T16:00:00 | B139: 2.846960777 | C139: 1.172127128 | D139: 4.59151305 | E139: 2.846960777 | F139: 1.172127128 | G139: 4.59151305 | H139: 3.769581655 | I139: 1.322917385 | J139: 6.268182683 | K139: 1.884790828 | L139: 0.6614586926 | M139: 3.134091342 | N139: 0.290708431 | O139: -0.1842810992 | P139: 0.7900436238 | Q139: 0.2422570258 | R139: -0.1535675827 | S139: 0.6583696865 | W139: 0 | X139: 0 | Y139: 0 | AC139: 0 | AD139: 0 | AE139: 0 | AI139: 0 | AJ139: 0 | AK139: 0 | AO139: 0 | AP139: 0 | AQ139: 0 | AU139: 0 | AV139: 0 | AW139: 0 | BA139: 0 | BB139: 0 | BC139: 0 | BG139: 0 | BH139: 0 | BI139: 0
A140: ='Data Valid Backing (H)'!AO140 -> 2019-05-18T17:00:00 | B140: 2.872011625 | C140: 1.024104869 | D140: 4.609929783 | E140: 2.872011625 | F140: 1.024104869 | G140: 4.609929783 | H140: 3.611867957 | I140: 1.105403364 | J140: 6.318601671 | K140: 1.805933978 | L140: 0.5527016818 | M140: 3.159300836 | N140: 0.2916843034 | O140: -0.1841893145 | P140: 0.7342335396 | Q140: 0.2430702529 | R140: -0.1534910954 | S140: 0.611861283 | W140: 0 | X140: 0 | Y140: 0 | AC140: 0 | AD140: 0 | AE140: 0 | AI140: 0 | AJ140: 0 | AK140: 0 | AO140: 0 | AP140: 0 | AQ140: 0 | AU140: 0 | AV140: 0 | AW140: 0 | BA140: 0 | BB140: 0 | BC140: 0 | BG140: 0 | BH140: 0 | BI140: 0
A141: ='Data Valid Backing (H)'!AO141 -> 2019-05-18T18:00:00 | B141: 2.748014157 | C141: 0.880354559 | D141: 4.578616061 | E141: 2.748014157 | F141: 0.880354559 | G141: 4.578616061 | H141: 3.398377958 | I141: 0.798157974 | J141: 5.935184565 | K141: 1.699188979 | L141: 0.399078987 | M141: 2.967592283 | N141: 0.2837466106 | O141: -0.1753462447 | P141: 0.771431737 | Q141: 0.2364555088 | R141: -0.1461218706 | S141: 0.6428597809 | W141: 0 | X141: 0 | Y141: 0 | AC141: 0 | AD141: 0 | AE141: 0 | AI141: 0 | AJ141: 0 | AK141: 0 | AO141: 0 | AP141: 0 | AQ141: 0 | AU141: 0 | AV141: 0 | AW141: 0 | BA141: 0 | BB141: 0 | BC141: 0 | BG141: 0 | BH141: 0 | BI141: 0
A142: ='Data Valid Backing (H)'!AO142 -> 2019-05-18T19:00:00 | B142: 2.541683154 | C142: 0.8076635311 | D142: 4.294935666 | E142: 2.541683154 | F142: 0.8076635311 | G142: 4.294935666 | H142: 3.216109089 | I142: 0.7171168933 | J142: 5.615334655 | K142: 1.608054545 | L142: 0.3585584466 | M142: 2.807667327 | N142: 0.2713231875 | O142: -0.2100352363 | P142: 0.7187891277 | Q142: 0.2261026563 | R142: -0.1750293636 | S142: 0.5989909398 | W142: 0 | X142: 0 | Y142: 0 | AC142: 0 | AD142: 0 | AE142: 0 | AI142: 0 | AJ142: 0 | AK142: 0 | AO142: 0 | AP142: 0 | AQ142: 0 | AU142: 0 | AV142: 0 | AW142: 0 | BA142: 0 | BB142: 0 | BC142: 0 | BG142: 0 | BH142: 0 | BI142: 0
A143: ='Data Valid Backing (H)'!AO143 -> 2019-05-18T20:00:00 | B143: 2.359173767 | C143: 0.7360342059 | D143: 4.138764671 | E143: 2.359173767 | F143: 0.7360342059 | G143: 4.138764671 | H143: 3.035651756 | I143: 0.4333044306 | J143: 5.417373977 | K143: 1.517825878 | L143: 0.2166522153 | M143: 2.708686989 | N143: 0.2600563808 | O143: -0.2122970943 | P143: 0.7266140923 | Q143: 0.2167136506 | R143: -0.1769142452 | S143: 0.6055117436 | W143: 0 | X143: 0 | Y143: 0 | AC143: 0 | AD143: 0 | AE143: 0 | AI143: 0 | AJ143: 0 | AK143: 0 | AO143: 0 | AP143: 0 | AQ143: 0 | AU143: 0 | AV143: 0 | AW143: 0 | BA143: 0 | BB143: 0 | BC143: 0 | BG143: 0 | BH143: 0 | BI143: 0
A144: ='Data Valid Backing (H)'!AO144 -> 2019-05-18T21:00:00 | B144: 2.239976545 | C144: 0.5823813401 | D144: 4.012817038 | E144: 2.239976545 | F144: 0.5823813401 | G144: 4.012817038 | H144: 2.743461118 | I144: 0.3418552452 | J144: 5.183129002 | K144: 1.371730559 | L144: 0.1709276226 | M144: 2.591564501 | N144: 0.25088699 | O144: -0.207344775 | P144: 0.783408288 | Q144: 0.2090724916 | R144: -0.1727873125 | S144: 0.65284024 | W144: 0 | X144: 0 | Y144: 0 | AC144: 0 | AD144: 0 | AE144: 0 | AI144: 0 | AJ144: 0 | AK144: 0 | AO144: 0 | AP144: 0 | AQ144: 0 | AU144: 0 | AV144: 0 | AW144: 0 | BA144: 0 | BB144: 0 | BC144: 0 | BG144: 0 | BH144: 0 | BI144: 0
A145: ='Data Valid Backing (H)'!AO145 -> 2019-05-18T22:00:00 | B145: 2.131183278 | C145: 0.4029799227 | D145: 3.805834528 | E145: 2.131183278 | F145: 0.4029799227 | G145: 3.805834528 | H145: 2.284925515 | I145: -0.2415847016 | J145: 4.62406413 | K145: 1.142462757 | L145: -0.1207923508 | M145: 2.312032065 | N145: 0.2404768131 | O145: -0.2295522141 | P145: 0.7311625671 | Q145: 0.2003973443 | R145: -0.1912935118 | S145: 0.6093021393 | W145: 0 | X145: 0 | Y145: 0 | AC145: 0 | AD145: 0 | AE145: 0 | AI145: 0 | AJ145: 0 | AK145: 0 | AO145: 0 | AP145: 0 | AQ145: 0 | AU145: 0 | AV145: 0 | AW145: 0 | BA145: 0 | BB145: 0 | BC145: 0 | BG145: 0 | BH145: 0 | BI145: 0
A146: ='Data Valid Backing (H)'!AO146 -> 2019-05-18T23:00:00 | B146: 1.959665434 | C146: 0.299421095 | D146: 3.694427855 | E146: 1.959665434 | F146: 0.299421095 | G146: 3.694427855 | H146: 1.754479818 | I146: -0.6415826222 | J146: 4.270049816 | K146: 0.8772399092 | L146: -0.3207913111 | M146: 2.135024908 | N146: 0.2266548814 | O146: -0.2763938365 | P146: 0.6937737827 | Q146: 0.1888790678 | R146: -0.2303281971 | S146: 0.5781448189 | W146: 0 | X146: 0 | Y146: 0 | AC146: 0 | AD146: 0 | AE146: 0 | AI146: 0 | AJ146: 0 | AK146: 0 | AO146: 0 | AP146: 0 | AQ146: 0 | AU146: 0 | AV146: 0 | AW146: 0 | BA146: 0 | BB146: 0 | BC146: 0 | BG146: 0 | BH146: 0 | BI146: 0
A147: ='Data Valid Backing (H)'!AO147 -> 2019-05-19 | B147: 1.719722975 | C147: -0.05341100392 | D147: 3.506003193 | E147: 1.719722975 | F147: -0.05341100392 | G147: 3.506003193 | H147: 1.324165895 | I147: -1.30645372 | J147: 3.854361166 | K147: 0.6620829473 | L147: -0.6532268599 | M147: 1.927180583 | N147: 0.2122009347 | O147: -0.2461846772 | P147: 0.682010547 | Q147: 0.1768341123 | R147: -0.2051538977 | S147: 0.5683421225 | W147: 0 | X147: 0 | Y147: 0 | AC147: 0 | AD147: 0 | AE147: 0 | AI147: 0 | AJ147: 0 | AK147: 0 | AO147: 0 | AP147: 0 | AQ147: 0 | AU147: 0 | AV147: 0 | AW147: 0 | BA147: 0 | BB147: 0 | BC147: 0 | BG147: 0 | BH147: 0 | BI147: 0
A148: ='Data Valid Backing (H)'!AO148 -> 2019-05-19T01:00:00 | B148: 1.483314629 | C148: -0.2592048893 | D148: 3.234173371 | E148: 1.483314629 | F148: -0.2592048893 | G148: 3.234173371 | H148: 1.078823692 | I148: -1.512529663 | J148: 3.407716433 | K148: 0.5394118461 | L148: -0.7562648314 | M148: 1.703858216 | N148: 0.202419768 | O148: -0.2817120297 | P148: 0.6691560014 | Q148: 0.16868314 | R148: -0.2347600247 | S148: 0.5576300012 | W148: 0 | X148: 0 | Y148: 0 | AC148: 0 | AD148: 0 | AE148: 0 | AI148: 0 | AJ148: 0 | AK148: 0 | AO148: 0 | AP148: 0 | AQ148: 0 | AU148: 0 | AV148: 0 | AW148: 0 | BA148: 0 | BB148: 0 | BC148: 0 | BG148: 0 | BH148: 0 | BI148: 0
A149: ='Data Valid Backing (H)'!AO149 -> 2019-05-19T02:00:00 | B149: 1.326008847 | C149: -0.341020346 | D149: 3.130787634 | E149: 1.326008847 | F149: -0.341020346 | G149: 3.130787634 | H149: 0.936554929 | I149: -1.423878702 | J149: 3.469572232 | K149: 0.4682774645 | L149: -0.7119393508 | M149: 1.734786116 | N149: 0.1991387321 | O149: -0.2843115305 | P149: 0.7045072507 | Q149: 0.1659489434 | R149: -0.2369262754 | S149: 0.5870893755 | W149: 0 | X149: 0 | Y149: 0 | AC149: 0 | AD149: 0 | AE149: 0 | AI149: 0 | AJ149: 0 | AK149: 0 | AO149: 0 | AP149: 0 | AQ149: 0 | AU149: 0 | AV149: 0 | AW149: 0 | BA149: 0 | BB149: 0 | BC149: 0 | BG149: 0 | BH149: 0 | BI149: 0
A150: ='Data Valid Backing (H)'!AO150 -> 2019-05-19T03:00:00 | B150: 1.252427232 | C150: -0.5712619895 | D150: 2.889148003 | E150: 1.252427232 | F150: -0.5712619895 | G150: 2.889148003 | H150: 0.7543498654 | I150: -1.668512593 | J150: 3.150594519 | K150: 0.3771749327 | L150: -0.8342562964 | M150: 1.575297259 | N150: 0.1981594002 | O150: -0.3274190459 | P150: 0.6768131697 | Q150: 0.1651328335 | R150: -0.2728492049 | S150: 0.5640109748 | W150: 0 | X150: 0 | Y150: 0 | AC150: 0 | AD150: 0 | AE150: 0 | AI150: 0 | AJ150: 0 | AK150: 0 | AO150: 0 | AP150: 0 | AQ150: 0 | AU150: 0 | AV150: 0 | AW150: 0 | BA150: 0 | BB150: 0 | BC150: 0 | BG150: 0 | BH150: 0 | BI150: 0
A151: ='Data Valid Backing (H)'!AO151 -> 2019-05-19T04:00:00 | B151: 1.20502167 | C151: -0.4356389091 | D151: 2.999293854 | E151: 1.20502167 | F151: -0.4356389091 | G151: 2.999293854 | H151: 0.52381921 | I151: -2.073974508 | J151: 2.958746142 | K151: 0.261909605 | L151: -1.036987254 | M151: 1.479373071 | N151: 0.1938625039 | O151: -0.2865792842 | P151: 0.6723609096 | Q151: 0.1615520866 | R151: -0.2388160701 | S151: 0.560300758 | W151: 0 | X151: 0 | Y151: 0 | AC151: 0 | AD151: 0 | AE151: 0 | AI151: 0 | AJ151: 0 | AK151: 0 | AO151: 0 | AP151: 0 | AQ151: 0 | AU151: 0 | AV151: 0 | AW151: 0 | BA151: 0 | BB151: 0 | BC151: 0 | BG151: 0 | BH151: 0 | BI151: 0
A152: ='Data Valid Backing (H)'!AO152 -> 2019-05-19T05:00:00 | B152: 1.149120473 | C152: -0.5580237878 | D152: 2.929625616 | E152: 1.149120473 | F152: -0.5580237878 | G152: 2.929625616 | H152: 0.4506357426 | I152: -2.115573585 | J152: 2.776186694 | K152: 0.2253178713 | L152: -1.057786792 | M152: 1.388093347 | N152: 0.1868137801 | O152: -0.3286895908 | P152: 0.6854973392 | Q152: 0.1556781501 | R152: -0.2739079923 | S152: 0.5712477827 | W152: 0 | X152: 0 | Y152: 0 | AC152: 0 | AD152: 0 | AE152: 0 | AI152: 0 | AJ152: 0 | AK152: 0 | AO152: 0 | AP152: 0 | AQ152: 0 | AU152: 0 | AV152: 0 | AW152: 0 | BA152: 0 | BB152: 0 | BC152: 0 | BG152: 0 | BH152: 0 | BI152: 0
A153: ='Data Valid Backing (H)'!AO153 -> 2019-05-19T06:00:00 | B153: 1.14042979 | C153: -0.64345768 | D153: 2.856022668 | E153: 1.14042979 | F153: -0.64345768 | G153: 2.856022668 | H153: 0.8077870284 | I153: -1.507850088 | J153: 3.332612033 | K153: 0.4038935142 | L153: -0.7539250442 | M153: 1.666306016 | N153: 0.186094481 | O153: -0.2819244533 | P153: 0.6760496483 | Q153: 0.1550787342 | R153: -0.2349370444 | S153: 0.5633747069 | W153: 0 | X153: 0 | Y153: 0 | AC153: 0 | AD153: 0 | AE153: 0 | AI153: 0 | AJ153: 0 | AK153: 0 | AO153: 0 | AP153: 0 | AQ153: 0 | AU153: 0 | AV153: 0 | AW153: 0 | BA153: 0 | BB153: 0 | BC153: 0 | BG153: 0 | BH153: 0 | BI153: 0
A154: ='Data Valid Backing (H)'!AO154 -> 2019-05-19T07:00:00 | B154: 1.291729536 | C154: -0.4489870484 | D154: 3.013872253 | E154: 1.291729536 | F154: -0.4489870484 | G154: 3.013872253 | H154: 1.673865483 | I154: -0.8788437464 | J154: 4.039335676 | K154: 0.8369327416 | L154: -0.4394218732 | M154: 2.019667838 | N154: 0.2024934202 | O154: -0.2955557855 | P154: 0.7172509034 | Q154: 0.1687445168 | R154: -0.2462964879 | S154: 0.5977090861 | W154: 0 | X154: 0 | Y154: 0 | AC154: 0 | AD154: 0 | AE154: 0 | AI154: 0 | AJ154: 0 | AK154: 0 | AO154: 0 | AP154: 0 | AQ154: 0 | AU154: 0 | AV154: 0 | AW154: 0 | BA154: 0 | BB154: 0 | BC154: 0 | BG154: 0 | BH154: 0 | BI154: 0
A155: ='Data Valid Backing (H)'!AO155 -> 2019-05-19T08:00:00 | B155: 1.657578138 | C155: -0.1214629869 | D155: 3.470182911 | E155: 1.657578138 | F155: -0.1214629869 | G155: 3.470182911 | H155: 2.797755554 | I155: 0.324229207 | J155: 5.249631617 | K155: 1.398877777 | L155: 0.1621146035 | M155: 2.624815808 | N155: 0.2378025809 | O155: -0.265417821 | P155: 0.7290976471 | Q155: 0.1981688174 | R155: -0.2211815175 | S155: 0.6075813726 | W155: 0 | X155: 0 | Y155: 0 | AC155: 0 | AD155: 0 | AE155: 0 | AI155: 0 | AJ155: 0 | AK155: 0 | AO155: 0 | AP155: 0 | AQ155: 0 | AU155: 0 | AV155: 0 | AW155: 0 | BA155: 0 | BB155: 0 | BC155: 0 | BG155: 0 | BH155: 0 | BI155: 0
A156: ='Data Valid Backing (H)'!AO156 -> 2019-05-19T09:00:00 | B156: 2.147559758 | C156: 0.4369672811 | D156: 3.783912996 | E156: 2.147559758 | F156: 0.4369672811 | G156: 3.783912996 | H156: 3.733950331 | I156: 1.292788597 | J156: 6.201484503 | K156: 1.866975165 | L156: 0.6463942984 | M156: 3.100742251 | N156: 0.2802530769 | O156: -0.2110867654 | P156: 0.7710754802 | Q156: 0.2335442307 | R156: -0.1759056378 | S156: 0.6425629002 | W156: 0 | X156: 0 | Y156: 0 | AC156: 0 | AD156: 0 | AE156: 0 | AI156: 0 | AJ156: 0 | AK156: 0 | AO156: 0 | AP156: 0 | AQ156: 0 | AU156: 0 | AV156: 0 | AW156: 0 | BA156: 0 | BB156: 0 | BC156: 0 | BG156: 0 | BH156: 0 | BI156: 0
A157: ='Data Valid Backing (H)'!AO157 -> 2019-05-19T10:00:00 | B157: 2.563529746 | C157: 0.8268075564 | D157: 4.333645564 | E157: 2.563529746 | F157: 0.8268075564 | G157: 4.333645564 | H157: 4.150593924 | I157: 1.734120623 | J157: 6.634972819 | K157: 2.075296962 | L157: 0.8670603117 | M157: 3.31748641 | N157: 0.3113743244 | O157: -0.1814907921 | P157: 0.8047062608 | Q157: 0.2594786037 | R157: -0.1512423267 | S157: 0.6705885507 | W157: 0 | X157: 0 | Y157: 0 | AC157: 0 | AD157: 0 | AE157: 0 | AI157: 0 | AJ157: 0 | AK157: 0 | AO157: 0 | AP157: 0 | AQ157: 0 | AU157: 0 | AV157: 0 | AW157: 0 | BA157: 0 | BB157: 0 | BC157: 0 | BG157: 0 | BH157: 0 | BI157: 0
A158: ='Data Valid Backing (H)'!AO158 -> 2019-05-19T11:00:00 | B158: 2.742402172 | C158: 0.9672458277 | D158: 4.428274564 | E158: 2.742402172 | F158: 0.9672458277 | G158: 4.428274564 | H158: 4.051866623 | I158: 1.39774538 | J158: 6.53673869 | K158: 2.025933312 | L158: 0.6988726899 | M158: 3.268369345 | N158: 0.3192598076 | O158: -0.1440321274 | P158: 0.7928588094 | Q158: 0.2660498397 | R158: -0.1200267728 | S158: 0.6607156745 | W158: 0 | X158: 0 | Y158: 0 | AC158: 0 | AD158: 0 | AE158: 0 | AI158: 0 | AJ158: 0 | AK158: 0 | AO158: 0 | AP158: 0 | AQ158: 0 | AU158: 0 | AV158: 0 | AW158: 0 | BA158: 0 | BB158: 0 | BC158: 0 | BG158: 0 | BH158: 0 | BI158: 0
A159: ='Data Valid Backing (H)'!AO159 -> 2019-05-19T12:00:00 | B159: 2.681661731 | C159: 0.9763686592 | D159: 4.478358687 | E159: 2.681661731 | F159: 0.9763686592 | G159: 4.478358687 | H159: 3.73068395 | I159: 1.35482186 | J159: 6.463230572 | K159: 1.865341975 | L159: 0.6774109302 | M159: 3.231615286 | N159: 0.3070436649 | O159: -0.2054944379 | P159: 0.7761372162 | Q159: 0.2558697207 | R159: -0.1712453649 | S159: 0.6467810135 | W159: 0 | X159: 0 | Y159: 0 | AC159: 0 | AD159: 0 | AE159: 0 | AI159: 0 | AJ159: 0 | AK159: 0 | AO159: 0 | AP159: 0 | AQ159: 0 | AU159: 0 | AV159: 0 | AW159: 0 | BA159: 0 | BB159: 0 | BC159: 0 | BG159: 0 | BH159: 0 | BI159: 0
A160: ='Data Valid Backing (H)'!AO160 -> 2019-05-19T13:00:00 | B160: 2.533542249 | C160: 0.8405778844 | D160: 4.286975938 | E160: 2.533542249 | F160: 0.8405778844 | G160: 4.286975938 | H160: 3.507708918 | I160: 1.094225238 | J160: 5.929044585 | K160: 1.753854459 | L160: 0.5471126192 | M160: 2.964522292 | N160: 0.2893614299 | O160: -0.1995839334 | P160: 0.7867942466 | Q160: 0.2411345249 | R160: -0.1663199445 | S160: 0.6556618722 | W160: 0 | X160: 0 | Y160: 0 | AC160: 0 | AD160: 0 | AE160: 0 | AI160: 0 | AJ160: 0 | AK160: 0 | AO160: 0 | AP160: 0 | AQ160: 0 | AU160: 0 | AV160: 0 | AW160: 0 | BA160: 0 | BB160: 0 | BC160: 0 | BG160: 0 | BH160: 0 | BI160: 0
A161: ='Data Valid Backing (H)'!AO161 -> 2019-05-19T14:00:00 | B161: 2.471380366 | C161: 0.6279494836 | D161: 4.250499999 | E161: 2.471380366 | F161: 0.6279494836 | G161: 4.250499999 | H161: 3.493386233 | I161: 1.253184522 | J161: 5.882928814 | K161: 1.746693116 | L161: 0.6265922609 | M161: 2.941464407 | N161: 0.2801413314 | O161: -0.1967009955 | P161: 0.7556123604 | Q161: 0.2334511095 | R161: -0.1639174963 | S161: 0.629676967 | W161: 0 | X161: 0 | Y161: 0 | AC161: 0 | AD161: 0 | AE161: 0 | AI161: 0 | AJ161: 0 | AK161: 0 | AO161: 0 | AP161: 0 | AQ161: 0 | AU161: 0 | AV161: 0 | AW161: 0 | BA161: 0 | BB161: 0 | BC161: 0 | BG161: 0 | BH161: 0 | BI161: 0
A162: ='Data Valid Backing (H)'!AO162 -> 2019-05-19T15:00:00 | B162: 2.547683621 | C162: 0.9418628957 | D162: 4.322716397 | E162: 2.547683621 | F162: 0.9418628957 | G162: 4.322716397 | H162: 3.567074289 | I162: 1.095436908 | J162: 6.02458808 | K162: 1.783537145 | L162: 0.5477184541 | M162: 3.01229404 | N162: 0.282443165 | O162: -0.1981468819 | P162: 0.754398005 | Q162: 0.2353693041 | R162: -0.1651224015 | S162: 0.6286650042 | W162: 0 | X162: 0 | Y162: 0 | AC162: 0 | AD162: 0 | AE162: 0 | AI162: 0 | AJ162: 0 | AK162: 0 | AO162: 0 | AP162: 0 | AQ162: 0 | AU162: 0 | AV162: 0 | AW162: 0 | BA162: 0 | BB162: 0 | BC162: 0 | BG162: 0 | BH162: 0 | BI162: 0
A163: ='Data Valid Backing (H)'!AO163 -> 2019-05-19T16:00:00 | B163: 2.667909289 | C163: 0.9624431831 | D163: 4.412853114 | E163: =(B163*$E$1)/60 -> 2.667909289 | F163: =(C163*$E$1)/60 -> 0.9624431831 | G163: =(D163*$E$1)/60 -> 4.412853114 | H163: 3.553254525 | I163: 1.015619631 | J163: 6.050233457 | K163: 1.776627263 | L163: 0.5078098153 | M163: 3.025116729 | N163: 0.2885390771 | O163: -0.2048717877 | P163: 0.7747723662 | Q163: 0.240449231 | R163: -0.1707264897 | S163: 0.6456436385 | W163: 0 | X163: 0 | Y163: 0 | AC163: 0 | AD163: 0 | AE163: 0 | AI163: 0 | AJ163: 0 | AK163: 0 | AO163: 0 | AP163: 0 | AQ163: 0 | AU163: 0 | AV163: 0 | AW163: 0 | BA163: 0 | BB163: 0 | BC163: 0 | BG163: 0 | BH163: 0 | BI163: 0
A164: ='Data Valid Backing (H)'!AO164 -> 2019-05-19T17:00:00 | B164: 2.693862923 | C164: 0.930484764 | D164: 4.473222414 | E164: 2.693862923 | F164: 0.930484764 | G164: 4.473222414 | H164: 3.400292469 | I164: 0.9492209703 | J164: 5.855975368 | K164: 1.700146235 | L164: 0.4746104852 | M164: 2.927987684 | N164: 0.2887526869 | O164: -0.2088502072 | P164: 0.8003252786 | Q164: 0.2406272391 | R164: -0.1740418393 | S164: 0.6669377321 | W164: 0 | X164: 0 | Y164: 0 | AC164: 0 | AD164: 0 | AE164: 0 | AI164: 0 | AJ164: 0 | AK164: 0 | AO164: 0 | AP164: 0 | AQ164: 0 | AU164: 0 | AV164: 0 | AW164: 0 | BA164: 0 | BB164: 0 | BC164: 0 | BG164: 0 | BH164: 0 | BI164: 0
A165: ='Data Valid Backing (H)'!AO165 -> 2019-05-19T18:00:00 | B165: 2.572376803 | C165: 0.8462907447 | D165: 4.330688203 | E165: 2.572376803 | F165: 0.8462907447 | G165: 4.330688203 | H165: 3.193571241 | I165: 0.7410776087 | J165: 5.621710827 | K165: 1.59678562 | L165: 0.3705388044 | M165: 2.810855413 | N165: 0.2800580228 | O165: -0.1866979842 | P165: 0.7667253548 | Q165: 0.2333816857 | R165: -0.1555816535 | S165: 0.6389377957 | W165: 0 | X165: 0 | Y165: 0 | AC165: 0 | AD165: 0 | AE165: 0 | AI165: 0 | AJ165: 0 | AK165: 0 | AO165: 0 | AP165: 0 | AQ165: 0 | AU165: 0 | AV165: 0 | AW165: 0 | BA165: 0 | BB165: 0 | BC165: 0 | BG165: 0 | BH165: 0 | BI165: 0
A166: ='Data Valid Backing (H)'!AO166 -> 2019-05-19T19:00:00 | B166: 2.370132454 | C166: 0.675831613 | D166: 4.09367037 | E166: 2.370132454 | F166: 0.675831613 | G166: 4.09367037 | H166: 3.019939641 | I166: 0.6368400198 | J166: 5.350160705 | K166: 1.50996982 | L166: 0.3184200099 | M166: 2.675080352 | N166: 0.2668849077 | O166: -0.1942817795 | P166: 0.7528488133 | Q166: 0.2224040898 | R166: -0.1619014829 | S166: 0.627374011 | W166: 0 | X166: 0 | Y166: 0 | AC166: 0 | AD166: 0 | AE166: 0 | AI166: 0 | AJ166: 0 | AK166: 0 | AO166: 0 | AP166: 0 | AQ166: 0 | AU166: 0 | AV166: 0 | AW166: 0 | BA166: 0 | BB166: 0 | BC166: 0 | BG166: 0 | BH166: 0 | BI166: 0
A167: ='Data Valid Backing (H)'!AO167 -> 2019-05-19T20:00:00 | B167: 2.193235309 | C167: 0.3546960933 | D167: 4.115184106 | E167: 2.193235309 | F167: 0.3546960933 | G167: 4.115184106 | H167: 2.849820229 | I167: 0.4533422552 | J167: 5.377982283 | K167: 1.424910115 | L167: 0.2266711276 | M167: 2.688991141 | N167: 0.2548775461 | O167: -0.2003767598 | P167: 0.7171349973 | Q167: 0.2123979551 | R167: -0.1669806331 | S167: 0.5976124978 | W167: 0 | X167: 0 | Y167: 0 | AC167: 0 | AD167: 0 | AE167: 0 | AI167: 0 | AJ167: 0 | AK167: 0 | AO167: 0 | AP167: 0 | AQ167: 0 | AU167: 0 | AV167: 0 | AW167: 0 | BA167: 0 | BB167: 0 | BC167: 0 | BG167: 0 | BH167: 0 | BI167: 0
A168: ='Data Valid Backing (H)'!AO168 -> 2019-05-19T21:00:00 | B168: 2.081110362 | C168: 0.2240078732 | D168: 3.875639449 | E168: 2.081110362 | F168: 0.2240078732 | G168: 3.875639449 | H168: 2.569483356 | I168: 0.2557235644 | J168: 5.143024799 | K168: 1.284741678 | L168: 0.1278617822 | M168: 2.571512399 | N168: 0.244978491 | O168: -0.2180717748 | P168: 0.7266065401 | Q168: 0.2041487425 | R168: -0.181726479 | S168: 0.6055054501 | W168: 0 | X168: 0 | Y168: 0 | AC168: 0 | AD168: 0 | AE168: 0 | AI168: 0 | AJ168: 0 | AK168: 0 | AO168: 0 | AP168: 0 | AQ168: 0 | AU168: 0 | AV168: 0 | AW168: 0 | BA168: 0 | BB168: 0 | BC168: 0 | BG168: 0 | BH168: 0 | BI168: 0
A169: ='Data Valid Backing (H)'!AO169 -> 2019-05-19T22:00:00 | B169: 1.980768802 | C169: 0.2167099735 | D169: 3.667810825 | E169: 1.980768802 | F169: 0.2167099735 | G169: 3.667810825 | H169: 2.124118019 | I169: -0.251900423 | J169: 4.638909309 | K169: 1.06205901 | L169: -0.1259502115 | M169: 2.319454655 | N169: 0.2338512158 | O169: -0.2417964682 | P169: 0.7115311513 | Q169: 0.1948760132 | R169: -0.2014970568 | S169: 0.592942626 | W169: 0 | X169: 0 | Y169: 0 | AC169: 0 | AD169: 0 | AE169: 0 | AI169: 0 | AJ169: 0 | AK169: 0 | AO169: 0 | AP169: 0 | AQ169: 0 | AU169: 0 | AV169: 0 | AW169: 0 | BA169: 0 | BB169: 0 | BC169: 0 | BG169: 0 | BH169: 0 | BI169: 0
A170: ='Data Valid Backing (H)'!AO170 -> 2019-05-19T23:00:00 | B170: 1.81898742 | C170: 0.01906318678 | D170: 3.461512665 | E170: 1.81898742 | F170: 0.01906318678 | G170: 3.461512665 | H170: 1.607947815 | I170: -0.8792020769 | J170: 4.127499722 | K170: 0.8039739076 | L170: -0.4396010384 | M170: 2.063749861 | N170: 0.2193263771 | O170: -0.252005755 | P170: 0.6998881318 | Q170: 0.1827719809 | R170: -0.2100047958 | S170: 0.5832401098 | W170: 0 | X170: 0 | Y170: 0 | AC170: 0 | AD170: 0 | AE170: 0 | AI170: 0 | AJ170: 0 | AK170: 0 | AO170: 0 | AP170: 0 | AQ170: 0 | AU170: 0 | AV170: 0 | AW170: 0 | BA170: 0 | BB170: 0 | BC170: 0 | BG170: 0 | BH170: 0 | BI170: 0

Sheet Data Valid Backing (H) (hidden)
A1: This sheet holds the lists for datavalidation used throughout the model. | BH1: =COLUMN(BH1) -> 60
A2: Setup - Strata | C2: Setup - Provider Name | E2: Demand Analysis - Stream Type | F2: Minutes/Stream | G2: Priority | H2: General - Hours | I2: General - Hours to integer | J2: General - Hour Range | L2: Capacity - Productivity - Role Types | N2: Capacity - Shift Config - Shift Names | P2: Capacity - CDMH - Days of Week | S2: Setup - Stream Priorities Tables | AM2: Capacity - CDMH - Stream Selection | AO2: Demand - Forecasting date/times | AQ2: Demand - Dates | AS2: Summary - Days | AU2: Demand Analysis - View type selection | AW2: Forecasted dates | AZ2: Forecasted dates (formatted) | BD2: Rota Type | BF2: Parameter Type | BH2: Export Data Dates List | BJ2: Capacity - Resource Type | BL2: Summary - Clear queue | BN2: Summary - Stream List | BP2: Q Builder - Stream List | BR2: Parameters - Stream List
A3: 1 | C3: 2GETHER NHS FOUNDATION TRUST | E3: =Setup!E15 -> Majors | F3: =Demand!G8 -> 60 | G3: =Setup!F15 -> 2 | H3: 00:00:00 | I3: =HOUR(H3) -> 00:00:00 | J3: 00:00 - 00:59 | L3: Shift Unfilled | N3: Shift Unfilled | P3: Monday | Q3: 1 | S3: List1 | T3: List2 | U3: List2BlanksRemoved | V3: List3 | W3: List3BR | X3: List4 | Y3: List4BR | Z3: List5 | AA3: List5BR | AB3: List6 | AC3: List6BR | AD3: List7 | AE3: List7BR | AF3: List8 | AG3: List8BR | AH3: List9 | AI3: List9BR | AJ3: List10 | AK3: List10BR | AM3: Average | AO3: =ROUNDUP(Demand!E2+Demand!E3+(Demand!A5/24),0) -> 2019-05-13 | AQ3: =ROUNDDOWN(MIN('Imported Demand (H)'!A3:A170),0) -> 2019-05-13 | AS3: =TEXT(Summary!$C$4,"DDDD") -> Monday | AU3: Attendances | AW3: =TEXT(AO3,"DDDD") -> Monday | AX3: =TIME(HOUR(AO3),MINUTE(AO3),0) -> 00:00:00 | AZ3: =IFERROR(INDEX($AQ$3:$AS$9,MATCH(BA3,$AS$3:$AS$9,0),1),"") -> 2019-05-13 | BA3: =AW3 -> Monday | BB3: =AX3 -> 00:00:00 | BD3: Planned Rota | BF3: Attendances | BH3: =Demand!E2+Demand!E3 -> 2017-02-27 | BJ3: Core | BL3: Never | BN3: Total | BP3: =Setup!E15 -> Majors | BR3: All
A4: 2 | C4: AINTREE UNIVERSITY HOSPITAL NHS FOUNDATION TRUST | E4: =Setup!E16 -> Minors | F4: =Demand!H8 -> 30 | G4: =Setup!F16 -> 3 | H4: 01:00:00 | I4: =HOUR(H4) -> 1 | J4: 01:00 - 01:59 | L4: ='Capacity - Role Config'!B11 -> Cons Resus | N4: ='Capacity - Shift Config'!B5& " ("&TEXT('Capacity - Shift Config'!C5,"hh:mm")&" - "&TEXT('Capacity - Shift Config'!D5,"hh:mm")&")" -> All day (08:00 - 21:00) | P4: Tuesday | Q4: 2 | S4: 1 | T4: =IF(S4<>$S$17,S4,"") -> 1 | U4: =IFERROR(INDEX($T$4:$T$13,SMALL((IF(LEN($T$4:$T$13),ROW(INDIRECT("1:"&ROWS($T$4:$T$13))))),ROW(A1:A10)),1),"") -> 1 | V4: =IF(T4<>$T$17,T4,"") -> 1 | W4: =IFERROR(INDEX($V$4:$V$13,SMALL((IF(LEN($V$4:$V$13),ROW(INDIRECT("1:"&ROWS($V$4:$V$13))))),ROW(A1:A10)),1),"") -> 1 | X4: =IF(V4<>$V$17,V4,"") ->  | Y4: =IFERROR(INDEX($X$4:$X$13,SMALL((IF(LEN($X$4:$X$13),ROW(INDIRECT("1:"&ROWS($X$4:$X$13))))),ROW(A1:A10)),1),"") -> 4 | Z4: =IF(X4<>$X$17,X4,"") ->  | AA4: =IFERROR(INDEX($Z$4:$Z$13,SMALL((IF(LEN($Z$4:$Z$13),ROW(INDIRECT("1:"&ROWS($Z$4:$Z$13))))),ROW(A1:A10)),1),"") -> 4 | AB4: =IF(Z4<>$Z$17,Z4,"") ->  | AC4: =IFERROR(INDEX($AB$4:$AB$13,SMALL((IF(LEN($AB$4:$AB$13),ROW(INDIRECT("1:"&ROWS($AB$4:$AB$13))))),ROW(A1:A10)),1),"") -> 4 | AD4: =IF(AB4<>$AB$17,AB4,"") ->  | AE4: =IFERROR(INDEX($AD$4:$AD$13,SMALL((IF(LEN($AD$4:$AD$13),ROW(INDIRECT("1:"&ROWS($AD$4:$AD$13))))),ROW(A1:A10)),1),"") -> 4 | AF4: =IF(AD4<>$AD$17,AD4,"") ->  | AG4: =IFERROR(INDEX($AF$4:$AF$13,SMALL((IF(LEN($AF$4:$AF$13),ROW(INDIRECT("1:"&ROWS($AF$4:$AF$13))))),ROW(A1:A10)),1),"") -> 4 | AH4: =IF(AF4<>$AF$17,AF4,"") ->  | AI4: =IFERROR(INDEX($AH$4:$AH$13,SMALL((IF(LEN($AH$4:$AH$13),ROW(INDIRECT("1:"&ROWS($AH$4:$AH$13))))),ROW(A1:A10)),1),"") -> 4 | AJ4: =IF(AH4<>$AH$17,AH4,"") ->  | AK4: =IFERROR(INDEX($AJ$4:$AJ$13,SMALL((IF(LEN($AJ$4:$AJ$13),ROW(INDIRECT("1:"&ROWS($AJ$4:$AJ$13))))),ROW(A1:A10)),1),"") -> 4 | AM4: =IF(ISBLANK(Setup!E15),"",Setup!E15) -> Majors | AO4: =AO3+1/24 -> 2019-05-13T01:00:00 | AQ4: =AQ3+1 -> 2019-05-14 | AS4: =TEXT(Summary!$C$4+ROW(A1),"DDDD") -> Tuesday | AU4: Decision Making Time - Hours | AW4: =TEXT(AO4,"DDDD") -> Monday | AX4: =TIME(HOUR(AO4),MINUTE(AO4),0) -> 01:00:00 | AZ4: =IFERROR(INDEX($AQ$3:$AS$9,MATCH(BA4,$AS$3:$AS$9,0),1),"") ->  | BA4: =IF(BB4=0,AW4,"") ->  | BB4: =AX4 -> 01:00:00 | BD4: Strategic Rota | BF4: Required decision making time | BH4: =BH3+1/24 -> 2017-02-27T01:00:00 | BJ4: Ad-hoc | BL4: 00:00:00 | BN4: =Setup!E15 -> Majors | BP4: =Setup!E16 -> Minors | BR4: =Setup!E15 -> Majors | BU4: 00:00:00
A5: 3 | C5: AIREDALE NHS FOUNDATION TRUST | E5: =Setup!E17 -> Resus | F5: =Demand!I8 -> 50 | G5: =Setup!F17 -> 1 | H5: 02:00:00 | I5: 2 | J5: 02:00 - 02:59 | L5: ='Capacity - Role Config'!B12 -> Cons Majors | N5: ='Capacity - Shift Config'!B6& " ("&TEXT('Capacity - Shift Config'!C6,"hh:mm")&" - "&TEXT('Capacity - Shift Config'!D6,"hh:mm")&")" -> Early (06:00 - 18:00) | P5: Wednesday | Q5: 3 | S5: 2 | T5: =IF(S5<>$S$17,S5,"") ->  | U5: =IFERROR(INDEX($T$4:$T$13,SMALL((IF(LEN($T$4:$T$13),ROW(INDIRECT("1:"&ROWS($T$4:$T$13))))),ROW(A2:A11)),1),"") -> 3 | V5: =IF(T5<>$T$17,T5,"") ->  | W5: =IFERROR(INDEX($V$4:$V$13,SMALL((IF(LEN($V$4:$V$13),ROW(INDIRECT("1:"&ROWS($V$4:$V$13))))),ROW(A2:A11)),1),"") -> 4 | X5: =IF(V5<>$V$17,V5,"") ->  | Y5: =IFERROR(INDEX($X$4:$X$13,SMALL((IF(LEN($X$4:$X$13),ROW(INDIRECT("1:"&ROWS($X$4:$X$13))))),ROW(A2:A11)),1),"") -> 5 | Z5: =IF(X5<>$X$17,X5,"") ->  | AA5: =IFERROR(INDEX($Z$4:$Z$13,SMALL((IF(LEN($Z$4:$Z$13),ROW(INDIRECT("1:"&ROWS($Z$4:$Z$13))))),ROW(A2:A11)),1),"") -> 5 | AB5: =IF(Z5<>$Z$17,Z5,"") ->  | AC5: =IFERROR(INDEX($AB$4:$AB$13,SMALL((IF(LEN($AB$4:$AB$13),ROW(INDIRECT("1:"&ROWS($AB$4:$AB$13))))),ROW(A2:A11)),1),"") -> 5 | AD5: =IF(AB5<>$AB$17,AB5,"") ->  | AE5: =IFERROR(INDEX($AD$4:$AD$13,SMALL((IF(LEN($AD$4:$AD$13),ROW(INDIRECT("1:"&ROWS($AD$4:$AD$13))))),ROW(A2:A11)),1),"") -> 5 | AF5: =IF(AD5<>$AD$17,AD5,"") ->  | AG5: =IFERROR(INDEX($AF$4:$AF$13,SMALL((IF(LEN($AF$4:$AF$13),ROW(INDIRECT("1:"&ROWS($AF$4:$AF$13))))),ROW(A2:A11)),1),"") -> 5 | AH5: =IF(AF5<>$AF$17,AF5,"") ->  | AI5: =IFERROR(INDEX($AH$4:$AH$13,SMALL((IF(LEN($AH$4:$AH$13),ROW(INDIRECT("1:"&ROWS($AH$4:$AH$13))))),ROW(A2:A11)),1),"") -> 5 | AJ5: =IF(AH5<>$AH$17,AH5,"") ->  | AK5: =IFERROR(INDEX($AJ$4:$AJ$13,SMALL((IF(LEN($AJ$4:$AJ$13),ROW(INDIRECT("1:"&ROWS($AJ$4:$AJ$13))))),ROW(A2:A11)),1),"") -> 5 | AM5: =IF(ISBLANK(Setup!E16),"",Setup!E16) -> Minors | AO5: =AO4+1/24 -> 2019-05-13T02:00:00 | AQ5: 2019-05-15 | AS5: =TEXT(Summary!$C$4+ROW(A2),"DDDD") -> Wednesday | AW5: Monday | AX5: 02:00:00 | BB5: 02:00:00 | BH5: =BH4+1/24 -> 2017-02-27T02:00:00 | BL5: 01:00:00 | BN5: =Setup!E16 -> Minors | BP5: =Setup!E17 -> Resus | BR5: =Setup!E16 -> Minors | BU5: =BU4+1/24 -> 01:00:00
A6: 4 | C6: ALDER HEY CHILDREN'S NHS FOUNDATION TRUST | E6: =Setup!E18 -> 0 | F6: =Demand!J8 -> 0 | G6: =Setup!F18 -> 0 | H6: 03:00:00 | I6: 3 | J6: 03:00 - 03:59 | L6: ='Capacity - Role Config'!B13 -> Cons Minors | N6: ='Capacity - Shift Config'!B7& " ("&TEXT('Capacity - Shift Config'!C7,"hh:mm")&" - "&TEXT('Capacity - Shift Config'!D7,"hh:mm")&")" -> Late (10:00 - 22:00) | P6: Thursday | Q6: 4 | S6: 3 | T6: 3 | U6: =IFERROR(INDEX($T$4:$T$13,SMALL((IF(LEN($T$4:$T$13),ROW(INDIRECT("1:"&ROWS($T$4:$T$13))))),ROW(A3:A12)),1),"") -> 4 | W6: =IFERROR(INDEX($V$4:$V$13,SMALL((IF(LEN($V$4:$V$13),ROW(INDIRECT("1:"&ROWS($V$4:$V$13))))),ROW(A3:A12)),1),"") -> 5 | Y6: =IFERROR(INDEX($X$4:$X$13,SMALL((IF(LEN($X$4:$X$13),ROW(INDIRECT("1:"&ROWS($X$4:$X$13))))),ROW(A3:A12)),1),"") -> 6 | AA6: =IFERROR(INDEX($Z$4:$Z$13,SMALL((IF(LEN($Z$4:$Z$13),ROW(INDIRECT("1:"&ROWS($Z$4:$Z$13))))),ROW(A3:A12)),1),"") -> 6 | AC6: =IFERROR(INDEX($AB$4:$AB$13,SMALL((IF(LEN($AB$4:$AB$13),ROW(INDIRECT("1:"&ROWS($AB$4:$AB$13))))),ROW(A3:A12)),1),"") -> 6 | AE6: =IFERROR(INDEX($AD$4:$AD$13,SMALL((IF(LEN($AD$4:$AD$13),ROW(INDIRECT("1:"&ROWS($AD$4:$AD$13))))),ROW(A3:A12)),1),"") -> 6 | AG6: =IFERROR(INDEX($AF$4:$AF$13,SMALL((IF(LEN($AF$4:$AF$13),ROW(INDIRECT("1:"&ROWS($AF$4:$AF$13))))),ROW(A3:A12)),1),"") -> 6 | AI6: =IFERROR(INDEX($AH$4:$AH$13,SMALL((IF(LEN($AH$4:$AH$13),ROW(INDIRECT("1:"&ROWS($AH$4:$AH$13))))),ROW(A3:A12)),1),"") -> 6 | AK6: =IFERROR(INDEX($AJ$4:$AJ$13,SMALL((IF(LEN($AJ$4:$AJ$13),ROW(INDIRECT("1:"&ROWS($AJ$4:$AJ$13))))),ROW(A3:A12)),1),"") -> 6 | AM6: =IF(ISBLANK(Setup!E17),"",Setup!E17) -> Resus | AO6: 2019-05-13T03:00:00 | AQ6: 2019-05-16 | AS6: =TEXT(Summary!$C$4+ROW(A3),"DDDD") -> Thursday | AW6: Monday | AX6: 03:00:00 | BB6: 03:00:00 | BH6: 2017-02-27T03:00:00 | BL6: 02:00:00 | BN6: =Setup!E17 -> Resus | BP6: =Setup!E18 -> 0 | BR6: =Setup!E17 -> Resus | BU6: =BU5+1/24 -> 02:00:00
A7: 5 | C7: ASHFORD AND ST PETER'S HOSPITALS NHS FOUNDATION TRUST | E7: =Setup!E19 -> 0 | F7: =Demand!K8 -> 0 | G7: =Setup!F19 -> 0 | H7: 04:00:00 | I7: 4 | J7: 04:00 - 04:59 | L7: ='Capacity - Role Config'!B14 -> Cons Flex | N7: ='Capacity - Shift Config'!B8& " ("&TEXT('Capacity - Shift Config'!C8,"hh:mm")&" - "&TEXT('Capacity - Shift Config'!D8,"hh:mm")&")" -> Overnight (21:00 - 07:00) | P7: Friday | Q7: 5 | S7: 4 | T7: 4 | U7: =IFERROR(INDEX($T$4:$T$13,SMALL((IF(LEN($T$4:$T$13),ROW(INDIRECT("1:"&ROWS($T$4:$T$13))))),ROW(A4:A13)),1),"") -> 5 | V7: 4 | W7: =IFERROR(INDEX($V$4:$V$13,SMALL((IF(LEN($V$4:$V$13),ROW(INDIRECT("1:"&ROWS($V$4:$V$13))))),ROW(A4:A13)),1),"") -> 6 | X7: 4 | Y7: =IFERROR(INDEX($X$4:$X$13,SMALL((IF(LEN($X$4:$X$13),ROW(INDIRECT("1:"&ROWS($X$4:$X$13))))),ROW(A4:A13)),1),"") -> 7 | Z7: 4 | AA7: =IFERROR(INDEX($Z$4:$Z$13,SMALL((IF(LEN($Z$4:$Z$13),ROW(INDIRECT("1:"&ROWS($Z$4:$Z$13))))),ROW(A4:A13)),1),"") -> 7 | AB7: 4 | AC7: =IFERROR(INDEX($AB$4:$AB$13,SMALL((IF(LEN($AB$4:$AB$13),ROW(INDIRECT("1:"&ROWS($AB$4:$AB$13))))),ROW(A4:A13)),1),"") -> 7 | AD7: 4 | AE7: =IFERROR(INDEX($AD$4:$AD$13,SMALL((IF(LEN($AD$4:$AD$13),ROW(INDIRECT("1:"&ROWS($AD$4:$AD$13))))),ROW(A4:A13)),1),"") -> 7 | AF7: 4 | AG7: =IFERROR(INDEX($AF$4:$AF$13,SMALL((IF(LEN($AF$4:$AF$13),ROW(INDIRECT("1:"&ROWS($AF$4:$AF$13))))),ROW(A4:A13)),1),"") -> 7 | AH7: 4 | AI7: =IFERROR(INDEX($AH$4:$AH$13,SMALL((IF(LEN($AH$4:$AH$13),ROW(INDIRECT("1:"&ROWS($AH$4:$AH$13))))),ROW(A4:A13)),1),"") -> 7 | AJ7: 4 | AK7: =IFERROR(INDEX($AJ$4:$AJ$13,SMALL((IF(LEN($AJ$4:$AJ$13),ROW(INDIRECT("1:"&ROWS($AJ$4:$AJ$13))))),ROW(A4:A13)),1),"") -> 7 | AM7: =IF(ISBLANK(Setup!E18),"",Setup!E18) ->  | AO7: 2019-05-13T04:00:00 | AQ7: 2019-05-17 | AS7: =TEXT(Summary!$C$4+ROW(A4),"DDDD") -> Friday | AW7: Monday | AX7: 04:00:00 | BB7: 04:00:00 | BH7: 2017-02-27T04:00:00 | BL7: 03:00:00 | BN7: =Setup!E18 -> 0 | BP7: =Setup!E19 -> 0 | BR7: =Setup!E18 -> 0 | BU7: 03:00:00
A8: 6 | C8: AVON AND WILTSHIRE MENTAL HEALTH PARTNERSHIP NHS TRUST | E8: =Setup!E20 -> 0 | F8: =Demand!L8 -> 0 | G8: =Setup!F20 -> 0 | H8: 05:00:00 | I8: 5 | J8: 05:00 - 05:59 | L8: ='Capacity - Role Config'!B15 -> FY2 Resus | N8: ='Capacity - Shift Config'!B9& " ("&TEXT('Capacity - Shift Config'!C9,"hh:mm")&" - "&TEXT('Capacity - Shift Config'!D9,"hh:mm")&")" -> (00:00 - 00:00) | P8: Saturday | Q8: 6 | S8: 5 | T8: 5 | U8: =IFERROR(INDEX($T$4:$T$13,SMALL((IF(LEN($T$4:$T$13),ROW(INDIRECT("1:"&ROWS($T$4:$T$13))))),ROW(A5:A14)),1),"") -> 6 | V8: 5 | W8: =IFERROR(INDEX($V$4:$V$13,SMALL((IF(LEN($V$4:$V$13),ROW(INDIRECT("1:"&ROWS($V$4:$V$13))))),ROW(A5:A14)),1),"") -> 7 | X8: 5 | Y8: =IFERROR(INDEX($X$4:$X$13,SMALL((IF(LEN($X$4:$X$13),ROW(INDIRECT("1:"&ROWS($X$4:$X$13))))),ROW(A5:A14)),1),"") -> 8 | Z8: 5 | AA8: =IFERROR(INDEX($Z$4:$Z$13,SMALL((IF(LEN($Z$4:$Z$13),ROW(INDIRECT("1:"&ROWS($Z$4:$Z$13))))),ROW(A5:A14)),1),"") -> 8 | AB8: 5 | AC8: =IFERROR(INDEX($AB$4:$AB$13,SMALL((IF(LEN($AB$4:$AB$13),ROW(INDIRECT("1:"&ROWS($AB$4:$AB$13))))),ROW(A5:A14)),1),"") -> 8 | AD8: 5 | AE8: =IFERROR(INDEX($AD$4:$AD$13,SMALL((IF(LEN($AD$4:$AD$13),ROW(INDIRECT("1:"&ROWS($AD$4:$AD$13))))),ROW(A5:A14)),1),"") -> 8 | AF8: 5 | AG8: =IFERROR(INDEX($AF$4:$AF$13,SMALL((IF(LEN($AF$4:$AF$13),ROW(INDIRECT("1:"&ROWS($AF$4:$AF$13))))),ROW(A5:A14)),1),"") -> 8 | AH8: 5 | AI8: =IFERROR(INDEX($AH$4:$AH$13,SMALL((IF(LEN($AH$4:$AH$13),ROW(INDIRECT("1:"&ROWS($AH$4:$AH$13))))),ROW(A5:A14)),1),"") -> 8 | AJ8: 5 | AK8: =IFERROR(INDEX($AJ$4:$AJ$13,SMALL((IF(LEN($AJ$4:$AJ$13),ROW(INDIRECT("1:"&ROWS($AJ$4:$AJ$13))))),ROW(A5:A14)),1),"") -> 8 | AM8: =IF(ISBLANK(Setup!E19),"",Setup!E19) ->  | AO8: 2019-05-13T05:00:00 | AQ8: 2019-05-18 | AS8: =TEXT(Summary!$C$4+ROW(A5),"DDDD") -> Saturday | AW8: Monday | AX8: 05:00:00 | BB8: 05:00:00 | BH8: 2017-02-27T05:00:00 | BL8: 04:00:00 | BN8: =Setup!E19 -> 0 | BP8: =Setup!E20 -> 0 | BR8: =Setup!E19 -> 0 | BU8: 04:00:00
A9: 7 | C9: BARKING, HAVERING AND REDBRIDGE UNIVERSITY HOSPITALS NHS TRUST | E9: =Setup!E21 -> 0 | F9: =Demand!M8 -> 0 | G9: =Setup!F21 -> 0 | H9: 06:00:00 | I9: 6 | J9: 06:00 - 06:59 | L9: ='Capacity - Role Config'!B16 -> FY2 Majors | N9: ='Capacity - Shift Config'!B10& " ("&TEXT('Capacity - Shift Config'!C10,"hh:mm")&" - "&TEXT('Capacity - Shift Config'!D10,"hh:mm")&")" -> (00:00 - 00:00) | P9: Sunday | Q9: 7 | S9: 6 | T9: 6 | U9: =IFERROR(INDEX($T$4:$T$13,SMALL((IF(LEN($T$4:$T$13),ROW(INDIRECT("1:"&ROWS($T$4:$T$13))))),ROW(A6:A15)),1),"") -> 7 | V9: 6 | W9: =IFERROR(INDEX($V$4:$V$13,SMALL((IF(LEN($V$4:$V$13),ROW(INDIRECT("1:"&ROWS($V$4:$V$13))))),ROW(A6:A15)),1),"") -> 8 | X9: 6 | Y9: =IFERROR(INDEX($X$4:$X$13,SMALL((IF(LEN($X$4:$X$13),ROW(INDIRECT("1:"&ROWS($X$4:$X$13))))),ROW(A6:A15)),1),"") -> 9 | Z9: 6 | AA9: =IFERROR(INDEX($Z$4:$Z$13,SMALL((IF(LEN($Z$4:$Z$13),ROW(INDIRECT("1:"&ROWS($Z$4:$Z$13))))),ROW(A6:A15)),1),"") -> 9 | AB9: 6 | AC9: =IFERROR(INDEX($AB$4:$AB$13,SMALL((IF(LEN($AB$4:$AB$13),ROW(INDIRECT("1:"&ROWS($AB$4:$AB$13))))),ROW(A6:A15)),1),"") -> 9 | AD9: 6 | AE9: =IFERROR(INDEX($AD$4:$AD$13,SMALL((IF(LEN($AD$4:$AD$13),ROW(INDIRECT("1:"&ROWS($AD$4:$AD$13))))),ROW(A6:A15)),1),"") -> 9 | AF9: 6 | AG9: =IFERROR(INDEX($AF$4:$AF$13,SMALL((IF(LEN($AF$4:$AF$13),ROW(INDIRECT("1:"&ROWS($AF$4:$AF$13))))),ROW(A6:A15)),1),"") -> 9 | AH9: 6 | AI9: =IFERROR(INDEX($AH$4:$AH$13,SMALL((IF(LEN($AH$4:$AH$13),ROW(INDIRECT("1:"&ROWS($AH$4:$AH$13))))),ROW(A6:A15)),1),"") -> 9 | AJ9: 6 | AK9: =IFERROR(INDEX($AJ$4:$AJ$13,SMALL((IF(LEN($AJ$4:$AJ$13),ROW(INDIRECT("1:"&ROWS($AJ$4:$AJ$13))))),ROW(A6:A15)),1),"") -> 9 | AM9: =IF(ISBLANK(Setup!E20),"",Setup!E20) ->  | AO9: 2019-05-13T06:00:00 | AQ9: 2019-05-19 | AS9: =TEXT(Summary!$C$4+ROW(A6),"DDDD") -> Sunday | AW9: Monday | AX9: 06:00:00 | BB9: 06:00:00 | BH9: 2017-02-27T06:00:00 | BL9: 05:00:00 | BN9: =Setup!E20 -> 0 | BP9: =Setup!E21 -> 0 | BR9: =Setup!E20 -> 0 | BU9: 05:00:00
A10: 8 | C10: BARNET, ENFIELD AND HARINGEY MENTAL HEALTH NHS TRUST | E10: =Setup!E22 -> 0 | F10: =Demand!N8 -> 0 | G10: =Setup!F22 -> 0 | H10: 07:00:00 | I10: 7 | J10: 07:00 - 07:59 | L10: ='Capacity - Role Config'!B17 -> FY2 Minors | N10: ='Capacity - Shift Config'!B11& " ("&TEXT('Capacity - Shift Config'!C11,"hh:mm")&" - "&TEXT('Capacity - Shift Config'!D11,"hh:mm")&")" -> (00:00 - 00:00) | S10: 7 | T10: 7 | U10: =IFERROR(INDEX($T$4:$T$13,SMALL((IF(LEN($T$4:$T$13),ROW(INDIRECT("1:"&ROWS($T$4:$T$13))))),ROW(A7:A16)),1),"") -> 8 | V10: 7 | W10: =IFERROR(INDEX($V$4:$V$13,SMALL((IF(LEN($V$4:$V$13),ROW(INDIRECT("1:"&ROWS($V$4:$V$13))))),ROW(A7:A16)),1),"") -> 9 | X10: 7 | Y10: =IFERROR(INDEX($X$4:$X$13,SMALL((IF(LEN($X$4:$X$13),ROW(INDIRECT("1:"&ROWS($X$4:$X$13))))),ROW(A7:A16)),1),"") -> 10 | Z10: 7 | AA10: =IFERROR(INDEX($Z$4:$Z$13,SMALL((IF(LEN($Z$4:$Z$13),ROW(INDIRECT("1:"&ROWS($Z$4:$Z$13))))),ROW(A7:A16)),1),"") -> 10 | AB10: 7 | AC10: =IFERROR(INDEX($AB$4:$AB$13,SMALL((IF(LEN($AB$4:$AB$13),ROW(INDIRECT("1:"&ROWS($AB$4:$AB$13))))),ROW(A7:A16)),1),"") -> 10 | AD10: 7 | AE10: =IFERROR(INDEX($AD$4:$AD$13,SMALL((IF(LEN($AD$4:$AD$13),ROW(INDIRECT("1:"&ROWS($AD$4:$AD$13))))),ROW(A7:A16)),1),"") -> 10 | AF10: 7 | AG10: =IFERROR(INDEX($AF$4:$AF$13,SMALL((IF(LEN($AF$4:$AF$13),ROW(INDIRECT("1:"&ROWS($AF$4:$AF$13))))),ROW(A7:A16)),1),"") -> 10 | AH10: 7 | AI10: =IFERROR(INDEX($AH$4:$AH$13,SMALL((IF(LEN($AH$4:$AH$13),ROW(INDIRECT("1:"&ROWS($AH$4:$AH$13))))),ROW(A7:A16)),1),"") -> 10 | AJ10: 7 | AK10: =IFERROR(INDEX($AJ$4:$AJ$13,SMALL((IF(LEN($AJ$4:$AJ$13),ROW(INDIRECT("1:"&ROWS($AJ$4:$AJ$13))))),ROW(A7:A16)),1),"") -> 10 | AM10: =IF(ISBLANK(Setup!E21),"",Setup!E21) ->  | AO10: 2019-05-13T07:00:00 | AS10: Whole Week | AW10: Monday | AX10: 07:00:00 | BB10: 07:00:00 | BH10: 2017-02-27T07:00:00 | BL10: 06:00:00 | BN10: =Setup!E21 -> 0 | BP10: =Setup!E22 -> 0 | BR10: =Setup!E21 -> 0 | BU10: 06:00:00
A11: 9 | C11: BARNSLEY HOSPITAL NHS FOUNDATION TRUST | E11: =Setup!E23 -> 0 | F11: =Demand!O8 -> 0 | G11: =Setup!F23 -> 0 | H11: 08:00:00 | I11: 8 | J11: 08:00 - 08:59 | L11: ='Capacity - Role Config'!B18 -> FY2 Flex | N11: ='Capacity - Shift Config'!B12& " ("&TEXT('Capacity - Shift Config'!C12,"hh:mm")&" - "&TEXT('Capacity - Shift Config'!D12,"hh:mm")&")" -> (00:00 - 00:00) | S11: 8 | T11: 8 | U11: =IFERROR(INDEX($T$4:$T$13,SMALL((IF(LEN($T$4:$T$13),ROW(INDIRECT("1:"&ROWS($T$4:$T$13))))),ROW(A8:A17)),1),"") -> 9 | V11: 8 | W11: =IFERROR(INDEX($V$4:$V$13,SMALL((IF(LEN($V$4:$V$13),ROW(INDIRECT("1:"&ROWS($V$4:$V$13))))),ROW(A8:A17)),1),"") -> 10 | X11: 8 | Y11: =IFERROR(INDEX($X$4:$X$13,SMALL((IF(LEN($X$4:$X$13),ROW(INDIRECT("1:"&ROWS($X$4:$X$13))))),ROW(A8:A17)),1),"") ->  | Z11: 8 | AA11: =IFERROR(INDEX($Z$4:$Z$13,SMALL((IF(LEN($Z$4:$Z$13),ROW(INDIRECT("1:"&ROWS($Z$4:$Z$13))))),ROW(A8:A17)),1),"") ->  | AB11: 8 | AC11: =IFERROR(INDEX($AB$4:$AB$13,SMALL((IF(LEN($AB$4:$AB$13),ROW(INDIRECT("1:"&ROWS($AB$4:$AB$13))))),ROW(A8:A17)),1),"") ->  | AD11: 8 | AE11: =IFERROR(INDEX($AD$4:$AD$13,SMALL((IF(LEN($AD$4:$AD$13),ROW(INDIRECT("1:"&ROWS($AD$4:$AD$13))))),ROW(A8:A17)),1),"") ->  | AF11: 8 | AG11: =IFERROR(INDEX($AF$4:$AF$13,SMALL((IF(LEN($AF$4:$AF$13),ROW(INDIRECT("1:"&ROWS($AF$4:$AF$13))))),ROW(A8:A17)),1),"") ->  | AH11: 8 | AI11: =IFERROR(INDEX($AH$4:$AH$13,SMALL((IF(LEN($AH$4:$AH$13),ROW(INDIRECT("1:"&ROWS($AH$4:$AH$13))))),ROW(A8:A17)),1),"") ->  | AJ11: 8 | AK11: =IFERROR(INDEX($AJ$4:$AJ$13,SMALL((IF(LEN($AJ$4:$AJ$13),ROW(INDIRECT("1:"&ROWS($AJ$4:$AJ$13))))),ROW(A8:A17)),1),"") ->  | AM11: =IF(ISBLANK(Setup!E22),"",Setup!E22) ->  | AO11: 2019-05-13T08:00:00 | AW11: Monday | AX11: 08:00:00 | BB11: 08:00:00 | BH11: 2017-02-27T08:00:00 | BL11: 07:00:00 | BN11: =Setup!E22 -> 0 | BP11: =Setup!E23 -> 0 | BR11: =Setup!E22 -> 0 | BU11: 07:00:00
A12: 10 | C12: BARTS HEALTH NHS TRUST | E12: =Setup!E24 -> 0 | F12: =Demand!P8 -> 0 | G12: =Setup!F24 -> 0 | H12: 09:00:00 | I12: 9 | J12: 09:00 - 09:59 | L12: ='Capacity - Role Config'!B19 -> ENP Majors | N12: ='Capacity - Shift Config'!B13& " ("&TEXT('Capacity - Shift Config'!C13,"hh:mm")&" - "&TEXT('Capacity - Shift Config'!D13,"hh:mm")&")" -> (00:00 - 00:00) | S12: 9 | T12: 9 | U12: =IFERROR(INDEX($T$4:$T$13,SMALL((IF(LEN($T$4:$T$13),ROW(INDIRECT("1:"&ROWS($T$4:$T$13))))),ROW(A9:A18)),1),"") -> 10 | V12: 9 | W12: =IFERROR(INDEX($V$4:$V$13,SMALL((IF(LEN($V$4:$V$13),ROW(INDIRECT("1:"&ROWS($V$4:$V$13))))),ROW(A9:A18)),1),"") ->  | X12: 9 | Y12: =IFERROR(INDEX($X$4:$X$13,SMALL((IF(LEN($X$4:$X$13),ROW(INDIRECT("1:"&ROWS($X$4:$X$13))))),ROW(A9:A18)),1),"") ->  | Z12: 9 | AA12: =IFERROR(INDEX($Z$4:$Z$13,SMALL((IF(LEN($Z$4:$Z$13),ROW(INDIRECT("1:"&ROWS($Z$4:$Z$13))))),ROW(A9:A18)),1),"") ->  | AB12: 9 | AC12: =IFERROR(INDEX($AB$4:$AB$13,SMALL((IF(LEN($AB$4:$AB$13),ROW(INDIRECT("1:"&ROWS($AB$4:$AB$13))))),ROW(A9:A18)),1),"") ->  | AD12: 9 | AE12: =IFERROR(INDEX($AD$4:$AD$13,SMALL((IF(LEN($AD$4:$AD$13),ROW(INDIRECT("1:"&ROWS($AD$4:$AD$13))))),ROW(A9:A18)),1),"") ->  | AF12: 9 | AG12: =IFERROR(INDEX($AF$4:$AF$13,SMALL((IF(LEN($AF$4:$AF$13),ROW(INDIRECT("1:"&ROWS($AF$4:$AF$13))))),ROW(A9:A18)),1),"") ->  | AH12: 9 | AI12: =IFERROR(INDEX($AH$4:$AH$13,SMALL((IF(LEN($AH$4:$AH$13),ROW(INDIRECT("1:"&ROWS($AH$4:$AH$13))))),ROW(A9:A18)),1),"") ->  | AJ12: 9 | AK12: =IFERROR(INDEX($AJ$4:$AJ$13,SMALL((IF(LEN($AJ$4:$AJ$13),ROW(INDIRECT("1:"&ROWS($AJ$4:$AJ$13))))),ROW(A9:A18)),1),"") ->  | AM12: =IF(ISBLANK(Setup!E23),"",Setup!E23) ->  | AO12: 2019-05-13T09:00:00 | AW12: Monday | AX12: 09:00:00 | BB12: 09:00:00 | BH12: 2017-02-27T09:00:00 | BL12: 08:00:00 | BN12: =Setup!E23 -> 0 | BP12: =Setup!E24 -> 0 | BR12: =Setup!E23 -> 0 | BU12: 08:00:00
C13: BASILDON AND THURROCK UNIVERSITY HOSPITALS NHS FOUNDATION TRUST | H13: 10:00:00 | I13: 10 | J13: 10:00 - 10:59 | L13: ='Capacity - Role Config'!B20 -> ENP Minors | N13: ='Capacity - Shift Config'!B14& " ("&TEXT('Capacity - Shift Config'!C14,"hh:mm")&" - "&TEXT('Capacity - Shift Config'!D14,"hh:mm")&")" -> (00:00 - 00:00) | S13: 10 | T13: 10 | U13: =IFERROR(INDEX($T$4:$T$13,SMALL((IF(LEN($T$4:$T$13),ROW(INDIRECT("1:"&ROWS($T$4:$T$13))))),ROW(A10:A19)),1),"") ->  | V13: 10 | W13: =IFERROR(INDEX($V$4:$V$13,SMALL((IF(LEN($V$4:$V$13),ROW(INDIRECT("1:"&ROWS($V$4:$V$13))))),ROW(A10:A19)),1),"") ->  | X13: 10 | Y13: =IFERROR(INDEX($X$4:$X$13,SMALL((IF(LEN($X$4:$X$13),ROW(INDIRECT("1:"&ROWS($X$4:$X$13))))),ROW(A10:A19)),1),"") ->  | Z13: 10 | AA13: =IFERROR(INDEX($Z$4:$Z$13,SMALL((IF(LEN($Z$4:$Z$13),ROW(INDIRECT("1:"&ROWS($Z$4:$Z$13))))),ROW(A10:A19)),1),"") ->  | AB13: 10 | AC13: =IFERROR(INDEX($AB$4:$AB$13,SMALL((IF(LEN($AB$4:$AB$13),ROW(INDIRECT("1:"&ROWS($AB$4:$AB$13))))),ROW(A10:A19)),1),"") ->  | AD13: 10 | AE13: =IFERROR(INDEX($AD$4:$AD$13,SMALL((IF(LEN($AD$4:$AD$13),ROW(INDIRECT("1:"&ROWS($AD$4:$AD$13))))),ROW(A10:A19)),1),"") ->  | AF13: 10 | AG13: =IFERROR(INDEX($AF$4:$AF$13,SMALL((IF(LEN($AF$4:$AF$13),ROW(INDIRECT("1:"&ROWS($AF$4:$AF$13))))),ROW(A10:A19)),1),"") ->  | AH13: 10 | AI13: =IFERROR(INDEX($AH$4:$AH$13,SMALL((IF(LEN($AH$4:$AH$13),ROW(INDIRECT("1:"&ROWS($AH$4:$AH$13))))),ROW(A10:A19)),1),"") ->  | AJ13: 10 | AK13: =IFERROR(INDEX($AJ$4:$AJ$13,SMALL((IF(LEN($AJ$4:$AJ$13),ROW(INDIRECT("1:"&ROWS($AJ$4:$AJ$13))))),ROW(A10:A19)),1),"") ->  | AM13: =IF(ISBLANK(Setup!E24),"",Setup!E24) ->  | AO13: 2019-05-13T10:00:00 | AW13: Monday | AX13: 10:00:00 | BB13: 10:00:00 | BH13: 2017-02-27T10:00:00 | BL13: 09:00:00 | BN13: =Setup!E24 -> 0 | BP13: Total | BR13: =Setup!E24 -> 0 | BU13: 09:00:00
C14: BEDFORD HOSPITAL NHS TRUST | H14: 11:00:00 | I14: 11 | J14: 11:00 - 11:59 | L14: ='Capacity - Role Config'!B21 -> ENP Flex | N14: ='Capacity - Shift Config'!B15& " ("&TEXT('Capacity - Shift Config'!C15,"hh:mm")&" - "&TEXT('Capacity - Shift Config'!D15,"hh:mm")&")" -> (00:00 - 00:00) | AO14: 2019-05-13T11:00:00 | AW14: Monday | AX14: 11:00:00 | BB14: 11:00:00 | BH14: 2017-02-27T11:00:00 | BL14: 10:00:00 | BU14: 10:00:00
C15: BERKSHIRE HEALTHCARE NHS FOUNDATION TRUST | H15: 12:00:00 | I15: 12 | J15: 12:00 - 12:59 | L15: ='Capacity - Role Config'!B22 -> Band 5 | N15: ='Capacity - Shift Config'!B16& " ("&TEXT('Capacity - Shift Config'!C16,"hh:mm")&" - "&TEXT('Capacity - Shift Config'!D16,"hh:mm")&")" -> (00:00 - 00:00) | S15: Feed from Setup: | AO15: 2019-05-13T12:00:00 | AW15: Monday | AX15: 12:00:00 | BB15: 12:00:00 | BH15: 2017-02-27T12:00:00 | BL15: 11:00:00 | BU15: 11:00:00
C16: BIRMINGHAM AND SOLIHULL MENTAL HEALTH NHS FOUNDATION TRUST | H16: 13:00:00 | I16: 13 | J16: 13:00 - 13:59 | L16: ='Capacity - Role Config'!B23 -> 0 | N16: ='Capacity - Shift Config'!B17& " ("&TEXT('Capacity - Shift Config'!C17,"hh:mm")&" - "&TEXT('Capacity - Shift Config'!D17,"hh:mm")&")" -> (00:00 - 00:00) | S16: Selection1 | T16: Selection2 | V16: Selection3 | X16: Selection4 | Z16: Selection5 | AB16: Selection6 | AD16: Selection7 | AF16: Selection8 | AH16: Selection9 | AJ16: Selection10 | AO16: 2019-05-13T13:00:00 | AW16: Monday | AX16: 13:00:00 | BB16: 13:00:00 | BH16: 2017-02-27T13:00:00 | BL16: 12:00:00 | BU16: 12:00:00
C17: BIRMINGHAM COMMUNITY HEALTHCARE NHS FOUNDATION TRUST | H17: 14:00:00 | I17: 14 | J17: 14:00 - 14:59 | L17: ='Capacity - Role Config'!B24 -> 0 | N17: ='Capacity - Shift Config'!B18& " ("&TEXT('Capacity - Shift Config'!C18,"hh:mm")&" - "&TEXT('Capacity - Shift Config'!D18,"hh:mm")&")" -> (00:00 - 00:00) | S17: =Setup!F15 -> 2 | T17: =Setup!F16 -> 3 | V17: =Setup!F17 -> 1 | X17: =Setup!F18 -> 0 | Z17: =Setup!F19 -> 0 | AB17: =Setup!F20 -> 0 | AD17: =Setup!F21 -> 0 | AF17: =Setup!F22 -> 0 | AH17: =Setup!F23 -> 0 | AJ17: =Setup!F24 -> 0 | AO17: 2019-05-13T14:00:00 | AW17: Monday | AX17: 14:00:00 | BB17: 14:00:00 | BH17: 2017-02-27T14:00:00 | BL17: 13:00:00 | BU17: 13:00:00
C18: BIRMINGHAM WOMEN'S AND CHILDREN'S NHS FOUNDATION TRUST | H18: 15:00:00 | I18: 15 | J18: 15:00 - 15:59 | L18: ='Capacity - Role Config'!B25 -> 0 | N18: ='Capacity - Shift Config'!B19& " ("&TEXT('Capacity - Shift Config'!C19,"hh:mm")&" - "&TEXT('Capacity - Shift Config'!D19,"hh:mm")&")" -> (00:00 - 00:00) | AO18: 2019-05-13T15:00:00 | AW18: Monday | AX18: 15:00:00 | BB18: 15:00:00 | BH18: 2017-02-27T15:00:00 | BL18: 14:00:00 | BU18: 14:00:00
C19: BLACKPOOL TEACHING HOSPITALS NHS FOUNDATION TRUST | H19: 16:00:00 | I19: 16 | J19: 16:00 - 16:59 | L19: ='Capacity - Role Config'!B26 -> 0 | N19: ='Capacity - Shift Config'!B20& " ("&TEXT('Capacity - Shift Config'!C20,"hh:mm")&" - "&TEXT('Capacity - Shift Config'!D20,"hh:mm")&")" -> (00:00 - 00:00) | S19: Setting size of drop down list | AO19: 2019-05-13T16:00:00 | AW19: Monday | AX19: 16:00:00 | BB19: 16:00:00 | BH19: 2017-02-27T16:00:00 | BL19: 15:00:00 | BU19: 15:00:00
C20: BOLTON NHS FOUNDATION TRUST | H20: 17:00:00 | I20: 17 | J20: 17:00 - 17:59 | L20: ='Capacity - Role Config'!B27 -> 0 | N20: ='Capacity - Shift Config'!B21& " ("&TEXT('Capacity - Shift Config'!C21,"hh:mm")&" - "&TEXT('Capacity - Shift Config'!D21,"hh:mm")&")" -> (00:00 - 00:00) | U20: =COUNTBLANK(U4:U13) -> 1 | W20: =COUNTBLANK(W4:W13) -> 2 | Y20: 3 | AA20: 3 | AC20: 3 | AE20: 3 | AG20: 3 | AI20: 3 | AK20: 3 | AO20: 2019-05-13T17:00:00 | AW20: Monday | AX20: 17:00:00 | BB20: 17:00:00 | BH20: 2017-02-27T17:00:00 | BL20: 16:00:00 | BU20: 16:00:00
C21: BRADFORD TEACHING HOSPITALS NHS FOUNDATION TRUST | H21: 18:00:00 | I21: 18 | J21: 18:00 - 18:59 | L21: ='Capacity - Role Config'!B28 -> 0 | N21: ='Capacity - Shift Config'!B22& " ("&TEXT('Capacity - Shift Config'!C22,"hh:mm")&" - "&TEXT('Capacity - Shift Config'!D22,"hh:mm")&")" -> (00:00 - 00:00) | AO21: 2019-05-13T18:00:00 | AW21: Monday | AX21: 18:00:00 | BB21: 18:00:00 | BH21: 2017-02-27T18:00:00 | BL21: 17:00:00 | BU21: 17:00:00
C22: BRIDGEWATER COMMUNITY HEALTHCARE NHS FOUNDATION TRUST | H22: 19:00:00 | I22: 19 | J22: 19:00 - 19:59 | L22: ='Capacity - Role Config'!B29 -> 0 | N22: ='Capacity - Shift Config'!B23& " ("&TEXT('Capacity - Shift Config'!C23,"hh:mm")&" - "&TEXT('Capacity - Shift Config'!D23,"hh:mm")&")" -> (00:00 - 00:00) | AO22: 2019-05-13T19:00:00 | AW22: Monday | AX22: 19:00:00 | BB22: 19:00:00 | BH22: 2017-02-27T19:00:00 | BL22: 18:00:00 | BU22: 18:00:00
C23: BRIGHTON AND SUSSEX UNIVERSITY HOSPITALS NHS TRUST | H23: 20:00:00 | I23: 20 | J23: 20:00 - 20:59 | L23: ='Capacity - Role Config'!B30 -> 0 | N23: ='Capacity - Shift Config'!B24& " ("&TEXT('Capacity - Shift Config'!C24,"hh:mm")&" - "&TEXT('Capacity - Shift Config'!D24,"hh:mm")&")" -> (00:00 - 00:00) | AO23: 2019-05-13T20:00:00 | AW23: Monday | AX23: 20:00:00 | BB23: 20:00:00 | BH23: 2017-02-27T20:00:00 | BL23: 19:00:00 | BU23: 19:00:00
C24: BUCKINGHAMSHIRE HEALTHCARE NHS TRUST | H24: 21:00:00 | I24: 21 | J24: 21:00 - 21:59 | L24: ='Capacity - Role Config'!B31 -> 0 | N24: ='Capacity - Shift Config'!B25& " ("&TEXT('Capacity - Shift Config'!C25,"hh:mm")&" - "&TEXT('Capacity - Shift Config'!D25,"hh:mm")&")" -> (00:00 - 00:00) | AO24: 2019-05-13T21:00:00 | AW24: Monday | AX24: 21:00:00 | BB24: 21:00:00 | BH24: 2017-02-27T21:00:00 | BL24: 20:00:00 | BU24: 20:00:00
C25: CALDERDALE AND HUDDERSFIELD NHS FOUNDATION TRUST | H25: 22:00:00 | I25: 22 | J25: 22:00 - 22:59 | L25: ='Capacity - Role Config'!B32 -> 0 | N25: ='Capacity - Shift Config'!B26& " ("&TEXT('Capacity - Shift Config'!C26,"hh:mm")&" - "&TEXT('Capacity - Shift Config'!D26,"hh:mm")&")" -> (00:00 - 00:00) | AO25: 2019-05-13T22:00:00 | AW25: Monday | AX25: 22:00:00 | BB25: 22:00:00 | BH25: 2017-02-27T22:00:00 | BL25: 21:00:00 | BU25: 21:00:00
C26: CAMBRIDGE UNIVERSITY HOSPITALS NHS FOUNDATION TRUST | H26: 23:00:00 | I26: 23 | J26: 23:00 - 23:59 | L26: ='Capacity - Role Config'!B33 -> 0 | N26: ='Capacity - Shift Config'!B27& " ("&TEXT('Capacity - Shift Config'!C27,"hh:mm")&" - "&TEXT('Capacity - Shift Config'!D27,"hh:mm")&")" -> (00:00 - 00:00) | AO26: 2019-05-13T23:00:00 | AW26: Monday | AX26: 23:00:00 | BB26: 23:00:00 | BH26: 2017-02-27T23:00:00 | BL26: 22:00:00 | BU26: 22:00:00
C27: CAMBRIDGESHIRE AND PETERBOROUGH NHS FOUNDATION TRUST | L27: ='Capacity - Role Config'!B34 -> 0 | N27: ='Capacity - Shift Config'!B28& " ("&TEXT('Capacity - Shift Config'!C28,"hh:mm")&" - "&TEXT('Capacity - Shift Config'!D28,"hh:mm")&")" -> (00:00 - 00:00) | AO27: 2019-05-14 | AW27: Tuesday | AX27: 00:00:00 | AZ27: 2019-05-14 | BA27: Tuesday | BB27: 00:00:00 | BH27: 2017-02-28 | BL27: 23:00:00 | BU27: 23:00:00
C28: CAMBRIDGESHIRE COMMUNITY SERVICES NHS TRUST | L28: ='Capacity - Role Config'!B35 -> 0 | N28: ='Capacity - Shift Config'!B29& " ("&TEXT('Capacity - Shift Config'!C29,"hh:mm")&" - "&TEXT('Capacity - Shift Config'!D29,"hh:mm")&")" -> (00:00 - 00:00) | AO28: 2019-05-14T01:00:00 | AW28: Tuesday | AX28: 01:00:00 | BB28: 01:00:00 | BH28: 2017-02-28T01:00:00 | BU28: 1
C29: CENTRAL AND NORTH WEST LONDON NHS FOUNDATION TRUST | L29: ='Capacity - Role Config'!B36 -> 0 | N29: ='Capacity - Shift Config'!B30& " ("&TEXT('Capacity - Shift Config'!C30,"hh:mm")&" - "&TEXT('Capacity - Shift Config'!D30,"hh:mm")&")" -> (00:00 - 00:00) | AO29: 2019-05-14T02:00:00 | AW29: Tuesday | AX29: 02:00:00 | BB29: 02:00:00 | BH29: 2017-02-28T02:00:00 | BU29: 1.041666667
C30: CENTRAL LONDON COMMUNITY HEALTHCARE NHS TRUST | L30: ='Capacity - Role Config'!B37 -> 0 | N30: ='Capacity - Shift Config'!B31& " ("&TEXT('Capacity - Shift Config'!C31,"hh:mm")&" - "&TEXT('Capacity - Shift Config'!D31,"hh:mm")&")" -> (00:00 - 00:00) | AO30: 2019-05-14T03:00:00 | AW30: Tuesday | AX30: 03:00:00 | BB30: 03:00:00 | BH30: 2017-02-28T03:00:00 | BU30: 1.083333333
C31: CHELSEA AND WESTMINSTER HOSPITAL NHS FOUNDATION TRUST | L31: ='Capacity - Role Config'!B38 -> 0 | N31: ='Capacity - Shift Config'!B32& " ("&TEXT('Capacity - Shift Config'!C32,"hh:mm")&" - "&TEXT('Capacity - Shift Config'!D32,"hh:mm")&")" -> (00:00 - 00:00) | AO31: 2019-05-14T04:00:00 | AW31: Tuesday | AX31: 04:00:00 | BB31: 04:00:00 | BH31: 2017-02-28T04:00:00 | BU31: 1.125
C32: CHESHIRE AND WIRRAL PARTNERSHIP NHS FOUNDATION TRUST | L32: ='Capacity - Role Config'!B39 -> 0 | N32: ='Capacity - Shift Config'!B33& " ("&TEXT('Capacity - Shift Config'!C33,"hh:mm")&" - "&TEXT('Capacity - Shift Config'!D33,"hh:mm")&")" -> (00:00 - 00:00) | AO32: 2019-05-14T05:00:00 | AW32: Tuesday | AX32: 05:00:00 | BB32: 05:00:00 | BH32: 2017-02-28T05:00:00 | BU32: 1.166666667
C33: CHESTERFIELD ROYAL HOSPITAL NHS FOUNDATION TRUST | L33: ='Capacity - Role Config'!B40 -> 0 | N33: ='Capacity - Shift Config'!B34& " ("&TEXT('Capacity - Shift Config'!C34,"hh:mm")&" - "&TEXT('Capacity - Shift Config'!D34,"hh:mm")&")" -> (00:00 - 00:00) | AO33: 2019-05-14T06:00:00 | AW33: Tuesday | AX33: 06:00:00 | BB33: 06:00:00 | BH33: 2017-02-28T06:00:00 | BU33: 1.208333333
C34: CITY HOSPITALS SUNDERLAND NHS FOUNDATION TRUST | L34: ='Capacity - Role Config'!B41 -> 0 | N34: ='Capacity - Shift Config'!B35& " ("&TEXT('Capacity - Shift Config'!C35,"hh:mm")&" - "&TEXT('Capacity - Shift Config'!D35,"hh:mm")&")" -> (00:00 - 00:00) | AO34: 2019-05-14T07:00:00 | AW34: Tuesday | AX34: 07:00:00 | BB34: 07:00:00 | BH34: 2017-02-28T07:00:00 | BU34: 1.25
C35: CORNWALL PARTNERSHIP NHS FOUNDATION TRUST | L35: ='Capacity - Role Config'!B42 -> 0 | N35: ='Capacity - Shift Config'!B36& " ("&TEXT('Capacity - Shift Config'!C36,"hh:mm")&" - "&TEXT('Capacity - Shift Config'!D36,"hh:mm")&")" -> (00:00 - 00:00) | AO35: 2019-05-14T08:00:00 | AW35: Tuesday | AX35: 08:00:00 | BB35: 08:00:00 | BH35: 2017-02-28T08:00:00 | BU35: 1.291666667
C36: COUNTESS OF CHESTER HOSPITAL NHS FOUNDATION TRUST | L36: ='Capacity - Role Config'!B43 -> 0 | N36: ='Capacity - Shift Config'!B37& " ("&TEXT('Capacity - Shift Config'!C37,"hh:mm")&" - "&TEXT('Capacity - Shift Config'!D37,"hh:mm")&")" -> (00:00 - 00:00) | AO36: 2019-05-14T09:00:00 | AW36: Tuesday | AX36: 09:00:00 | BA36: =IF(BB36=0,AW36,"") ->  | BB36: =AX36 -> 09:00:00 | BH36: 2017-02-28T09:00:00 | BU36: 1.333333333
C37: COUNTY DURHAM AND DARLINGTON NHS FOUNDATION TRUST | L37: ='Capacity - Role Config'!B44 -> 0 | N37: ='Capacity - Shift Config'!B38& " ("&TEXT('Capacity - Shift Config'!C38,"hh:mm")&" - "&TEXT('Capacity - Shift Config'!D38,"hh:mm")&")" -> (00:00 - 00:00) | AO37: 2019-05-14T10:00:00 | AW37: Tuesday | AX37: 10:00:00 | BB37: 10:00:00 | BH37: 2017-02-28T10:00:00 | BU37: 1.375
C38: COVENTRY AND WARWICKSHIRE PARTNERSHIP NHS TRUST | L38: ='Capacity - Role Config'!B45 -> 0 | N38: ='Capacity - Shift Config'!B39& " ("&TEXT('Capacity - Shift Config'!C39,"hh:mm")&" - "&TEXT('Capacity - Shift Config'!D39,"hh:mm")&")" -> (00:00 - 00:00) | AO38: 2019-05-14T11:00:00 | AW38: Tuesday | AX38: 11:00:00 | BB38: 11:00:00 | BH38: 2017-02-28T11:00:00 | BU38: 1.416666667
C39: CROYDON HEALTH SERVICES NHS TRUST | L39: ='Capacity - Role Config'!B46 -> 0 | N39: ='Capacity - Shift Config'!B40& " ("&TEXT('Capacity - Shift Config'!C40,"hh:mm")&" - "&TEXT('Capacity - Shift Config'!D40,"hh:mm")&")" -> (00:00 - 00:00) | AO39: 2019-05-14T12:00:00 | AW39: Tuesday | AX39: 12:00:00 | BB39: 12:00:00 | BH39: 2017-02-28T12:00:00 | BU39: 1.458333333
C40: CUMBRIA PARTNERSHIP NHS FOUNDATION TRUST | L40: ='Capacity - Role Config'!B47 -> 0 | N40: ='Capacity - Shift Config'!B41& " ("&TEXT('Capacity - Shift Config'!C41,"hh:mm")&" - "&TEXT('Capacity - Shift Config'!D41,"hh:mm")&")" -> (00:00 - 00:00) | AO40: 2019-05-14T13:00:00 | AW40: Tuesday | AX40: 13:00:00 | BB40: 13:00:00 | BH40: 2017-02-28T13:00:00 | BU40: 1.5
C41: DARTFORD AND GRAVESHAM NHS TRUST | L41: ='Capacity - Role Config'!B48 -> 0 | N41: ='Capacity - Shift Config'!B42& " ("&TEXT('Capacity - Shift Config'!C42,"hh:mm")&" - "&TEXT('Capacity - Shift Config'!D42,"hh:mm")&")" -> (00:00 - 00:00) | AO41: 2019-05-14T14:00:00 | AW41: Tuesday | AX41: 14:00:00 | BB41: 14:00:00 | BH41: 2017-02-28T14:00:00 | BU41: 1.541666667
C42: DERBYSHIRE COMMUNITY HEALTH SERVICES NHS FOUNDATION TRUST | L42: ='Capacity - Role Config'!B49 -> 0 | N42: ='Capacity - Shift Config'!B43& " ("&TEXT('Capacity - Shift Config'!C43,"hh:mm")&" - "&TEXT('Capacity - Shift Config'!D43,"hh:mm")&")" -> (00:00 - 00:00) | AO42: 2019-05-14T15:00:00 | AW42: Tuesday | AX42: 15:00:00 | BB42: 15:00:00 | BH42: 2017-02-28T15:00:00 | BU42: 1.583333333
C43: DERBYSHIRE HEALTHCARE NHS FOUNDATION TRUST | L43: ='Capacity - Role Config'!B50 -> 0 | N43: ='Capacity - Shift Config'!B44& " ("&TEXT('Capacity - Shift Config'!C44,"hh:mm")&" - "&TEXT('Capacity - Shift Config'!D44,"hh:mm")&")" -> (00:00 - 00:00) | AO43: 2019-05-14T16:00:00 | AW43: Tuesday | AX43: 16:00:00 | BB43: 16:00:00 | BH43: 2017-02-28T16:00:00 | BU43: 1.625
C44: DEVON PARTNERSHIP NHS TRUST | L44: ='Capacity - Role Config'!B51 -> 0 | N44: ='Capacity - Shift Config'!B45& " ("&TEXT('Capacity - Shift Config'!C45,"hh:mm")&" - "&TEXT('Capacity - Shift Config'!D45,"hh:mm")&")" -> (00:00 - 00:00) | AO44: 2019-05-14T17:00:00 | AW44: Tuesday | AX44: 17:00:00 | BB44: 17:00:00 | BH44: 2017-02-28T17:00:00 | BU44: 1.666666667
C45: DONCASTER AND BASSETLAW TEACHING HOSPITALS NHS FOUNDATION TRUST | L45: ='Capacity - Role Config'!B52 -> 0 | N45: ='Capacity - Shift Config'!B46& " ("&TEXT('Capacity - Shift Config'!C46,"hh:mm")&" - "&TEXT('Capacity - Shift Config'!D46,"hh:mm")&")" -> (00:00 - 00:00) | AO45: 2019-05-14T18:00:00 | AW45: Tuesday | AX45: 18:00:00 | BB45: 18:00:00 | BH45: 2017-02-28T18:00:00 | BU45: 1.708333333
C46: DORSET COUNTY HOSPITAL NHS FOUNDATION TRUST | L46: ='Capacity - Role Config'!B53 -> 0 | N46: ='Capacity - Shift Config'!B47& " ("&TEXT('Capacity - Shift Config'!C47,"hh:mm")&" - "&TEXT('Capacity - Shift Config'!D47,"hh:mm")&")" -> (00:00 - 00:00) | AO46: 2019-05-14T19:00:00 | AW46: Tuesday | AX46: 19:00:00 | BB46: 19:00:00 | BH46: 2017-02-28T19:00:00 | BU46: 1.75
C47: DORSET HEALTHCARE UNIVERSITY NHS FOUNDATION TRUST | L47: ='Capacity - Role Config'!B54 -> 0 | N47: ='Capacity - Shift Config'!B48& " ("&TEXT('Capacity - Shift Config'!C48,"hh:mm")&" - "&TEXT('Capacity - Shift Config'!D48,"hh:mm")&")" -> (00:00 - 00:00) | AO47: 2019-05-14T20:00:00 | AW47: Tuesday | AX47: 20:00:00 | BB47: 20:00:00 | BH47: 2017-02-28T20:00:00 | BU47: 1.791666667
C48: DUDLEY AND WALSALL MENTAL HEALTH PARTNERSHIP NHS TRUST | L48: ='Capacity - Role Config'!B55 -> 0 | N48: ='Capacity - Shift Config'!B49& " ("&TEXT('Capacity - Shift Config'!C49,"hh:mm")&" - "&TEXT('Capacity - Shift Config'!D49,"hh:mm")&")" -> (00:00 - 00:00) | AO48: 2019-05-14T21:00:00 | AW48: Tuesday | AX48: 21:00:00 | BB48: 21:00:00 | BH48: 2017-02-28T21:00:00 | BU48: 1.833333333
C49: EAST AND NORTH HERTFORDSHIRE NHS TRUST | L49: ='Capacity - Role Config'!B56 -> 0 | N49: ='Capacity - Shift Config'!B50& " ("&TEXT('Capacity - Shift Config'!C50,"hh:mm")&" - "&TEXT('Capacity - Shift Config'!D50,"hh:mm")&")" -> (00:00 - 00:00) | AO49: 43599.91667 | AW49: Tuesday | AX49: 22:00:00 | BB49: 22:00:00 | BH49: 2017-02-28T22:00:00 | BU49: 1.875
C50: EAST CHESHIRE NHS TRUST | L50: ='Capacity - Role Config'!B57 -> 0 | N50: ='Capacity - Shift Config'!B51& " ("&TEXT('Capacity - Shift Config'!C51,"hh:mm")&" - "&TEXT('Capacity - Shift Config'!D51,"hh:mm")&")" -> (00:00 - 00:00) | AO50: 2019-05-14T23:00:00 | AW50: Tuesday | AX50: 23:00:00 | BB50: 23:00:00 | BH50: 2017-02-28T23:00:00 | BU50: 1.916666667
C51: EAST KENT HOSPITALS UNIVERSITY NHS FOUNDATION TRUST | L51: ='Capacity - Role Config'!B58 -> 0 | N51: ='Capacity - Shift Config'!B52& " ("&TEXT('Capacity - Shift Config'!C52,"hh:mm")&" - "&TEXT('Capacity - Shift Config'!D52,"hh:mm")&")" -> (00:00 - 00:00) | AO51: 2019-05-15 | AW51: Wednesday | AX51: 00:00:00 | AZ51: 2019-05-15 | BA51: Wednesday | BB51: 00:00:00 | BH51: 2017-03-01 | BU51: 1.958333333
C52: EAST LANCASHIRE HOSPITALS NHS TRUST | L52: ='Capacity - Role Config'!B59 -> 0 | N52: ='Capacity - Shift Config'!B53& " ("&TEXT('Capacity - Shift Config'!C53,"hh:mm")&" - "&TEXT('Capacity - Shift Config'!D53,"hh:mm")&")" -> (00:00 - 00:00) | AO52: 2019-05-15T01:00:00 | AW52: Wednesday | AX52: 01:00:00 | BB52: 01:00:00 | BH52: 2017-03-01T01:00:00 | BU52: 2
C53: EAST LONDON NHS FOUNDATION TRUST | L53: ='Capacity - Role Config'!B60 -> 0 | N53: ='Capacity - Shift Config'!B54& " ("&TEXT('Capacity - Shift Config'!C54,"hh:mm")&" - "&TEXT('Capacity - Shift Config'!D54,"hh:mm")&")" -> (00:00 - 00:00) | AO53: 2019-05-15T02:00:00 | AW53: Wednesday | AX53: 02:00:00 | BB53: 02:00:00 | BH53: 2017-03-01T02:00:00
C54: EAST MIDLANDS AMBULANCE SERVICE NHS TRUST | L54: ='Capacity - Role Config'!B61 -> 0 | N54: ='Capacity - Shift Config'!B55& " ("&TEXT('Capacity - Shift Config'!C55,"hh:mm")&" - "&TEXT('Capacity - Shift Config'!D55,"hh:mm")&")" -> (00:00 - 00:00) | AO54: 2019-05-15T03:00:00 | AW54: Wednesday | AX54: 03:00:00 | BB54: 03:00:00 | BH54: 2017-03-01T03:00:00
C55: EAST OF ENGLAND AMBULANCE SERVICE NHS TRUST | L55: ='Capacity - Role Config'!B62 -> 0 | N55: ='Capacity - Shift Config'!B56& " ("&TEXT('Capacity - Shift Config'!C56,"hh:mm")&" - "&TEXT('Capacity - Shift Config'!D56,"hh:mm")&")" -> (00:00 - 00:00) | AO55: 2019-05-15T04:00:00 | AW55: Wednesday | AX55: 04:00:00 | BB55: 04:00:00 | BH55: 2017-03-01T04:00:00
C56: EAST SUFFOLK AND NORTH ESSEX NHS FOUNDATION TRUST | L56: ='Capacity - Role Config'!B63 -> 0 | N56: ='Capacity - Shift Config'!B57& " ("&TEXT('Capacity - Shift Config'!C57,"hh:mm")&" - "&TEXT('Capacity - Shift Config'!D57,"hh:mm")&")" -> (00:00 - 00:00) | AO56: 2019-05-15T05:00:00 | AW56: Wednesday | AX56: 05:00:00 | BB56: 05:00:00 | BH56: 2017-03-01T05:00:00
C57: EAST SUSSEX HEALTHCARE NHS TRUST | L57: ='Capacity - Role Config'!B64 -> 0 | N57: ='Capacity - Shift Config'!B58& " ("&TEXT('Capacity - Shift Config'!C58,"hh:mm")&" - "&TEXT('Capacity - Shift Config'!D58,"hh:mm")&")" -> (00:00 - 00:00) | AO57: 2019-05-15T06:00:00 | AW57: Wednesday | AX57: 06:00:00 | BB57: 06:00:00 | BH57: 2017-03-01T06:00:00
C58: EPSOM AND ST HELIER UNIVERSITY HOSPITALS NHS TRUST | L58: ='Capacity - Role Config'!B65 -> 0 | N58: ='Capacity - Shift Config'!B59& " ("&TEXT('Capacity - Shift Config'!C59,"hh:mm")&" - "&TEXT('Capacity - Shift Config'!D59,"hh:mm")&")" -> (00:00 - 00:00) | AO58: 2019-05-15T07:00:00 | AW58: Wednesday | AX58: 07:00:00 | BB58: 07:00:00 | BH58: 2017-03-01T07:00:00
C59: ESSEX PARTNERSHIP UNIVERSITY NHS FOUNDATION TRUST | L59: ='Capacity - Role Config'!B66 -> 0 | N59: ='Capacity - Shift Config'!B60& " ("&TEXT('Capacity - Shift Config'!C60,"hh:mm")&" - "&TEXT('Capacity - Shift Config'!D60,"hh:mm")&")" -> (00:00 - 00:00) | AO59: 2019-05-15T08:00:00 | AW59: Wednesday | AX59: 08:00:00 | BB59: 08:00:00 | BH59: 2017-03-01T08:00:00
C60: FRIMLEY HEALTH NHS FOUNDATION TRUST | L60: ='Capacity - Role Config'!B67 -> 0 | N60: ='Capacity - Shift Config'!B61& " ("&TEXT('Capacity - Shift Config'!C61,"hh:mm")&" - "&TEXT('Capacity - Shift Config'!D61,"hh:mm")&")" -> (00:00 - 00:00) | AO60: 2019-05-15T09:00:00 | AW60: Wednesday | AX60: 09:00:00 | BB60: 09:00:00 | BH60: 2017-03-01T09:00:00
C61: GATESHEAD HEALTH NHS FOUNDATION TRUST | L61: ='Capacity - Role Config'!B68 -> 0 | N61: ='Capacity - Shift Config'!B62& " ("&TEXT('Capacity - Shift Config'!C62,"hh:mm")&" - "&TEXT('Capacity - Shift Config'!D62,"hh:mm")&")" -> (00:00 - 00:00) | AO61: 2019-05-15T10:00:00 | AW61: Wednesday | AX61: 10:00:00 | BB61: 10:00:00 | BH61: 2017-03-01T10:00:00
C62: GEORGE ELIOT HOSPITAL NHS TRUST | L62: ='Capacity - Role Config'!B69 -> 0 | N62: ='Capacity - Shift Config'!B63& " ("&TEXT('Capacity - Shift Config'!C63,"hh:mm")&" - "&TEXT('Capacity - Shift Config'!D63,"hh:mm")&")" -> (00:00 - 00:00) | AO62: 2019-05-15T11:00:00 | AW62: Wednesday | AX62: 11:00:00 | BB62: 11:00:00 | BH62: 2017-03-01T11:00:00
C63: GLOUCESTERSHIRE CARE SERVICES NHS TRUST | L63: ='Capacity - Role Config'!B70 -> 0 | N63: ='Capacity - Shift Config'!B64& " ("&TEXT('Capacity - Shift Config'!C64,"hh:mm")&" - "&TEXT('Capacity - Shift Config'!D64,"hh:mm")&")" -> (00:00 - 00:00) | AO63: 2019-05-15T12:00:00 | AW63: Wednesday | AX63: 12:00:00 | BB63: 12:00:00 | BH63: 2017-03-01T12:00:00
C64: GLOUCESTERSHIRE HOSPITALS NHS FOUNDATION TRUST | L64: ='Capacity - Role Config'!B71 -> 0 | N64: ='Capacity - Shift Config'!B65& " ("&TEXT('Capacity - Shift Config'!C65,"hh:mm")&" - "&TEXT('Capacity - Shift Config'!D65,"hh:mm")&")" -> (00:00 - 00:00) | AO64: 2019-05-15T13:00:00 | AW64: Wednesday | AX64: 13:00:00 | BB64: 13:00:00 | BH64: 2017-03-01T13:00:00
C65: GREAT ORMOND STREET HOSPITAL FOR CHILDREN NHS FOUNDATION TRUST | L65: ='Capacity - Role Config'!B72 -> 0 | N65: ='Capacity - Shift Config'!B66& " ("&TEXT('Capacity - Shift Config'!C66,"hh:mm")&" - "&TEXT('Capacity - Shift Config'!D66,"hh:mm")&")" -> (00:00 - 00:00) | AO65: 2019-05-15T14:00:00 | AW65: Wednesday | AX65: 14:00:00 | BB65: 14:00:00 | BH65: 2017-03-01T14:00:00
C66: GREAT WESTERN HOSPITALS NHS FOUNDATION TRUST | L66: ='Capacity - Role Config'!B73 -> 0 | N66: ='Capacity - Shift Config'!B67& " ("&TEXT('Capacity - Shift Config'!C67,"hh:mm")&" - "&TEXT('Capacity - Shift Config'!D67,"hh:mm")&")" -> (00:00 - 00:00) | AO66: 2019-05-15T15:00:00 | AW66: Wednesday | AX66: 15:00:00 | BB66: 15:00:00 | BH66: 2017-03-01T15:00:00
C67: GREATER MANCHESTER MENTAL HEALTH NHS FOUNDATION TRUST | L67: ='Capacity - Role Config'!B74 -> 0 | N67: ='Capacity - Shift Config'!B68& " ("&TEXT('Capacity - Shift Config'!C68,"hh:mm")&" - "&TEXT('Capacity - Shift Config'!D68,"hh:mm")&")" -> (00:00 - 00:00) | AO67: 2019-05-15T16:00:00 | AW67: Wednesday | AX67: 16:00:00 | BB67: 16:00:00 | BH67: 2017-03-01T16:00:00
C68: GUY'S AND ST THOMAS' NHS FOUNDATION TRUST | L68: ='Capacity - Role Config'!B75 -> 0 | N68: ='Capacity - Shift Config'!B69& " ("&TEXT('Capacity - Shift Config'!C69,"hh:mm")&" - "&TEXT('Capacity - Shift Config'!D69,"hh:mm")&")" -> (00:00 - 00:00) | AO68: 2019-05-15T17:00:00 | AW68: =TEXT(AO68,"DDDD") -> Wednesday | AX68: =TIME(HOUR(AO68),MINUTE(AO68),0) -> 17:00:00 | AZ68: =IFERROR(INDEX($AQ$3:$AS$9,MATCH(BA68,$AS$3:$AS$9,0),1),"") ->  | BA68: =IF(BB68=0,AW68,"") ->  | BB68: =AX68 -> 17:00:00 | BH68: 2017-03-01T17:00:00
C69: HAMPSHIRE HOSPITALS NHS FOUNDATION TRUST | L69: ='Capacity - Role Config'!B76 -> 0 | N69: ='Capacity - Shift Config'!B70& " ("&TEXT('Capacity - Shift Config'!C70,"hh:mm")&" - "&TEXT('Capacity - Shift Config'!D70,"hh:mm")&")" -> (00:00 - 00:00) | AO69: =AO68+1/24 -> 2019-05-15T18:00:00 | AW69: Wednesday | AX69: 18:00:00 | BB69: 18:00:00 | BH69: =BH68+1/24 -> 2017-03-01T18:00:00
C70: HARROGATE AND DISTRICT NHS FOUNDATION TRUST | L70: ='Capacity - Role Config'!B77 -> 0 | N70: ='Capacity - Shift Config'!B71& " ("&TEXT('Capacity - Shift Config'!C71,"hh:mm")&" - "&TEXT('Capacity - Shift Config'!D71,"hh:mm")&")" -> (00:00 - 00:00) | AO70: 2019-05-15T19:00:00 | AW70: Wednesday | AX70: 19:00:00 | BB70: 19:00:00 | BH70: 2017-03-01T19:00:00
C71: HERTFORDSHIRE COMMUNITY NHS TRUST | L71: ='Capacity - Role Config'!B78 -> 0 | N71: ='Capacity - Shift Config'!B72& " ("&TEXT('Capacity - Shift Config'!C72,"hh:mm")&" - "&TEXT('Capacity - Shift Config'!D72,"hh:mm")&")" -> (00:00 - 00:00) | AO71: 2019-05-15T20:00:00 | AW71: Wednesday | AX71: 20:00:00 | BB71: 20:00:00 | BH71: 2017-03-01T20:00:00
C72: HERTFORDSHIRE PARTNERSHIP UNIVERSITY NHS FOUNDATION TRUST | L72: ='Capacity - Role Config'!B79 -> 0 | N72: ='Capacity - Shift Config'!B73& " ("&TEXT('Capacity - Shift Config'!C73,"hh:mm")&" - "&TEXT('Capacity - Shift Config'!D73,"hh:mm")&")" -> (00:00 - 00:00) | AO72: 2019-05-15T21:00:00 | AW72: Wednesday | AX72: 21:00:00 | BB72: 21:00:00 | BH72: 2017-03-01T21:00:00
C73: HOMERTON UNIVERSITY HOSPITAL NHS FOUNDATION TRUST | L73: ='Capacity - Role Config'!B80 -> 0 | N73: ='Capacity - Shift Config'!B74& " ("&TEXT('Capacity - Shift Config'!C74,"hh:mm")&" - "&TEXT('Capacity - Shift Config'!D74,"hh:mm")&")" -> (00:00 - 00:00) | AO73: 2019-05-15T22:00:00 | AW73: Wednesday | AX73: 22:00:00 | BB73: 22:00:00 | BH73: 2017-03-01T22:00:00
C74: HOUNSLOW AND RICHMOND COMMUNITY HEALTHCARE NHS TRUST | L74: ='Capacity - Role Config'!B81 -> 0 | N74: ='Capacity - Shift Config'!B75& " ("&TEXT('Capacity - Shift Config'!C75,"hh:mm")&" - "&TEXT('Capacity - Shift Config'!D75,"hh:mm")&")" -> (00:00 - 00:00) | AO74: 2019-05-15T23:00:00 | AW74: Wednesday | AX74: 23:00:00 | BB74: 23:00:00 | BH74: 2017-03-01T23:00:00
C75: HULL UNIVERSITY TEACHING HOSPITALS NHS TRUST | L75: ='Capacity - Role Config'!B82 -> 0 | N75: ='Capacity - Shift Config'!B76& " ("&TEXT('Capacity - Shift Config'!C76,"hh:mm")&" - "&TEXT('Capacity - Shift Config'!D76,"hh:mm")&")" -> (00:00 - 00:00) | AO75: 2019-05-16 | AW75: Thursday | AX75: 00:00:00 | AZ75: 2019-05-16 | BA75: Thursday | BB75: 00:00:00 | BH75: 2017-03-02
C76: HUMBER TEACHING NHS FOUNDATION TRUST | L76: ='Capacity - Role Config'!B83 -> 0 | N76: ='Capacity - Shift Config'!B77& " ("&TEXT('Capacity - Shift Config'!C77,"hh:mm")&" - "&TEXT('Capacity - Shift Config'!D77,"hh:mm")&")" -> (00:00 - 00:00) | AO76: 2019-05-16T01:00:00 | AW76: Thursday | AX76: 01:00:00 | BB76: 01:00:00 | BH76: 2017-03-02T01:00:00
C77: IMPERIAL COLLEGE HEALTHCARE NHS TRUST | L77: ='Capacity - Role Config'!B84 -> 0 | N77: ='Capacity - Shift Config'!B78& " ("&TEXT('Capacity - Shift Config'!C78,"hh:mm")&" - "&TEXT('Capacity - Shift Config'!D78,"hh:mm")&")" -> (00:00 - 00:00) | AO77: 2019-05-16T02:00:00 | AW77: Thursday | AX77: 02:00:00 | BB77: 02:00:00 | BH77: 2017-03-02T02:00:00
C78: ISLE OF WIGHT NHS TRUST | L78: ='Capacity - Role Config'!B85 -> 0 | N78: ='Capacity - Shift Config'!B79& " ("&TEXT('Capacity - Shift Config'!C79,"hh:mm")&" - "&TEXT('Capacity - Shift Config'!D79,"hh:mm")&")" -> (00:00 - 00:00) | AO78: 2019-05-16T03:00:00 | AW78: Thursday | AX78: 03:00:00 | BB78: 03:00:00 | BH78: 2017-03-02T03:00:00
C79: JAMES PAGET UNIVERSITY HOSPITALS NHS FOUNDATION TRUST | L79: ='Capacity - Role Config'!B86 -> 0 | N79: ='Capacity - Shift Config'!B80& " ("&TEXT('Capacity - Shift Config'!C80,"hh:mm")&" - "&TEXT('Capacity - Shift Config'!D80,"hh:mm")&")" -> (00:00 - 00:00) | AO79: 2019-05-16T04:00:00 | AW79: Thursday | AX79: 04:00:00 | BB79: 04:00:00 | BH79: 2017-03-02T04:00:00
C80: KENT AND MEDWAY NHS AND SOCIAL CARE PARTNERSHIP TRUST | L80: ='Capacity - Role Config'!B87 -> 0 | N80: ='Capacity - Shift Config'!B81& " ("&TEXT('Capacity - Shift Config'!C81,"hh:mm")&" - "&TEXT('Capacity - Shift Config'!D81,"hh:mm")&")" -> (00:00 - 00:00) | AO80: 2019-05-16T05:00:00 | AW80: Thursday | AX80: 05:00:00 | BB80: 05:00:00 | BH80: 2017-03-02T05:00:00
C81: KENT COMMUNITY HEALTH NHS FOUNDATION TRUST | L81: ='Capacity - Role Config'!B88 -> 0 | N81: ='Capacity - Shift Config'!B82& " ("&TEXT('Capacity - Shift Config'!C82,"hh:mm")&" - "&TEXT('Capacity - Shift Config'!D82,"hh:mm")&")" -> (00:00 - 00:00) | AO81: 2019-05-16T06:00:00 | AW81: Thursday | AX81: 06:00:00 | BB81: 06:00:00 | BH81: 2017-03-02T06:00:00
C82: KETTERING GENERAL HOSPITAL NHS FOUNDATION TRUST | L82: ='Capacity - Role Config'!B89 -> 0 | N82: ='Capacity - Shift Config'!B83& " ("&TEXT('Capacity - Shift Config'!C83,"hh:mm")&" - "&TEXT('Capacity - Shift Config'!D83,"hh:mm")&")" -> (00:00 - 00:00) | AO82: 2019-05-16T07:00:00 | AW82: Thursday | AX82: 07:00:00 | BB82: 07:00:00 | BH82: 2017-03-02T07:00:00
C83: KING'S COLLEGE HOSPITAL NHS FOUNDATION TRUST | L83: ='Capacity - Role Config'!B90 -> 0 | N83: ='Capacity - Shift Config'!B84& " ("&TEXT('Capacity - Shift Config'!C84,"hh:mm")&" - "&TEXT('Capacity - Shift Config'!D84,"hh:mm")&")" -> (00:00 - 00:00) | AO83: 2019-05-16T08:00:00 | AW83: Thursday | AX83: 08:00:00 | BB83: 08:00:00 | BH83: 2017-03-02T08:00:00
C84: KINGSTON HOSPITAL NHS FOUNDATION TRUST | L84: ='Capacity - Role Config'!B91 -> 0 | N84: ='Capacity - Shift Config'!B85& " ("&TEXT('Capacity - Shift Config'!C85,"hh:mm")&" - "&TEXT('Capacity - Shift Config'!D85,"hh:mm")&")" -> (00:00 - 00:00) | AO84: 2019-05-16T09:00:00 | AW84: Thursday | AX84: 09:00:00 | BB84: 09:00:00 | BH84: 2017-03-02T09:00:00
C85: LANCASHIRE CARE NHS FOUNDATION TRUST | L85: ='Capacity - Role Config'!B92 -> 0 | N85: ='Capacity - Shift Config'!B86& " ("&TEXT('Capacity - Shift Config'!C86,"hh:mm")&" - "&TEXT('Capacity - Shift Config'!D86,"hh:mm")&")" -> (00:00 - 00:00) | AO85: 2019-05-16T10:00:00 | AW85: Thursday | AX85: 10:00:00 | BB85: 10:00:00 | BH85: 2017-03-02T10:00:00
C86: LANCASHIRE TEACHING HOSPITALS NHS FOUNDATION TRUST | L86: ='Capacity - Role Config'!B93 -> 0 | N86: ='Capacity - Shift Config'!B87& " ("&TEXT('Capacity - Shift Config'!C87,"hh:mm")&" - "&TEXT('Capacity - Shift Config'!D87,"hh:mm")&")" -> (00:00 - 00:00) | AO86: 2019-05-16T11:00:00 | AW86: Thursday | AX86: 11:00:00 | BB86: 11:00:00 | BH86: 2017-03-02T11:00:00
C87: LEEDS AND YORK PARTNERSHIP NHS FOUNDATION TRUST | L87: ='Capacity - Role Config'!B94 -> 0 | N87: ='Capacity - Shift Config'!B88& " ("&TEXT('Capacity - Shift Config'!C88,"hh:mm")&" - "&TEXT('Capacity - Shift Config'!D88,"hh:mm")&")" -> (00:00 - 00:00) | AO87: 2019-05-16T12:00:00 | AW87: Thursday | AX87: 12:00:00 | BB87: 12:00:00 | BH87: 2017-03-02T12:00:00
C88: LEEDS COMMUNITY HEALTHCARE NHS TRUST | L88: ='Capacity - Role Config'!B95 -> 0 | N88: ='Capacity - Shift Config'!B89& " ("&TEXT('Capacity - Shift Config'!C89,"hh:mm")&" - "&TEXT('Capacity - Shift Config'!D89,"hh:mm")&")" -> (00:00 - 00:00) | AO88: 2019-05-16T13:00:00 | AW88: Thursday | AX88: 13:00:00 | BB88: 13:00:00 | BH88: 2017-03-02T13:00:00
C89: LEEDS TEACHING HOSPITALS NHS TRUST | L89: ='Capacity - Role Config'!B96 -> 0 | N89: ='Capacity - Shift Config'!B90& " ("&TEXT('Capacity - Shift Config'!C90,"hh:mm")&" - "&TEXT('Capacity - Shift Config'!D90,"hh:mm")&")" -> (00:00 - 00:00) | AO89: 2019-05-16T14:00:00 | AW89: Thursday | AX89: 14:00:00 | BB89: 14:00:00 | BH89: 2017-03-02T14:00:00
C90: LEICESTERSHIRE PARTNERSHIP NHS TRUST | L90: ='Capacity - Role Config'!B97 -> 0 | N90: ='Capacity - Shift Config'!B91& " ("&TEXT('Capacity - Shift Config'!C91,"hh:mm")&" - "&TEXT('Capacity - Shift Config'!D91,"hh:mm")&")" -> (00:00 - 00:00) | AO90: 2019-05-16T15:00:00 | AW90: Thursday | AX90: 15:00:00 | BB90: 15:00:00 | BH90: 2017-03-02T15:00:00
C91: LEWISHAM AND GREENWICH NHS TRUST | L91: ='Capacity - Role Config'!B98 -> 0 | N91: ='Capacity - Shift Config'!B92& " ("&TEXT('Capacity - Shift Config'!C92,"hh:mm")&" - "&TEXT('Capacity - Shift Config'!D92,"hh:mm")&")" -> (00:00 - 00:00) | AO91: 2019-05-16T16:00:00 | AW91: Thursday | AX91: 16:00:00 | BB91: 16:00:00 | BH91: 2017-03-02T16:00:00
C92: LINCOLNSHIRE COMMUNITY HEALTH SERVICES NHS TRUST | L92: ='Capacity - Role Config'!B99 -> 0 | N92: ='Capacity - Shift Config'!B93& " ("&TEXT('Capacity - Shift Config'!C93,"hh:mm")&" - "&TEXT('Capacity - Shift Config'!D93,"hh:mm")&")" -> (00:00 - 00:00) | AO92: 2019-05-16T17:00:00 | AW92: Thursday | AX92: 17:00:00 | BB92: 17:00:00 | BH92: 2017-03-02T17:00:00
C93: LINCOLNSHIRE PARTNERSHIP NHS FOUNDATION TRUST | L93: ='Capacity - Role Config'!B100 -> 0 | N93: ='Capacity - Shift Config'!B94& " ("&TEXT('Capacity - Shift Config'!C94,"hh:mm")&" - "&TEXT('Capacity - Shift Config'!D94,"hh:mm")&")" -> (00:00 - 00:00) | AO93: 2019-05-16T18:00:00 | AW93: Thursday | AX93: 18:00:00 | BB93: 18:00:00 | BH93: 2017-03-02T18:00:00
C94: LIVERPOOL HEART AND CHEST HOSPITAL NHS FOUNDATION TRUST | L94: ='Capacity - Role Config'!B101 -> 0 | N94: ='Capacity - Shift Config'!B95& " ("&TEXT('Capacity - Shift Config'!C95,"hh:mm")&" - "&TEXT('Capacity - Shift Config'!D95,"hh:mm")&")" -> (00:00 - 00:00) | AO94: 2019-05-16T19:00:00 | AW94: Thursday | AX94: 19:00:00 | BB94: 19:00:00 | BH94: 2017-03-02T19:00:00
C95: LIVERPOOL WOMEN'S NHS FOUNDATION TRUST | L95: ='Capacity - Role Config'!B102 -> 0 | N95: ='Capacity - Shift Config'!B96& " ("&TEXT('Capacity - Shift Config'!C96,"hh:mm")&" - "&TEXT('Capacity - Shift Config'!D96,"hh:mm")&")" -> (00:00 - 00:00) | AO95: 2019-05-16T20:00:00 | AW95: Thursday | AX95: 20:00:00 | BB95: 20:00:00 | BH95: 2017-03-02T20:00:00
C96: LONDON AMBULANCE SERVICE NHS TRUST | L96: ='Capacity - Role Config'!B103 -> 0 | N96: ='Capacity - Shift Config'!B97& " ("&TEXT('Capacity - Shift Config'!C97,"hh:mm")&" - "&TEXT('Capacity - Shift Config'!D97,"hh:mm")&")" -> (00:00 - 00:00) | AO96: 2019-05-16T21:00:00 | AW96: Thursday | AX96: 21:00:00 | BB96: 21:00:00 | BH96: 2017-03-02T21:00:00
C97: LONDON NORTH WEST UNIVERSITY HEALTHCARE NHS TRUST | L97: ='Capacity - Role Config'!B104 -> 0 | N97: ='Capacity - Shift Config'!B98& " ("&TEXT('Capacity - Shift Config'!C98,"hh:mm")&" - "&TEXT('Capacity - Shift Config'!D98,"hh:mm")&")" -> (00:00 - 00:00) | AO97: 2019-05-16T22:00:00 | AW97: Thursday | AX97: 22:00:00 | BB97: 22:00:00 | BH97: 2017-03-02T22:00:00
C98: LUTON AND DUNSTABLE UNIVERSITY HOSPITAL NHS FOUNDATION TRUST | L98: ='Capacity - Role Config'!B105 -> 0 | N98: ='Capacity - Shift Config'!B99& " ("&TEXT('Capacity - Shift Config'!C99,"hh:mm")&" - "&TEXT('Capacity - Shift Config'!D99,"hh:mm")&")" -> (00:00 - 00:00) | AO98: 2019-05-16T23:00:00 | AW98: Thursday | AX98: 23:00:00 | BB98: 23:00:00 | BH98: 2017-03-02T23:00:00
C99: MAIDSTONE AND TUNBRIDGE WELLS NHS TRUST | L99: ='Capacity - Role Config'!B106 -> 0 | N99: ='Capacity - Shift Config'!B100& " ("&TEXT('Capacity - Shift Config'!C100,"hh:mm")&" - "&TEXT('Capacity - Shift Config'!D100,"hh:mm")&")" -> (00:00 - 00:00) | AO99: 2019-05-17 | AW99: Friday | AX99: 00:00:00 | AZ99: 2019-05-17 | BA99: Friday | BB99: 00:00:00 | BH99: 2017-03-03
C100: MANCHESTER UNIVERSITY NHS FOUNDATION TRUST | L100: ='Capacity - Role Config'!B107 -> 0 | N100: ='Capacity - Shift Config'!B101& " ("&TEXT('Capacity - Shift Config'!C101,"hh:mm")&" - "&TEXT('Capacity - Shift Config'!D101,"hh:mm")&")" -> (00:00 - 00:00) | AO100: 2019-05-17T01:00:00 | AW100: Friday | AX100: 01:00:00 | BA100: =IF(BB100=0,AW100,"") ->  | BB100: =AX100 -> 01:00:00 | BH100: 2017-03-03T01:00:00
C101: MEDWAY NHS FOUNDATION TRUST | L101: ='Capacity - Role Config'!B108 -> 0 | N101: ='Capacity - Shift Config'!B102& " ("&TEXT('Capacity - Shift Config'!C102,"hh:mm")&" - "&TEXT('Capacity - Shift Config'!D102,"hh:mm")&")" -> (00:00 - 00:00) | AO101: 2019-05-17T02:00:00 | AW101: Friday | AX101: 02:00:00 | BB101: 02:00:00 | BH101: 2017-03-03T02:00:00
C102: MERSEY CARE NHS FOUNDATION TRUST | L102: ='Capacity - Role Config'!B109 -> 0 | N102: ='Capacity - Shift Config'!B103& " ("&TEXT('Capacity - Shift Config'!C103,"hh:mm")&" - "&TEXT('Capacity - Shift Config'!D103,"hh:mm")&")" -> (00:00 - 00:00) | AO102: 2019-05-17T03:00:00 | AW102: Friday | AX102: 03:00:00 | BB102: 03:00:00 | BH102: 2017-03-03T03:00:00
C103: MID CHESHIRE HOSPITALS NHS FOUNDATION TRUST | L103: ='Capacity - Role Config'!B110 -> 0 | N103: ='Capacity - Shift Config'!B104& " ("&TEXT('Capacity - Shift Config'!C104,"hh:mm")&" - "&TEXT('Capacity - Shift Config'!D104,"hh:mm")&")" -> (00:00 - 00:00) | AO103: 2019-05-17T04:00:00 | AW103: Friday | AX103: 04:00:00 | BB103: 04:00:00 | BH103: 2017-03-03T04:00:00
C104: MID ESSEX HOSPITAL SERVICES NHS TRUST | N104: ='Capacity - Shift Config'!B105& " ("&TEXT('Capacity - Shift Config'!C105,"hh:mm")&" - "&TEXT('Capacity - Shift Config'!D105,"hh:mm")&")" -> (00:00 - 00:00) | AO104: 2019-05-17T05:00:00 | AW104: Friday | AX104: 05:00:00 | BB104: 05:00:00 | BH104: 2017-03-03T05:00:00
C105: MID STAFFORDSHIRE NHS FOUNDATION TRUST | AO105: 2019-05-17T06:00:00 | AW105: Friday | AX105: 06:00:00 | BB105: 06:00:00 | BH105: 2017-03-03T06:00:00
C106: MID YORKSHIRE HOSPITALS NHS TRUST | AO106: 2019-05-17T07:00:00 | AW106: Friday | AX106: 07:00:00 | BB106: 07:00:00 | BH106: 2017-03-03T07:00:00
C107: MIDLANDS PARTNERSHIP NHS FOUNDATION TRUST | AO107: 2019-05-17T08:00:00 | AW107: Friday | AX107: 08:00:00 | BB107: 08:00:00 | BH107: 2017-03-03T08:00:00
C108: MILTON KEYNES UNIVERSITY HOSPITAL NHS FOUNDATION TRUST | AO108: 2019-05-17T09:00:00 | AW108: Friday | AX108: 09:00:00 | BB108: 09:00:00 | BH108: 2017-03-03T09:00:00
C109: MOORFIELDS EYE HOSPITAL NHS FOUNDATION TRUST | AO109: 2019-05-17T10:00:00 | AW109: Friday | AX109: 10:00:00 | BB109: 10:00:00 | BH109: 2017-03-03T10:00:00
C110: NORFOLK AND NORWICH UNIVERSITY HOSPITALS NHS FOUNDATION TRUST | AO110: 2019-05-17T11:00:00 | AW110: Friday | AX110: 11:00:00 | BB110: 11:00:00 | BH110: 2017-03-03T11:00:00
C111: NORFOLK AND SUFFOLK NHS FOUNDATION TRUST | AO111: 2019-05-17T12:00:00 | AW111: Friday | AX111: 12:00:00 | BB111: 12:00:00 | BH111: 2017-03-03T12:00:00
C112: NORFOLK COMMUNITY HEALTH AND CARE NHS TRUST | AO112: 2019-05-17T13:00:00 | AW112: Friday | AX112: 13:00:00 | BB112: 13:00:00 | BH112: 2017-03-03T13:00:00
C113: NORTH BRISTOL NHS TRUST | AO113: 2019-05-17T14:00:00 | AW113: Friday | AX113: 14:00:00 | BB113: 14:00:00 | BH113: 2017-03-03T14:00:00
C114: NORTH CUMBRIA UNIVERSITY HOSPITALS NHS TRUST | AO114: 2019-05-17T15:00:00 | AW114: Friday | AX114: 15:00:00 | BB114: 15:00:00 | BH114: 2017-03-03T15:00:00
C115: NORTH EAST AMBULANCE SERVICE NHS FOUNDATION TRUST | AO115: 2019-05-17T16:00:00 | AW115: Friday | AX115: 16:00:00 | BB115: 16:00:00 | BH115: 2017-03-03T16:00:00
C116: NORTH EAST LONDON NHS FOUNDATION TRUST | AO116: 2019-05-17T17:00:00 | AW116: Friday | AX116: 17:00:00 | BB116: 17:00:00 | BH116: 2017-03-03T17:00:00
C117: NORTH MIDDLESEX UNIVERSITY HOSPITAL NHS TRUST | AO117: 2019-05-17T18:00:00 | AW117: Friday | AX117: 18:00:00 | BB117: 18:00:00 | BH117: 2017-03-03T18:00:00
C118: NORTH STAFFORDSHIRE COMBINED HEALTHCARE NHS TRUST | AO118: 2019-05-17T19:00:00 | AW118: Friday | AX118: 19:00:00 | BB118: 19:00:00 | BH118: 2017-03-03T19:00:00
C119: NORTH TEES AND HARTLEPOOL NHS FOUNDATION TRUST | AO119: 2019-05-17T20:00:00 | AW119: Friday | AX119: 20:00:00 | BB119: 20:00:00 | BH119: 2017-03-03T20:00:00
C120: NORTH WEST AMBULANCE SERVICE NHS TRUST | AO120: 2019-05-17T21:00:00 | AW120: Friday | AX120: 21:00:00 | BB120: 21:00:00 | BH120: 2017-03-03T21:00:00
C121: NORTH WEST ANGLIA NHS FOUNDATION TRUST | AO121: 2019-05-17T22:00:00 | AW121: Friday | AX121: 22:00:00 | BB121: 22:00:00 | BH121: 2017-03-03T22:00:00
C122: NORTH WEST BOROUGHS HEALTHCARE NHS FOUNDATION TRUST | AO122: 2019-05-17T23:00:00 | AW122: Friday | AX122: 23:00:00 | BB122: 23:00:00 | BH122: 2017-03-03T23:00:00
C123: NORTHAMPTON GENERAL HOSPITAL NHS TRUST | AO123: 2019-05-18 | AW123: Saturday | AX123: 00:00:00 | AZ123: 2019-05-18 | BA123: Saturday | BB123: 00:00:00 | BH123: 2017-03-04
C124: NORTHAMPTONSHIRE HEALTHCARE NHS FOUNDATION TRUST | AO124: 2019-05-18T01:00:00 | AW124: Saturday | AX124: 01:00:00 | BB124: 01:00:00 | BH124: 2017-03-04T01:00:00
C125: NORTHERN DEVON HEALTHCARE NHS TRUST | AO125: 2019-05-18T02:00:00 | AW125: Saturday | AX125: 02:00:00 | BB125: 02:00:00 | BH125: 2017-03-04T02:00:00
... 156 more rows

Sheet Demand Analysis
B3: View Stream: | C3: Majors
B5: View As: | C5: Decision Making Time - Hours | D5: =MATCH(C5,'Data Valid Backing (H)'!AU3:AU4,0)-1 -> 1 | E5: =IF(C5="Decision Making Time - Hours","Decision Making Time - Hours","Attendances (Patients)") -> Decision Making Time - Hours | F5: ="Demand analysis: forecasted "&IF(C5="Decision Making Time - Hours","decision making time (hours)","Attendances (Patients)")&" for the next 7 days (85% confidence range) for stream "&C3&", by hour" -> Demand analysis: forecasted decision making time (hours) for the next 7 days (85% confidence range) for stream Majors, by hour
F6: =IF(C5="Decision Making Time - Hours","Average decision making time - hours","Average Forecasted Contacts (Patients)") -> Average decision making time - hours

Sheet Capacity - Shift Config
B1: Shift setup | K1: Import Data
B2: Enter your shift patterns (start/end times) below. New shift types can be added by typing a shift type name immediately below an existing shift type. Up to 100 different shifts can be used, and you can split each shift into 3 periods, including breaks. Note: You can also rename each period if you want. | K2: If you have used the DCC Establishment Calculator and extracted the information, it can be imported here. Please only use files created by the DCC Establishment Calculator tool (they will be in the format "Capacity Export dd/mm/yyyy .csv"). Ensure stream names are consistent between the two files.
A3: =COUNTIF(B5:B104,"<>"&"") -> 4 | E3: Period 1 | G3: Period 2 | I3: Period 3
A4: =MAX(1,MAX(A5:A104)) -> 4 | B4: Shift Type | C4: From | D4: To | E4: Start | F4: End | G4: Start | H4: End | I4: Start | J4: End
A5: =IF(B5<>"",1,0) -> 1 | B5: All day | C5: 08:00:00 | D5: 21:00:00 | E5: 12:00:00 | F5: 13:00:00 | K5: =OFFSET('Data Valid Backing (H)'!$BU$4,($I5*24)+1,0,24,1) -> 0.04166666667
A6: =IF(B6<>"",A5+1,0) -> 2 | B6: Early | C6: 06:00:00 | D6: 18:00:00 | K6: 0.08333333333
A7: =IF(B7<>"",A6+1,0) -> 3 | B7: Late | C7: 10:00:00 | D7: 22:00:00 | K7: 0.125
A8: 4 | B8: Overnight | C8: 21:00:00 | D8: 07:00:00 | K8: 0.1666666667
A9: 0 | K9: 0.2083333333
A10: 0 | K10: 0.25
A11: 0 | K11: 0.2916666667
A12: 0 | K12: 0.3333333333
A13: 0 | K13: 0.375
A14: 0 | K14: 0.4166666667
A15: 0 | K15: 0.4583333333
A16: 0 | K16: 0.5
A17: 0 | K17: 0.5416666667
A18: 0 | K18: 0.5833333333
A19: 0 | K19: 0.625
A20: 0 | K20: 0.6666666667
A21: 0 | K21: 0.7083333333
A22: 0 | K22: 0.75
A23: 0 | K23: 0.7916666667
A24: 0 | K24: 0.8333333333
A25: 0 | K25: 0.875
A26: 0 | K26: 0.9166666667
A27: 0 | K27: 0.9583333333
A28: 0 | K28: 1
A29: 0
A30: 0
A31: 0
A32: 0
A33: 0
A34: 0
A35: 0
A36: 0
A37: 0
A38: 0
A39: 0
A40: 0
A41: 0
A42: 0
A43: 0
A44: 0
A45: 0
A46: 0
A47: 0
A48: =IF(B48<>"",A47+1,0) -> 0
A49: =IF(B49<>"",A48+1,0) -> 0
A50: 0
A51: 0
A52: 0
A53: 0
A54: 0
A55: 0
A56: 0
A57: 0
A58: 0
A59: 0
A60: 0
A61: 0
A62: 0
A63: 0
A64: 0
A65: 0
A66: 0
A67: 0
A68: 0
A69: 0
A70: 0
A71: 0
A72: 0
A73: 0
A74: 0
A75: 0
A76: 0
A77: 0
A78: 0
A79: 0
A80: 0
A81: 0
A82: 0
A83: 0
A84: 0
A85: 0
A86: 0
A87: 0
A88: 0
A89: 0
A90: 0
A91: 0
A92: 0
A93: 0
A94: 0
A95: 0
A96: 0
A97: 0
A98: 0
A99: 0
A100: 0
A101: 0
A102: 0
A103: 0
A104: 0

Sheet Shift and role config (H) (hidden)
A1: New table for shift and role configurations | L1: For chart | Y1: For calculation
A2: Shift Layout Table | D2: Break1 | F2: Break2 | H2: Break3 | AQ2: Rota build
A3: Shift Type | B3: Start | C3: End | D3: Start | E3: End | F3: Start | G3: End | H3: Start | I3: End | L3: Start1 | M3: End1 | N3: Break1 | O3: End2 | P3: Break2 | Q3: End3 | R3: Break3 | S3: End4 | Y3: Start1 | Z3: End1 | AA3: Break1 | AB3: End2 | AC3: Break2 | AD3: End3 | AE3: Break3 | AF3: End4 | AG3: Finish | AH3: Sumbreak | AI3: SumDCC | AK3: Day of Week Modifier | AN3: Shift Type: | AR3: Prev. Week | AZ3: =AK6 -> Monday | BH3: =AK7 -> Tuesday | BP3: =AK8 -> Wednesday | BX3: =AK9 -> Thursday | CF3: =AK10 -> Friday | CN3: =AK11 -> Saturday | CV3: =AK12 -> Sunday
A4: Unfilled | B4: 0 | C4: 0 | Y4: =L4*24 -> 0 | Z4: =M4*24 -> 0 | AA4: 0 | AB4: 0 | AC4: 0 | AD4: 0 | AE4: 0 | AF4: 0 | AG4: 0 | AH4: =SUM(AA4,AC4,AE4) -> 0 | AI4: =SUM(Z4,AB4,AD4,AF4) -> 0 | AK4: Day | AL4: Modifier | AN4: Shift Unfilled | AR4: Start | AS4: E1 | AT4: B1 | AU4: E2 | AV4: B2 | AW4: E3 | AX4: B3 | AY4: Finish | AZ4: Start | BA4: E1 | BB4: B1 | BC4: E2 | BD4: B2 | BE4: E3 | BF4: B3 | BG4: Finish | BH4: Start | BI4: E1 | BJ4: B1 | BK4: E2 | BL4: B2 | BM4: E3 | BN4: B3 | BO4: Finish | BP4: Start | BQ4: E1 | BR4: B1 | BS4: E2 | BT4: B2 | BU4: E3 | BV4: B3 | BW4: Finish | BX4: Start | BY4: E1 | BZ4: B1 | CA4: E2 | CB4: B2 | CC4: E3 | CD4: B3 | CE4: Finish | CF4: Start | CG4: E1 | CH4: B1 | CI4: E2 | CJ4: B2 | CK4: E3 | CL4: B3 | CM4: Finish | CN4: Start | CO4: E1 | CP4: B1 | CQ4: E2 | CR4: B2 | CS4: E3 | CT4: B3 | CU4: Finish | CV4: Start | CW4: E1 | CX4: B1 | CY4: E2 | CZ4: B2 | DA4: E3 | DB4: B3 | DC4: Finish | DE4: Sum of hours
A5: =IF('Capacity - Shift Config'!B5="","",'Capacity - Shift Config'!B5) -> All day | B5: ='Capacity - Shift Config'!C5 -> 08:00:00 | C5: ='Capacity - Shift Config'!D5 -> 21:00:00 | D5: =IF(ISBLANK('Capacity - Shift Config'!E5),"",'Capacity - Shift Config'!E5) -> 12:00:00 | E5: =IF(ISBLANK('Capacity - Shift Config'!F5),"",'Capacity - Shift Config'!F5) -> 13:00:00 | F5: =IF(ISBLANK('Capacity - Shift Config'!G5),"",'Capacity - Shift Config'!G5) ->  | G5: =IF(ISBLANK('Capacity - Shift Config'!H5),"",'Capacity - Shift Config'!H5) ->  | H5: =IF(ISBLANK('Capacity - Shift Config'!I5),"",'Capacity - Shift Config'!I5) ->  | I5: =IF(ISBLANK('Capacity - Shift Config'!J5),"",'Capacity - Shift Config'!J5) ->  | L5: =B5 -> 08:00:00 | M5: =MOD(IF(D5<>"",D5,C5)-B5,1) -> 04:00:00 | N5: =MOD(IF(D5="",0,E5-D5),1) -> 0.04166666667 | O5: =MOD(IF(E5="",0,IF(F5<>"",F5,C5)-E5),1) -> 0.3333333333 | P5: =MOD(IF(F5="",0,G5-F5),1) -> 0 | Q5: =MOD(IF(H5<>"",H5-G5,IF(F5<>"",C5-G5,0)),1) -> 0 | R5: =MOD(IF(H5="",0,I5-H5),1) -> 0 | S5: =MOD(IF(H5<>"",C5-I5,0),1) -> 0 | Y5: =L5*24 -> 8 | Z5: 4 | AA5: 1 | AB5: 8 | AC5: 0 | AD5: 0 | AE5: 0 | AF5: 0 | AG5: 0 | AH5: =SUM(AA5,AC5,AE5) -> 1 | AI5: =SUM(Z5,AB5,AD5,AF5) -> 12 | AK5: Prev. Week | AL5: -24 | AN5: ='Data Valid Backing (H)'!N4 -> All day (08:00 - 21:00) | AR5: =IFERROR(ROUND(SUM(INDEX($Y$4:Y$104,MATCH('Capacity - Role Config'!$Q11,'Shift and role config (H)'!$AN$4:$AN$104,0),)),3)+INDEX($AL$5:$AL$12,MATCH($AR$3,$AK$5:$AK$12,0)),0) -> 0 | AS5: =IFERROR(ROUND(SUM(INDEX($Y$4:Z$104,MATCH('Capacity - Role Config'!$Q11,'Shift and role config (H)'!$AN$4:$AN$104,0),)),3)+INDEX($AL$5:$AL$12,MATCH($AR$3,$AK$5:$AK$12,0)),0) -> 0 | AT5: =IFERROR(ROUND(SUM(INDEX($Y$4:AA$104,MATCH('Capacity - Role Config'!$Q11,'Shift and role config (H)'!$AN$4:$AN$104,0),)),3)+INDEX($AL$5:$AL$12,MATCH($AR$3,$AK$5:$AK$12,0)),0) -> 0 | AU5: =IFERROR(ROUND(SUM(INDEX($Y$4:AB$104,MATCH('Capacity - Role Config'!$Q11,'Shift and role config (H)'!$AN$4:$AN$104,0),)),3)+INDEX($AL$5:$AL$12,MATCH($AR$3,$AK$5:$AK$12,0)),0) -> 0 | AV5: =IFERROR(ROUND(SUM(INDEX($Y$4:AC$104,MATCH('Capacity - Role Config'!$Q11,'Shift and role config (H)'!$AN$4:$AN$104,0),)),3)+INDEX($AL$5:$AL$12,MATCH($AR$3,$AK$5:$AK$12,0)),0) -> 0 | AW5: =IFERROR(ROUND(SUM(INDEX($Y$4:AD$104,MATCH('Capacity - Role Config'!$Q11,'Shift and role config (H)'!$AN$4:$AN$104,0),)),3)+INDEX($AL$5:$AL$12,MATCH($AR$3,$AK$5:$AK$12,0)),0) -> 0 | AX5: =IFERROR(ROUND(SUM(INDEX($Y$4:AE$104,MATCH('Capacity - Role Config'!$Q11,'Shift and role config (H)'!$AN$4:$AN$104,0),)),3)+INDEX($AL$5:$AL$12,MATCH($AR$3,$AK$5:$AK$12,0)),0) -> 0 | AY5: =IFERROR(ROUND(SUM(INDEX($Y$4:AF$104,MATCH('Capacity - Role Config'!$Q11,'Shift and role config (H)'!$AN$4:$AN$104,0),)),3)+INDEX($AL$5:$AL$12,MATCH($AR$3,$AK$5:$AK$12,0)),0) -> 0 | AZ5: =IFERROR(ROUND(SUM(INDEX($Y$4:Y$104,MATCH('Capacity - Role Config'!$R11,'Shift and role config (H)'!$AN$4:$AN$104,0),)),3)+INDEX($AL$5:$AL$12,MATCH($AZ$3,$AK$5:$AK$12,0)),0) -> 8 | BA5: =IFERROR(ROUND(SUM(INDEX($Y$4:Z$104,MATCH('Capacity - Role Config'!$R11,'Shift and role config (H)'!$AN$4:$AN$104,0),)),3)+INDEX($AL$5:$AL$12,MATCH($AZ$3,$AK$5:$AK$12,0)),0) -> 12 | BB5: =IFERROR(ROUND(SUM(INDEX($Y$4:AA$104,MATCH('Capacity - Role Config'!$R11,'Shift and role config (H)'!$AN$4:$AN$104,0),)),3)+INDEX($AL$5:$AL$12,MATCH($AZ$3,$AK$5:$AK$12,0)),0) -> 13 | BC5: =IFERROR(ROUND(SUM(INDEX($Y$4:AB$104,MATCH('Capacity - Role Config'!$R11,'Shift and role config (H)'!$AN$4:$AN$104,0),)),3)+INDEX($AL$5:$AL$12,MATCH($AZ$3,$AK$5:$AK$12,0)),0) -> 21 | BD5: =IFERROR(ROUND(SUM(INDEX($Y$4:AC$104,MATCH('Capacity - Role Config'!$R11,'Shift and role config (H)'!$AN$4:$AN$104,0),)),3)+INDEX($AL$5:$AL$12,MATCH($AZ$3,$AK$5:$AK$12,0)),0) -> 21 | BE5: =IFERROR(ROUND(SUM(INDEX($Y$4:AD$104,MATCH('Capacity - Role Config'!$R11,'Shift and role config (H)'!$AN$4:$AN$104,0),)),3)+INDEX($AL$5:$AL$12,MATCH($AZ$3,$AK$5:$AK$12,0)),0) -> 21 | BF5: =IFERROR(ROUND(SUM(INDEX($Y$4:AE$104,MATCH('Capacity - Role Config'!$R11,'Shift and role config (H)'!$AN$4:$AN$104,0),)),3)+INDEX($AL$5:$AL$12,MATCH($AZ$3,$AK$5:$AK$12,0)),0) -> 21 | BG5: =IFERROR(ROUND(SUM(INDEX($Y$4:AF$104,MATCH('Capacity - Role Config'!$R11,'Shift and role config (H)'!$AN$4:$AN$104,0),)),3)+INDEX($AL$5:$AL$12,MATCH($AZ$3,$AK$5:$AK$12,0)),0) -> 21 | BH5: =IFERROR(ROUND(SUM(INDEX($Y$4:Y$104,MATCH('Capacity - Role Config'!$S11,'Shift and role config (H)'!$AN$4:$AN$104,0),)),3)+INDEX($AL$5:$AL$12,MATCH($BH$3,$AK$5:$AK$12,0)),0) -> 32 | BI5: =IFERROR(ROUND(SUM(INDEX($Y$4:Z$104,MATCH('Capacity - Role Config'!$S11,'Shift and role config (H)'!$AN$4:$AN$104,0),)),3)+INDEX($AL$5:$AL$12,MATCH($BH$3,$AK$5:$AK$12,0)),0) -> 36 | BJ5: =IFERROR(ROUND(SUM(INDEX($Y$4:AA$104,MATCH('Capacity - Role Config'!$S11,'Shift and role config (H)'!$AN$4:$AN$104,0),)),3)+INDEX($AL$5:$AL$12,MATCH($BH$3,$AK$5:$AK$12,0)),0) -> 37 | BK5: =IFERROR(ROUND(SUM(INDEX($Y$4:AB$104,MATCH('Capacity - Role Config'!$S11,'Shift and role config (H)'!$AN$4:$AN$104,0),)),3)+INDEX($AL$5:$AL$12,MATCH($BH$3,$AK$5:$AK$12,0)),0) -> 45 | BL5: =IFERROR(ROUND(SUM(INDEX($Y$4:AC$104,MATCH('Capacity - Role Config'!$S11,'Shift and role config (H)'!$AN$4:$AN$104,0),)),3)+INDEX($AL$5:$AL$12,MATCH($BH$3,$AK$5:$AK$12,0)),0) -> 45 | BM5: =IFERROR(ROUND(SUM(INDEX($Y$4:AD$104,MATCH('Capacity - Role Config'!$S11,'Shift and role config (H)'!$AN$4:$AN$104,0),)),3)+INDEX($AL$5:$AL$12,MATCH($BH$3,$AK$5:$AK$12,0)),0) -> 45 | BN5: =IFERROR(ROUND(SUM(INDEX($Y$4:AE$104,MATCH('Capacity - Role Config'!$S11,'Shift and role config (H)'!$AN$4:$AN$104,0),)),3)+INDEX($AL$5:$AL$12,MATCH($BH$3,$AK$5:$AK$12,0)),0) -> 45 | BO5: =IFERROR(ROUND(SUM(INDEX($Y$4:AF$104,MATCH('Capacity - Role Config'!$S11,'Shift and role config (H)'!$AN$4:$AN$104,0),)),3)+INDEX($AL$5:$AL$12,MATCH($BH$3,$AK$5:$AK$12,0)),0) -> 45 | BP5: =IFERROR(ROUND(SUM(INDEX($Y$4:Y$104,MATCH('Capacity - Role Config'!$T11,'Shift and role config (H)'!$AN$4:$AN$104,0),)),3)+INDEX($AL$5:$AL$12,MATCH($BP$3,$AK$5:$AK$12,0)),0) -> 56 | BQ5: =IFERROR(ROUND(SUM(INDEX($Y$4:Z$104,MATCH('Capacity - Role Config'!$T11,'Shift and role config (H)'!$AN$4:$AN$104,0),)),3)+INDEX($AL$5:$AL$12,MATCH($BP$3,$AK$5:$AK$12,0)),0) -> 60 | BR5: =IFERROR(ROUND(SUM(INDEX($Y$4:AA$104,MATCH('Capacity - Role Config'!$T11,'Shift and role config (H)'!$AN$4:$AN$104,0),)),3)+INDEX($AL$5:$AL$12,MATCH($BP$3,$AK$5:$AK$12,0)),0) -> 61 | BS5: =IFERROR(ROUND(SUM(INDEX($Y$4:AB$104,MATCH('Capacity - Role Config'!$T11,'Shift and role config (H)'!$AN$4:$AN$104,0),)),3)+INDEX($AL$5:$AL$12,MATCH($BP$3,$AK$5:$AK$12,0)),0) -> 69 | BT5: =IFERROR(ROUND(SUM(INDEX($Y$4:AC$104,MATCH('Capacity - Role Config'!$T11,'Shift and role config (H)'!$AN$4:$AN$104,0),)),3)+INDEX($AL$5:$AL$12,MATCH($BP$3,$AK$5:$AK$12,0)),0) -> 69 | BU5: =IFERROR(ROUND(SUM(INDEX($Y$4:AD$104,MATCH('Capacity - Role Config'!$T11,'Shift and role config (H)'!$AN$4:$AN$104,0),)),3)+INDEX($AL$5:$AL$12,MATCH($BP$3,$AK$5:$AK$12,0)),0) -> 69 | BV5: =IFERROR(ROUND(SUM(INDEX($Y$4:AE$104,MATCH('Capacity - Role Config'!$T11,'Shift and role config (H)'!$AN$4:$AN$104,0),)),3)+INDEX($AL$5:$AL$12,MATCH($BP$3,$AK$5:$AK$12,0)),0) -> 69 | BW5: =IFERROR(ROUND(SUM(INDEX($Y$4:AF$104,MATCH('Capacity - Role Config'!$T11,'Shift and role config (H)'!$AN$4:$AN$104,0),)),3)+INDEX($AL$5:$AL$12,MATCH($BP$3,$AK$5:$AK$12,0)),0) -> 69 | BX5: =IFERROR(ROUND(SUM(INDEX($Y$4:Y$104,MATCH('Capacity - Role Config'!$U11,'Shift and role config (H)'!$AN$4:$AN$104,0),)),3)+INDEX($AL$5:$AL$12,MATCH($BX$3,$AK$5:$AK$12,0)),0) -> 80 | BY5: =IFERROR(ROUND(SUM(INDEX($Y$4:Z$104,MATCH('Capacity - Role Config'!$U11,'Shift and role config (H)'!$AN$4:$AN$104,0),)),3)+INDEX($AL$5:$AL$12,MATCH($BX$3,$AK$5:$AK$12,0)),0) -> 84 | BZ5: =IFERROR(ROUND(SUM(INDEX($Y$4:AA$104,MATCH('Capacity - Role Config'!$U11,'Shift and role config (H)'!$AN$4:$AN$104,0),)),3)+INDEX($AL$5:$AL$12,MATCH($BX$3,$AK$5:$AK$12,0)),0) -> 85 | CA5: =IFERROR(ROUND(SUM(INDEX($Y$4:AB$104,MATCH('Capacity - Role Config'!$U11,'Shift and role config (H)'!$AN$4:$AN$104,0),)),3)+INDEX($AL$5:$AL$12,MATCH($BX$3,$AK$5:$AK$12,0)),0) -> 93 | CB5: =IFERROR(ROUND(SUM(INDEX($Y$4:AC$104,MATCH('Capacity - Role Config'!$U11,'Shift and role config (H)'!$AN$4:$AN$104,0),)),3)+INDEX($AL$5:$AL$12,MATCH($BX$3,$AK$5:$AK$12,0)),0) -> 93 | CC5: =IFERROR(ROUND(SUM(INDEX($Y$4:AD$104,MATCH('Capacity - Role Config'!$U11,'Shift and role config (H)'!$AN$4:$AN$104,0),)),3)+INDEX($AL$5:$AL$12,MATCH($BX$3,$AK$5:$AK$12,0)),0) -> 93 | CD5: =IFERROR(ROUND(SUM(INDEX($Y$4:AE$104,MATCH('Capacity - Role Config'!$U11,'Shift and role config (H)'!$AN$4:$AN$104,0),)),3)+INDEX($AL$5:$AL$12,MATCH($BX$3,$AK$5:$AK$12,0)),0) -> 93 | CE5: =IFERROR(ROUND(SUM(INDEX($Y$4:AF$104,MATCH('Capacity - Role Config'!$U11,'Shift and role config (H)'!$AN$4:$AN$104,0),)),3)+INDEX($AL$5:$AL$12,MATCH($BX$3,$AK$5:$AK$12,0)),0) -> 93 | CF5: =IFERROR(ROUND(SUM(INDEX($Y$4:Y$104,MATCH('Capacity - Role Config'!$V11,'Shift and role config (H)'!$AN$4:$AN$104,0),)),3)+INDEX($AL$5:$AL$12,MATCH($CF$3,$AK$5:$AK$12,0)),0) -> 104 | CG5: =IFERROR(ROUND(SUM(INDEX($Y$4:Z$104,MATCH('Capacity - Role Config'!$V11,'Shift and role config (H)'!$AN$4:$AN$104,0),)),3)+INDEX($AL$5:$AL$12,MATCH($CF$3,$AK$5:$AK$12,0)),0) -> 108 | CH5: =IFERROR(ROUND(SUM(INDEX($Y$4:AA$104,MATCH('Capacity - Role Config'!$V11,'Shift and role config (H)'!$AN$4:$AN$104,0),)),3)+INDEX($AL$5:$AL$12,MATCH($CF$3,$AK$5:$AK$12,0)),0) -> 109 | CI5: =IFERROR(ROUND(SUM(INDEX($Y$4:AB$104,MATCH('Capacity - Role Config'!$V11,'Shift and role config (H)'!$AN$4:$AN$104,0),)),3)+INDEX($AL$5:$AL$12,MATCH($CF$3,$AK$5:$AK$12,0)),0) -> 117 | CJ5: =IFERROR(ROUND(SUM(INDEX($Y$4:AC$104,MATCH('Capacity - Role Config'!$V11,'Shift and role config (H)'!$AN$4:$AN$104,0),)),3)+INDEX($AL$5:$AL$12,MATCH($CF$3,$AK$5:$AK$12,0)),0) -> 117 | CK5: =IFERROR(ROUND(SUM(INDEX($Y$4:AD$104,MATCH('Capacity - Role Config'!$V11,'Shift and role config (H)'!$AN$4:$AN$104,0),)),3)+INDEX($AL$5:$AL$12,MATCH($CF$3,$AK$5:$AK$12,0)),0) -> 117 | CL5: =IFERROR(ROUND(SUM(INDEX($Y$4:AE$104,MATCH('Capacity - Role Config'!$V11,'Shift and role config (H)'!$AN$4:$AN$104,0),)),3)+INDEX($AL$5:$AL$12,MATCH($CF$3,$AK$5:$AK$12,0)),0) -> 117 | CM5: =IFERROR(ROUND(SUM(INDEX($Y$4:AF$104,MATCH('Capacity - Role Config'!$V11,'Shift and role config (H)'!$AN$4:$AN$104,0),)),3)+INDEX($AL$5:$AL$12,MATCH($CF$3,$AK$5:$AK$12,0)),0) -> 117 | CN5: =IFERROR(ROUND(SUM(INDEX($Y$4:Y$104,MATCH('Capacity - Role Config'!$W11,'Shift and role config (H)'!$AN$4:$AN$104,0),)),3)+INDEX($AL$5:$AL$12,MATCH($CN$3,$AK$5:$AK$12,0)),0) -> 128 | CO5: =IFERROR(ROUND(SUM(INDEX($Y$4:Z$104,MATCH('Capacity - Role Config'!$W11,'Shift and role config (H)'!$AN$4:$AN$104,0),)),3)+INDEX($AL$5:$AL$12,MATCH($CN$3,$AK$5:$AK$12,0)),0) -> 132 | CP5: =IFERROR(ROUND(SUM(INDEX($Y$4:AA$104,MATCH('Capacity - Role Config'!$W11,'Shift and role config (H)'!$AN$4:$AN$104,0),)),3)+INDEX($AL$5:$AL$12,MATCH($CN$3,$AK$5:$AK$12,0)),0) -> 133 | CQ5: =IFERROR(ROUND(SUM(INDEX($Y$4:AB$104,MATCH('Capacity - Role Config'!$W11,'Shift and role config (H)'!$AN$4:$AN$104,0),)),3)+INDEX($AL$5:$AL$12,MATCH($CN$3,$AK$5:$AK$12,0)),0) -> 141 | CR5: =IFERROR(ROUND(SUM(INDEX($Y$4:AC$104,MATCH('Capacity - Role Config'!$W11,'Shift and role config (H)'!$AN$4:$AN$104,0),)),3)+INDEX($AL$5:$AL$12,MATCH($CN$3,$AK$5:$AK$12,0)),0) -> 141 | CS5: =IFERROR(ROUND(SUM(INDEX($Y$4:AD$104,MATCH('Capacity - Role Config'!$W11,'Shift and role config (H)'!$AN$4:$AN$104,0),)),3)+INDEX($AL$5:$AL$12,MATCH($CN$3,$AK$5:$AK$12,0)),0) -> 141 | CT5: =IFERROR(ROUND(SUM(INDEX($Y$4:AE$104,MATCH('Capacity - Role Config'!$W11,'Shift and role config (H)'!$AN$4:$AN$104,0),)),3)+INDEX($AL$5:$AL$12,MATCH($CN$3,$AK$5:$AK$12,0)),0) -> 141 | CU5: =IFERROR(ROUND(SUM(INDEX($Y$4:AF$104,MATCH('Capacity - Role Config'!$W11,'Shift and role config (H)'!$AN$4:$AN$104,0),)),3)+INDEX($AL$5:$AL$12,MATCH($CN$3,$AK$5:$AK$12,0)),0) -> 141 | CV5: =IFERROR(ROUND(SUM(INDEX($Y$4:Y$104,MATCH('Capacity - Role Config'!$X11,'Shift and role config (H)'!$AN$4:$AN$104,0),)),3)+INDEX($AL$5:$AL$12,MATCH($CV$3,$AK$5:$AK$12,0)),0) -> 152 | CW5: =IFERROR(ROUND(SUM(INDEX($Y$4:Z$104,MATCH('Capacity - Role Config'!$X11,'Shift and role config (H)'!$AN$4:$AN$104,0),)),3)+INDEX($AL$5:$AL$12,MATCH($CV$3,$AK$5:$AK$12,0)),0) -> 156 | CX5: =IFERROR(ROUND(SUM(INDEX($Y$4:AA$104,MATCH('Capacity - Role Config'!$X11,'Shift and role config (H)'!$AN$4:$AN$104,0),)),3)+INDEX($AL$5:$AL$12,MATCH($CV$3,$AK$5:$AK$12,0)),0) -> 157 | CY5: =IFERROR(ROUND(SUM(INDEX($Y$4:AB$104,MATCH('Capacity - Role Config'!$X11,'Shift and role config (H)'!$AN$4:$AN$104,0),)),3)+INDEX($AL$5:$AL$12,MATCH($CV$3,$AK$5:$AK$12,0)),0) -> 165 | CZ5: =IFERROR(ROUND(SUM(INDEX($Y$4:AC$104,MATCH('Capacity - Role Config'!$X11,'Shift and role config (H)'!$AN$4:$AN$104,0),)),3)+INDEX($AL$5:$AL$12,MATCH($CV$3,$AK$5:$AK$12,0)),0) -> 165 | DA5: =IFERROR(ROUND(SUM(INDEX($Y$4:AD$104,MATCH('Capacity - Role Config'!$X11,'Shift and role config (H)'!$AN$4:$AN$104,0),)),3)+INDEX($AL$5:$AL$12,MATCH($CV$3,$AK$5:$AK$12,0)),0) -> 165 | DB5: =IFERROR(ROUND(SUM(INDEX($Y$4:AE$104,MATCH('Capacity - Role Config'!$X11,'Shift and role config (H)'!$AN$4:$AN$104,0),)),3)+INDEX($AL$5:$AL$12,MATCH($CV$3,$AK$5:$AK$12,0)),0) -> 165 | DC5: =IFERROR(ROUND(SUM(INDEX($Y$4:AF$104,MATCH('Capacity - Role Config'!$X11,'Shift and role config (H)'!$AN$4:$AN$104,0),)),3)+INDEX($AL$5:$AL$12,MATCH($CV$3,$AK$5:$AK$12,0)),0) -> 165 | DE5: =SUM(MAX(AY5,0),BG5-AZ5,BO5-BH5,BW5-BP5,CE5-BX5,CM5-CF5,CU5-CN5,DC5-CV5) -> 91
A6: =IF('Capacity - Shift Config'!B6="","",'Capacity - Shift Config'!B6) -> Early | B6: ='Capacity - Shift Config'!C6 -> 06:00:00 | C6: ='Capacity - Shift Config'!D6 -> 18:00:00 | D6: =IF(ISBLANK('Capacity - Shift Config'!E6),"",'Capacity - Shift Config'!E6+IF('Capacity - Shift Config'!E6<'Capacity - Shift Config'!$C6,1,0)) ->  | E6: =IF(ISBLANK('Capacity - Shift Config'!F6),"",'Capacity - Shift Config'!F6+IF('Capacity - Shift Config'!F6<'Capacity - Shift Config'!$C6,1,0)) ->  | F6: =IF(ISBLANK('Capacity - Shift Config'!G6),"",'Capacity - Shift Config'!G6+IF('Capacity - Shift Config'!G6<'Capacity - Shift Config'!$C6,1,0)) ->  | G6: =IF(ISBLANK('Capacity - Shift Config'!H6),"",'Capacity - Shift Config'!H6+IF('Capacity - Shift Config'!H6<'Capacity - Shift Config'!$C6,1,0)) ->  | H6: =IF(ISBLANK('Capacity - Shift Config'!I6),"",'Capacity - Shift Config'!I6+IF('Capacity - Shift Config'!I6<'Capacity - Shift Config'!$C6,1,0)) ->  | I6: =IF(ISBLANK('Capacity - Shift Config'!J6),"",'Capacity - Shift Config'!J6+IF('Capacity - Shift Config'!J6<'Capacity - Shift Config'!$C6,1,0)) ->  | L6: =B6 -> 06:00:00 | M6: =MOD(IF(D6<>"",D6,C6)-B6,1) -> 12:00:00 | N6: =MOD(IF(D6="",0,E6-D6),1) -> 0 | O6: =MOD(IF(E6="",0,IF(F6<>"",F6,C6)-E6),1) -> 0 | P6: =MOD(IF(F6="",0,G6-F6),1) -> 0 | Q6: =MOD(IF(H6<>"",H6-G6,IF(F6<>"",C6-G6,0)),1) -> 0 | R6: =MOD(IF(H6="",0,I6-H6),1) -> 0 | S6: =MOD(IF(H6<>"",C6-I6,0),1) -> 0 | Y6: =L6*24 -> 6 | Z6: =M6*24 -> 12 | AA6: =N6*24 -> 0 | AB6: =O6*24 -> 0 | AC6: =P6*24 -> 0 | AD6: =Q6*24 -> 0 | AE6: =R6*24 -> 0 | AF6: =S6*24 -> 0 | AG6: 0 | AH6: =SUM(AA6,AC6,AE6) -> 0 | AI6: =SUM(Z6,AB6,AD6,AF6) -> 12 | AK6: Monday | AL6: 0 | AN6: ='Data Valid Backing (H)'!N5 -> Early (06:00 - 18:00) | AR6: =IFERROR(ROUND(SUM(INDEX($Y$4:Y$104,MATCH('Capacity - Role Config'!$Q12,'Shift and role config (H)'!$AN$4:$AN$104,0),)),3)+INDEX($AL$5:$AL$12,MATCH($AR$3,$AK$5:$AK$12,0)),0) -> 0 | AS6: =IFERROR(ROUND(SUM(INDEX($Y$4:Z$104,MATCH('Capacity - Role Config'!$Q12,'Shift and role config (H)'!$AN$4:$AN$104,0),)),3)+INDEX($AL$5:$AL$12,MATCH($AR$3,$AK$5:$AK$12,0)),0) -> 0 | AT6: =IFERROR(ROUND(SUM(INDEX($Y$4:AA$104,MATCH('Capacity - Role Config'!$Q12,'Shift and role config (H)'!$AN$4:$AN$104,0),)),3)+INDEX($AL$5:$AL$12,MATCH($AR$3,$AK$5:$AK$12,0)),0) -> 0 | AU6: =IFERROR(ROUND(SUM(INDEX($Y$4:AB$104,MATCH('Capacity - Role Config'!$Q12,'Shift and role config (H)'!$AN$4:$AN$104,0),)),3)+INDEX($AL$5:$AL$12,MATCH($AR$3,$AK$5:$AK$12,0)),0) -> 0 | AV6: =IFERROR(ROUND(SUM(INDEX($Y$4:AC$104,MATCH('Capacity - Role Config'!$Q12,'Shift and role config (H)'!$AN$4:$AN$104,0),)),3)+INDEX($AL$5:$AL$12,MATCH($AR$3,$AK$5:$AK$12,0)),0) -> 0 | AW6: =IFERROR(ROUND(SUM(INDEX($Y$4:AD$104,MATCH('Capacity - Role Config'!$Q12,'Shift and role config (H)'!$AN$4:$AN$104,0),)),3)+INDEX($AL$5:$AL$12,MATCH($AR$3,$AK$5:$AK$12,0)),0) -> 0 | AX6: =IFERROR(ROUND(SUM(INDEX($Y$4:AE$104,MATCH('Capacity - Role Config'!$Q12,'Shift and role config (H)'!$AN$4:$AN$104,0),)),3)+INDEX($AL$5:$AL$12,MATCH($AR$3,$AK$5:$AK$12,0)),0) -> 0 | AY6: =IFERROR(ROUND(SUM(INDEX($Y$4:AF$104,MATCH('Capacity - Role Config'!$Q12,'Shift and role config (H)'!$AN$4:$AN$104,0),)),3)+INDEX($AL$5:$AL$12,MATCH($AR$3,$AK$5:$AK$12,0)),0) -> 0 | AZ6: =IFERROR(ROUND(SUM(INDEX($Y$4:Y$104,MATCH('Capacity - Role Config'!$R12,'Shift and role config (H)'!$AN$4:$AN$104,0),)),3)+INDEX($AL$5:$AL$12,MATCH($AZ$3,$AK$5:$AK$12,0)),0) -> 21 | BA6: =IFERROR(ROUND(SUM(INDEX($Y$4:Z$104,MATCH('Capacity - Role Config'!$R12,'Shift and role config (H)'!$AN$4:$AN$104,0),)),3)+INDEX($AL$5:$AL$12,MATCH($AZ$3,$AK$5:$AK$12,0)),0) -> 31 | BB6: =IFERROR(ROUND(SUM(INDEX($Y$4:AA$104,MATCH('Capacity - Role Config'!$R12,'Shift and role config (H)'!$AN$4:$AN$104,0),)),3)+INDEX($AL$5:$AL$12,MATCH($AZ$3,$AK$5:$AK$12,0)),0) -> 31 | BC6: =IFERROR(ROUND(SUM(INDEX($Y$4:AB$104,MATCH('Capacity - Role Config'!$R12,'Shift and role config (H)'!$AN$4:$AN$104,0),)),3)+INDEX($AL$5:$AL$12,MATCH($AZ$3,$AK$5:$AK$12,0)),0) -> 31 | BD6: =IFERROR(ROUND(SUM(INDEX($Y$4:AC$104,MATCH('Capacity - Role Config'!$R12,'Shift and role config (H)'!$AN$4:$AN$104,0),)),3)+INDEX($AL$5:$AL$12,MATCH($AZ$3,$AK$5:$AK$12,0)),0) -> 31 | BE6: =IFERROR(ROUND(SUM(INDEX($Y$4:AD$104,MATCH('Capacity - Role Config'!$R12,'Shift and role config (H)'!$AN$4:$AN$104,0),)),3)+INDEX($AL$5:$AL$12,MATCH($AZ$3,$AK$5:$AK$12,0)),0) -> 31 | BF6: =IFERROR(ROUND(SUM(INDEX($Y$4:AE$104,MATCH('Capacity - Role Config'!$R12,'Shift and role config (H)'!$AN$4:$AN$104,0),)),3)+INDEX($AL$5:$AL$12,MATCH($AZ$3,$AK$5:$AK$12,0)),0) -> 31 | BG6: =IFERROR(ROUND(SUM(INDEX($Y$4:AF$104,MATCH('Capacity - Role Config'!$R12,'Shift and role config (H)'!$AN$4:$AN$104,0),)),3)+INDEX($AL$5:$AL$12,MATCH($AZ$3,$AK$5:$AK$12,0)),0) -> 31 | BH6: =IFERROR(ROUND(SUM(INDEX($Y$4:Y$104,MATCH('Capacity - Role Config'!$S12,'Shift and role config (H)'!$AN$4:$AN$104,0),)),3)+INDEX($AL$5:$AL$12,MATCH($BH$3,$AK$5:$AK$12,0)),0) -> 45 | BI6: =IFERROR(ROUND(SUM(INDEX($Y$4:Z$104,MATCH('Capacity - Role Config'!$S12,'Shift and role config (H)'!$AN$4:$AN$104,0),)),3)+INDEX($AL$5:$AL$12,MATCH($BH$3,$AK$5:$AK$12,0)),0) -> 55 | BJ6: =IFERROR(ROUND(SUM(INDEX($Y$4:AA$104,MATCH('Capacity - Role Config'!$S12,'Shift and role config (H)'!$AN$4:$AN$104,0),)),3)+INDEX($AL$5:$AL$12,MATCH($BH$3,$AK$5:$AK$12,0)),0) -> 55 | BK6: =IFERROR(ROUND(SUM(INDEX($Y$4:AB$104,MATCH('Capacity - Role Config'!$S12,'Shift and role config (H)'!$AN$4:$AN$104,0),)),3)+INDEX($AL$5:$AL$12,MATCH($BH$3,$AK$5:$AK$12,0)),0) -> 55 | BL6: =IFERROR(ROUND(SUM(INDEX($Y$4:AC$104,MATCH('Capacity - Role Config'!$S12,'Shift and role config (H)'!$AN$4:$AN$104,0),)),3)+INDEX($AL$5:$AL$12,MATCH($BH$3,$AK$5:$AK$12,0)),0) -> 55 | BM6: =IFERROR(ROUND(SUM(INDEX($Y$4:AD$104,MATCH('Capacity - Role Config'!$S12,'Shift and role config (H)'!$AN$4:$AN$104,0),)),3)+INDEX($AL$5:$AL$12,MATCH($BH$3,$AK$5:$AK$12,0)),0) -> 55 | BN6: =IFERROR(ROUND(SUM(INDEX($Y$4:AE$104,MATCH('Capacity - Role Config'!$S12,'Shift and role config (H)'!$AN$4:$AN$104,0),)),3)+INDEX($AL$5:$AL$12,MATCH($BH$3,$AK$5:$AK$12,0)),0) -> 55 | BO6: =IFERROR(ROUND(SUM(INDEX($Y$4:AF$104,MATCH('Capacity - Role Config'!$S12,'Shift and role config (H)'!$AN$4:$AN$104,0),)),3)+INDEX($AL$5:$AL$12,MATCH($BH$3,$AK$5:$AK$12,0)),0) -> 55 | BP6: =IFERROR(ROUND(SUM(INDEX($Y$4:Y$104,MATCH('Capacity - Role Config'!$T12,'Shift and role config (H)'!$AN$4:$AN$104,0),)),3)+INDEX($AL$5:$AL$12,MATCH($BP$3,$AK$5:$AK$12,0)),0) -> 69 | BQ6: =IFERROR(ROUND(SUM(INDEX($Y$4:Z$104,MATCH('Capacity - Role Config'!$T12,'Shift and role config (H)'!$AN$4:$AN$104,0),)),3)+INDEX($AL$5:$AL$12,MATCH($BP$3,$AK$5:$AK$12,0)),0) -> 79 | BR6: =IFERROR(ROUND(SUM(INDEX($Y$4:AA$104,MATCH('Capacity - Role Config'!$T12,'Shift and role config (H)'!$AN$4:$AN$104,0),)),3)+INDEX($AL$5:$AL$12,MATCH($BP$3,$AK$5:$AK$12,0)),0) -> 79 | BS6: =IFERROR(ROUND(SUM(INDEX($Y$4:AB$104,MATCH('Capacity - Role Config'!$T12,'Shift and role config (H)'!$AN$4:$AN$104,0),)),3)+INDEX($AL$5:$AL$12,MATCH($BP$3,$AK$5:$AK$12,0)),0) -> 79 | BT6: =IFERROR(ROUND(SUM(INDEX($Y$4:AC$104,MATCH('Capacity - Role Config'!$T12,'Shift and role config (H)'!$AN$4:$AN$104,0),)),3)+INDEX($AL$5:$AL$12,MATCH($BP$3,$AK$5:$AK$12,0)),0) -> 79 | BU6: =IFERROR(ROUND(SUM(INDEX($Y$4:AD$104,MATCH('Capacity - Role Config'!$T12,'Shift and role config (H)'!$AN$4:$AN$104,0),)),3)+INDEX($AL$5:$AL$12,MATCH($BP$3,$AK$5:$AK$12,0)),0) -> 79 | BV6: =IFERROR(ROUND(SUM(INDEX($Y$4:AE$104,MATCH('Capacity - Role Config'!$T12,'Shift and role config (H)'!$AN$4:$AN$104,0),)),3)+INDEX($AL$5:$AL$12,MATCH($BP$3,$AK$5:$AK$12,0)),0) -> 79 | BW6: =IFERROR(ROUND(SUM(INDEX($Y$4:AF$104,MATCH('Capacity - Role Config'!$T12,'Shift and role config (H)'!$AN$4:$AN$104,0),)),3)+INDEX($AL$5:$AL$12,MATCH($BP$3,$AK$5:$AK$12,0)),0) -> 79 | BX6: =IFERROR(ROUND(SUM(INDEX($Y$4:Y$104,MATCH('Capacity - Role Config'!$U12,'Shift and role config (H)'!$AN$4:$AN$104,0),)),3)+INDEX($AL$5:$AL$12,MATCH($BX$3,$AK$5:$AK$12,0)),0) -> 80 | BY6: =IFERROR(ROUND(SUM(INDEX($Y$4:Z$104,MATCH('Capacity - Role Config'!$U12,'Shift and role config (H)'!$AN$4:$AN$104,0),)),3)+INDEX($AL$5:$AL$12,MATCH($BX$3,$AK$5:$AK$12,0)),0) -> 84 | BZ6: =IFERROR(ROUND(SUM(INDEX($Y$4:AA$104,MATCH('Capacity - Role Config'!$U12,'Shift and role config (H)'!$AN$4:$AN$104,0),)),3)+INDEX($AL$5:$AL$12,MATCH($BX$3,$AK$5:$AK$12,0)),0) -> 85 | CA6: =IFERROR(ROUND(SUM(INDEX($Y$4:AB$104,MATCH('Capacity - Role Config'!$U12,'Shift and role config (H)'!$AN$4:$AN$104,0),)),3)+INDEX($AL$5:$AL$12,MATCH($BX$3,$AK$5:$AK$12,0)),0) -> 93 | CB6: =IFERROR(ROUND(SUM(INDEX($Y$4:AC$104,MATCH('Capacity - Role Config'!$U12,'Shift and role config (H)'!$AN$4:$AN$104,0),)),3)+INDEX($AL$5:$AL$12,MATCH($BX$3,$AK$5:$AK$12,0)),0) -> 93 | CC6: =IFERROR(ROUND(SUM(INDEX($Y$4:AD$104,MATCH('Capacity - Role Config'!$U12,'Shift and role config (H)'!$AN$4:$AN$104,0),)),3)+INDEX($AL$5:$AL$12,MATCH($BX$3,$AK$5:$AK$12,0)),0) -> 93 | CD6: =IFERROR(ROUND(SUM(INDEX($Y$4:AE$104,MATCH('Capacity - Role Config'!$U12,'Shift and role config (H)'!$AN$4:$AN$104,0),)),3)+INDEX($AL$5:$AL$12,MATCH($BX$3,$AK$5:$AK$12,0)),0) -> 93 | CE6: =IFERROR(ROUND(SUM(INDEX($Y$4:AF$104,MATCH('Capacity - Role Config'!$U12,'Shift and role config (H)'!$AN$4:$AN$104,0),)),3)+INDEX($AL$5:$AL$12,MATCH($BX$3,$AK$5:$AK$12,0)),0) -> 93 | CF6: =IFERROR(ROUND(SUM(INDEX($Y$4:Y$104,MATCH('Capacity - Role Config'!$V12,'Shift and role config (H)'!$AN$4:$AN$104,0),)),3)+INDEX($AL$5:$AL$12,MATCH($CF$3,$AK$5:$AK$12,0)),0) -> 117 | CG6: =IFERROR(ROUND(SUM(INDEX($Y$4:Z$104,MATCH('Capacity - Role Config'!$V12,'Shift and role config (H)'!$AN$4:$AN$104,0),)),3)+INDEX($AL$5:$AL$12,MATCH($CF$3,$AK$5:$AK$12,0)),0) -> 127 | CH6: =IFERROR(ROUND(SUM(INDEX($Y$4:AA$104,MATCH('Capacity - Role Config'!$V12,'Shift and role config (H)'!$AN$4:$AN$104,0),)),3)+INDEX($AL$5:$AL$12,MATCH($CF$3,$AK$5:$AK$12,0)),0) -> 127 | CI6: =IFERROR(ROUND(SUM(INDEX($Y$4:AB$104,MATCH('Capacity - Role Config'!$V12,'Shift and role config (H)'!$AN$4:$AN$104,0),)),3)+INDEX($AL$5:$AL$12,MATCH($CF$3,$AK$5:$AK$12,0)),0) -> 127 | CJ6: =IFERROR(ROUND(SUM(INDEX($Y$4:AC$104,MATCH('Capacity - Role Config'!$V12,'Shift and role config (H)'!$AN$4:$AN$104,0),)),3)+INDEX($AL$5:$AL$12,MATCH($CF$3,$AK$5:$AK$12,0)),0) -> 127 | CK6: =IFERROR(ROUND(SUM(INDEX($Y$4:AD$104,MATCH('Capacity - Role Config'!$V12,'Shift and role config (H)'!$AN$4:$AN$104,0),)),3)+INDEX($AL$5:$AL$12,MATCH($CF$3,$AK$5:$AK$12,0)),0) -> 127 | CL6: =IFERROR(ROUND(SUM(INDEX($Y$4:AE$104,MATCH('Capacity - Role Config'!$V12,'Shift and role config (H)'!$AN$4:$AN$104,0),)),3)+INDEX($AL$5:$AL$12,MATCH($CF$3,$AK$5:$AK$12,0)),0) -> 127 | CM6: =IFERROR(ROUND(SUM(INDEX($Y$4:AF$104,MATCH('Capacity - Role Config'!$V12,'Shift and role config (H)'!$AN$4:$AN$104,0),)),3)+INDEX($AL$5:$AL$12,MATCH($CF$3,$AK$5:$AK$12,0)),0) -> 127 | CN6: =IFERROR(ROUND(SUM(INDEX($Y$4:Y$104,MATCH('Capacity - Role Config'!$W12,'Shift and role config (H)'!$AN$4:$AN$104,0),)),3)+INDEX($AL$5:$AL$12,MATCH($CN$3,$AK$5:$AK$12,0)),0) -> 141 | CO6: =IFERROR(ROUND(SUM(INDEX($Y$4:Z$104,MATCH('Capacity - Role Config'!$W12,'Shift and role config (H)'!$AN$4:$AN$104,0),)),3)+INDEX($AL$5:$AL$12,MATCH($CN$3,$AK$5:$AK$12,0)),0) -> 151 | CP6: =IFERROR(ROUND(SUM(INDEX($Y$4:AA$104,MATCH('Capacity - Role Config'!$W12,'Shift and role config (H)'!$AN$4:$AN$104,0),)),3)+INDEX($AL$5:$AL$12,MATCH($CN$3,$AK$5:$AK$12,0)),0) -> 151 | CQ6: =IFERROR(ROUND(SUM(INDEX($Y$4:AB$104,MATCH('Capacity - Role Config'!$W12,'Shift and role config (H)'!$AN$4:$AN$104,0),)),3)+INDEX($AL$5:$AL$12,MATCH($CN$3,$AK$5:$AK$12,0)),0) -> 151 | CR6: =IFERROR(ROUND(SUM(INDEX($Y$4:AC$104,MATCH('Capacity - Role Config'!$W12,'Shift and role config (H)'!$AN$4:$AN$104,0),)),3)+INDEX($AL$5:$AL$12,MATCH($CN$3,$AK$5:$AK$12,0)),0) -> 151 | CS6: =IFERROR(ROUND(SUM(INDEX($Y$4:AD$104,MATCH('Capacity - Role Config'!$W12,'Shift and role config (H)'!$AN$4:$AN$104,0),)),3)+INDEX($AL$5:$AL$12,MATCH($CN$3,$AK$5:$AK$12,0)),0) -> 151 | CT6: =IFERROR(ROUND(SUM(INDEX($Y$4:AE$104,MATCH('Capacity - Role Config'!$W12,'Shift and role config (H)'!$AN$4:$AN$104,0),)),3)+INDEX($AL$5:$AL$12,MATCH($CN$3,$AK$5:$AK$12,0)),0) -> 151 | CU6: =IFERROR(ROUND(SUM(INDEX($Y$4:AF$104,MATCH('Capacity - Role Config'!$W12,'Shift and role config (H)'!$AN$4:$AN$104,0),)),3)+INDEX($AL$5:$AL$12,MATCH($CN$3,$AK$5:$AK$12,0)),0) -> 151 | CV6: =IFERROR(ROUND(SUM(INDEX($Y$4:Y$104,MATCH('Capacity - Role Config'!$X12,'Shift and role config (H)'!$AN$4:$AN$104,0),)),3)+INDEX($AL$5:$AL$12,MATCH($CV$3,$AK$5:$AK$12,0)),0) -> 165 | CW6: =IFERROR(ROUND(SUM(INDEX($Y$4:Z$104,MATCH('Capacity - Role Config'!$X12,'Shift and role config (H)'!$AN$4:$AN$104,0),)),3)+INDEX($AL$5:$AL$12,MATCH($CV$3,$AK$5:$AK$12,0)),0) -> 175 | CX6: =IFERROR(ROUND(SUM(INDEX($Y$4:AA$104,MATCH('Capacity - Role Config'!$X12,'Shift and role config (H)'!$AN$4:$AN$104,0),)),3)+INDEX($AL$5:$AL$12,MATCH($CV$3,$AK$5:$AK$12,0)),0) -> 175 | CY6: =IFERROR(ROUND(SUM(INDEX($Y$4:AB$104,MATCH('Capacity - Role Config'!$X12,'Shift and role config (H)'!$AN$4:$AN$104,0),)),3)+INDEX($AL$5:$AL$12,MATCH($CV$3,$AK$5:$AK$12,0)),0) -> 175 | CZ6: =IFERROR(ROUND(SUM(INDEX($Y$4:AC$104,MATCH('Capacity - Role Config'!$X12,'Shift and role config (H)'!$AN$4:$AN$104,0),)),3)+INDEX($AL$5:$AL$12,MATCH($CV$3,$AK$5:$AK$12,0)),0) -> 175 | DA6: =IFERROR(ROUND(SUM(INDEX($Y$4:AD$104,MATCH('Capacity - Role Config'!$X12,'Shift and role config (H)'!$AN$4:$AN$104,0),)),3)+INDEX($AL$5:$AL$12,MATCH($CV$3,$AK$5:$AK$12,0)),0) -> 175 | DB6: =IFERROR(ROUND(SUM(INDEX($Y$4:AE$104,MATCH('Capacity - Role Config'!$X12,'Shift and role config (H)'!$AN$4:$AN$104,0),)),3)+INDEX($AL$5:$AL$12,MATCH($CV$3,$AK$5:$AK$12,0)),0) -> 175 | DC6: =IFERROR(ROUND(SUM(INDEX($Y$4:AF$104,MATCH('Capacity - Role Config'!$X12,'Shift and role config (H)'!$AN$4:$AN$104,0),)),3)+INDEX($AL$5:$AL$12,MATCH($CV$3,$AK$5:$AK$12,0)),0) -> 175 | DE6: 73
A7: =IF('Capacity - Shift Config'!B7="","",'Capacity - Shift Config'!B7) -> Late | B7: ='Capacity - Shift Config'!C7 -> 10:00:00 | C7: ='Capacity - Shift Config'!D7 -> 22:00:00 | D7: =IF(ISBLANK('Capacity - Shift Config'!E7),"",'Capacity - Shift Config'!E7+IF('Capacity - Shift Config'!E7<'Capacity - Shift Config'!$C7,1,0)) ->  | E7: =IF(ISBLANK('Capacity - Shift Config'!F7),"",'Capacity - Shift Config'!F7+IF('Capacity - Shift Config'!F7<'Capacity - Shift Config'!$C7,1,0)) ->  | F7: =IF(ISBLANK('Capacity - Shift Config'!G7),"",'Capacity - Shift Config'!G7+IF('Capacity - Shift Config'!G7<'Capacity - Shift Config'!$C7,1,0)) ->  | G7: =IF(ISBLANK('Capacity - Shift Config'!H7),"",'Capacity - Shift Config'!H7+IF('Capacity - Shift Config'!H7<'Capacity - Shift Config'!$C7,1,0)) ->  | H7: =IF(ISBLANK('Capacity - Shift Config'!I7),"",'Capacity - Shift Config'!I7+IF('Capacity - Shift Config'!I7<'Capacity - Shift Config'!$C7,1,0)) ->  | I7: =IF(ISBLANK('Capacity - Shift Config'!J7),"",'Capacity - Shift Config'!J7+IF('Capacity - Shift Config'!J7<'Capacity - Shift Config'!$C7,1,0)) ->  | L7: 10:00:00 | M7: 12:00:00 | N7: 0 | O7: 0 | P7: 0 | Q7: 0 | R7: 0 | S7: 0 | Y7: 10 | Z7: 12 | AA7: 0 | AB7: 0 | AC7: 0 | AD7: 0 | AE7: 0 | AF7: 0 | AG7: 0 | AH7: 0 | AI7: 12 | AK7: Tuesday | AL7: 24 | AN7: ='Data Valid Backing (H)'!N6 -> Late (10:00 - 22:00) | AR7: =IFERROR(ROUND(SUM(INDEX($Y$4:Y$104,MATCH('Capacity - Role Config'!$Q13,'Shift and role config (H)'!$AN$4:$AN$104,0),)),3)+INDEX($AL$5:$AL$12,MATCH($AR$3,$AK$5:$AK$12,0)),0) -> -24 | AS7: =IFERROR(ROUND(SUM(INDEX($Y$4:Z$104,MATCH('Capacity - Role Config'!$Q13,'Shift and role config (H)'!$AN$4:$AN$104,0),)),3)+INDEX($AL$5:$AL$12,MATCH($AR$3,$AK$5:$AK$12,0)),0) -> -24 | AT7: =IFERROR(ROUND(SUM(INDEX($Y$4:AA$104,MATCH('Capacity - Role Config'!$Q13,'Shift and role config (H)'!$AN$4:$AN$104,0),)),3)+INDEX($AL$5:$AL$12,MATCH($AR$3,$AK$5:$AK$12,0)),0) -> -24 | AU7: =IFERROR(ROUND(SUM(INDEX($Y$4:AB$104,MATCH('Capacity - Role Config'!$Q13,'Shift and role config (H)'!$AN$4:$AN$104,0),)),3)+INDEX($AL$5:$AL$12,MATCH($AR$3,$AK$5:$AK$12,0)),0) -> -24 | AV7: =IFERROR(ROUND(SUM(INDEX($Y$4:AC$104,MATCH('Capacity - Role Config'!$Q13,'Shift and role config (H)'!$AN$4:$AN$104,0),)),3)+INDEX($AL$5:$AL$12,MATCH($AR$3,$AK$5:$AK$12,0)),0) -> -24 | AW7: =IFERROR(ROUND(SUM(INDEX($Y$4:AD$104,MATCH('Capacity - Role Config'!$Q13,'Shift and role config (H)'!$AN$4:$AN$104,0),)),3)+INDEX($AL$5:$AL$12,MATCH($AR$3,$AK$5:$AK$12,0)),0) -> -24 | AX7: =IFERROR(ROUND(SUM(INDEX($Y$4:AE$104,MATCH('Capacity - Role Config'!$Q13,'Shift and role config (H)'!$AN$4:$AN$104,0),)),3)+INDEX($AL$5:$AL$12,MATCH($AR$3,$AK$5:$AK$12,0)),0) -> -24 | AY7: =IFERROR(ROUND(SUM(INDEX($Y$4:AF$104,MATCH('Capacity - Role Config'!$Q13,'Shift and role config (H)'!$AN$4:$AN$104,0),)),3)+INDEX($AL$5:$AL$12,MATCH($AR$3,$AK$5:$AK$12,0)),0) -> -24 | AZ7: =IFERROR(ROUND(SUM(INDEX($Y$4:Y$104,MATCH('Capacity - Role Config'!$R13,'Shift and role config (H)'!$AN$4:$AN$104,0),)),3)+INDEX($AL$5:$AL$12,MATCH($AZ$3,$AK$5:$AK$12,0)),0) -> 8 | BA7: =IFERROR(ROUND(SUM(INDEX($Y$4:Z$104,MATCH('Capacity - Role Config'!$R13,'Shift and role config (H)'!$AN$4:$AN$104,0),)),3)+INDEX($AL$5:$AL$12,MATCH($AZ$3,$AK$5:$AK$12,0)),0) -> 12 | BB7: =IFERROR(ROUND(SUM(INDEX($Y$4:AA$104,MATCH('Capacity - Role Config'!$R13,'Shift and role config (H)'!$AN$4:$AN$104,0),)),3)+INDEX($AL$5:$AL$12,MATCH($AZ$3,$AK$5:$AK$12,0)),0) -> 13 | BC7: =IFERROR(ROUND(SUM(INDEX($Y$4:AB$104,MATCH('Capacity - Role Config'!$R13,'Shift and role config (H)'!$AN$4:$AN$104,0),)),3)+INDEX($AL$5:$AL$12,MATCH($AZ$3,$AK$5:$AK$12,0)),0) -> 21 | BD7: =IFERROR(ROUND(SUM(INDEX($Y$4:AC$104,MATCH('Capacity - Role Config'!$R13,'Shift and role config (H)'!$AN$4:$AN$104,0),)),3)+INDEX($AL$5:$AL$12,MATCH($AZ$3,$AK$5:$AK$12,0)),0) -> 21 | BE7: =IFERROR(ROUND(SUM(INDEX($Y$4:AD$104,MATCH('Capacity - Role Config'!$R13,'Shift and role config (H)'!$AN$4:$AN$104,0),)),3)+INDEX($AL$5:$AL$12,MATCH($AZ$3,$AK$5:$AK$12,0)),0) -> 21 | BF7: =IFERROR(ROUND(SUM(INDEX($Y$4:AE$104,MATCH('Capacity - Role Config'!$R13,'Shift and role config (H)'!$AN$4:$AN$104,0),)),3)+INDEX($AL$5:$AL$12,MATCH($AZ$3,$AK$5:$AK$12,0)),0) -> 21 | BG7: =IFERROR(ROUND(SUM(INDEX($Y$4:AF$104,MATCH('Capacity - Role Config'!$R13,'Shift and role config (H)'!$AN$4:$AN$104,0),)),3)+INDEX($AL$5:$AL$12,MATCH($AZ$3,$AK$5:$AK$12,0)),0) -> 21 | BH7: =IFERROR(ROUND(SUM(INDEX($Y$4:Y$104,MATCH('Capacity - Role Config'!$S13,'Shift and role config (H)'!$AN$4:$AN$104,0),)),3)+INDEX($AL$5:$AL$12,MATCH($BH$3,$AK$5:$AK$12,0)),0) -> 32 | BI7: =IFERROR(ROUND(SUM(INDEX($Y$4:Z$104,MATCH('Capacity - Role Config'!$S13,'Shift and role config (H)'!$AN$4:$AN$104,0),)),3)+INDEX($AL$5:$AL$12,MATCH($BH$3,$AK$5:$AK$12,0)),0) -> 36 | BJ7: =IFERROR(ROUND(SUM(INDEX($Y$4:AA$104,MATCH('Capacity - Role Config'!$S13,'Shift and role config (H)'!$AN$4:$AN$104,0),)),3)+INDEX($AL$5:$AL$12,MATCH($BH$3,$AK$5:$AK$12,0)),0) -> 37 | BK7: =IFERROR(ROUND(SUM(INDEX($Y$4:AB$104,MATCH('Capacity - Role Config'!$S13,'Shift and role config (H)'!$AN$4:$AN$104,0),)),3)+INDEX($AL$5:$AL$12,MATCH($BH$3,$AK$5:$AK$12,0)),0) -> 45 | BL7: =IFERROR(ROUND(SUM(INDEX($Y$4:AC$104,MATCH('Capacity - Role Config'!$S13,'Shift and role config (H)'!$AN$4:$AN$104,0),)),3)+INDEX($AL$5:$AL$12,MATCH($BH$3,$AK$5:$AK$12,0)),0) -> 45 | BM7: =IFERROR(ROUND(SUM(INDEX($Y$4:AD$104,MATCH('Capacity - Role Config'!$S13,'Shift and role config (H)'!$AN$4:$AN$104,0),)),3)+INDEX($AL$5:$AL$12,MATCH($BH$3,$AK$5:$AK$12,0)),0) -> 45 | BN7: =IFERROR(ROUND(SUM(INDEX($Y$4:AE$104,MATCH('Capacity - Role Config'!$S13,'Shift and role config (H)'!$AN$4:$AN$104,0),)),3)+INDEX($AL$5:$AL$12,MATCH($BH$3,$AK$5:$AK$12,0)),0) -> 45 | BO7: =IFERROR(ROUND(SUM(INDEX($Y$4:AF$104,MATCH('Capacity - Role Config'!$S13,'Shift and role config (H)'!$AN$4:$AN$104,0),)),3)+INDEX($AL$5:$AL$12,MATCH($BH$3,$AK$5:$AK$12,0)),0) -> 45 | BP7: =IFERROR(ROUND(SUM(INDEX($Y$4:Y$104,MATCH('Capacity - Role Config'!$T13,'Shift and role config (H)'!$AN$4:$AN$104,0),)),3)+INDEX($AL$5:$AL$12,MATCH($BP$3,$AK$5:$AK$12,0)),0) -> 56 | BQ7: =IFERROR(ROUND(SUM(INDEX($Y$4:Z$104,MATCH('Capacity - Role Config'!$T13,'Shift and role config (H)'!$AN$4:$AN$104,0),)),3)+INDEX($AL$5:$AL$12,MATCH($BP$3,$AK$5:$AK$12,0)),0) -> 60 | BR7: =IFERROR(ROUND(SUM(INDEX($Y$4:AA$104,MATCH('Capacity - Role Config'!$T13,'Shift and role config (H)'!$AN$4:$AN$104,0),)),3)+INDEX($AL$5:$AL$12,MATCH($BP$3,$AK$5:$AK$12,0)),0) -> 61 | BS7: =IFERROR(ROUND(SUM(INDEX($Y$4:AB$104,MATCH('Capacity - Role Config'!$T13,'Shift and role config (H)'!$AN$4:$AN$104,0),)),3)+INDEX($AL$5:$AL$12,MATCH($BP$3,$AK$5:$AK$12,0)),0) -> 69 | BT7: =IFERROR(ROUND(SUM(INDEX($Y$4:AC$104,MATCH('Capacity - Role Config'!$T13,'Shift and role config (H)'!$AN$4:$AN$104,0),)),3)+INDEX($AL$5:$AL$12,MATCH($BP$3,$AK$5:$AK$12,0)),0) -> 69 | BU7: =IFERROR(ROUND(SUM(INDEX($Y$4:AD$104,MATCH('Capacity - Role Config'!$T13,'Shift and role config (H)'!$AN$4:$AN$104,0),)),3)+INDEX($AL$5:$AL$12,MATCH($BP$3,$AK$5:$AK$12,0)),0) -> 69 | BV7: =IFERROR(ROUND(SUM(INDEX($Y$4:AE$104,MATCH('Capacity - Role Config'!$T13,'Shift and role config (H)'!$AN$4:$AN$104,0),)),3)+INDEX($AL$5:$AL$12,MATCH($BP$3,$AK$5:$AK$12,0)),0) -> 69 | BW7: =IFERROR(ROUND(SUM(INDEX($Y$4:AF$104,MATCH('Capacity - Role Config'!$T13,'Shift and role config (H)'!$AN$4:$AN$104,0),)),3)+INDEX($AL$5:$AL$12,MATCH($BP$3,$AK$5:$AK$12,0)),0) -> 69 | BX7: =IFERROR(ROUND(SUM(INDEX($Y$4:Y$104,MATCH('Capacity - Role Config'!$U13,'Shift and role config (H)'!$AN$4:$AN$104,0),)),3)+INDEX($AL$5:$AL$12,MATCH($BX$3,$AK$5:$AK$12,0)),0) -> 80 | BY7: =IFERROR(ROUND(SUM(INDEX($Y$4:Z$104,MATCH('Capacity - Role Config'!$U13,'Shift and role config (H)'!$AN$4:$AN$104,0),)),3)+INDEX($AL$5:$AL$12,MATCH($BX$3,$AK$5:$AK$12,0)),0) -> 84 | BZ7: =IFERROR(ROUND(SUM(INDEX($Y$4:AA$104,MATCH('Capacity - Role Config'!$U13,'Shift and role config (H)'!$AN$4:$AN$104,0),)),3)+INDEX($AL$5:$AL$12,MATCH($BX$3,$AK$5:$AK$12,0)),0) -> 85 | CA7: =IFERROR(ROUND(SUM(INDEX($Y$4:AB$104,MATCH('Capacity - Role Config'!$U13,'Shift and role config (H)'!$AN$4:$AN$104,0),)),3)+INDEX($AL$5:$AL$12,MATCH($BX$3,$AK$5:$AK$12,0)),0) -> 93 | CB7: =IFERROR(ROUND(SUM(INDEX($Y$4:AC$104,MATCH('Capacity - Role Config'!$U13,'Shift and role config (H)'!$AN$4:$AN$104,0),)),3)+INDEX($AL$5:$AL$12,MATCH($BX$3,$AK$5:$AK$12,0)),0) -> 93 | CC7: =IFERROR(ROUND(SUM(INDEX($Y$4:AD$104,MATCH('Capacity - Role Config'!$U13,'Shift and role config (H)'!$AN$4:$AN$104,0),)),3)+INDEX($AL$5:$AL$12,MATCH($BX$3,$AK$5:$AK$12,0)),0) -> 93 | CD7: =IFERROR(ROUND(SUM(INDEX($Y$4:AE$104,MATCH('Capacity - Role Config'!$U13,'Shift and role config (H)'!$AN$4:$AN$104,0),)),3)+INDEX($AL$5:$AL$12,MATCH($BX$3,$AK$5:$AK$12,0)),0) -> 93 | CE7: =IFERROR(ROUND(SUM(INDEX($Y$4:AF$104,MATCH('Capacity - Role Config'!$U13,'Shift and role config (H)'!$AN$4:$AN$104,0),)),3)+INDEX($AL$5:$AL$12,MATCH($BX$3,$AK$5:$AK$12,0)),0) -> 93 | CF7: =IFERROR(ROUND(SUM(INDEX($Y$4:Y$104,MATCH('Capacity - Role Config'!$V13,'Shift and role config (H)'!$AN$4:$AN$104,0),)),3)+INDEX($AL$5:$AL$12,MATCH($CF$3,$AK$5:$AK$12,0)),0) -> 104 | CG7: =IFERROR(ROUND(SUM(INDEX($Y$4:Z$104,MATCH('Capacity - Role Config'!$V13,'Shift and role config (H)'!$AN$4:$AN$104,0),)),3)+INDEX($AL$5:$AL$12,MATCH($CF$3,$AK$5:$AK$12,0)),0) -> 108 | CH7: =IFERROR(ROUND(SUM(INDEX($Y$4:AA$104,MATCH('Capacity - Role Config'!$V13,'Shift and role config (H)'!$AN$4:$AN$104,0),)),3)+INDEX($AL$5:$AL$12,MATCH($CF$3,$AK$5:$AK$12,0)),0) -> 109 | CI7: =IFERROR(ROUND(SUM(INDEX($Y$4:AB$104,MATCH('Capacity - Role Config'!$V13,'Shift and role config (H)'!$AN$4:$AN$104,0),)),3)+INDEX($AL$5:$AL$12,MATCH($CF$3,$AK$5:$AK$12,0)),0) -> 117 | CJ7: =IFERROR(ROUND(SUM(INDEX($Y$4:AC$104,MATCH('Capacity - Role Config'!$V13,'Shift and role config (H)'!$AN$4:$AN$104,0),)),3)+INDEX($AL$5:$AL$12,MATCH($CF$3,$AK$5:$AK$12,0)),0) -> 117 | CK7: =IFERROR(ROUND(SUM(INDEX($Y$4:AD$104,MATCH('Capacity - Role Config'!$V13,'Shift and role config (H)'!$AN$4:$AN$104,0),)),3)+INDEX($AL$5:$AL$12,MATCH($CF$3,$AK$5:$AK$12,0)),0) -> 117 | CL7: =IFERROR(ROUND(SUM(INDEX($Y$4:AE$104,MATCH('Capacity - Role Config'!$V13,'Shift and role config (H)'!$AN$4:$AN$104,0),)),3)+INDEX($AL$5:$AL$12,MATCH($CF$3,$AK$5:$AK$12,0)),0) -> 117 | CM7: =IFERROR(ROUND(SUM(INDEX($Y$4:AF$104,MATCH('Capacity - Role Config'!$V13,'Shift and role config (H)'!$AN$4:$AN$104,0),)),3)+INDEX($AL$5:$AL$12,MATCH($CF$3,$AK$5:$AK$12,0)),0) -> 117 | CN7: =IFERROR(ROUND(SUM(INDEX($Y$4:Y$104,MATCH('Capacity - Role Config'!$W13,'Shift and role config (H)'!$AN$4:$AN$104,0),)),3)+INDEX($AL$5:$AL$12,MATCH($CN$3,$AK$5:$AK$12,0)),0) -> 128 | CO7: =IFERROR(ROUND(SUM(INDEX($Y$4:Z$104,MATCH('Capacity - Role Config'!$W13,'Shift and role config (H)'!$AN$4:$AN$104,0),)),3)+INDEX($AL$5:$AL$12,MATCH($CN$3,$AK$5:$AK$12,0)),0) -> 132 | CP7: =IFERROR(ROUND(SUM(INDEX($Y$4:AA$104,MATCH('Capacity - Role Config'!$W13,'Shift and role config (H)'!$AN$4:$AN$104,0),)),3)+INDEX($AL$5:$AL$12,MATCH($CN$3,$AK$5:$AK$12,0)),0) -> 133 | CQ7: =IFERROR(ROUND(SUM(INDEX($Y$4:AB$104,MATCH('Capacity - Role Config'!$W13,'Shift and role config (H)'!$AN$4:$AN$104,0),)),3)+INDEX($AL$5:$AL$12,MATCH($CN$3,$AK$5:$AK$12,0)),0) -> 141 | CR7: =IFERROR(ROUND(SUM(INDEX($Y$4:AC$104,MATCH('Capacity - Role Config'!$W13,'Shift and role config (H)'!$AN$4:$AN$104,0),)),3)+INDEX($AL$5:$AL$12,MATCH($CN$3,$AK$5:$AK$12,0)),0) -> 141 | CS7: =IFERROR(ROUND(SUM(INDEX($Y$4:AD$104,MATCH('Capacity - Role Config'!$W13,'Shift and role config (H)'!$AN$4:$AN$104,0),)),3)+INDEX($AL$5:$AL$12,MATCH($CN$3,$AK$5:$AK$12,0)),0) -> 141 | CT7: =IFERROR(ROUND(SUM(INDEX($Y$4:AE$104,MATCH('Capacity - Role Config'!$W13,'Shift and role config (H)'!$AN$4:$AN$104,0),)),3)+INDEX($AL$5:$AL$12,MATCH($CN$3,$AK$5:$AK$12,0)),0) -> 141 | CU7: =IFERROR(ROUND(SUM(INDEX($Y$4:AF$104,MATCH('Capacity - Role Config'!$W13,'Shift and role config (H)'!$AN$4:$AN$104,0),)),3)+INDEX($AL$5:$AL$12,MATCH($CN$3,$AK$5:$AK$12,0)),0) -> 141 | CV7: =IFERROR(ROUND(SUM(INDEX($Y$4:Y$104,MATCH('Capacity - Role Config'!$X13,'Shift and role config (H)'!$AN$4:$AN$104,0),)),3)+INDEX($AL$5:$AL$12,MATCH($CV$3,$AK$5:$AK$12,0)),0) -> 152 | CW7: =IFERROR(ROUND(SUM(INDEX($Y$4:Z$104,MATCH('Capacity - Role Config'!$X13,'Shift and role config (H)'!$AN$4:$AN$104,0),)),3)+INDEX($AL$5:$AL$12,MATCH($CV$3,$AK$5:$AK$12,0)),0) -> 156 | CX7: =IFERROR(ROUND(SUM(INDEX($Y$4:AA$104,MATCH('Capacity - Role Config'!$X13,'Shift and role config (H)'!$AN$4:$AN$104,0),)),3)+INDEX($AL$5:$AL$12,MATCH($CV$3,$AK$5:$AK$12,0)),0) -> 157 | CY7: =IFERROR(ROUND(SUM(INDEX($Y$4:AB$104,MATCH('Capacity - Role Config'!$X13,'Shift and role config (H)'!$AN$4:$AN$104,0),)),3)+INDEX($AL$5:$AL$12,MATCH($CV$3,$AK$5:$AK$12,0)),0) -> 165 | CZ7: =IFERROR(ROUND(SUM(INDEX($Y$4:AC$104,MATCH('Capacity - Role Config'!$X13,'Shift and role config (H)'!$AN$4:$AN$104,0),)),3)+INDEX($AL$5:$AL$12,MATCH($CV$3,$AK$5:$AK$12,0)),0) -> 165 | DA7: =IFERROR(ROUND(SUM(INDEX($Y$4:AD$104,MATCH('Capacity - Role Config'!$X13,'Shift and role config (H)'!$AN$4:$AN$104,0),)),3)+INDEX($AL$5:$AL$12,MATCH($CV$3,$AK$5:$AK$12,0)),0) -> 165 | DB7: =IFERROR(ROUND(SUM(INDEX($Y$4:AE$104,MATCH('Capacity - Role Config'!$X13,'Shift and role config (H)'!$AN$4:$AN$104,0),)),3)+INDEX($AL$5:$AL$12,MATCH($CV$3,$AK$5:$AK$12,0)),0) -> 165 | DC7: =IFERROR(ROUND(SUM(INDEX($Y$4:AF$104,MATCH('Capacity - Role Config'!$X13,'Shift and role config (H)'!$AN$4:$AN$104,0),)),3)+INDEX($AL$5:$AL$12,MATCH($CV$3,$AK$5:$AK$12,0)),0) -> 165 | DE7: 91
A8: =IF('Capacity - Shift Config'!B8="","",'Capacity - Shift Config'!B8) -> Overnight | B8: ='Capacity - Shift Config'!C8 -> 21:00:00 | C8: ='Capacity - Shift Config'!D8 -> 07:00:00 | D8: =IF(ISBLANK('Capacity - Shift Config'!E8),"",'Capacity - Shift Config'!E8+IF('Capacity - Shift Config'!E8<'Capacity - Shift Config'!$C8,1,0)) ->  | E8: =IF(ISBLANK('Capacity - Shift Config'!F8),"",'Capacity - Shift Config'!F8+IF('Capacity - Shift Config'!F8<'Capacity - Shift Config'!$C8,1,0)) ->  | F8: =IF(ISBLANK('Capacity - Shift Config'!G8),"",'Capacity - Shift Config'!G8+IF('Capacity - Shift Config'!G8<'Capacity - Shift Config'!$C8,1,0)) ->  | G8: =IF(ISBLANK('Capacity - Shift Config'!H8),"",'Capacity - Shift Config'!H8+IF('Capacity - Shift Config'!H8<'Capacity - Shift Config'!$C8,1,0)) ->  | H8: =IF(ISBLANK('Capacity - Shift Config'!I8),"",'Capacity - Shift Config'!I8+IF('Capacity - Shift Config'!I8<'Capacity - Shift Config'!$C8,1,0)) ->  | I8: =IF(ISBLANK('Capacity - Shift Config'!J8),"",'Capacity - Shift Config'!J8+IF('Capacity - Shift Config'!J8<'Capacity - Shift Config'!$C8,1,0)) ->  | L8: 21:00:00 | M8: 10:00:00 | N8: 0 | O8: 0 | P8: 0 | Q8: 0 | R8: 0 | S8: 0 | Y8: 21 | Z8: =M8*24 -> 10 | AA8: 0 | AB8: 0 | AC8: 0 | AD8: 0 | AE8: 0 | AF8: 0 | AG8: 0 | AH8: 0 | AI8: 10 | AK8: Wednesday | AL8: 48 | AN8: ='Data Valid Backing (H)'!N7 -> Overnight (21:00 - 07:00) | AR8: =IFERROR(ROUND(SUM(INDEX($Y$4:Y$104,MATCH('Capacity - Role Config'!$Q14,'Shift and role config (H)'!$AN$4:$AN$104,0),)),3)+INDEX($AL$5:$AL$12,MATCH($AR$3,$AK$5:$AK$12,0)),0) -> 0 | AS8: =IFERROR(ROUND(SUM(INDEX($Y$4:Z$104,MATCH('Capacity - Role Config'!$Q14,'Shift and role config (H)'!$AN$4:$AN$104,0),)),3)+INDEX($AL$5:$AL$12,MATCH($AR$3,$AK$5:$AK$12,0)),0) -> 0 | AT8: =IFERROR(ROUND(SUM(INDEX($Y$4:AA$104,MATCH('Capacity - Role Config'!$Q14,'Shift and role config (H)'!$AN$4:$AN$104,0),)),3)+INDEX($AL$5:$AL$12,MATCH($AR$3,$AK$5:$AK$12,0)),0) -> 0 | AU8: =IFERROR(ROUND(SUM(INDEX($Y$4:AB$104,MATCH('Capacity - Role Config'!$Q14,'Shift and role config (H)'!$AN$4:$AN$104,0),)),3)+INDEX($AL$5:$AL$12,MATCH($AR$3,$AK$5:$AK$12,0)),0) -> 0 | AV8: =IFERROR(ROUND(SUM(INDEX($Y$4:AC$104,MATCH('Capacity - Role Config'!$Q14,'Shift and role config (H)'!$AN$4:$AN$104,0),)),3)+INDEX($AL$5:$AL$12,MATCH($AR$3,$AK$5:$AK$12,0)),0) -> 0 | AW8: =IFERROR(ROUND(SUM(INDEX($Y$4:AD$104,MATCH('Capacity - Role Config'!$Q14,'Shift and role config (H)'!$AN$4:$AN$104,0),)),3)+INDEX($AL$5:$AL$12,MATCH($AR$3,$AK$5:$AK$12,0)),0) -> 0 | AX8: =IFERROR(ROUND(SUM(INDEX($Y$4:AE$104,MATCH('Capacity - Role Config'!$Q14,'Shift and role config (H)'!$AN$4:$AN$104,0),)),3)+INDEX($AL$5:$AL$12,MATCH($AR$3,$AK$5:$AK$12,0)),0) -> 0 | AY8: =IFERROR(ROUND(SUM(INDEX($Y$4:AF$104,MATCH('Capacity - Role Config'!$Q14,'Shift and role config (H)'!$AN$4:$AN$104,0),)),3)+INDEX($AL$5:$AL$12,MATCH($AR$3,$AK$5:$AK$12,0)),0) -> 0 | AZ8: =IFERROR(ROUND(SUM(INDEX($Y$4:Y$104,MATCH('Capacity - Role Config'!$R14,'Shift and role config (H)'!$AN$4:$AN$104,0),)),3)+INDEX($AL$5:$AL$12,MATCH($AZ$3,$AK$5:$AK$12,0)),0) -> 21 | BA8: =IFERROR(ROUND(SUM(INDEX($Y$4:Z$104,MATCH('Capacity - Role Config'!$R14,'Shift and role config (H)'!$AN$4:$AN$104,0),)),3)+INDEX($AL$5:$AL$12,MATCH($AZ$3,$AK$5:$AK$12,0)),0) -> 31 | BB8: =IFERROR(ROUND(SUM(INDEX($Y$4:AA$104,MATCH('Capacity - Role Config'!$R14,'Shift and role config (H)'!$AN$4:$AN$104,0),)),3)+INDEX($AL$5:$AL$12,MATCH($AZ$3,$AK$5:$AK$12,0)),0) -> 31 | BC8: =IFERROR(ROUND(SUM(INDEX($Y$4:AB$104,MATCH('Capacity - Role Config'!$R14,'Shift and role config (H)'!$AN$4:$AN$104,0),)),3)+INDEX($AL$5:$AL$12,MATCH($AZ$3,$AK$5:$AK$12,0)),0) -> 31 | BD8: =IFERROR(ROUND(SUM(INDEX($Y$4:AC$104,MATCH('Capacity - Role Config'!$R14,'Shift and role config (H)'!$AN$4:$AN$104,0),)),3)+INDEX($AL$5:$AL$12,MATCH($AZ$3,$AK$5:$AK$12,0)),0) -> 31 | BE8: =IFERROR(ROUND(SUM(INDEX($Y$4:AD$104,MATCH('Capacity - Role Config'!$R14,'Shift and role config (H)'!$AN$4:$AN$104,0),)),3)+INDEX($AL$5:$AL$12,MATCH($AZ$3,$AK$5:$AK$12,0)),0) -> 31 | BF8: =IFERROR(ROUND(SUM(INDEX($Y$4:AE$104,MATCH('Capacity - Role Config'!$R14,'Shift and role config (H)'!$AN$4:$AN$104,0),)),3)+INDEX($AL$5:$AL$12,MATCH($AZ$3,$AK$5:$AK$12,0)),0) -> 31 | BG8: =IFERROR(ROUND(SUM(INDEX($Y$4:AF$104,MATCH('Capacity - Role Config'!$R14,'Shift and role config (H)'!$AN$4:$AN$104,0),)),3)+INDEX($AL$5:$AL$12,MATCH($AZ$3,$AK$5:$AK$12,0)),0) -> 31 | BH8: =IFERROR(ROUND(SUM(INDEX($Y$4:Y$104,MATCH('Capacity - Role Config'!$S14,'Shift and role config (H)'!$AN$4:$AN$104,0),)),3)+INDEX($AL$5:$AL$12,MATCH($BH$3,$AK$5:$AK$12,0)),0) -> 45 | BI8: =IFERROR(ROUND(SUM(INDEX($Y$4:Z$104,MATCH('Capacity - Role Config'!$S14,'Shift and role config (H)'!$AN$4:$AN$104,0),)),3)+INDEX($AL$5:$AL$12,MATCH($BH$3,$AK$5:$AK$12,0)),0) -> 55 | BJ8: =IFERROR(ROUND(SUM(INDEX($Y$4:AA$104,MATCH('Capacity - Role Config'!$S14,'Shift and role config (H)'!$AN$4:$AN$104,0),)),3)+INDEX($AL$5:$AL$12,MATCH($BH$3,$AK$5:$AK$12,0)),0) -> 55 | BK8: =IFERROR(ROUND(SUM(INDEX($Y$4:AB$104,MATCH('Capacity - Role Config'!$S14,'Shift and role config (H)'!$AN$4:$AN$104,0),)),3)+INDEX($AL$5:$AL$12,MATCH($BH$3,$AK$5:$AK$12,0)),0) -> 55 | BL8: =IFERROR(ROUND(SUM(INDEX($Y$4:AC$104,MATCH('Capacity - Role Config'!$S14,'Shift and role config (H)'!$AN$4:$AN$104,0),)),3)+INDEX($AL$5:$AL$12,MATCH($BH$3,$AK$5:$AK$12,0)),0) -> 55 | BM8: =IFERROR(ROUND(SUM(INDEX($Y$4:AD$104,MATCH('Capacity - Role Config'!$S14,'Shift and role config (H)'!$AN$4:$AN$104,0),)),3)+INDEX($AL$5:$AL$12,MATCH($BH$3,$AK$5:$AK$12,0)),0) -> 55 | BN8: =IFERROR(ROUND(SUM(INDEX($Y$4:AE$104,MATCH('Capacity - Role Config'!$S14,'Shift and role config (H)'!$AN$4:$AN$104,0),)),3)+INDEX($AL$5:$AL$12,MATCH($BH$3,$AK$5:$AK$12,0)),0) -> 55 | BO8: =IFERROR(ROUND(SUM(INDEX($Y$4:AF$104,MATCH('Capacity - Role Config'!$S14,'Shift and role config (H)'!$AN$4:$AN$104,0),)),3)+INDEX($AL$5:$AL$12,MATCH($BH$3,$AK$5:$AK$12,0)),0) -> 55 | BP8: =IFERROR(ROUND(SUM(INDEX($Y$4:Y$104,MATCH('Capacity - Role Config'!$T14,'Shift and role config (H)'!$AN$4:$AN$104,0),)),3)+INDEX($AL$5:$AL$12,MATCH($BP$3,$AK$5:$AK$12,0)),0) -> 69 | BQ8: =IFERROR(ROUND(SUM(INDEX($Y$4:Z$104,MATCH('Capacity - Role Config'!$T14,'Shift and role config (H)'!$AN$4:$AN$104,0),)),3)+INDEX($AL$5:$AL$12,MATCH($BP$3,$AK$5:$AK$12,0)),0) -> 79 | BR8: =IFERROR(ROUND(SUM(INDEX($Y$4:AA$104,MATCH('Capacity - Role Config'!$T14,'Shift and role config (H)'!$AN$4:$AN$104,0),)),3)+INDEX($AL$5:$AL$12,MATCH($BP$3,$AK$5:$AK$12,0)),0) -> 79 | BS8: =IFERROR(ROUND(SUM(INDEX($Y$4:AB$104,MATCH('Capacity - Role Config'!$T14,'Shift and role config (H)'!$AN$4:$AN$104,0),)),3)+INDEX($AL$5:$AL$12,MATCH($BP$3,$AK$5:$AK$12,0)),0) -> 79 | BT8: =IFERROR(ROUND(SUM(INDEX($Y$4:AC$104,MATCH('Capacity - Role Config'!$T14,'Shift and role config (H)'!$AN$4:$AN$104,0),)),3)+INDEX($AL$5:$AL$12,MATCH($BP$3,$AK$5:$AK$12,0)),0) -> 79 | BU8: =IFERROR(ROUND(SUM(INDEX($Y$4:AD$104,MATCH('Capacity - Role Config'!$T14,'Shift and role config (H)'!$AN$4:$AN$104,0),)),3)+INDEX($AL$5:$AL$12,MATCH($BP$3,$AK$5:$AK$12,0)),0) -> 79 | BV8: =IFERROR(ROUND(SUM(INDEX($Y$4:AE$104,MATCH('Capacity - Role Config'!$T14,'Shift and role config (H)'!$AN$4:$AN$104,0),)),3)+INDEX($AL$5:$AL$12,MATCH($BP$3,$AK$5:$AK$12,0)),0) -> 79 | BW8: =IFERROR(ROUND(SUM(INDEX($Y$4:AF$104,MATCH('Capacity - Role Config'!$T14,'Shift and role config (H)'!$AN$4:$AN$104,0),)),3)+INDEX($AL$5:$AL$12,MATCH($BP$3,$AK$5:$AK$12,0)),0) -> 79 | BX8: =IFERROR(ROUND(SUM(INDEX($Y$4:Y$104,MATCH('Capacity - Role Config'!$U14,'Shift and role config (H)'!$AN$4:$AN$104,0),)),3)+INDEX($AL$5:$AL$12,MATCH($BX$3,$AK$5:$AK$12,0)),0) -> 80 | BY8: =IFERROR(ROUND(SUM(INDEX($Y$4:Z$104,MATCH('Capacity - Role Config'!$U14,'Shift and role config (H)'!$AN$4:$AN$104,0),)),3)+INDEX($AL$5:$AL$12,MATCH($BX$3,$AK$5:$AK$12,0)),0) -> 84 | BZ8: =IFERROR(ROUND(SUM(INDEX($Y$4:AA$104,MATCH('Capacity - Role Config'!$U14,'Shift and role config (H)'!$AN$4:$AN$104,0),)),3)+INDEX($AL$5:$AL$12,MATCH($BX$3,$AK$5:$AK$12,0)),0) -> 85 | CA8: =IFERROR(ROUND(SUM(INDEX($Y$4:AB$104,MATCH('Capacity - Role Config'!$U14,'Shift and role config (H)'!$AN$4:$AN$104,0),)),3)+INDEX($AL$5:$AL$12,MATCH($BX$3,$AK$5:$AK$12,0)),0) -> 93 | CB8: =IFERROR(ROUND(SUM(INDEX($Y$4:AC$104,MATCH('Capacity - Role Config'!$U14,'Shift and role config (H)'!$AN$4:$AN$104,0),)),3)+INDEX($AL$5:$AL$12,MATCH($BX$3,$AK$5:$AK$12,0)),0) -> 93 | CC8: =IFERROR(ROUND(SUM(INDEX($Y$4:AD$104,MATCH('Capacity - Role Config'!$U14,'Shift and role config (H)'!$AN$4:$AN$104,0),)),3)+INDEX($AL$5:$AL$12,MATCH($BX$3,$AK$5:$AK$12,0)),0) -> 93 | CD8: =IFERROR(ROUND(SUM(INDEX($Y$4:AE$104,MATCH('Capacity - Role Config'!$U14,'Shift and role config (H)'!$AN$4:$AN$104,0),)),3)+INDEX($AL$5:$AL$12,MATCH($BX$3,$AK$5:$AK$12,0)),0) -> 93 | CE8: =IFERROR(ROUND(SUM(INDEX($Y$4:AF$104,MATCH('Capacity - Role Config'!$U14,'Shift and role config (H)'!$AN$4:$AN$104,0),)),3)+INDEX($AL$5:$AL$12,MATCH($BX$3,$AK$5:$AK$12,0)),0) -> 93 | CF8: =IFERROR(ROUND(SUM(INDEX($Y$4:Y$104,MATCH('Capacity - Role Config'!$V14,'Shift and role config (H)'!$AN$4:$AN$104,0),)),3)+INDEX($AL$5:$AL$12,MATCH($CF$3,$AK$5:$AK$12,0)),0) -> 117 | CG8: =IFERROR(ROUND(SUM(INDEX($Y$4:Z$104,MATCH('Capacity - Role Config'!$V14,'Shift and role config (H)'!$AN$4:$AN$104,0),)),3)+INDEX($AL$5:$AL$12,MATCH($CF$3,$AK$5:$AK$12,0)),0) -> 127 | CH8: =IFERROR(ROUND(SUM(INDEX($Y$4:AA$104,MATCH('Capacity - Role Config'!$V14,'Shift and role config (H)'!$AN$4:$AN$104,0),)),3)+INDEX($AL$5:$AL$12,MATCH($CF$3,$AK$5:$AK$12,0)),0) -> 127 | CI8: =IFERROR(ROUND(SUM(INDEX($Y$4:AB$104,MATCH('Capacity - Role Config'!$V14,'Shift and role config (H)'!$AN$4:$AN$104,0),)),3)+INDEX($AL$5:$AL$12,MATCH($CF$3,$AK$5:$AK$12,0)),0) -> 127 | CJ8: =IFERROR(ROUND(SUM(INDEX($Y$4:AC$104,MATCH('Capacity - Role Config'!$V14,'Shift and role config (H)'!$AN$4:$AN$104,0),)),3)+INDEX($AL$5:$AL$12,MATCH($CF$3,$AK$5:$AK$12,0)),0) -> 127 | CK8: =IFERROR(ROUND(SUM(INDEX($Y$4:AD$104,MATCH('Capacity - Role Config'!$V14,'Shift and role config (H)'!$AN$4:$AN$104,0),)),3)+INDEX($AL$5:$AL$12,MATCH($CF$3,$AK$5:$AK$12,0)),0) -> 127 | CL8: =IFERROR(ROUND(SUM(INDEX($Y$4:AE$104,MATCH('Capacity - Role Config'!$V14,'Shift and role config (H)'!$AN$4:$AN$104,0),)),3)+INDEX($AL$5:$AL$12,MATCH($CF$3,$AK$5:$AK$12,0)),0) -> 127 | CM8: =IFERROR(ROUND(SUM(INDEX($Y$4:AF$104,MATCH('Capacity - Role Config'!$V14,'Shift and role config (H)'!$AN$4:$AN$104,0),)),3)+INDEX($AL$5:$AL$12,MATCH($CF$3,$AK$5:$AK$12,0)),0) -> 127 | CN8: =IFERROR(ROUND(SUM(INDEX($Y$4:Y$104,MATCH('Capacity - Role Config'!$W14,'Shift and role config (H)'!$AN$4:$AN$104,0),)),3)+INDEX($AL$5:$AL$12,MATCH($CN$3,$AK$5:$AK$12,0)),0) -> 141 | CO8: =IFERROR(ROUND(SUM(INDEX($Y$4:Z$104,MATCH('Capacity - Role Config'!$W14,'Shift and role config (H)'!$AN$4:$AN$104,0),)),3)+INDEX($AL$5:$AL$12,MATCH($CN$3,$AK$5:$AK$12,0)),0) -> 151 | CP8: =IFERROR(ROUND(SUM(INDEX($Y$4:AA$104,MATCH('Capacity - Role Config'!$W14,'Shift and role config (H)'!$AN$4:$AN$104,0),)),3)+INDEX($AL$5:$AL$12,MATCH($CN$3,$AK$5:$AK$12,0)),0) -> 151 | CQ8: =IFERROR(ROUND(SUM(INDEX($Y$4:AB$104,MATCH('Capacity - Role Config'!$W14,'Shift and role config (H)'!$AN$4:$AN$104,0),)),3)+INDEX($AL$5:$AL$12,MATCH($CN$3,$AK$5:$AK$12,0)),0) -> 151 | CR8: =IFERROR(ROUND(SUM(INDEX($Y$4:AC$104,MATCH('Capacity - Role Config'!$W14,'Shift and role config (H)'!$AN$4:$AN$104,0),)),3)+INDEX($AL$5:$AL$12,MATCH($CN$3,$AK$5:$AK$12,0)),0) -> 151 | CS8: =IFERROR(ROUND(SUM(INDEX($Y$4:AD$104,MATCH('Capacity - Role Config'!$W14,'Shift and role config (H)'!$AN$4:$AN$104,0),)),3)+INDEX($AL$5:$AL$12,MATCH($CN$3,$AK$5:$AK$12,0)),0) -> 151 | CT8: =IFERROR(ROUND(SUM(INDEX($Y$4:AE$104,MATCH('Capacity - Role Config'!$W14,'Shift and role config (H)'!$AN$4:$AN$104,0),)),3)+INDEX($AL$5:$AL$12,MATCH($CN$3,$AK$5:$AK$12,0)),0) -> 151 | CU8: =IFERROR(ROUND(SUM(INDEX($Y$4:AF$104,MATCH('Capacity - Role Config'!$W14,'Shift and role config (H)'!$AN$4:$AN$104,0),)),3)+INDEX($AL$5:$AL$12,MATCH($CN$3,$AK$5:$AK$12,0)),0) -> 151 | CV8: =IFERROR(ROUND(SUM(INDEX($Y$4:Y$104,MATCH('Capacity - Role Config'!$X14,'Shift and role config (H)'!$AN$4:$AN$104,0),)),3)+INDEX($AL$5:$AL$12,MATCH($CV$3,$AK$5:$AK$12,0)),0) -> 165 | CW8: =IFERROR(ROUND(SUM(INDEX($Y$4:Z$104,MATCH('Capacity - Role Config'!$X14,'Shift and role config (H)'!$AN$4:$AN$104,0),)),3)+INDEX($AL$5:$AL$12,MATCH($CV$3,$AK$5:$AK$12,0)),0) -> 175 | CX8: =IFERROR(ROUND(SUM(INDEX($Y$4:AA$104,MATCH('Capacity - Role Config'!$X14,'Shift and role config (H)'!$AN$4:$AN$104,0),)),3)+INDEX($AL$5:$AL$12,MATCH($CV$3,$AK$5:$AK$12,0)),0) -> 175 | CY8: =IFERROR(ROUND(SUM(INDEX($Y$4:AB$104,MATCH('Capacity - Role Config'!$X14,'Shift and role config (H)'!$AN$4:$AN$104,0),)),3)+INDEX($AL$5:$AL$12,MATCH($CV$3,$AK$5:$AK$12,0)),0) -> 175 | CZ8: =IFERROR(ROUND(SUM(INDEX($Y$4:AC$104,MATCH('Capacity - Role Config'!$X14,'Shift and role config (H)'!$AN$4:$AN$104,0),)),3)+INDEX($AL$5:$AL$12,MATCH($CV$3,$AK$5:$AK$12,0)),0) -> 175 | DA8: =IFERROR(ROUND(SUM(INDEX($Y$4:AD$104,MATCH('Capacity - Role Config'!$X14,'Shift and role config (H)'!$AN$4:$AN$104,0),)),3)+INDEX($AL$5:$AL$12,MATCH($CV$3,$AK$5:$AK$12,0)),0) -> 175 | DB8: =IFERROR(ROUND(SUM(INDEX($Y$4:AE$104,MATCH('Capacity - Role Config'!$X14,'Shift and role config (H)'!$AN$4:$AN$104,0),)),3)+INDEX($AL$5:$AL$12,MATCH($CV$3,$AK$5:$AK$12,0)),0) -> 175 | DC8: =IFERROR(ROUND(SUM(INDEX($Y$4:AF$104,MATCH('Capacity - Role Config'!$X14,'Shift and role config (H)'!$AN$4:$AN$104,0),)),3)+INDEX($AL$5:$AL$12,MATCH($CV$3,$AK$5:$AK$12,0)),0) -> 175 | DE8: 73
